Workbook

Sheet Weather data
A1: TIME | B1: Dry bulb temperature [°C] | C1: Wet bulb temperature [°C] | D1: Dew point temperature [°C] | E1: Relative humidity [%] | F1: Wind speed [m/s] | G1: Wind direction [°] | H1: Extraterrestrial Horizontal Radiation [Wh/m²] | I1: Global Horizontal Radiation [Wh/m²] | K1: Wet bulb temperature check [1 = input,0 = to be calculated] | L1: Wet bulb temperature calc | M1: Hour Kt | N1: Diffuse on Horizontal [W/m²] | O1: Beam on Horizontal [W/m²] | R1: Beam Radiation on E-oriented surface | S1: Beam Radiation on N-oriented | T1: Beam Radiation on NE-oriented | U1: Beam Radiation on NW-oriented | V1: Beam Radiation on S-oriented | W1: Beam Radiation on SE-oriented | X1: Beam Radiation on SW-oriented | Y1: Beam Radiation on W-oriented | AA1: Beam Radiation on E-oriented surface | AB1: Beam Radiation on N-oriented | AC1: Beam Radiation on NE-oriented | AD1: Beam Radiation on NW-oriented | AE1: Beam Radiation on S-oriented | AF1: Beam Radiation on SE-oriented | AG1: Beam Radiation on SW-oriented | AH1: Beam Radiation on W-oriented | AJ1: Diffuse Radiation | AL1: GR(E) [W/m²] | AM1: GR(N) [W/m²] | AN1: GR(NE) [W/m²] | AO1: GR(NW) [W/m²] | AP1: GR(S) [W/m²] | AQ1: GR(SE) [W/m²] | AR1: GR(SW) [W/m²] | AS1: GR(W) [W/m²] | AV1: E | AW1: N | AX1: NE | AY1: NW | AZ1: S | BA1: SE | BB1: SW | BC1: W
A2: 0 | B2: 7 | D2: 4.6 | E2: 85 | F2: 11.3 | G2: 250 | H2: 0 | I2: 0 | K2: =IF(SUM('Weather data'!C2:C8762)<1,0,1) -> 0 | L2: =IF($K$2=0,D2*ATAN(0.151977*(E2+8.313659)^0.5)+ATAN(D2+E2)-ATAN(E2-1.676331)+0.00391838*(E2)^(3/2)*ATAN(0.023101*E2)-4.686035,'Weather data'!C2) -> 3.166815768 | M2: =IF(IFERROR(I2/H2,0)>1,0,IFERROR(I2/H2,0)) -> 0 | N2: =IF(M2<=0.22,((1-0.09*M2)*I2),(0.9511-0.1604*M2+(4.388*(M2)^2)-(16.638*(M2)^3)+(12.336*(M2)^(4)))*I2) -> 0 | O2: =I2-N2 -> 0 | R2: =O3*'Qsol calculation'!N2 -> 0 | S2: =O3*'Qsol calculation'!O2 -> 0 | T2: =O3*'Qsol calculation'!P2 -> 0 | U2: =O3*'Qsol calculation'!Q2 -> 0 | V2: =O3*'Qsol calculation'!R2 -> 0 | W2: =O3*'Qsol calculation'!S2 -> 0 | X2: =O3*'Qsol calculation'!T2 -> 0 | Y2: =O3*'Qsol calculation'!U2 -> 0 | AA2: =IF(R2<=0,0,R2) -> 0 | AB2: =IF(S2<=0,0,S2) -> 0 | AC2: 0 | AD2: 0 | AE2: =IF(V2<=0,0,V2) -> 0 | AF2: 0 | AG2: 0 | AH2: 0 | AJ2: =N2*(1+COS(VCP!$N$22))/2 -> 0 | AL2: =AA2+AJ2 -> 0 | AM2: =AB2+AJ2 -> 0 | AN2: =AC2+AJ2 -> 0 | AO2: =AD2+AJ2 -> 0 | AP2: =AE2+AJ2 -> 0 | AQ2: =AF2+AJ2 -> 0 | AR2: =AG2+AJ2 -> 0 | AS2: =AH2+AJ2 -> 0 | AV2: =IF(AL2>VCP!$E$29,AL2*VCP!$E$28,AL2) -> 0 | AW2: =IF(AM2>VCP!$E$29,AM2*VCP!$E$28,AM2) -> 0 | AX2: =IF(AN2>VCP!$E$29,AN2*VCP!$E$28,AN2) -> 0 | AY2: =IF(AO2>VCP!$E$29,AO2*VCP!$E$28,AO2) -> 0 | AZ2: =IF(AP2>VCP!$E$29,AP2*VCP!$E$28,AP2) -> 0 | BA2: =IF(AQ2>VCP!$E$29,AQ2*VCP!$E$28,AQ2) -> 0 | BB2: =IF(AR2>VCP!$E$29,AR2*VCP!$E$28,AR2) -> 0 | BC2: =IF(AS2>VCP!$E$29,AS2*VCP!$E$28,AS2) -> 0
A3: 1 | B3: 7.1 | D3: 4.5 | E3: 84 | F3: 12.7 | G3: 250 | H3: 0 | I3: 0 | L3: =IF($K$2=0,D3*ATAN(0.151977*(E3+8.313659)^0.5)+ATAN(D3+E3)-ATAN(E3-1.676331)+0.00391838*(E3)^(3/2)*ATAN(0.023101*E3)-4.686035,'Weather data'!C3) -> 2.984343906 | M3: =IF(IFERROR(I3/H3,0)>1,0,IFERROR(I3/H3,0)) -> 0 | N3: 0 | O3: 0 | R3: =O4*'Qsol calculation'!N3 -> 0 | S3: =O4*'Qsol calculation'!O3 -> 0 | T3: =O4*'Qsol calculation'!P3 -> 0 | U3: =O4*'Qsol calculation'!Q3 -> 0 | V3: =O4*'Qsol calculation'!R3 -> 0 | W3: =O4*'Qsol calculation'!S3 -> 0 | X3: =O4*'Qsol calculation'!T3 -> 0 | Y3: =O4*'Qsol calculation'!U3 -> 0 | AA3: =IF(R3<=0,0,R3) -> 0 | AB3: =IF(S3<=0,0,S3) -> 0 | AC3: =IF(T3<=0,0,T3) -> 0 | AD3: =IF(U3<=0,0,U3) -> 0 | AE3: =IF(V3<=0,0,V3) -> 0 | AF3: =IF(W3<=0,0,W3) -> 0 | AG3: =IF(X3<=0,0,X3) -> 0 | AH3: =IF(Y3<=0,0,Y3) -> 0 | AJ3: =N3*(1+COS(VCP!$N$22))/2 -> 0 | AL3: =AA3+AJ3 -> 0 | AM3: 0 | AN3: 0 | AO3: 0 | AP3: 0 | AQ3: 0 | AR3: 0 | AS3: 0 | AV3: =IF(AL3>VCP!$E$29,AL3*VCP!$E$28,AL3) -> 0 | AW3: =IF(AM3>VCP!$E$29,AM3*VCP!$E$28,AM3) -> 0 | AX3: =IF(AN3>VCP!$E$29,AN3*VCP!$E$28,AN3) -> 0 | AY3: =IF(AO3>VCP!$E$29,AO3*VCP!$E$28,AO3) -> 0 | AZ3: =IF(AP3>VCP!$E$29,AP3*VCP!$E$28,AP3) -> 0 | BA3: =IF(AQ3>VCP!$E$29,AQ3*VCP!$E$28,AQ3) -> 0 | BB3: =IF(AR3>VCP!$E$29,AR3*VCP!$E$28,AR3) -> 0 | BC3: =IF(AS3>VCP!$E$29,AS3*VCP!$E$28,AS3) -> 0
A4: 2 | B4: 7.2 | D4: 4.5 | E4: 83 | F4: 14 | G4: 250 | H4: 0 | I4: 0 | L4: =IF($K$2=0,D4*ATAN(0.151977*(E4+8.313659)^0.5)+ATAN(D4+E4)-ATAN(E4-1.676331)+0.00391838*(E4)^(3/2)*ATAN(0.023101*E4)-4.686035,'Weather data'!C4) -> 2.899620771 | M4: 0 | N4: 0 | O4: 0 | R4: =O5*'Qsol calculation'!N4 -> 0 | S4: =O5*'Qsol calculation'!O4 -> 0 | T4: =O5*'Qsol calculation'!P4 -> 0 | U4: =O5*'Qsol calculation'!Q4 -> 0 | V4: =O5*'Qsol calculation'!R4 -> 0 | W4: =O5*'Qsol calculation'!S4 -> 0 | X4: =O5*'Qsol calculation'!T4 -> 0 | Y4: =O5*'Qsol calculation'!U4 -> 0 | AA4: 0 | AB4: 0 | AC4: 0 | AD4: 0 | AE4: 0 | AF4: 0 | AG4: 0 | AH4: 0 | AJ4: =N4*(1+COS(VCP!$N$22))/2 -> 0 | AL4: 0 | AM4: 0 | AN4: 0 | AO4: 0 | AP4: 0 | AQ4: 0 | AR4: 0 | AS4: 0 | AV4: =IF(AL4>VCP!$E$29,AL4*VCP!$E$28,AL4) -> 0 | AW4: =IF(AM4>VCP!$E$29,AM4*VCP!$E$28,AM4) -> 0 | AX4: =IF(AN4>VCP!$E$29,AN4*VCP!$E$28,AN4) -> 0 | AY4: =IF(AO4>VCP!$E$29,AO4*VCP!$E$28,AO4) -> 0 | AZ4: =IF(AP4>VCP!$E$29,AP4*VCP!$E$28,AP4) -> 0 | BA4: =IF(AQ4>VCP!$E$29,AQ4*VCP!$E$28,AQ4) -> 0 | BB4: =IF(AR4>VCP!$E$29,AR4*VCP!$E$28,AR4) -> 0 | BC4: =IF(AS4>VCP!$E$29,AS4*VCP!$E$28,AS4) -> 0
A5: 3 | B5: 7.4 | D5: 4.5 | E5: 82 | F5: 15.4 | G5: 260 | H5: 0 | I5: 0 | L5: =IF($K$2=0,D5*ATAN(0.151977*(E5+8.313659)^0.5)+ATAN(D5+E5)-ATAN(E5-1.676331)+0.00391838*(E5)^(3/2)*ATAN(0.023101*E5)-4.686035,'Weather data'!C5) -> 2.815353238 | M5: 0 | N5: 0 | O5: 0 | R5: =O6*'Qsol calculation'!N5 -> 0 | S5: =O6*'Qsol calculation'!O5 -> 0 | T5: =O6*'Qsol calculation'!P5 -> 0 | U5: =O6*'Qsol calculation'!Q5 -> 0 | V5: =O6*'Qsol calculation'!R5 -> 0 | W5: =O6*'Qsol calculation'!S5 -> 0 | X5: =O6*'Qsol calculation'!T5 -> 0 | Y5: =O6*'Qsol calculation'!U5 -> 0 | AA5: 0 | AB5: 0 | AC5: 0 | AD5: 0 | AE5: 0 | AF5: 0 | AG5: 0 | AH5: 0 | AJ5: =N5*(1+COS(VCP!$N$22))/2 -> 0 | AL5: 0 | AM5: 0 | AN5: 0 | AO5: 0 | AP5: 0 | AQ5: 0 | AR5: 0 | AS5: 0 | AV5: =IF(AL5>VCP!$E$29,AL5*VCP!$E$28,AL5) -> 0 | AW5: =IF(AM5>VCP!$E$29,AM5*VCP!$E$28,AM5) -> 0 | AX5: =IF(AN5>VCP!$E$29,AN5*VCP!$E$28,AN5) -> 0 | AY5: =IF(AO5>VCP!$E$29,AO5*VCP!$E$28,AO5) -> 0 | AZ5: =IF(AP5>VCP!$E$29,AP5*VCP!$E$28,AP5) -> 0 | BA5: =IF(AQ5>VCP!$E$29,AQ5*VCP!$E$28,AQ5) -> 0 | BB5: =IF(AR5>VCP!$E$29,AR5*VCP!$E$28,AR5) -> 0 | BC5: =IF(AS5>VCP!$E$29,AS5*VCP!$E$28,AS5) -> 0
A6: 4 | B6: 7.6 | D6: 4.5 | E6: 81 | F6: 15.4 | G6: 260 | H6: 0 | I6: 0 | L6: =IF($K$2=0,D6*ATAN(0.151977*(E6+8.313659)^0.5)+ATAN(D6+E6)-ATAN(E6-1.676331)+0.00391838*(E6)^(3/2)*ATAN(0.023101*E6)-4.686035,'Weather data'!C6) -> 2.731543315 | M6: 0 | N6: 0 | O6: 0 | R6: =O7*'Qsol calculation'!N6 -> 0 | S6: =O7*'Qsol calculation'!O6 -> 0 | T6: =O7*'Qsol calculation'!P6 -> 0 | U6: =O7*'Qsol calculation'!Q6 -> 0 | V6: =O7*'Qsol calculation'!R6 -> 0 | W6: =O7*'Qsol calculation'!S6 -> 0 | X6: =O7*'Qsol calculation'!T6 -> 0 | Y6: =O7*'Qsol calculation'!U6 -> 0 | AA6: 0 | AB6: 0 | AC6: 0 | AD6: 0 | AE6: 0 | AF6: 0 | AG6: 0 | AH6: 0 | AJ6: =N6*(1+COS(VCP!$N$22))/2 -> 0 | AL6: 0 | AM6: 0 | AN6: 0 | AO6: 0 | AP6: 0 | AQ6: 0 | AR6: 0 | AS6: 0 | AV6: =IF(AL6>VCP!$E$29,AL6*VCP!$E$28,AL6) -> 0 | AW6: =IF(AM6>VCP!$E$29,AM6*VCP!$E$28,AM6) -> 0 | AX6: =IF(AN6>VCP!$E$29,AN6*VCP!$E$28,AN6) -> 0 | AY6: =IF(AO6>VCP!$E$29,AO6*VCP!$E$28,AO6) -> 0 | AZ6: =IF(AP6>VCP!$E$29,AP6*VCP!$E$28,AP6) -> 0 | BA6: =IF(AQ6>VCP!$E$29,AQ6*VCP!$E$28,AQ6) -> 0 | BB6: =IF(AR6>VCP!$E$29,AR6*VCP!$E$28,AR6) -> 0 | BC6: =IF(AS6>VCP!$E$29,AS6*VCP!$E$28,AS6) -> 0
A7: 5 | B7: 7.8 | D7: 4.6 | E7: 80 | F7: 15.4 | G7: 260 | H7: 0 | I7: 0 | L7: =IF($K$2=0,D7*ATAN(0.151977*(E7+8.313659)^0.5)+ATAN(D7+E7)-ATAN(E7-1.676331)+0.00391838*(E7)^(3/2)*ATAN(0.023101*E7)-4.686035,'Weather data'!C7) -> 2.744202139 | M7: 0 | N7: 0 | O7: 0 | R7: =O8*'Qsol calculation'!N7 -> 0 | S7: =O8*'Qsol calculation'!O7 -> 0 | T7: =O8*'Qsol calculation'!P7 -> 0 | U7: =O8*'Qsol calculation'!Q7 -> 0 | V7: =O8*'Qsol calculation'!R7 -> 0 | W7: =O8*'Qsol calculation'!S7 -> 0 | X7: =O8*'Qsol calculation'!T7 -> 0 | Y7: =O8*'Qsol calculation'!U7 -> 0 | AA7: 0 | AB7: 0 | AC7: 0 | AD7: 0 | AE7: 0 | AF7: 0 | AG7: 0 | AH7: 0 | AJ7: =N7*(1+COS(VCP!$N$22))/2 -> 0 | AL7: 0 | AM7: 0 | AN7: 0 | AO7: 0 | AP7: 0 | AQ7: 0 | AR7: 0 | AS7: 0 | AV7: =IF(AL7>VCP!$E$29,AL7*VCP!$E$28,AL7) -> 0 | AW7: =IF(AM7>VCP!$E$29,AM7*VCP!$E$28,AM7) -> 0 | AX7: =IF(AN7>VCP!$E$29,AN7*VCP!$E$28,AN7) -> 0 | AY7: =IF(AO7>VCP!$E$29,AO7*VCP!$E$28,AO7) -> 0 | AZ7: =IF(AP7>VCP!$E$29,AP7*VCP!$E$28,AP7) -> 0 | BA7: =IF(AQ7>VCP!$E$29,AQ7*VCP!$E$28,AQ7) -> 0 | BB7: =IF(AR7>VCP!$E$29,AR7*VCP!$E$28,AR7) -> 0 | BC7: =IF(AS7>VCP!$E$29,AS7*VCP!$E$28,AS7) -> 0
A8: 6 | B8: 7.9 | D8: 4.6 | E8: 80 | F8: 15.4 | G8: 260 | H8: 0 | I8: 0 | L8: =IF($K$2=0,D8*ATAN(0.151977*(E8+8.313659)^0.5)+ATAN(D8+E8)-ATAN(E8-1.676331)+0.00391838*(E8)^(3/2)*ATAN(0.023101*E8)-4.686035,'Weather data'!C8) -> 2.744202139 | M8: 0 | N8: 0 | O8: 0 | R8: =O9*'Qsol calculation'!N8 -> 0 | S8: =O9*'Qsol calculation'!O8 -> 0 | T8: =O9*'Qsol calculation'!P8 -> 0 | U8: =O9*'Qsol calculation'!Q8 -> 0 | V8: =O9*'Qsol calculation'!R8 -> 0 | W8: =O9*'Qsol calculation'!S8 -> 0 | X8: =O9*'Qsol calculation'!T8 -> 0 | Y8: =O9*'Qsol calculation'!U8 -> 0 | AA8: 0 | AB8: 0 | AC8: 0 | AD8: 0 | AE8: 0 | AF8: 0 | AG8: 0 | AH8: 0 | AJ8: =N8*(1+COS(VCP!$N$22))/2 -> 0 | AL8: 0 | AM8: 0 | AN8: 0 | AO8: 0 | AP8: 0 | AQ8: 0 | AR8: 0 | AS8: 0 | AV8: =IF(AL8>VCP!$E$29,AL8*VCP!$E$28,AL8) -> 0 | AW8: =IF(AM8>VCP!$E$29,AM8*VCP!$E$28,AM8) -> 0 | AX8: =IF(AN8>VCP!$E$29,AN8*VCP!$E$28,AN8) -> 0 | AY8: =IF(AO8>VCP!$E$29,AO8*VCP!$E$28,AO8) -> 0 | AZ8: =IF(AP8>VCP!$E$29,AP8*VCP!$E$28,AP8) -> 0 | BA8: =IF(AQ8>VCP!$E$29,AQ8*VCP!$E$28,AQ8) -> 0 | BB8: =IF(AR8>VCP!$E$29,AR8*VCP!$E$28,AR8) -> 0 | BC8: =IF(AS8>VCP!$E$29,AS8*VCP!$E$28,AS8) -> 0
A9: 7 | B9: 8.1 | D9: 4.8 | E9: 79 | F9: 15.1 | G9: 260 | H9: 0 | I9: 0 | L9: =IF($K$2=0,D9*ATAN(0.151977*(E9+8.313659)^0.5)+ATAN(D9+E9)-ATAN(E9-1.676331)+0.00391838*(E9)^(3/2)*ATAN(0.023101*E9)-4.686035,'Weather data'!C9) -> 2.852529318 | M9: 0 | N9: 0 | O9: 0 | R9: =O10*'Qsol calculation'!N9 -> 0 | S9: =O10*'Qsol calculation'!O9 -> 0 | T9: =O10*'Qsol calculation'!P9 -> 0 | U9: =O10*'Qsol calculation'!Q9 -> 0 | V9: =O10*'Qsol calculation'!R9 -> 0 | W9: =O10*'Qsol calculation'!S9 -> 0 | X9: =O10*'Qsol calculation'!T9 -> 0 | Y9: =O10*'Qsol calculation'!U9 -> 0 | AA9: 0 | AB9: 0 | AC9: 0 | AD9: 0 | AE9: 0 | AF9: 0 | AG9: 0 | AH9: 0 | AJ9: =N9*(1+COS(VCP!$N$22))/2 -> 0 | AL9: 0 | AM9: 0 | AN9: 0 | AO9: 0 | AP9: 0 | AQ9: 0 | AR9: 0 | AS9: 0 | AV9: =IF(AL9>VCP!$E$29,AL9*VCP!$E$28,AL9) -> 0 | AW9: =IF(AM9>VCP!$E$29,AM9*VCP!$E$28,AM9) -> 0 | AX9: =IF(AN9>VCP!$E$29,AN9*VCP!$E$28,AN9) -> 0 | AY9: =IF(AO9>VCP!$E$29,AO9*VCP!$E$28,AO9) -> 0 | AZ9: =IF(AP9>VCP!$E$29,AP9*VCP!$E$28,AP9) -> 0 | BA9: =IF(AQ9>VCP!$E$29,AQ9*VCP!$E$28,AQ9) -> 0 | BB9: =IF(AR9>VCP!$E$29,AR9*VCP!$E$28,AR9) -> 0 | BC9: =IF(AS9>VCP!$E$29,AS9*VCP!$E$28,AS9) -> 0
A10: 8 | B10: 8.4 | D10: 5 | E10: 79 | F10: 14.7 | G10: 260 | H10: 4 | I10: 0 | L10: =IF($K$2=0,D10*ATAN(0.151977*(E10+8.313659)^0.5)+ATAN(D10+E10)-ATAN(E10-1.676331)+0.00391838*(E10)^(3/2)*ATAN(0.023101*E10)-4.686035,'Weather data'!C10) -> 3.0440124 | M10: 0 | N10: 0 | O10: 0 | R10: =O11*'Qsol calculation'!N10 -> -0.06910731581 | S10: =O11*'Qsol calculation'!O10 -> -0.05897530323 | T10: =O11*'Qsol calculation'!P10 -> -0.09056808847 | U10: =O11*'Qsol calculation'!Q10 -> 0.007164414803 | V10: =O11*'Qsol calculation'!R10 -> 0.004469996875 | W10: =O11*'Qsol calculation'!S10 -> -0.007164414803 | X10: =O11*'Qsol calculation'!T10 -> 0.09056808847 | Y10: =O11*'Qsol calculation'!U10 -> 0.06910731581 | AA10: 0 | AB10: 0 | AC10: 0 | AD10: 0.007164414803 | AE10: 0.004469996875 | AF10: 0 | AG10: 0.09056808847 | AH10: 0.06910731581 | AJ10: =N10*(1+COS(VCP!$N$22))/2 -> 0 | AL10: 0 | AM10: 0 | AN10: 0 | AO10: 0.007164414803 | AP10: 0.004469996875 | AQ10: 0 | AR10: 0.09056808847 | AS10: 0.06910731581 | AV10: =IF(AL10>VCP!$E$29,AL10*VCP!$E$28,AL10) -> 0 | AW10: =IF(AM10>VCP!$E$29,AM10*VCP!$E$28,AM10) -> 0 | AX10: =IF(AN10>VCP!$E$29,AN10*VCP!$E$28,AN10) -> 0 | AY10: =IF(AO10>VCP!$E$29,AO10*VCP!$E$28,AO10) -> 0.007164414803 | AZ10: =IF(AP10>VCP!$E$29,AP10*VCP!$E$28,AP10) -> 0.004469996875 | BA10: =IF(AQ10>VCP!$E$29,AQ10*VCP!$E$28,AQ10) -> 0 | BB10: =IF(AR10>VCP!$E$29,AR10*VCP!$E$28,AR10) -> 0.09056808847 | BC10: =IF(AS10>VCP!$E$29,AS10*VCP!$E$28,AS10) -> 0.06910731581
A11: 9 | B11: 8.6 | D11: 5.1 | E11: 79 | F11: 14.4 | G11: 270 | H11: 99 | I11: 10 | L11: =IF($K$2=0,D11*ATAN(0.151977*(E11+8.313659)^0.5)+ATAN(D11+E11)-ATAN(E11-1.676331)+0.00391838*(E11)^(3/2)*ATAN(0.023101*E11)-4.686035,'Weather data'!C11) -> 3.139753891 | M11: 0.101010101 | N11: 9.909090909 | O11: 0.09090909091 | R11: =O12*'Qsol calculation'!N11 -> -1.124268965 | S11: =O12*'Qsol calculation'!O11 -> -1.494365655 | T11: =O12*'Qsol calculation'!P11 -> -1.851654297 | U11: =O12*'Qsol calculation'!Q11 -> -0.2616978791 | V11: =O12*'Qsol calculation'!R11 -> -0.01681631238 | W11: =O12*'Qsol calculation'!S11 -> 0.2616978791 | X11: =O12*'Qsol calculation'!T11 -> 1.851654297 | Y11: =O12*'Qsol calculation'!U11 -> 1.124268965 | AA11: 0 | AB11: 0 | AC11: 0 | AD11: 0 | AE11: 0 | AF11: 0.2616978791 | AG11: 1.851654297 | AH11: 1.124268965 | AJ11: =N11*(1+COS(VCP!$N$22))/2 -> 7.713399842 | AL11: 7.713399842 | AM11: 7.713399842 | AN11: 7.713399842 | AO11: 7.713399842 | AP11: 7.713399842 | AQ11: 7.975097721 | AR11: 9.565054139 | AS11: 8.837668807 | AV11: =IF(AL11>VCP!$E$29,AL11*VCP!$E$28,AL11) -> 7.713399842 | AW11: =IF(AM11>VCP!$E$29,AM11*VCP!$E$28,AM11) -> 7.713399842 | AX11: =IF(AN11>VCP!$E$29,AN11*VCP!$E$28,AN11) -> 7.713399842 | AY11: =IF(AO11>VCP!$E$29,AO11*VCP!$E$28,AO11) -> 7.713399842 | AZ11: =IF(AP11>VCP!$E$29,AP11*VCP!$E$28,AP11) -> 7.713399842 | BA11: =IF(AQ11>VCP!$E$29,AQ11*VCP!$E$28,AQ11) -> 7.975097721 | BB11: =IF(AR11>VCP!$E$29,AR11*VCP!$E$28,AR11) -> 9.565054139 | BC11: =IF(AS11>VCP!$E$29,AS11*VCP!$E$28,AS11) -> 8.837668807
A12: 10 | B12: 8.3 | D12: 3.9 | E12: 74 | F12: 14.4 | G12: 270 | H12: 204 | I12: 55 | L12: =IF($K$2=0,D12*ATAN(0.151977*(E12+8.313659)^0.5)+ATAN(D12+E12)-ATAN(E12-1.676331)+0.00391838*(E12)^(3/2)*ATAN(0.023101*E12)-4.686035,'Weather data'!C12) -> 1.591766204 | M12: 0.2696078431 | N12: 53.12610567 | O12: 1.87389433 | R12: =O13*'Qsol calculation'!N12 -> -7.26814346 | S12: =O13*'Qsol calculation'!O12 -> -16.52194704 | T12: =O13*'Qsol calculation'!P12 -> -16.82213432 | U12: =O13*'Qsol calculation'!Q12 -> -6.543427265 | V12: =O13*'Qsol calculation'!R12 -> -0.9415826201 | W12: =O13*'Qsol calculation'!S12 -> 6.543427265 | X12: =O13*'Qsol calculation'!T12 -> 16.82213432 | Y12: =O13*'Qsol calculation'!U12 -> 7.26814346 | AA12: 0 | AB12: 0 | AC12: 0 | AD12: 0 | AE12: 0 | AF12: 6.543427265 | AG12: 16.82213432 | AH12: 7.26814346 | AJ12: =N12*(1+COS(VCP!$N$22))/2 -> 41.35423712 | AL12: 41.35423712 | AM12: 41.35423712 | AN12: 41.35423712 | AO12: 41.35423712 | AP12: 41.35423712 | AQ12: 47.89766438 | AR12: 58.17637144 | AS12: 48.62238058 | AV12: =IF(AL12>VCP!$E$29,AL12*VCP!$E$28,AL12) -> 12.40627114 | AW12: =IF(AM12>VCP!$E$29,AM12*VCP!$E$28,AM12) -> 12.40627114 | AX12: =IF(AN12>VCP!$E$29,AN12*VCP!$E$28,AN12) -> 12.40627114 | AY12: =IF(AO12>VCP!$E$29,AO12*VCP!$E$28,AO12) -> 12.40627114 | AZ12: =IF(AP12>VCP!$E$29,AP12*VCP!$E$28,AP12) -> 12.40627114 | BA12: =IF(AQ12>VCP!$E$29,AQ12*VCP!$E$28,AQ12) -> 14.36929932 | BB12: =IF(AR12>VCP!$E$29,AR12*VCP!$E$28,AR12) -> 17.45291143 | BC12: =IF(AS12>VCP!$E$29,AS12*VCP!$E$28,AS12) -> 14.58671417
A13: 11 | B13: 8.1 | D13: 2.7 | E13: 69 | F13: 14.4 | G13: 270 | H13: 263 | I13: 107 | L13: =IF($K$2=0,D13*ATAN(0.151977*(E13+8.313659)^0.5)+ATAN(D13+E13)-ATAN(E13-1.676331)+0.00391838*(E13)^(3/2)*ATAN(0.023101*E13)-4.686035,'Weather data'!C13) -> 0.09087871879 | M13: 0.4068441065 | N13: 88.77774403 | O13: 18.22225597 | R13: =O14*'Qsol calculation'!N13 -> -6.486866588 | S13: =O14*'Qsol calculation'!O13 -> -36.84878955 | T13: =O14*'Qsol calculation'!P13 -> -30.64293633 | U13: =O14*'Qsol calculation'!Q13 -> -21.46912162 | V13: =O14*'Qsol calculation'!R13 -> -2.890774475 | W13: =O14*'Qsol calculation'!S13 -> 21.46912162 | X13: =O14*'Qsol calculation'!T13 -> 30.64293633 | Y13: =O14*'Qsol calculation'!U13 -> 6.486866588 | AA13: 0 | AB13: 0 | AC13: 0 | AD13: 0 | AE13: 0 | AF13: 21.46912162 | AG13: 30.64293633 | AH13: 6.486866588 | AJ13: =N13*(1+COS(VCP!$N$22))/2 -> 69.1060606 | AL13: 69.1060606 | AM13: 69.1060606 | AN13: 69.1060606 | AO13: 69.1060606 | AP13: 69.1060606 | AQ13: 90.57518221 | AR13: 99.74899692 | AS13: 75.59292718 | AV13: =IF(AL13>VCP!$E$29,AL13*VCP!$E$28,AL13) -> 20.73181818 | AW13: =IF(AM13>VCP!$E$29,AM13*VCP!$E$28,AM13) -> 20.73181818 | AX13: =IF(AN13>VCP!$E$29,AN13*VCP!$E$28,AN13) -> 20.73181818 | AY13: =IF(AO13>VCP!$E$29,AO13*VCP!$E$28,AO13) -> 20.73181818 | AZ13: =IF(AP13>VCP!$E$29,AP13*VCP!$E$28,AP13) -> 20.73181818 | BA13: =IF(AQ13>VCP!$E$29,AQ13*VCP!$E$28,AQ13) -> 27.17255466 | BB13: =IF(AR13>VCP!$E$29,AR13*VCP!$E$28,AR13) -> 29.92469908 | BC13: =IF(AS13>VCP!$E$29,AS13*VCP!$E$28,AS13) -> 22.67787815
A14: 12 | B14: 7.8 | D14: 1.3 | E14: 63 | F14: 14.4 | G14: 280 | H14: 273 | I14: 130 | L14: =IF($K$2=0,D14*ATAN(0.151977*(E14+8.313659)^0.5)+ATAN(D14+E14)-ATAN(E14-1.676331)+0.00391838*(E14)^(3/2)*ATAN(0.023101*E14)-4.686035,'Weather data'!C14) -> -1.60554796 | M14: 0.4761904762 | N14: 91.97080724 | O14: 38.02919276 | R14: =O15*'Qsol calculation'!N14 -> 1.750573355 | S14: =O15*'Qsol calculation'!O14 -> -24.74449204 | T14: =O15*'Qsol calculation'!P14 -> -16.25915583 | U14: =O15*'Qsol calculation'!Q14 -> -18.73484041 | V14: =O15*'Qsol calculation'!R14 -> -2.028542392 | W14: =O15*'Qsol calculation'!S14 -> 18.73484041 | X14: =O15*'Qsol calculation'!T14 -> 16.25915583 | Y14: =O15*'Qsol calculation'!U14 -> -1.750573355 | AA14: 1.750573355 | AB14: 0 | AC14: 0 | AD14: 0 | AE14: 0 | AF14: 18.73484041 | AG14: 16.25915583 | AH14: 0 | AJ14: =N14*(1+COS(VCP!$N$22))/2 -> 71.59159367 | AL14: 73.34216703 | AM14: 71.59159367 | AN14: 71.59159367 | AO14: 71.59159367 | AP14: 71.59159367 | AQ14: 90.32643408 | AR14: 87.8507495 | AS14: 71.59159367 | AV14: =IF(AL14>VCP!$E$29,AL14*VCP!$E$28,AL14) -> 22.00265011 | AW14: =IF(AM14>VCP!$E$29,AM14*VCP!$E$28,AM14) -> 21.4774781 | AX14: =IF(AN14>VCP!$E$29,AN14*VCP!$E$28,AN14) -> 21.4774781 | AY14: =IF(AO14>VCP!$E$29,AO14*VCP!$E$28,AO14) -> 21.4774781 | AZ14: =IF(AP14>VCP!$E$29,AP14*VCP!$E$28,AP14) -> 21.4774781 | BA14: =IF(AQ14>VCP!$E$29,AQ14*VCP!$E$28,AQ14) -> 27.09793022 | BB14: =IF(AR14>VCP!$E$29,AR14*VCP!$E$28,AR14) -> 26.35522485 | BC14: =IF(AS14>VCP!$E$29,AS14*VCP!$E$28,AS14) -> 21.4774781
A15: 13 | B15: 7 | D15: 1 | E15: 65 | F15: 12.7 | G15: 280 | H15: 234 | I15: 105 | L15: =IF($K$2=0,D15*ATAN(0.151977*(E15+8.313659)^0.5)+ATAN(D15+E15)-ATAN(E15-1.676331)+0.00391838*(E15)^(3/2)*ATAN(0.023101*E15)-4.686035,'Weather data'!C15) -> -1.750748244 | M15: 0.4487179487 | N15: 79.75133946 | O15: 25.24866054 | R15: =O16*'Qsol calculation'!N15 -> 1.737587185 | S15: =O16*'Qsol calculation'!O15 -> -5.358818194 | T15: =O16*'Qsol calculation'!P15 -> -2.560597003 | U15: =O16*'Qsol calculation'!Q15 -> -5.017916365 | V15: =O16*'Qsol calculation'!R15 -> -0.3672461729 | W15: =O16*'Qsol calculation'!S15 -> 5.017916365 | X15: =O16*'Qsol calculation'!T15 -> 2.560597003 | Y15: =O16*'Qsol calculation'!U15 -> -1.737587185 | AA15: 1.737587185 | AB15: 0 | AC15: 0 | AD15: 0 | AE15: 0 | AF15: 5.017916365 | AG15: 2.560597003 | AH15: 0 | AJ15: =N15*(1+COS(VCP!$N$22))/2 -> 62.07975836 | AL15: 63.81734554 | AM15: 62.07975836 | AN15: 62.07975836 | AO15: 62.07975836 | AP15: 62.07975836 | AQ15: 67.09767472 | AR15: 64.64035536 | AS15: 62.07975836 | AV15: =IF(AL15>VCP!$E$29,AL15*VCP!$E$28,AL15) -> 19.14520366 | AW15: =IF(AM15>VCP!$E$29,AM15*VCP!$E$28,AM15) -> 18.62392751 | AX15: =IF(AN15>VCP!$E$29,AN15*VCP!$E$28,AN15) -> 18.62392751 | AY15: =IF(AO15>VCP!$E$29,AO15*VCP!$E$28,AO15) -> 18.62392751 | AZ15: =IF(AP15>VCP!$E$29,AP15*VCP!$E$28,AP15) -> 18.62392751 | BA15: =IF(AQ15>VCP!$E$29,AQ15*VCP!$E$28,AQ15) -> 20.12930242 | BB15: =IF(AR15>VCP!$E$29,AR15*VCP!$E$28,AR15) -> 19.39210661 | BC15: =IF(AS15>VCP!$E$29,AS15*VCP!$E$28,AS15) -> 18.62392751
A16: 14 | B16: 6.3 | D16: 0.7 | E16: 67 | F16: 11 | G16: 280 | H16: 147 | I16: 53 | L16: =IF($K$2=0,D16*ATAN(0.151977*(E16+8.313659)^0.5)+ATAN(D16+E16)-ATAN(E16-1.676331)+0.00391838*(E16)^(3/2)*ATAN(0.023101*E16)-4.686035,'Weather data'!C16) -> -1.897213302 | M16: 0.3605442177 | N16: 47.29396897 | O16: 5.706031026 | R16: =O17*'Qsol calculation'!N16 -> 0.4682426076 | S16: =O17*'Qsol calculation'!O16 -> -0.7661342436 | T16: =O17*'Qsol calculation'!P16 -> -0.2106411959 | U16: =O17*'Qsol calculation'!Q16 -> -0.872836242 | V16: =O17*'Qsol calculation'!R16 -> -0.02631000199 | W16: =O17*'Qsol calculation'!S16 -> 0.872836242 | X16: =O17*'Qsol calculation'!T16 -> 0.2106411959 | Y16: =O17*'Qsol calculation'!U16 -> -0.4682426076 | AA16: 0.4682426076 | AB16: 0 | AC16: 0 | AD16: 0 | AE16: 0 | AF16: 0.872836242 | AG16: 0.2106411959 | AH16: 0 | AJ16: =N16*(1+COS(VCP!$N$22))/2 -> 36.8144057 | AL16: 37.2826483 | AM16: 36.8144057 | AN16: 36.8144057 | AO16: 36.8144057 | AP16: 36.8144057 | AQ16: 37.68724194 | AR16: 37.02504689 | AS16: 36.8144057 | AV16: =IF(AL16>VCP!$E$29,AL16*VCP!$E$28,AL16) -> 37.2826483 | AW16: =IF(AM16>VCP!$E$29,AM16*VCP!$E$28,AM16) -> 36.8144057 | AX16: =IF(AN16>VCP!$E$29,AN16*VCP!$E$28,AN16) -> 36.8144057 | AY16: =IF(AO16>VCP!$E$29,AO16*VCP!$E$28,AO16) -> 36.8144057 | AZ16: =IF(AP16>VCP!$E$29,AP16*VCP!$E$28,AP16) -> 36.8144057 | BA16: =IF(AQ16>VCP!$E$29,AQ16*VCP!$E$28,AQ16) -> 37.68724194 | BB16: =IF(AR16>VCP!$E$29,AR16*VCP!$E$28,AR16) -> 37.02504689 | BC16: =IF(AS16>VCP!$E$29,AS16*VCP!$E$28,AS16) -> 36.8144057
A17: 15 | B17: 5.5 | D17: 0.4 | E17: 70 | F17: 9.3 | G17: 270 | H17: 29 | I17: 10 | L17: =IF($K$2=0,D17*ATAN(0.151977*(E17+8.313659)^0.5)+ATAN(D17+E17)-ATAN(E17-1.676331)+0.00391838*(E17)^(3/2)*ATAN(0.023101*E17)-4.686035,'Weather data'!C17) -> -1.979269605 | M17: 0.3448275862 | N17: 9.097710855 | O17: 0.9022891453 | R17: =O18*'Qsol calculation'!N17 -> 0 | S17: =O18*'Qsol calculation'!O17 -> 0 | T17: =O18*'Qsol calculation'!P17 -> 0 | U17: =O18*'Qsol calculation'!Q17 -> 0 | V17: =O18*'Qsol calculation'!R17 -> 0 | W17: =O18*'Qsol calculation'!S17 -> 0 | X17: =O18*'Qsol calculation'!T17 -> 0 | Y17: =O18*'Qsol calculation'!U17 -> 0 | AA17: 0 | AB17: 0 | AC17: 0 | AD17: 0 | AE17: 0 | AF17: 0 | AG17: 0 | AH17: 0 | AJ17: =N17*(1+COS(VCP!$N$22))/2 -> 7.081808222 | AL17: 7.081808222 | AM17: 7.081808222 | AN17: 7.081808222 | AO17: 7.081808222 | AP17: 7.081808222 | AQ17: 7.081808222 | AR17: 7.081808222 | AS17: 7.081808222 | AV17: =IF(AL17>VCP!$E$29,AL17*VCP!$E$28,AL17) -> 7.081808222 | AW17: =IF(AM17>VCP!$E$29,AM17*VCP!$E$28,AM17) -> 7.081808222 | AX17: =IF(AN17>VCP!$E$29,AN17*VCP!$E$28,AN17) -> 7.081808222 | AY17: =IF(AO17>VCP!$E$29,AO17*VCP!$E$28,AO17) -> 7.081808222 | AZ17: =IF(AP17>VCP!$E$29,AP17*VCP!$E$28,AP17) -> 7.081808222 | BA17: =IF(AQ17>VCP!$E$29,AQ17*VCP!$E$28,AQ17) -> 7.081808222 | BB17: =IF(AR17>VCP!$E$29,AR17*VCP!$E$28,AR17) -> 7.081808222 | BC17: =IF(AS17>VCP!$E$29,AS17*VCP!$E$28,AS17) -> 7.081808222
A18: 16 | B18: 5.3 | D18: 0.7 | E18: 72 | F18: 9.6 | G18: 270 | H18: 0 | I18: 0 | L18: =IF($K$2=0,D18*ATAN(0.151977*(E18+8.313659)^0.5)+ATAN(D18+E18)-ATAN(E18-1.676331)+0.00391838*(E18)^(3/2)*ATAN(0.023101*E18)-4.686035,'Weather data'!C18) -> -1.564880713 | M18: 0 | N18: 0 | O18: 0 | R18: =O19*'Qsol calculation'!N18 -> 0 | S18: =O19*'Qsol calculation'!O18 -> 0 | T18: =O19*'Qsol calculation'!P18 -> 0 | U18: =O19*'Qsol calculation'!Q18 -> 0 | V18: =O19*'Qsol calculation'!R18 -> 0 | W18: =O19*'Qsol calculation'!S18 -> 0 | X18: =O19*'Qsol calculation'!T18 -> 0 | Y18: =O19*'Qsol calculation'!U18 -> 0 | AA18: 0 | AB18: 0 | AC18: 0 | AD18: 0 | AE18: 0 | AF18: 0 | AG18: 0 | AH18: 0 | AJ18: =N18*(1+COS(VCP!$N$22))/2 -> 0 | AL18: 0 | AM18: 0 | AN18: 0 | AO18: 0 | AP18: 0 | AQ18: 0 | AR18: 0 | AS18: 0 | AV18: =IF(AL18>VCP!$E$29,AL18*VCP!$E$28,AL18) -> 0 | AW18: =IF(AM18>VCP!$E$29,AM18*VCP!$E$28,AM18) -> 0 | AX18: =IF(AN18>VCP!$E$29,AN18*VCP!$E$28,AN18) -> 0 | AY18: =IF(AO18>VCP!$E$29,AO18*VCP!$E$28,AO18) -> 0 | AZ18: =IF(AP18>VCP!$E$29,AP18*VCP!$E$28,AP18) -> 0 | BA18: =IF(AQ18>VCP!$E$29,AQ18*VCP!$E$28,AQ18) -> 0 | BB18: =IF(AR18>VCP!$E$29,AR18*VCP!$E$28,AR18) -> 0 | BC18: =IF(AS18>VCP!$E$29,AS18*VCP!$E$28,AS18) -> 0
A19: 17 | B19: 5.1 | D19: 0.9 | E19: 74 | F19: 10 | G19: 270 | H19: 0 | I19: 0 | L19: =IF($K$2=0,D19*ATAN(0.151977*(E19+8.313659)^0.5)+ATAN(D19+E19)-ATAN(E19-1.676331)+0.00391838*(E19)^(3/2)*ATAN(0.023101*E19)-4.686035,'Weather data'!C19) -> -1.238725849 | M19: 0 | N19: 0 | O19: 0 | R19: =O20*'Qsol calculation'!N19 -> 0 | S19: =O20*'Qsol calculation'!O19 -> 0 | T19: =O20*'Qsol calculation'!P19 -> 0 | U19: =O20*'Qsol calculation'!Q19 -> 0 | V19: =O20*'Qsol calculation'!R19 -> 0 | W19: =O20*'Qsol calculation'!S19 -> 0 | X19: =O20*'Qsol calculation'!T19 -> 0 | Y19: =O20*'Qsol calculation'!U19 -> 0 | AA19: 0 | AB19: 0 | AC19: 0 | AD19: 0 | AE19: 0 | AF19: 0 | AG19: 0 | AH19: 0 | AJ19: =N19*(1+COS(VCP!$N$22))/2 -> 0 | AL19: 0 | AM19: 0 | AN19: 0 | AO19: 0 | AP19: 0 | AQ19: 0 | AR19: 0 | AS19: 0 | AV19: =IF(AL19>VCP!$E$29,AL19*VCP!$E$28,AL19) -> 0 | AW19: =IF(AM19>VCP!$E$29,AM19*VCP!$E$28,AM19) -> 0 | AX19: =IF(AN19>VCP!$E$29,AN19*VCP!$E$28,AN19) -> 0 | AY19: =IF(AO19>VCP!$E$29,AO19*VCP!$E$28,AO19) -> 0 | AZ19: =IF(AP19>VCP!$E$29,AP19*VCP!$E$28,AP19) -> 0 | BA19: =IF(AQ19>VCP!$E$29,AQ19*VCP!$E$28,AQ19) -> 0 | BB19: =IF(AR19>VCP!$E$29,AR19*VCP!$E$28,AR19) -> 0 | BC19: =IF(AS19>VCP!$E$29,AS19*VCP!$E$28,AS19) -> 0
A20: 18 | B20: 4.9 | D20: 1.2 | E20: 77 | F20: 10.3 | G20: 260 | H20: 0 | I20: 0 | L20: =IF($K$2=0,D20*ATAN(0.151977*(E20+8.313659)^0.5)+ATAN(D20+E20)-ATAN(E20-1.676331)+0.00391838*(E20)^(3/2)*ATAN(0.023101*E20)-4.686035,'Weather data'!C20) -> -0.7405655966 | M20: 0 | N20: 0 | O20: 0 | R20: =O21*'Qsol calculation'!N20 -> 0 | S20: =O21*'Qsol calculation'!O20 -> 0 | T20: =O21*'Qsol calculation'!P20 -> 0 | U20: =O21*'Qsol calculation'!Q20 -> 0 | V20: =O21*'Qsol calculation'!R20 -> 0 | W20: =O21*'Qsol calculation'!S20 -> 0 | X20: =O21*'Qsol calculation'!T20 -> 0 | Y20: =O21*'Qsol calculation'!U20 -> 0 | AA20: 0 | AB20: 0 | AC20: 0 | AD20: 0 | AE20: 0 | AF20: 0 | AG20: 0 | AH20: 0 | AJ20: =N20*(1+COS(VCP!$N$22))/2 -> 0 | AL20: 0 | AM20: 0 | AN20: 0 | AO20: 0 | AP20: 0 | AQ20: 0 | AR20: 0 | AS20: 0 | AV20: =IF(AL20>VCP!$E$29,AL20*VCP!$E$28,AL20) -> 0 | AW20: =IF(AM20>VCP!$E$29,AM20*VCP!$E$28,AM20) -> 0 | AX20: =IF(AN20>VCP!$E$29,AN20*VCP!$E$28,AN20) -> 0 | AY20: =IF(AO20>VCP!$E$29,AO20*VCP!$E$28,AO20) -> 0 | AZ20: =IF(AP20>VCP!$E$29,AP20*VCP!$E$28,AP20) -> 0 | BA20: =IF(AQ20>VCP!$E$29,AQ20*VCP!$E$28,AQ20) -> 0 | BB20: =IF(AR20>VCP!$E$29,AR20*VCP!$E$28,AR20) -> 0 | BC20: =IF(AS20>VCP!$E$29,AS20*VCP!$E$28,AS20) -> 0
A21: 19 | B21: 4.8 | D21: 1.5 | E21: 79 | F21: 9.6 | G21: 260 | H21: 0 | I21: 0 | L21: =IF($K$2=0,D21*ATAN(0.151977*(E21+8.313659)^0.5)+ATAN(D21+E21)-ATAN(E21-1.676331)+0.00391838*(E21)^(3/2)*ATAN(0.023101*E21)-4.686035,'Weather data'!C21) -> -0.3069619122 | M21: 0 | N21: 0 | O21: 0 | R21: =O22*'Qsol calculation'!N21 -> 0 | S21: =O22*'Qsol calculation'!O21 -> 0 | T21: =O22*'Qsol calculation'!P21 -> 0 | U21: =O22*'Qsol calculation'!Q21 -> 0 | V21: =O22*'Qsol calculation'!R21 -> 0 | W21: =O22*'Qsol calculation'!S21 -> 0 | X21: =O22*'Qsol calculation'!T21 -> 0 | Y21: =O22*'Qsol calculation'!U21 -> 0 | AA21: 0 | AB21: 0 | AC21: 0 | AD21: 0 | AE21: 0 | AF21: 0 | AG21: 0 | AH21: 0 | AJ21: =N21*(1+COS(VCP!$N$22))/2 -> 0 | AL21: 0 | AM21: 0 | AN21: 0 | AO21: 0 | AP21: 0 | AQ21: 0 | AR21: 0 | AS21: 0 | AV21: =IF(AL21>VCP!$E$29,AL21*VCP!$E$28,AL21) -> 0 | AW21: =IF(AM21>VCP!$E$29,AM21*VCP!$E$28,AM21) -> 0 | AX21: =IF(AN21>VCP!$E$29,AN21*VCP!$E$28,AN21) -> 0 | AY21: =IF(AO21>VCP!$E$29,AO21*VCP!$E$28,AO21) -> 0 | AZ21: =IF(AP21>VCP!$E$29,AP21*VCP!$E$28,AP21) -> 0 | BA21: =IF(AQ21>VCP!$E$29,AQ21*VCP!$E$28,AQ21) -> 0 | BB21: =IF(AR21>VCP!$E$29,AR21*VCP!$E$28,AR21) -> 0 | BC21: =IF(AS21>VCP!$E$29,AS21*VCP!$E$28,AS21) -> 0
A22: 20 | B22: 4.7 | D22: 1.8 | E22: 81 | F22: 8.9 | G22: 260 | H22: 0 | I22: 0 | L22: =IF($K$2=0,D22*ATAN(0.151977*(E22+8.313659)^0.5)+ATAN(D22+E22)-ATAN(E22-1.676331)+0.00391838*(E22)^(3/2)*ATAN(0.023101*E22)-4.686035,'Weather data'!C22) -> 0.132158843 | M22: 0 | N22: 0 | O22: 0 | R22: =O23*'Qsol calculation'!N22 -> 0 | S22: =O23*'Qsol calculation'!O22 -> 0 | T22: =O23*'Qsol calculation'!P22 -> 0 | U22: =O23*'Qsol calculation'!Q22 -> 0 | V22: =O23*'Qsol calculation'!R22 -> 0 | W22: =O23*'Qsol calculation'!S22 -> 0 | X22: =O23*'Qsol calculation'!T22 -> 0 | Y22: =O23*'Qsol calculation'!U22 -> 0 | AA22: 0 | AB22: 0 | AC22: 0 | AD22: 0 | AE22: 0 | AF22: 0 | AG22: 0 | AH22: 0 | AJ22: =N22*(1+COS(VCP!$N$22))/2 -> 0 | AL22: 0 | AM22: 0 | AN22: 0 | AO22: 0 | AP22: 0 | AQ22: 0 | AR22: 0 | AS22: 0 | AV22: =IF(AL22>VCP!$E$29,AL22*VCP!$E$28,AL22) -> 0 | AW22: =IF(AM22>VCP!$E$29,AM22*VCP!$E$28,AM22) -> 0 | AX22: =IF(AN22>VCP!$E$29,AN22*VCP!$E$28,AN22) -> 0 | AY22: =IF(AO22>VCP!$E$29,AO22*VCP!$E$28,AO22) -> 0 | AZ22: =IF(AP22>VCP!$E$29,AP22*VCP!$E$28,AP22) -> 0 | BA22: =IF(AQ22>VCP!$E$29,AQ22*VCP!$E$28,AQ22) -> 0 | BB22: =IF(AR22>VCP!$E$29,AR22*VCP!$E$28,AR22) -> 0 | BC22: =IF(AS22>VCP!$E$29,AS22*VCP!$E$28,AS22) -> 0
A23: 21 | B23: 4.6 | D23: 2.1 | E23: 84 | F23: 8.2 | G23: 250 | H23: 0 | I23: 0 | L23: =IF($K$2=0,D23*ATAN(0.151977*(E23+8.313659)^0.5)+ATAN(D23+E23)-ATAN(E23-1.676331)+0.00391838*(E23)^(3/2)*ATAN(0.023101*E23)-4.686035,'Weather data'!C23) -> 0.6552670984 | M23: 0 | N23: 0 | O23: 0 | R23: =O24*'Qsol calculation'!N23 -> 0 | S23: =O24*'Qsol calculation'!O23 -> 0 | T23: =O24*'Qsol calculation'!P23 -> 0 | U23: =O24*'Qsol calculation'!Q23 -> 0 | V23: =O24*'Qsol calculation'!R23 -> 0 | W23: =O24*'Qsol calculation'!S23 -> 0 | X23: =O24*'Qsol calculation'!T23 -> 0 | Y23: =O24*'Qsol calculation'!U23 -> 0 | AA23: 0 | AB23: 0 | AC23: 0 | AD23: 0 | AE23: 0 | AF23: 0 | AG23: 0 | AH23: 0 | AJ23: =N23*(1+COS(VCP!$N$22))/2 -> 0 | AL23: 0 | AM23: 0 | AN23: 0 | AO23: 0 | AP23: 0 | AQ23: 0 | AR23: 0 | AS23: 0 | AV23: =IF(AL23>VCP!$E$29,AL23*VCP!$E$28,AL23) -> 0 | AW23: =IF(AM23>VCP!$E$29,AM23*VCP!$E$28,AM23) -> 0 | AX23: =IF(AN23>VCP!$E$29,AN23*VCP!$E$28,AN23) -> 0 | AY23: =IF(AO23>VCP!$E$29,AO23*VCP!$E$28,AO23) -> 0 | AZ23: =IF(AP23>VCP!$E$29,AP23*VCP!$E$28,AP23) -> 0 | BA23: =IF(AQ23>VCP!$E$29,AQ23*VCP!$E$28,AQ23) -> 0 | BB23: =IF(AR23>VCP!$E$29,AR23*VCP!$E$28,AR23) -> 0 | BC23: =IF(AS23>VCP!$E$29,AS23*VCP!$E$28,AS23) -> 0
A24: 22 | B24: 4.9 | D24: 2.5 | E24: 84 | F24: 8.2 | G24: 250 | H24: 0 | I24: 0 | L24: =IF($K$2=0,D24*ATAN(0.151977*(E24+8.313659)^0.5)+ATAN(D24+E24)-ATAN(E24-1.676331)+0.00391838*(E24)^(3/2)*ATAN(0.023101*E24)-4.686035,'Weather data'!C24) -> 1.04344778 | M24: 0 | N24: 0 | O24: 0 | R24: =O25*'Qsol calculation'!N24 -> 0 | S24: =O25*'Qsol calculation'!O24 -> 0 | T24: =O25*'Qsol calculation'!P24 -> 0 | U24: =O25*'Qsol calculation'!Q24 -> 0 | V24: =O25*'Qsol calculation'!R24 -> 0 | W24: =O25*'Qsol calculation'!S24 -> 0 | X24: =O25*'Qsol calculation'!T24 -> 0 | Y24: =O25*'Qsol calculation'!U24 -> 0 | AA24: 0 | AB24: 0 | AC24: 0 | AD24: 0 | AE24: 0 | AF24: 0 | AG24: 0 | AH24: 0 | AJ24: =N24*(1+COS(VCP!$N$22))/2 -> 0 | AL24: 0 | AM24: 0 | AN24: 0 | AO24: 0 | AP24: 0 | AQ24: 0 | AR24: 0 | AS24: 0 | AV24: =IF(AL24>VCP!$E$29,AL24*VCP!$E$28,AL24) -> 0 | AW24: =IF(AM24>VCP!$E$29,AM24*VCP!$E$28,AM24) -> 0 | AX24: =IF(AN24>VCP!$E$29,AN24*VCP!$E$28,AN24) -> 0 | AY24: =IF(AO24>VCP!$E$29,AO24*VCP!$E$28,AO24) -> 0 | AZ24: =IF(AP24>VCP!$E$29,AP24*VCP!$E$28,AP24) -> 0 | BA24: =IF(AQ24>VCP!$E$29,AQ24*VCP!$E$28,AQ24) -> 0 | BB24: =IF(AR24>VCP!$E$29,AR24*VCP!$E$28,AR24) -> 0 | BC24: =IF(AS24>VCP!$E$29,AS24*VCP!$E$28,AS24) -> 0
A25: 23 | B25: 5.1 | D25: 2.8 | E25: 85 | F25: 8.2 | G25: 250 | H25: 0 | I25: 0 | L25: =IF($K$2=0,D25*ATAN(0.151977*(E25+8.313659)^0.5)+ATAN(D25+E25)-ATAN(E25-1.676331)+0.00391838*(E25)^(3/2)*ATAN(0.023101*E25)-4.686035,'Weather data'!C25) -> 1.415499351 | M25: 0 | N25: 0 | O25: 0 | R25: =O26*'Qsol calculation'!N25 -> 0 | S25: =O26*'Qsol calculation'!O25 -> 0 | T25: =O26*'Qsol calculation'!P25 -> 0 | U25: =O26*'Qsol calculation'!Q25 -> 0 | V25: =O26*'Qsol calculation'!R25 -> 0 | W25: =O26*'Qsol calculation'!S25 -> 0 | X25: =O26*'Qsol calculation'!T25 -> 0 | Y25: =O26*'Qsol calculation'!U25 -> 0 | AA25: 0 | AB25: 0 | AC25: 0 | AD25: 0 | AE25: 0 | AF25: 0 | AG25: 0 | AH25: 0 | AJ25: =N25*(1+COS(VCP!$N$22))/2 -> 0 | AL25: 0 | AM25: 0 | AN25: 0 | AO25: 0 | AP25: 0 | AQ25: 0 | AR25: 0 | AS25: 0 | AV25: =IF(AL25>VCP!$E$29,AL25*VCP!$E$28,AL25) -> 0 | AW25: =IF(AM25>VCP!$E$29,AM25*VCP!$E$28,AM25) -> 0 | AX25: =IF(AN25>VCP!$E$29,AN25*VCP!$E$28,AN25) -> 0 | AY25: =IF(AO25>VCP!$E$29,AO25*VCP!$E$28,AO25) -> 0 | AZ25: =IF(AP25>VCP!$E$29,AP25*VCP!$E$28,AP25) -> 0 | BA25: =IF(AQ25>VCP!$E$29,AQ25*VCP!$E$28,AQ25) -> 0 | BB25: =IF(AR25>VCP!$E$29,AR25*VCP!$E$28,AR25) -> 0 | BC25: =IF(AS25>VCP!$E$29,AS25*VCP!$E$28,AS25) -> 0
A26: 24 | B26: 5.4 | D26: 3.2 | E26: 86 | F26: 8.2 | G26: 260 | H26: 0 | I26: 0 | L26: =IF($K$2=0,D26*ATAN(0.151977*(E26+8.313659)^0.5)+ATAN(D26+E26)-ATAN(E26-1.676331)+0.00391838*(E26)^(3/2)*ATAN(0.023101*E26)-4.686035,'Weather data'!C26) -> 1.887092995 | M26: 0 | N26: 0 | O26: 0 | R26: =O27*'Qsol calculation'!N26 -> 0 | S26: =O27*'Qsol calculation'!O26 -> 0 | T26: =O27*'Qsol calculation'!P26 -> 0 | U26: =O27*'Qsol calculation'!Q26 -> 0 | V26: =O27*'Qsol calculation'!R26 -> 0 | W26: =O27*'Qsol calculation'!S26 -> 0 | X26: =O27*'Qsol calculation'!T26 -> 0 | Y26: =O27*'Qsol calculation'!U26 -> 0 | AA26: 0 | AB26: 0 | AC26: 0 | AD26: 0 | AE26: 0 | AF26: 0 | AG26: 0 | AH26: 0 | AJ26: =N26*(1+COS(VCP!$N$22))/2 -> 0 | AL26: 0 | AM26: 0 | AN26: 0 | AO26: 0 | AP26: 0 | AQ26: 0 | AR26: 0 | AS26: 0 | AV26: =IF(AL26>VCP!$E$29,AL26*VCP!$E$28,AL26) -> 0 | AW26: =IF(AM26>VCP!$E$29,AM26*VCP!$E$28,AM26) -> 0 | AX26: =IF(AN26>VCP!$E$29,AN26*VCP!$E$28,AN26) -> 0 | AY26: =IF(AO26>VCP!$E$29,AO26*VCP!$E$28,AO26) -> 0 | AZ26: =IF(AP26>VCP!$E$29,AP26*VCP!$E$28,AP26) -> 0 | BA26: =IF(AQ26>VCP!$E$29,AQ26*VCP!$E$28,AQ26) -> 0 | BB26: =IF(AR26>VCP!$E$29,AR26*VCP!$E$28,AR26) -> 0 | BC26: =IF(AS26>VCP!$E$29,AS26*VCP!$E$28,AS26) -> 0
A27: 25 | B27: 5.5 | D27: 2.8 | E27: 83 | F27: 8.9 | G27: 260 | H27: 0 | I27: 0 | L27: =IF($K$2=0,D27*ATAN(0.151977*(E27+8.313659)^0.5)+ATAN(D27+E27)-ATAN(E27-1.676331)+0.00391838*(E27)^(3/2)*ATAN(0.023101*E27)-4.686035,'Weather data'!C27) -> 1.254174928 | M27: 0 | N27: 0 | O27: 0 | R27: =O28*'Qsol calculation'!N27 -> 0 | S27: =O28*'Qsol calculation'!O27 -> 0 | T27: =O28*'Qsol calculation'!P27 -> 0 | U27: =O28*'Qsol calculation'!Q27 -> 0 | V27: =O28*'Qsol calculation'!R27 -> 0 | W27: =O28*'Qsol calculation'!S27 -> 0 | X27: =O28*'Qsol calculation'!T27 -> 0 | Y27: =O28*'Qsol calculation'!U27 -> 0 | AA27: 0 | AB27: 0 | AC27: 0 | AD27: 0 | AE27: 0 | AF27: 0 | AG27: 0 | AH27: 0 | AJ27: =N27*(1+COS(VCP!$N$22))/2 -> 0 | AL27: 0 | AM27: 0 | AN27: 0 | AO27: 0 | AP27: 0 | AQ27: 0 | AR27: 0 | AS27: 0 | AV27: =IF(AL27>VCP!$E$29,AL27*VCP!$E$28,AL27) -> 0 | AW27: =IF(AM27>VCP!$E$29,AM27*VCP!$E$28,AM27) -> 0 | AX27: =IF(AN27>VCP!$E$29,AN27*VCP!$E$28,AN27) -> 0 | AY27: =IF(AO27>VCP!$E$29,AO27*VCP!$E$28,AO27) -> 0 | AZ27: =IF(AP27>VCP!$E$29,AP27*VCP!$E$28,AP27) -> 0 | BA27: =IF(AQ27>VCP!$E$29,AQ27*VCP!$E$28,AQ27) -> 0 | BB27: =IF(AR27>VCP!$E$29,AR27*VCP!$E$28,AR27) -> 0 | BC27: =IF(AS27>VCP!$E$29,AS27*VCP!$E$28,AS27) -> 0
A28: 26 | B28: 5.6 | D28: 2.3 | E28: 80 | F28: 9.6 | G28: 260 | H28: 0 | I28: 0 | L28: =IF($K$2=0,D28*ATAN(0.151977*(E28+8.313659)^0.5)+ATAN(D28+E28)-ATAN(E28-1.676331)+0.00391838*(E28)^(3/2)*ATAN(0.023101*E28)-4.686035,'Weather data'!C28) -> 0.5359840917 | M28: 0 | N28: 0 | O28: 0 | R28: =O29*'Qsol calculation'!N28 -> 0 | S28: =O29*'Qsol calculation'!O28 -> 0 | T28: =O29*'Qsol calculation'!P28 -> 0 | U28: =O29*'Qsol calculation'!Q28 -> 0 | V28: =O29*'Qsol calculation'!R28 -> 0 | W28: =O29*'Qsol calculation'!S28 -> 0 | X28: =O29*'Qsol calculation'!T28 -> 0 | Y28: =O29*'Qsol calculation'!U28 -> 0 | AA28: 0 | AB28: 0 | AC28: 0 | AD28: 0 | AE28: 0 | AF28: 0 | AG28: 0 | AH28: 0 | AJ28: =N28*(1+COS(VCP!$N$22))/2 -> 0 | AL28: 0 | AM28: 0 | AN28: 0 | AO28: 0 | AP28: 0 | AQ28: 0 | AR28: 0 | AS28: 0 | AV28: =IF(AL28>VCP!$E$29,AL28*VCP!$E$28,AL28) -> 0 | AW28: =IF(AM28>VCP!$E$29,AM28*VCP!$E$28,AM28) -> 0 | AX28: =IF(AN28>VCP!$E$29,AN28*VCP!$E$28,AN28) -> 0 | AY28: =IF(AO28>VCP!$E$29,AO28*VCP!$E$28,AO28) -> 0 | AZ28: =IF(AP28>VCP!$E$29,AP28*VCP!$E$28,AP28) -> 0 | BA28: =IF(AQ28>VCP!$E$29,AQ28*VCP!$E$28,AQ28) -> 0 | BB28: =IF(AR28>VCP!$E$29,AR28*VCP!$E$28,AR28) -> 0 | BC28: =IF(AS28>VCP!$E$29,AS28*VCP!$E$28,AS28) -> 0
A29: 27 | B29: 5.7 | D29: 1.9 | E29: 77 | F29: 10.3 | G29: 260 | H29: 0 | I29: 0 | L29: =IF($K$2=0,D29*ATAN(0.151977*(E29+8.313659)^0.5)+ATAN(D29+E29)-ATAN(E29-1.676331)+0.00391838*(E29)^(3/2)*ATAN(0.023101*E29)-4.686035,'Weather data'!C29) -> -0.07418611385 | M29: 0 | N29: 0 | O29: 0 | R29: =O30*'Qsol calculation'!N29 -> 0 | S29: =O30*'Qsol calculation'!O29 -> 0 | T29: =O30*'Qsol calculation'!P29 -> 0 | U29: =O30*'Qsol calculation'!Q29 -> 0 | V29: =O30*'Qsol calculation'!R29 -> 0 | W29: =O30*'Qsol calculation'!S29 -> 0 | X29: =O30*'Qsol calculation'!T29 -> 0 | Y29: =O30*'Qsol calculation'!U29 -> 0 | AA29: 0 | AB29: 0 | AC29: 0 | AD29: 0 | AE29: 0 | AF29: 0 | AG29: 0 | AH29: 0 | AJ29: =N29*(1+COS(VCP!$N$22))/2 -> 0 | AL29: 0 | AM29: 0 | AN29: 0 | AO29: 0 | AP29: 0 | AQ29: 0 | AR29: 0 | AS29: 0 | AV29: =IF(AL29>VCP!$E$29,AL29*VCP!$E$28,AL29) -> 0 | AW29: =IF(AM29>VCP!$E$29,AM29*VCP!$E$28,AM29) -> 0 | AX29: =IF(AN29>VCP!$E$29,AN29*VCP!$E$28,AN29) -> 0 | AY29: =IF(AO29>VCP!$E$29,AO29*VCP!$E$28,AO29) -> 0 | AZ29: =IF(AP29>VCP!$E$29,AP29*VCP!$E$28,AP29) -> 0 | BA29: =IF(AQ29>VCP!$E$29,AQ29*VCP!$E$28,AQ29) -> 0 | BB29: =IF(AR29>VCP!$E$29,AR29*VCP!$E$28,AR29) -> 0 | BC29: =IF(AS29>VCP!$E$29,AS29*VCP!$E$28,AS29) -> 0
A30: 28 | B30: 5.6 | D30: 1.3 | E30: 74 | F30: 12.2 | G30: 260 | H30: 0 | I30: 0 | L30: =IF($K$2=0,D30*ATAN(0.151977*(E30+8.313659)^0.5)+ATAN(D30+E30)-ATAN(E30-1.676331)+0.00391838*(E30)^(3/2)*ATAN(0.023101*E30)-4.686035,'Weather data'!C30) -> -0.8613245426 | M30: 0 | N30: 0 | O30: 0 | R30: =O31*'Qsol calculation'!N30 -> 0 | S30: =O31*'Qsol calculation'!O30 -> 0 | T30: =O31*'Qsol calculation'!P30 -> 0 | U30: =O31*'Qsol calculation'!Q30 -> 0 | V30: =O31*'Qsol calculation'!R30 -> 0 | W30: =O31*'Qsol calculation'!S30 -> 0 | X30: =O31*'Qsol calculation'!T30 -> 0 | Y30: =O31*'Qsol calculation'!U30 -> 0 | AA30: 0 | AB30: 0 | AC30: 0 | AD30: 0 | AE30: 0 | AF30: 0 | AG30: 0 | AH30: 0 | AJ30: =N30*(1+COS(VCP!$N$22))/2 -> 0 | AL30: 0 | AM30: 0 | AN30: 0 | AO30: 0 | AP30: 0 | AQ30: 0 | AR30: 0 | AS30: 0 | AV30: =IF(AL30>VCP!$E$29,AL30*VCP!$E$28,AL30) -> 0 | AW30: =IF(AM30>VCP!$E$29,AM30*VCP!$E$28,AM30) -> 0 | AX30: =IF(AN30>VCP!$E$29,AN30*VCP!$E$28,AN30) -> 0 | AY30: =IF(AO30>VCP!$E$29,AO30*VCP!$E$28,AO30) -> 0 | AZ30: =IF(AP30>VCP!$E$29,AP30*VCP!$E$28,AP30) -> 0 | BA30: =IF(AQ30>VCP!$E$29,AQ30*VCP!$E$28,AQ30) -> 0 | BB30: =IF(AR30>VCP!$E$29,AR30*VCP!$E$28,AR30) -> 0 | BC30: =IF(AS30>VCP!$E$29,AS30*VCP!$E$28,AS30) -> 0
A31: 29 | B31: 5.6 | D31: 0.8 | E31: 71 | F31: 14 | G31: 260 | H31: 0 | I31: 0 | L31: =IF($K$2=0,D31*ATAN(0.151977*(E31+8.313659)^0.5)+ATAN(D31+E31)-ATAN(E31-1.676331)+0.00391838*(E31)^(3/2)*ATAN(0.023101*E31)-4.686035,'Weather data'!C31) -> -1.539184082 | M31: 0 | N31: 0 | O31: 0 | R31: =O32*'Qsol calculation'!N31 -> 0 | S31: =O32*'Qsol calculation'!O31 -> 0 | T31: =O32*'Qsol calculation'!P31 -> 0 | U31: =O32*'Qsol calculation'!Q31 -> 0 | V31: =O32*'Qsol calculation'!R31 -> 0 | W31: =O32*'Qsol calculation'!S31 -> 0 | X31: =O32*'Qsol calculation'!T31 -> 0 | Y31: =O32*'Qsol calculation'!U31 -> 0 | AA31: 0 | AB31: 0 | AC31: 0 | AD31: 0 | AE31: 0 | AF31: 0 | AG31: 0 | AH31: 0 | AJ31: =N31*(1+COS(VCP!$N$22))/2 -> 0 | AL31: 0 | AM31: 0 | AN31: 0 | AO31: 0 | AP31: 0 | AQ31: 0 | AR31: 0 | AS31: 0 | AV31: =IF(AL31>VCP!$E$29,AL31*VCP!$E$28,AL31) -> 0 | AW31: =IF(AM31>VCP!$E$29,AM31*VCP!$E$28,AM31) -> 0 | AX31: =IF(AN31>VCP!$E$29,AN31*VCP!$E$28,AN31) -> 0 | AY31: =IF(AO31>VCP!$E$29,AO31*VCP!$E$28,AO31) -> 0 | AZ31: =IF(AP31>VCP!$E$29,AP31*VCP!$E$28,AP31) -> 0 | BA31: =IF(AQ31>VCP!$E$29,AQ31*VCP!$E$28,AQ31) -> 0 | BB31: =IF(AR31>VCP!$E$29,AR31*VCP!$E$28,AR31) -> 0 | BC31: =IF(AS31>VCP!$E$29,AS31*VCP!$E$28,AS31) -> 0
A32: 30 | B32: 5.5 | D32: 0.2 | E32: 69 | F32: 15.9 | G32: 270 | H32: 0 | I32: 0 | L32: =IF($K$2=0,D32*ATAN(0.151977*(E32+8.313659)^0.5)+ATAN(D32+E32)-ATAN(E32-1.676331)+0.00391838*(E32)^(3/2)*ATAN(0.023101*E32)-4.686035,'Weather data'!C32) -> -2.23053485 | M32: 0 | N32: 0 | O32: 0 | R32: =O33*'Qsol calculation'!N32 -> 0 | S32: =O33*'Qsol calculation'!O32 -> 0 | T32: =O33*'Qsol calculation'!P32 -> 0 | U32: =O33*'Qsol calculation'!Q32 -> 0 | V32: =O33*'Qsol calculation'!R32 -> 0 | W32: =O33*'Qsol calculation'!S32 -> 0 | X32: =O33*'Qsol calculation'!T32 -> 0 | Y32: =O33*'Qsol calculation'!U32 -> 0 | AA32: 0 | AB32: 0 | AC32: 0 | AD32: 0 | AE32: 0 | AF32: 0 | AG32: 0 | AH32: 0 | AJ32: =N32*(1+COS(VCP!$N$22))/2 -> 0 | AL32: 0 | AM32: 0 | AN32: 0 | AO32: 0 | AP32: 0 | AQ32: 0 | AR32: 0 | AS32: 0 | AV32: =IF(AL32>VCP!$E$29,AL32*VCP!$E$28,AL32) -> 0 | AW32: =IF(AM32>VCP!$E$29,AM32*VCP!$E$28,AM32) -> 0 | AX32: =IF(AN32>VCP!$E$29,AN32*VCP!$E$28,AN32) -> 0 | AY32: =IF(AO32>VCP!$E$29,AO32*VCP!$E$28,AO32) -> 0 | AZ32: =IF(AP32>VCP!$E$29,AP32*VCP!$E$28,AP32) -> 0 | BA32: =IF(AQ32>VCP!$E$29,AQ32*VCP!$E$28,AQ32) -> 0 | BB32: =IF(AR32>VCP!$E$29,AR32*VCP!$E$28,AR32) -> 0 | BC32: =IF(AS32>VCP!$E$29,AS32*VCP!$E$28,AS32) -> 0
A33: 31 | B33: 4.7 | D33: -0.4 | E33: 69 | F33: 14.7 | G33: 270 | H33: 0 | I33: 0 | L33: =IF($K$2=0,D33*ATAN(0.151977*(E33+8.313659)^0.5)+ATAN(D33+E33)-ATAN(E33-1.676331)+0.00391838*(E33)^(3/2)*ATAN(0.023101*E33)-4.686035,'Weather data'!C33) -> -2.787679569 | M33: 0 | N33: 0 | O33: 0 | R33: =O34*'Qsol calculation'!N33 -> -0.02307439105 | S33: =O34*'Qsol calculation'!O33 -> -0.01243341881 | T33: =O34*'Qsol calculation'!P33 -> -0.02510781314 | U33: =O34*'Qsol calculation'!Q33 -> 0.007524303628 | V33: =O34*'Qsol calculation'!R33 -> 0.003154332013 | W33: =O34*'Qsol calculation'!S33 -> -0.007524303628 | X33: =O34*'Qsol calculation'!T33 -> 0.02510781314 | Y33: =O34*'Qsol calculation'!U33 -> 0.02307439105 | AA33: 0 | AB33: 0 | AC33: 0 | AD33: 0.007524303628 | AE33: 0.003154332013 | AF33: 0 | AG33: 0.02510781314 | AH33: 0.02307439105 | AJ33: =N33*(1+COS(VCP!$N$22))/2 -> 0 | AL33: 0 | AM33: 0 | AN33: 0 | AO33: 0.007524303628 | AP33: 0.003154332013 | AQ33: 0 | AR33: 0.02510781314 | AS33: 0.02307439105 | AV33: =IF(AL33>VCP!$E$29,AL33*VCP!$E$28,AL33) -> 0 | AW33: =IF(AM33>VCP!$E$29,AM33*VCP!$E$28,AM33) -> 0 | AX33: =IF(AN33>VCP!$E$29,AN33*VCP!$E$28,AN33) -> 0 | AY33: =IF(AO33>VCP!$E$29,AO33*VCP!$E$28,AO33) -> 0.007524303628 | AZ33: =IF(AP33>VCP!$E$29,AP33*VCP!$E$28,AP33) -> 0.003154332013 | BA33: =IF(AQ33>VCP!$E$29,AQ33*VCP!$E$28,AQ33) -> 0 | BB33: =IF(AR33>VCP!$E$29,AR33*VCP!$E$28,AR33) -> 0.02510781314 | BC33: =IF(AS33>VCP!$E$29,AS33*VCP!$E$28,AS33) -> 0.02307439105
A34: 32 | B34: 3.9 | D34: -0.9 | E34: 70 | F34: 13.5 | G34: 270 | H34: 4 | I34: 1 | L34: =IF($K$2=0,D34*ATAN(0.151977*(E34+8.313659)^0.5)+ATAN(D34+E34)-ATAN(E34-1.676331)+0.00391838*(E34)^(3/2)*ATAN(0.023101*E34)-4.686035,'Weather data'!C34) -> -3.190413354 | M34: 0.25 | N34: 0.97346875 | O34: 0.02653125 | R34: =O35*'Qsol calculation'!N34 -> -1.174562408 | S34: =O35*'Qsol calculation'!O34 -> -0.9978022461 | T34: =O35*'Qsol calculation'!P34 -> -1.536093778 | U34: =O35*'Qsol calculation'!Q34 -> 0.1249883092 | V34: =O35*'Qsol calculation'!R34 -> 0.07615959421 | W34: =O35*'Qsol calculation'!S34 -> -0.1249883092 | X34: =O35*'Qsol calculation'!T34 -> 1.536093778 | Y34: =O35*'Qsol calculation'!U34 -> 1.174562408 | AA34: 0 | AB34: 0 | AC34: 0 | AD34: 0.1249883092 | AE34: 0.07615959421 | AF34: 0 | AG34: 1.536093778 | AH34: 1.174562408 | AJ34: =N34*(1+COS(VCP!$N$22))/2 -> 0.7577641351 | AL34: 0.7577641351 | AM34: 0.7577641351 | AN34: 0.7577641351 | AO34: 0.8827524443 | AP34: 0.8339237293 | AQ34: 0.7577641351 | AR34: 2.293857913 | AS34: 1.932326543 | AV34: =IF(AL34>VCP!$E$29,AL34*VCP!$E$28,AL34) -> 0.7577641351 | AW34: =IF(AM34>VCP!$E$29,AM34*VCP!$E$28,AM34) -> 0.7577641351 | AX34: =IF(AN34>VCP!$E$29,AN34*VCP!$E$28,AN34) -> 0.7577641351 | AY34: =IF(AO34>VCP!$E$29,AO34*VCP!$E$28,AO34) -> 0.8827524443 | AZ34: =IF(AP34>VCP!$E$29,AP34*VCP!$E$28,AP34) -> 0.8339237293 | BA34: =IF(AQ34>VCP!$E$29,AQ34*VCP!$E$28,AQ34) -> 0.7577641351 | BB34: =IF(AR34>VCP!$E$29,AR34*VCP!$E$28,AR34) -> 2.293857913 | BC34: =IF(AS34>VCP!$E$29,AS34*VCP!$E$28,AS34) -> 1.932326543
A35: 33 | B35: 3.1 | D35: -1.3 | E35: 72 | F35: 12.3 | G35: 270 | H35: 100 | I35: 30 | L35: =IF($K$2=0,D35*ATAN(0.151977*(E35+8.313659)^0.5)+ATAN(D35+E35)-ATAN(E35-1.676331)+0.00391838*(E35)^(3/2)*ATAN(0.023101*E35)-4.686035,'Weather data'!C35) -> -3.440209371 | M35: 0.3 | N35: 28.457868 | O35: 1.542132 | R35: =O36*'Qsol calculation'!N35 -> -8.833892758 | S35: =O36*'Qsol calculation'!O35 -> -11.68846515 | T35: =O36*'Qsol calculation'!P35 -> -14.51149844 | U35: =O36*'Qsol calculation'!Q35 -> -2.018487493 | V35: =O36*'Qsol calculation'!R35 -> -0.1277344236 | W35: =O36*'Qsol calculation'!S35 -> 2.018487493 | X35: =O36*'Qsol calculation'!T35 -> 14.51149844 | Y35: =O36*'Qsol calculation'!U35 -> 8.833892758 | AA35: 0 | AB35: 0 | AC35: 0 | AD35: 0 | AE35: 0 | AF35: 2.018487493 | AG35: 14.51149844 | AH35: 8.833892758 | AJ35: =N35*(1+COS(VCP!$N$22))/2 -> 22.15207394 | AL35: 22.15207394 | AM35: 22.15207394 | AN35: 22.15207394 | AO35: 22.15207394 | AP35: 22.15207394 | AQ35: 24.17056144 | AR35: 36.66357238 | AS35: 30.9859667 | AV35: =IF(AL35>VCP!$E$29,AL35*VCP!$E$28,AL35) -> 22.15207394 | AW35: =IF(AM35>VCP!$E$29,AM35*VCP!$E$28,AM35) -> 22.15207394 | AX35: =IF(AN35>VCP!$E$29,AN35*VCP!$E$28,AN35) -> 22.15207394 | AY35: =IF(AO35>VCP!$E$29,AO35*VCP!$E$28,AO35) -> 22.15207394 | AZ35: =IF(AP35>VCP!$E$29,AP35*VCP!$E$28,AP35) -> 22.15207394 | BA35: =IF(AQ35>VCP!$E$29,AQ35*VCP!$E$28,AQ35) -> 24.17056144 | BB35: =IF(AR35>VCP!$E$29,AR35*VCP!$E$28,AR35) -> 36.66357238 | BC35: =IF(AS35>VCP!$E$29,AS35*VCP!$E$28,AS35) -> 30.9859667
A36: 34 | B36: 3.8 | D36: -1.2 | E36: 69 | F36: 11.6 | G36: 270 | H36: 205 | I36: 84 | L36: =IF($K$2=0,D36*ATAN(0.151977*(E36+8.313659)^0.5)+ATAN(D36+E36)-ATAN(E36-1.676331)+0.00391838*(E36)^(3/2)*ATAN(0.023101*E36)-4.686035,'Weather data'!C36) -> -3.530542673 | M36: 0.4097560976 | N36: 69.31809242 | O36: 14.68190758 | R36: =O37*'Qsol calculation'!N36 -> -14.69864183 | S36: =O37*'Qsol calculation'!O36 -> -33.22279802 | T36: =O37*'Qsol calculation'!P36 -> -33.88557508 | U36: =O37*'Qsol calculation'!Q36 -> -13.09855645 | V36: =O37*'Qsol calculation'!R36 -> -1.885696519 | W36: =O37*'Qsol calculation'!S36 -> 13.09855645 | X36: =O37*'Qsol calculation'!T36 -> 33.88557508 | Y36: =O37*'Qsol calculation'!U36 -> 14.69864183 | AA36: 0 | AB36: 0 | AC36: 0 | AD36: 0 | AE36: 0 | AF36: 13.09855645 | AG36: 33.88557508 | AH36: 14.69864183 | AJ36: =N36*(1+COS(VCP!$N$22))/2 -> 53.95834674 | AL36: 53.95834674 | AM36: 53.95834674 | AN36: 53.95834674 | AO36: 53.95834674 | AP36: 53.95834674 | AQ36: 67.05690319 | AR36: 87.84392182 | AS36: 68.65698858 | AV36: =IF(AL36>VCP!$E$29,AL36*VCP!$E$28,AL36) -> 16.18750402 | AW36: =IF(AM36>VCP!$E$29,AM36*VCP!$E$28,AM36) -> 16.18750402 | AX36: =IF(AN36>VCP!$E$29,AN36*VCP!$E$28,AN36) -> 16.18750402 | AY36: =IF(AO36>VCP!$E$29,AO36*VCP!$E$28,AO36) -> 16.18750402 | AZ36: =IF(AP36>VCP!$E$29,AP36*VCP!$E$28,AP36) -> 16.18750402 | BA36: =IF(AQ36>VCP!$E$29,AQ36*VCP!$E$28,AQ36) -> 20.11707096 | BB36: =IF(AR36>VCP!$E$29,AR36*VCP!$E$28,AR36) -> 26.35317655 | BC36: =IF(AS36>VCP!$E$29,AS36*VCP!$E$28,AS36) -> 20.59709657
A37: 35 | B37: 4.4 | D37: -1 | E37: 67 | F37: 11 | G37: 270 | H37: 265 | I37: 126 | L37: =IF($K$2=0,D37*ATAN(0.151977*(E37+8.313659)^0.5)+ATAN(D37+E37)-ATAN(E37-1.676331)+0.00391838*(E37)^(3/2)*ATAN(0.023101*E37)-4.686035,'Weather data'!C37) -> -3.465106226 | M37: 0.4754716981 | N37: 89.31932411 | O37: 36.68067589 | R37: =O38*'Qsol calculation'!N37 -> -7.728764401 | S37: =O38*'Qsol calculation'!O37 -> -43.40306705 | T37: =O38*'Qsol calculation'!P37 -> -36.15566475 | U37: =O38*'Qsol calculation'!Q37 -> -25.22554132 | V37: =O38*'Qsol calculation'!R37 -> -3.398559634 | W37: =O38*'Qsol calculation'!S37 -> 25.22554132 | X37: =O38*'Qsol calculation'!T37 -> 36.15566475 | Y37: =O38*'Qsol calculation'!U37 -> 7.728764401 | AA37: 0 | AB37: 0 | AC37: 0 | AD37: 0 | AE37: 0 | AF37: 25.22554132 | AG37: 36.15566475 | AH37: 7.728764401 | AJ37: =N37*(1+COS(VCP!$N$22))/2 -> 69.52763546 | AL37: 69.52763546 | AM37: 69.52763546 | AN37: 69.52763546 | AO37: 69.52763546 | AP37: 69.52763546 | AQ37: 94.75317678 | AR37: 105.6833002 | AS37: 77.25639986 | AV37: =IF(AL37>VCP!$E$29,AL37*VCP!$E$28,AL37) -> 20.85829064 | AW37: =IF(AM37>VCP!$E$29,AM37*VCP!$E$28,AM37) -> 20.85829064 | AX37: =IF(AN37>VCP!$E$29,AN37*VCP!$E$28,AN37) -> 20.85829064 | AY37: =IF(AO37>VCP!$E$29,AO37*VCP!$E$28,AO37) -> 20.85829064 | AZ37: =IF(AP37>VCP!$E$29,AP37*VCP!$E$28,AP37) -> 20.85829064 | BA37: =IF(AQ37>VCP!$E$29,AQ37*VCP!$E$28,AQ37) -> 28.42595303 | BB37: =IF(AR37>VCP!$E$29,AR37*VCP!$E$28,AR37) -> 31.70499006 | BC37: =IF(AS37>VCP!$E$29,AS37*VCP!$E$28,AS37) -> 23.17691996
A38: 36 | B38: 5.1 | D38: -0.6 | E38: 66 | F38: 10.3 | G38: 270 | H38: 275 | I38: 136 | L38: =IF($K$2=0,D38*ATAN(0.151977*(E38+8.313659)^0.5)+ATAN(D38+E38)-ATAN(E38-1.676331)+0.00391838*(E38)^(3/2)*ATAN(0.023101*E38)-4.686035,'Weather data'!C38) -> -3.156488406 | M38: 0.4945454545 | N38: 91.18100169 | O38: 44.81899831 | R38: =O39*'Qsol calculation'!N38 -> 1.950952191 | S38: =O39*'Qsol calculation'!O38 -> -28.28659697 | T38: =O39*'Qsol calculation'!P38 -> -18.62211301 | U38: =O39*'Qsol calculation'!Q38 -> -21.38117606 | V38: =O39*'Qsol calculation'!R38 -> -2.317957069 | W38: =O39*'Qsol calculation'!S38 -> 21.38117606 | X38: =O39*'Qsol calculation'!T38 -> 18.62211301 | Y38: =O39*'Qsol calculation'!U38 -> -1.950952191 | AA38: 1.950952191 | AB38: 0 | AC38: 0 | AD38: 0 | AE38: 0 | AF38: 21.38117606 | AG38: 18.62211301 | AH38: 0 | AJ38: =N38*(1+COS(VCP!$N$22))/2 -> 70.976796 | AL38: 72.9277482 | AM38: 70.976796 | AN38: 70.976796 | AO38: 70.976796 | AP38: 70.976796 | AQ38: 92.35797207 | AR38: 89.59890902 | AS38: 70.976796 | AV38: =IF(AL38>VCP!$E$29,AL38*VCP!$E$28,AL38) -> 21.87832446 | AW38: =IF(AM38>VCP!$E$29,AM38*VCP!$E$28,AM38) -> 21.2930388 | AX38: =IF(AN38>VCP!$E$29,AN38*VCP!$E$28,AN38) -> 21.2930388 | AY38: =IF(AO38>VCP!$E$29,AO38*VCP!$E$28,AO38) -> 21.2930388 | AZ38: =IF(AP38>VCP!$E$29,AP38*VCP!$E$28,AP38) -> 21.2930388 | BA38: =IF(AQ38>VCP!$E$29,AQ38*VCP!$E$28,AQ38) -> 27.70739162 | BB38: =IF(AR38>VCP!$E$29,AR38*VCP!$E$28,AR38) -> 26.87967271 | BC38: =IF(AS38>VCP!$E$29,AS38*VCP!$E$28,AS38) -> 21.2930388
A39: 37 | B39: 4.9 | D39: -0.4 | E39: 68 | F39: 10 | G39: 270 | H39: 236 | I39: 109 | L39: =IF($K$2=0,D39*ATAN(0.151977*(E39+8.313659)^0.5)+ATAN(D39+E39)-ATAN(E39-1.676331)+0.00391838*(E39)^(3/2)*ATAN(0.023101*E39)-4.686035,'Weather data'!C39) -> -2.850062984 | M39: 0.4618644068 | N39: 80.13243596 | O39: 28.86756404 | R39: =O40*'Qsol calculation'!N39 -> 1.916264827 | S39: =O40*'Qsol calculation'!O39 -> -5.940657264 | T39: =O40*'Qsol calculation'!P39 -> -2.845675182 | U39: =O40*'Qsol calculation'!Q39 -> -5.55568289 | V39: =O40*'Qsol calculation'!R39 -> -0.4079571461 | W39: =O40*'Qsol calculation'!S39 -> 5.55568289 | X39: =O40*'Qsol calculation'!T39 -> 2.845675182 | Y39: =O40*'Qsol calculation'!U39 -> -1.916264827 | AA39: 1.916264827 | AB39: 0 | AC39: 0 | AD39: 0 | AE39: 0 | AF39: 5.55568289 | AG39: 2.845675182 | AH39: 0 | AJ39: =N39*(1+COS(VCP!$N$22))/2 -> 62.37641016 | AL39: 64.29267499 | AM39: 62.37641016 | AN39: 62.37641016 | AO39: 62.37641016 | AP39: 62.37641016 | AQ39: 67.93209305 | AR39: 65.22208534 | AS39: 62.37641016 | AV39: =IF(AL39>VCP!$E$29,AL39*VCP!$E$28,AL39) -> 19.2878025 | AW39: =IF(AM39>VCP!$E$29,AM39*VCP!$E$28,AM39) -> 18.71292305 | AX39: =IF(AN39>VCP!$E$29,AN39*VCP!$E$28,AN39) -> 18.71292305 | AY39: =IF(AO39>VCP!$E$29,AO39*VCP!$E$28,AO39) -> 18.71292305 | AZ39: =IF(AP39>VCP!$E$29,AP39*VCP!$E$28,AP39) -> 18.71292305 | BA39: =IF(AQ39>VCP!$E$29,AQ39*VCP!$E$28,AQ39) -> 20.37962791 | BB39: =IF(AR39>VCP!$E$29,AR39*VCP!$E$28,AR39) -> 19.5666256 | BC39: =IF(AS39>VCP!$E$29,AS39*VCP!$E$28,AS39) -> 18.71292305
A40: 38 | B40: 4.7 | D40: -0.2 | E40: 71 | F40: 9.6 | G40: 270 | H40: 150 | I40: 55 | L40: =IF($K$2=0,D40*ATAN(0.151977*(E40+8.313659)^0.5)+ATAN(D40+E40)-ATAN(E40-1.676331)+0.00391838*(E40)^(3/2)*ATAN(0.023101*E40)-4.686035,'Weather data'!C40) -> -2.473859209 | M40: 0.3666666667 | N40: 48.67577652 | O40: 6.324223481 | R40: =O41*'Qsol calculation'!N40 -> 0.3570029214 | S40: =O41*'Qsol calculation'!O40 -> -0.5857894484 | T40: =O41*'Qsol calculation'!P40 -> -0.1617765047 | U40: =O41*'Qsol calculation'!Q40 -> -0.6666548779 | V40: =O41*'Qsol calculation'!R40 -> -0.02036558156 | W40: =O41*'Qsol calculation'!S40 -> 0.6666548779 | X40: =O41*'Qsol calculation'!T40 -> 0.1617765047 | Y40: =O41*'Qsol calculation'!U40 -> -0.3570029214 | AA40: 0.3570029214 | AB40: 0 | AC40: 0 | AD40: 0 | AE40: 0 | AF40: 0.6666548779 | AG40: 0.1617765047 | AH40: 0 | AJ40: =N40*(1+COS(VCP!$N$22))/2 -> 37.89002749 | AL40: 38.24703041 | AM40: 37.89002749 | AN40: 37.89002749 | AO40: 37.89002749 | AP40: 37.89002749 | AQ40: 38.55668236 | AR40: 38.05180399 | AS40: 37.89002749 | AV40: =IF(AL40>VCP!$E$29,AL40*VCP!$E$28,AL40) -> 38.24703041 | AW40: =IF(AM40>VCP!$E$29,AM40*VCP!$E$28,AM40) -> 37.89002749 | AX40: =IF(AN40>VCP!$E$29,AN40*VCP!$E$28,AN40) -> 37.89002749 | AY40: =IF(AO40>VCP!$E$29,AO40*VCP!$E$28,AO40) -> 37.89002749 | AZ40: =IF(AP40>VCP!$E$29,AP40*VCP!$E$28,AP40) -> 37.89002749 | BA40: =IF(AQ40>VCP!$E$29,AQ40*VCP!$E$28,AQ40) -> 38.55668236 | BB40: =IF(AR40>VCP!$E$29,AR40*VCP!$E$28,AR40) -> 38.05180399 | BC40: =IF(AS40>VCP!$E$29,AS40*VCP!$E$28,AS40) -> 37.89002749
A41: 39 | B41: 4.5 | D41: 0.1 | E41: 73 | F41: 9.3 | G41: 260 | H41: 31 | I41: 10 | L41: =IF($K$2=0,D41*ATAN(0.151977*(E41+8.313659)^0.5)+ATAN(D41+E41)-ATAN(E41-1.676331)+0.00391838*(E41)^(3/2)*ATAN(0.023101*E41)-4.686035,'Weather data'!C41) -> -2.060833067 | M41: 0.3225806452 | N41: 9.310506844 | O41: 0.6894931561 | R41: =O42*'Qsol calculation'!N41 -> 0 | S41: =O42*'Qsol calculation'!O41 -> 0 | T41: =O42*'Qsol calculation'!P41 -> 0 | U41: =O42*'Qsol calculation'!Q41 -> 0 | V41: =O42*'Qsol calculation'!R41 -> 0 | W41: =O42*'Qsol calculation'!S41 -> 0 | X41: =O42*'Qsol calculation'!T41 -> 0 | Y41: =O42*'Qsol calculation'!U41 -> 0 | AA41: 0 | AB41: 0 | AC41: 0 | AD41: 0 | AE41: 0 | AF41: 0 | AG41: 0 | AH41: 0 | AJ41: =N41*(1+COS(VCP!$N$22))/2 -> 7.24745213 | AL41: 7.24745213 | AM41: 7.24745213 | AN41: 7.24745213 | AO41: 7.24745213 | AP41: 7.24745213 | AQ41: 7.24745213 | AR41: 7.24745213 | AS41: 7.24745213 | AV41: =IF(AL41>VCP!$E$29,AL41*VCP!$E$28,AL41) -> 7.24745213 | AW41: =IF(AM41>VCP!$E$29,AM41*VCP!$E$28,AM41) -> 7.24745213 | AX41: =IF(AN41>VCP!$E$29,AN41*VCP!$E$28,AN41) -> 7.24745213 | AY41: =IF(AO41>VCP!$E$29,AO41*VCP!$E$28,AO41) -> 7.24745213 | AZ41: =IF(AP41>VCP!$E$29,AP41*VCP!$E$28,AP41) -> 7.24745213 | BA41: =IF(AQ41>VCP!$E$29,AQ41*VCP!$E$28,AQ41) -> 7.24745213 | BB41: =IF(AR41>VCP!$E$29,AR41*VCP!$E$28,AR41) -> 7.24745213 | BC41: =IF(AS41>VCP!$E$29,AS41*VCP!$E$28,AS41) -> 7.24745213
A42: 40 | B42: 4.4 | D42: 0.4 | E42: 75 | F42: 8.9 | G42: 260 | H42: 0 | I42: 0 | L42: =IF($K$2=0,D42*ATAN(0.151977*(E42+8.313659)^0.5)+ATAN(D42+E42)-ATAN(E42-1.676331)+0.00391838*(E42)^(3/2)*ATAN(0.023101*E42)-4.686035,'Weather data'!C42) -> -1.64166575 | M42: 0 | N42: 0 | O42: 0 | R42: =O43*'Qsol calculation'!N42 -> 0 | S42: =O43*'Qsol calculation'!O42 -> 0 | T42: =O43*'Qsol calculation'!P42 -> 0 | U42: =O43*'Qsol calculation'!Q42 -> 0 | V42: =O43*'Qsol calculation'!R42 -> 0 | W42: =O43*'Qsol calculation'!S42 -> 0 | X42: =O43*'Qsol calculation'!T42 -> 0 | Y42: =O43*'Qsol calculation'!U42 -> 0 | AA42: 0 | AB42: 0 | AC42: 0 | AD42: 0 | AE42: 0 | AF42: 0 | AG42: 0 | AH42: 0 | AJ42: =N42*(1+COS(VCP!$N$22))/2 -> 0 | AL42: 0 | AM42: 0 | AN42: 0 | AO42: 0 | AP42: 0 | AQ42: 0 | AR42: 0 | AS42: 0 | AV42: =IF(AL42>VCP!$E$29,AL42*VCP!$E$28,AL42) -> 0 | AW42: =IF(AM42>VCP!$E$29,AM42*VCP!$E$28,AM42) -> 0 | AX42: =IF(AN42>VCP!$E$29,AN42*VCP!$E$28,AN42) -> 0 | AY42: =IF(AO42>VCP!$E$29,AO42*VCP!$E$28,AO42) -> 0 | AZ42: =IF(AP42>VCP!$E$29,AP42*VCP!$E$28,AP42) -> 0 | BA42: =IF(AQ42>VCP!$E$29,AQ42*VCP!$E$28,AQ42) -> 0 | BB42: =IF(AR42>VCP!$E$29,AR42*VCP!$E$28,AR42) -> 0 | BC42: =IF(AS42>VCP!$E$29,AS42*VCP!$E$28,AS42) -> 0
A43: 41 | B43: 4.2 | D43: 0.6 | E43: 77 | F43: 8.6 | G43: 260 | H43: 0 | I43: 0 | L43: =IF($K$2=0,D43*ATAN(0.151977*(E43+8.313659)^0.5)+ATAN(D43+E43)-ATAN(E43-1.676331)+0.00391838*(E43)^(3/2)*ATAN(0.023101*E43)-4.686035,'Weather data'!C43) -> -1.311749639 | M43: 0 | N43: 0 | O43: 0 | R43: =O44*'Qsol calculation'!N43 -> 0 | S43: =O44*'Qsol calculation'!O43 -> 0 | T43: =O44*'Qsol calculation'!P43 -> 0 | U43: =O44*'Qsol calculation'!Q43 -> 0 | V43: =O44*'Qsol calculation'!R43 -> 0 | W43: =O44*'Qsol calculation'!S43 -> 0 | X43: =O44*'Qsol calculation'!T43 -> 0 | Y43: =O44*'Qsol calculation'!U43 -> 0 | AA43: 0 | AB43: 0 | AC43: 0 | AD43: 0 | AE43: 0 | AF43: 0 | AG43: 0 | AH43: 0 | AJ43: =N43*(1+COS(VCP!$N$22))/2 -> 0 | AL43: 0 | AM43: 0 | AN43: 0 | AO43: 0 | AP43: 0 | AQ43: 0 | AR43: 0 | AS43: 0 | AV43: =IF(AL43>VCP!$E$29,AL43*VCP!$E$28,AL43) -> 0 | AW43: =IF(AM43>VCP!$E$29,AM43*VCP!$E$28,AM43) -> 0 | AX43: =IF(AN43>VCP!$E$29,AN43*VCP!$E$28,AN43) -> 0 | AY43: =IF(AO43>VCP!$E$29,AO43*VCP!$E$28,AO43) -> 0 | AZ43: =IF(AP43>VCP!$E$29,AP43*VCP!$E$28,AP43) -> 0 | BA43: =IF(AQ43>VCP!$E$29,AQ43*VCP!$E$28,AQ43) -> 0 | BB43: =IF(AR43>VCP!$E$29,AR43*VCP!$E$28,AR43) -> 0 | BC43: =IF(AS43>VCP!$E$29,AS43*VCP!$E$28,AS43) -> 0
A44: 42 | B44: 4.1 | D44: 0.9 | E44: 80 | F44: 8.2 | G44: 250 | H44: 0 | I44: 0 | L44: =IF($K$2=0,D44*ATAN(0.151977*(E44+8.313659)^0.5)+ATAN(D44+E44)-ATAN(E44-1.676331)+0.00391838*(E44)^(3/2)*ATAN(0.023101*E44)-4.686035,'Weather data'!C44) -> -0.8081578262 | M44: 0 | N44: 0 | O44: 0 | R44: =O45*'Qsol calculation'!N44 -> 0 | S44: =O45*'Qsol calculation'!O44 -> 0 | T44: =O45*'Qsol calculation'!P44 -> 0 | U44: =O45*'Qsol calculation'!Q44 -> 0 | V44: =O45*'Qsol calculation'!R44 -> 0 | W44: =O45*'Qsol calculation'!S44 -> 0 | X44: =O45*'Qsol calculation'!T44 -> 0 | Y44: =O45*'Qsol calculation'!U44 -> 0 | AA44: 0 | AB44: 0 | AC44: 0 | AD44: 0 | AE44: 0 | AF44: 0 | AG44: 0 | AH44: 0 | AJ44: =N44*(1+COS(VCP!$N$22))/2 -> 0 | AL44: 0 | AM44: 0 | AN44: 0 | AO44: 0 | AP44: 0 | AQ44: 0 | AR44: 0 | AS44: 0 | AV44: =IF(AL44>VCP!$E$29,AL44*VCP!$E$28,AL44) -> 0 | AW44: =IF(AM44>VCP!$E$29,AM44*VCP!$E$28,AM44) -> 0 | AX44: =IF(AN44>VCP!$E$29,AN44*VCP!$E$28,AN44) -> 0 | AY44: =IF(AO44>VCP!$E$29,AO44*VCP!$E$28,AO44) -> 0 | AZ44: =IF(AP44>VCP!$E$29,AP44*VCP!$E$28,AP44) -> 0 | BA44: =IF(AQ44>VCP!$E$29,AQ44*VCP!$E$28,AQ44) -> 0 | BB44: =IF(AR44>VCP!$E$29,AR44*VCP!$E$28,AR44) -> 0 | BC44: =IF(AS44>VCP!$E$29,AS44*VCP!$E$28,AS44) -> 0
A45: 43 | B45: 4.1 | D45: 1.1 | E45: 81 | F45: 8.2 | G45: 250 | H45: 0 | I45: 0 | L45: =IF($K$2=0,D45*ATAN(0.151977*(E45+8.313659)^0.5)+ATAN(D45+E45)-ATAN(E45-1.676331)+0.00391838*(E45)^(3/2)*ATAN(0.023101*E45)-4.686035,'Weather data'!C45) -> -0.5417597434 | M45: 0 | N45: 0 | O45: 0 | R45: =O46*'Qsol calculation'!N45 -> 0 | S45: =O46*'Qsol calculation'!O45 -> 0 | T45: =O46*'Qsol calculation'!P45 -> 0 | U45: =O46*'Qsol calculation'!Q45 -> 0 | V45: =O46*'Qsol calculation'!R45 -> 0 | W45: =O46*'Qsol calculation'!S45 -> 0 | X45: =O46*'Qsol calculation'!T45 -> 0 | Y45: =O46*'Qsol calculation'!U45 -> 0 | AA45: 0 | AB45: 0 | AC45: 0 | AD45: 0 | AE45: 0 | AF45: 0 | AG45: 0 | AH45: 0 | AJ45: =N45*(1+COS(VCP!$N$22))/2 -> 0 | AL45: 0 | AM45: 0 | AN45: 0 | AO45: 0 | AP45: 0 | AQ45: 0 | AR45: 0 | AS45: 0 | AV45: =IF(AL45>VCP!$E$29,AL45*VCP!$E$28,AL45) -> 0 | AW45: =IF(AM45>VCP!$E$29,AM45*VCP!$E$28,AM45) -> 0 | AX45: =IF(AN45>VCP!$E$29,AN45*VCP!$E$28,AN45) -> 0 | AY45: =IF(AO45>VCP!$E$29,AO45*VCP!$E$28,AO45) -> 0 | AZ45: =IF(AP45>VCP!$E$29,AP45*VCP!$E$28,AP45) -> 0 | BA45: =IF(AQ45>VCP!$E$29,AQ45*VCP!$E$28,AQ45) -> 0 | BB45: =IF(AR45>VCP!$E$29,AR45*VCP!$E$28,AR45) -> 0 | BC45: =IF(AS45>VCP!$E$29,AS45*VCP!$E$28,AS45) -> 0
A46: 44 | B46: 4.2 | D46: 1.3 | E46: 82 | F46: 8.2 | G46: 250 | H46: 0 | I46: 0 | L46: =IF($K$2=0,D46*ATAN(0.151977*(E46+8.313659)^0.5)+ATAN(D46+E46)-ATAN(E46-1.676331)+0.00391838*(E46)^(3/2)*ATAN(0.023101*E46)-4.686035,'Weather data'!C46) -> -0.2737366191 | M46: 0 | N46: 0 | O46: 0 | R46: =O47*'Qsol calculation'!N46 -> 0 | S46: =O47*'Qsol calculation'!O46 -> 0 | T46: =O47*'Qsol calculation'!P46 -> 0 | U46: =O47*'Qsol calculation'!Q46 -> 0 | V46: =O47*'Qsol calculation'!R46 -> 0 | W46: =O47*'Qsol calculation'!S46 -> 0 | X46: =O47*'Qsol calculation'!T46 -> 0 | Y46: =O47*'Qsol calculation'!U46 -> 0 | AA46: 0 | AB46: 0 | AC46: 0 | AD46: 0 | AE46: 0 | AF46: 0 | AG46: 0 | AH46: 0 | AJ46: =N46*(1+COS(VCP!$N$22))/2 -> 0 | AL46: 0 | AM46: 0 | AN46: 0 | AO46: 0 | AP46: 0 | AQ46: 0 | AR46: 0 | AS46: 0 | AV46: =IF(AL46>VCP!$E$29,AL46*VCP!$E$28,AL46) -> 0 | AW46: =IF(AM46>VCP!$E$29,AM46*VCP!$E$28,AM46) -> 0 | AX46: =IF(AN46>VCP!$E$29,AN46*VCP!$E$28,AN46) -> 0 | AY46: =IF(AO46>VCP!$E$29,AO46*VCP!$E$28,AO46) -> 0 | AZ46: =IF(AP46>VCP!$E$29,AP46*VCP!$E$28,AP46) -> 0 | BA46: =IF(AQ46>VCP!$E$29,AQ46*VCP!$E$28,AQ46) -> 0 | BB46: =IF(AR46>VCP!$E$29,AR46*VCP!$E$28,AR46) -> 0 | BC46: =IF(AS46>VCP!$E$29,AS46*VCP!$E$28,AS46) -> 0
A47: 45 | B47: 4.2 | D47: 1.5 | E47: 83 | F47: 8.2 | G47: 210 | H47: 0 | I47: 0 | L47: =IF($K$2=0,D47*ATAN(0.151977*(E47+8.313659)^0.5)+ATAN(D47+E47)-ATAN(E47-1.676331)+0.00391838*(E47)^(3/2)*ATAN(0.023101*E47)-4.686035,'Weather data'!C47) -> -0.004113333442 | M47: 0 | N47: 0 | O47: 0 | R47: =O48*'Qsol calculation'!N47 -> 0 | S47: =O48*'Qsol calculation'!O47 -> 0 | T47: =O48*'Qsol calculation'!P47 -> 0 | U47: =O48*'Qsol calculation'!Q47 -> 0 | V47: =O48*'Qsol calculation'!R47 -> 0 | W47: =O48*'Qsol calculation'!S47 -> 0 | X47: =O48*'Qsol calculation'!T47 -> 0 | Y47: =O48*'Qsol calculation'!U47 -> 0 | AA47: 0 | AB47: 0 | AC47: 0 | AD47: 0 | AE47: 0 | AF47: 0 | AG47: 0 | AH47: 0 | AJ47: =N47*(1+COS(VCP!$N$22))/2 -> 0 | AL47: 0 | AM47: 0 | AN47: 0 | AO47: 0 | AP47: 0 | AQ47: 0 | AR47: 0 | AS47: 0 | AV47: =IF(AL47>VCP!$E$29,AL47*VCP!$E$28,AL47) -> 0 | AW47: =IF(AM47>VCP!$E$29,AM47*VCP!$E$28,AM47) -> 0 | AX47: =IF(AN47>VCP!$E$29,AN47*VCP!$E$28,AN47) -> 0 | AY47: =IF(AO47>VCP!$E$29,AO47*VCP!$E$28,AO47) -> 0 | AZ47: =IF(AP47>VCP!$E$29,AP47*VCP!$E$28,AP47) -> 0 | BA47: =IF(AQ47>VCP!$E$29,AQ47*VCP!$E$28,AQ47) -> 0 | BB47: =IF(AR47>VCP!$E$29,AR47*VCP!$E$28,AR47) -> 0 | BC47: =IF(AS47>VCP!$E$29,AS47*VCP!$E$28,AS47) -> 0
A48: 46 | B48: 3.9 | D48: 1.5 | E48: 84 | F48: 9.6 | G48: 210 | H48: 0 | I48: 0 | L48: =IF($K$2=0,D48*ATAN(0.151977*(E48+8.313659)^0.5)+ATAN(D48+E48)-ATAN(E48-1.676331)+0.00391838*(E48)^(3/2)*ATAN(0.023101*E48)-4.686035,'Weather data'!C48) -> 0.07299513445 | M48: 0 | N48: 0 | O48: 0 | R48: =O49*'Qsol calculation'!N48 -> 0 | S48: =O49*'Qsol calculation'!O48 -> 0 | T48: =O49*'Qsol calculation'!P48 -> 0 | U48: =O49*'Qsol calculation'!Q48 -> 0 | V48: =O49*'Qsol calculation'!R48 -> 0 | W48: =O49*'Qsol calculation'!S48 -> 0 | X48: =O49*'Qsol calculation'!T48 -> 0 | Y48: =O49*'Qsol calculation'!U48 -> 0 | AA48: 0 | AB48: 0 | AC48: 0 | AD48: 0 | AE48: 0 | AF48: 0 | AG48: 0 | AH48: 0 | AJ48: =N48*(1+COS(VCP!$N$22))/2 -> 0 | AL48: 0 | AM48: 0 | AN48: 0 | AO48: 0 | AP48: 0 | AQ48: 0 | AR48: 0 | AS48: 0 | AV48: =IF(AL48>VCP!$E$29,AL48*VCP!$E$28,AL48) -> 0 | AW48: =IF(AM48>VCP!$E$29,AM48*VCP!$E$28,AM48) -> 0 | AX48: =IF(AN48>VCP!$E$29,AN48*VCP!$E$28,AN48) -> 0 | AY48: =IF(AO48>VCP!$E$29,AO48*VCP!$E$28,AO48) -> 0 | AZ48: =IF(AP48>VCP!$E$29,AP48*VCP!$E$28,AP48) -> 0 | BA48: =IF(AQ48>VCP!$E$29,AQ48*VCP!$E$28,AQ48) -> 0 | BB48: =IF(AR48>VCP!$E$29,AR48*VCP!$E$28,AR48) -> 0 | BC48: =IF(AS48>VCP!$E$29,AS48*VCP!$E$28,AS48) -> 0
A49: 47 | B49: 3.7 | D49: 1.5 | E49: 86 | F49: 10.9 | G49: 210 | H49: 0 | I49: 0 | L49: =IF($K$2=0,D49*ATAN(0.151977*(E49+8.313659)^0.5)+ATAN(D49+E49)-ATAN(E49-1.676331)+0.00391838*(E49)^(3/2)*ATAN(0.023101*E49)-4.686035,'Weather data'!C49) -> 0.2288586324 | M49: 0 | N49: 0 | O49: 0 | R49: =O50*'Qsol calculation'!N49 -> 0 | S49: =O50*'Qsol calculation'!O49 -> 0 | T49: =O50*'Qsol calculation'!P49 -> 0 | U49: =O50*'Qsol calculation'!Q49 -> 0 | V49: =O50*'Qsol calculation'!R49 -> 0 | W49: =O50*'Qsol calculation'!S49 -> 0 | X49: =O50*'Qsol calculation'!T49 -> 0 | Y49: =O50*'Qsol calculation'!U49 -> 0 | AA49: 0 | AB49: 0 | AC49: 0 | AD49: 0 | AE49: 0 | AF49: 0 | AG49: 0 | AH49: 0 | AJ49: =N49*(1+COS(VCP!$N$22))/2 -> 0 | AL49: 0 | AM49: 0 | AN49: 0 | AO49: 0 | AP49: 0 | AQ49: 0 | AR49: 0 | AS49: 0 | AV49: =IF(AL49>VCP!$E$29,AL49*VCP!$E$28,AL49) -> 0 | AW49: =IF(AM49>VCP!$E$29,AM49*VCP!$E$28,AM49) -> 0 | AX49: =IF(AN49>VCP!$E$29,AN49*VCP!$E$28,AN49) -> 0 | AY49: =IF(AO49>VCP!$E$29,AO49*VCP!$E$28,AO49) -> 0 | AZ49: =IF(AP49>VCP!$E$29,AP49*VCP!$E$28,AP49) -> 0 | BA49: =IF(AQ49>VCP!$E$29,AQ49*VCP!$E$28,AQ49) -> 0 | BB49: =IF(AR49>VCP!$E$29,AR49*VCP!$E$28,AR49) -> 0 | BC49: =IF(AS49>VCP!$E$29,AS49*VCP!$E$28,AS49) -> 0
A50: 48 | B50: 3.4 | D50: 1.5 | E50: 87 | F50: 12.3 | G50: 190 | H50: 0 | I50: 0 | L50: =IF($K$2=0,D50*ATAN(0.151977*(E50+8.313659)^0.5)+ATAN(D50+E50)-ATAN(E50-1.676331)+0.00391838*(E50)^(3/2)*ATAN(0.023101*E50)-4.686035,'Weather data'!C50) -> 0.3076057101 | M50: 0 | N50: 0 | O50: 0 | R50: =O51*'Qsol calculation'!N50 -> 0 | S50: =O51*'Qsol calculation'!O50 -> 0 | T50: =O51*'Qsol calculation'!P50 -> 0 | U50: =O51*'Qsol calculation'!Q50 -> 0 | V50: =O51*'Qsol calculation'!R50 -> 0 | W50: =O51*'Qsol calculation'!S50 -> 0 | X50: =O51*'Qsol calculation'!T50 -> 0 | Y50: =O51*'Qsol calculation'!U50 -> 0 | AA50: 0 | AB50: 0 | AC50: 0 | AD50: 0 | AE50: 0 | AF50: 0 | AG50: 0 | AH50: 0 | AJ50: =N50*(1+COS(VCP!$N$22))/2 -> 0 | AL50: 0 | AM50: 0 | AN50: 0 | AO50: 0 | AP50: 0 | AQ50: 0 | AR50: 0 | AS50: 0 | AV50: =IF(AL50>VCP!$E$29,AL50*VCP!$E$28,AL50) -> 0 | AW50: =IF(AM50>VCP!$E$29,AM50*VCP!$E$28,AM50) -> 0 | AX50: =IF(AN50>VCP!$E$29,AN50*VCP!$E$28,AN50) -> 0 | AY50: =IF(AO50>VCP!$E$29,AO50*VCP!$E$28,AO50) -> 0 | AZ50: =IF(AP50>VCP!$E$29,AP50*VCP!$E$28,AP50) -> 0 | BA50: =IF(AQ50>VCP!$E$29,AQ50*VCP!$E$28,AQ50) -> 0 | BB50: =IF(AR50>VCP!$E$29,AR50*VCP!$E$28,AR50) -> 0 | BC50: =IF(AS50>VCP!$E$29,AS50*VCP!$E$28,AS50) -> 0
A51: 49 | B51: 4.6 | D51: 2.9 | E51: 89 | F51: 12.3 | G51: 190 | H51: 0 | I51: 0 | L51: =IF($K$2=0,D51*ATAN(0.151977*(E51+8.313659)^0.5)+ATAN(D51+E51)-ATAN(E51-1.676331)+0.00391838*(E51)^(3/2)*ATAN(0.023101*E51)-4.686035,'Weather data'!C51) -> 1.842453757 | M51: 0 | N51: 0 | O51: 0 | R51: =O52*'Qsol calculation'!N51 -> 0 | S51: =O52*'Qsol calculation'!O51 -> 0 | T51: =O52*'Qsol calculation'!P51 -> 0 | U51: =O52*'Qsol calculation'!Q51 -> 0 | V51: =O52*'Qsol calculation'!R51 -> 0 | W51: =O52*'Qsol calculation'!S51 -> 0 | X51: =O52*'Qsol calculation'!T51 -> 0 | Y51: =O52*'Qsol calculation'!U51 -> 0 | AA51: 0 | AB51: 0 | AC51: 0 | AD51: 0 | AE51: 0 | AF51: 0 | AG51: 0 | AH51: 0 | AJ51: =N51*(1+COS(VCP!$N$22))/2 -> 0 | AL51: 0 | AM51: 0 | AN51: 0 | AO51: 0 | AP51: 0 | AQ51: 0 | AR51: 0 | AS51: 0 | AV51: =IF(AL51>VCP!$E$29,AL51*VCP!$E$28,AL51) -> 0 | AW51: =IF(AM51>VCP!$E$29,AM51*VCP!$E$28,AM51) -> 0 | AX51: =IF(AN51>VCP!$E$29,AN51*VCP!$E$28,AN51) -> 0 | AY51: =IF(AO51>VCP!$E$29,AO51*VCP!$E$28,AO51) -> 0 | AZ51: =IF(AP51>VCP!$E$29,AP51*VCP!$E$28,AP51) -> 0 | BA51: =IF(AQ51>VCP!$E$29,AQ51*VCP!$E$28,AQ51) -> 0 | BB51: =IF(AR51>VCP!$E$29,AR51*VCP!$E$28,AR51) -> 0 | BC51: =IF(AS51>VCP!$E$29,AS51*VCP!$E$28,AS51) -> 0
A52: 50 | B52: 5.9 | D52: 4.2 | E52: 89 | F52: 12.3 | G52: 190 | H52: 0 | I52: 0 | L52: =IF($K$2=0,D52*ATAN(0.151977*(E52+8.313659)^0.5)+ATAN(D52+E52)-ATAN(E52-1.676331)+0.00391838*(E52)^(3/2)*ATAN(0.023101*E52)-4.686035,'Weather data'!C52) -> 3.119924419 | M52: 0 | N52: 0 | O52: 0 | R52: =O53*'Qsol calculation'!N52 -> 0 | S52: =O53*'Qsol calculation'!O52 -> 0 | T52: =O53*'Qsol calculation'!P52 -> 0 | U52: =O53*'Qsol calculation'!Q52 -> 0 | V52: =O53*'Qsol calculation'!R52 -> 0 | W52: =O53*'Qsol calculation'!S52 -> 0 | X52: =O53*'Qsol calculation'!T52 -> 0 | Y52: =O53*'Qsol calculation'!U52 -> 0 | AA52: 0 | AB52: 0 | AC52: 0 | AD52: 0 | AE52: 0 | AF52: 0 | AG52: 0 | AH52: 0 | AJ52: =N52*(1+COS(VCP!$N$22))/2 -> 0 | AL52: 0 | AM52: 0 | AN52: 0 | AO52: 0 | AP52: 0 | AQ52: 0 | AR52: 0 | AS52: 0 | AV52: =IF(AL52>VCP!$E$29,AL52*VCP!$E$28,AL52) -> 0 | AW52: =IF(AM52>VCP!$E$29,AM52*VCP!$E$28,AM52) -> 0 | AX52: =IF(AN52>VCP!$E$29,AN52*VCP!$E$28,AN52) -> 0 | AY52: =IF(AO52>VCP!$E$29,AO52*VCP!$E$28,AO52) -> 0 | AZ52: =IF(AP52>VCP!$E$29,AP52*VCP!$E$28,AP52) -> 0 | BA52: =IF(AQ52>VCP!$E$29,AQ52*VCP!$E$28,AQ52) -> 0 | BB52: =IF(AR52>VCP!$E$29,AR52*VCP!$E$28,AR52) -> 0 | BC52: =IF(AS52>VCP!$E$29,AS52*VCP!$E$28,AS52) -> 0
A53: 51 | B53: 7.1 | D53: 5.4 | E53: 89 | F53: 12.3 | G53: 230 | H53: 0 | I53: 0 | L53: =IF($K$2=0,D53*ATAN(0.151977*(E53+8.313659)^0.5)+ATAN(D53+E53)-ATAN(E53-1.676331)+0.00391838*(E53)^(3/2)*ATAN(0.023101*E53)-4.686035,'Weather data'!C53) -> 4.299124398 | M53: 0 | N53: 0 | O53: 0 | R53: =O54*'Qsol calculation'!N53 -> 0 | S53: =O54*'Qsol calculation'!O53 -> 0 | T53: =O54*'Qsol calculation'!P53 -> 0 | U53: =O54*'Qsol calculation'!Q53 -> 0 | V53: =O54*'Qsol calculation'!R53 -> 0 | W53: =O54*'Qsol calculation'!S53 -> 0 | X53: =O54*'Qsol calculation'!T53 -> 0 | Y53: =O54*'Qsol calculation'!U53 -> 0 | AA53: 0 | AB53: 0 | AC53: 0 | AD53: 0 | AE53: 0 | AF53: 0 | AG53: 0 | AH53: 0 | AJ53: =N53*(1+COS(VCP!$N$22))/2 -> 0 | AL53: 0 | AM53: 0 | AN53: 0 | AO53: 0 | AP53: 0 | AQ53: 0 | AR53: 0 | AS53: 0 | AV53: =IF(AL53>VCP!$E$29,AL53*VCP!$E$28,AL53) -> 0 | AW53: =IF(AM53>VCP!$E$29,AM53*VCP!$E$28,AM53) -> 0 | AX53: =IF(AN53>VCP!$E$29,AN53*VCP!$E$28,AN53) -> 0 | AY53: =IF(AO53>VCP!$E$29,AO53*VCP!$E$28,AO53) -> 0 | AZ53: =IF(AP53>VCP!$E$29,AP53*VCP!$E$28,AP53) -> 0 | BA53: =IF(AQ53>VCP!$E$29,AQ53*VCP!$E$28,AQ53) -> 0 | BB53: =IF(AR53>VCP!$E$29,AR53*VCP!$E$28,AR53) -> 0 | BC53: =IF(AS53>VCP!$E$29,AS53*VCP!$E$28,AS53) -> 0
A54: 52 | B54: 7 | D54: 5.4 | E54: 89 | F54: 12 | G54: 230 | H54: 0 | I54: 0 | L54: =IF($K$2=0,D54*ATAN(0.151977*(E54+8.313659)^0.5)+ATAN(D54+E54)-ATAN(E54-1.676331)+0.00391838*(E54)^(3/2)*ATAN(0.023101*E54)-4.686035,'Weather data'!C54) -> 4.299124398 | M54: 0 | N54: 0 | O54: 0 | R54: =O55*'Qsol calculation'!N54 -> 0 | S54: =O55*'Qsol calculation'!O54 -> 0 | T54: =O55*'Qsol calculation'!P54 -> 0 | U54: =O55*'Qsol calculation'!Q54 -> 0 | V54: =O55*'Qsol calculation'!R54 -> 0 | W54: =O55*'Qsol calculation'!S54 -> 0 | X54: =O55*'Qsol calculation'!T54 -> 0 | Y54: =O55*'Qsol calculation'!U54 -> 0 | AA54: 0 | AB54: 0 | AC54: 0 | AD54: 0 | AE54: 0 | AF54: 0 | AG54: 0 | AH54: 0 | AJ54: =N54*(1+COS(VCP!$N$22))/2 -> 0 | AL54: 0 | AM54: 0 | AN54: 0 | AO54: 0 | AP54: 0 | AQ54: 0 | AR54: 0 | AS54: 0 | AV54: =IF(AL54>VCP!$E$29,AL54*VCP!$E$28,AL54) -> 0 | AW54: =IF(AM54>VCP!$E$29,AM54*VCP!$E$28,AM54) -> 0 | AX54: =IF(AN54>VCP!$E$29,AN54*VCP!$E$28,AN54) -> 0 | AY54: =IF(AO54>VCP!$E$29,AO54*VCP!$E$28,AO54) -> 0 | AZ54: =IF(AP54>VCP!$E$29,AP54*VCP!$E$28,AP54) -> 0 | BA54: =IF(AQ54>VCP!$E$29,AQ54*VCP!$E$28,AQ54) -> 0 | BB54: =IF(AR54>VCP!$E$29,AR54*VCP!$E$28,AR54) -> 0 | BC54: =IF(AS54>VCP!$E$29,AS54*VCP!$E$28,AS54) -> 0
A55: 53 | B55: 7 | D55: 5.3 | E55: 89 | F55: 11.6 | G55: 230 | H55: 0 | I55: 0 | L55: =IF($K$2=0,D55*ATAN(0.151977*(E55+8.313659)^0.5)+ATAN(D55+E55)-ATAN(E55-1.676331)+0.00391838*(E55)^(3/2)*ATAN(0.023101*E55)-4.686035,'Weather data'!C55) -> 4.200857865 | M55: 0 | N55: 0 | O55: 0 | R55: =O56*'Qsol calculation'!N55 -> 0 | S55: =O56*'Qsol calculation'!O55 -> 0 | T55: =O56*'Qsol calculation'!P55 -> 0 | U55: =O56*'Qsol calculation'!Q55 -> 0 | V55: =O56*'Qsol calculation'!R55 -> 0 | W55: =O56*'Qsol calculation'!S55 -> 0 | X55: =O56*'Qsol calculation'!T55 -> 0 | Y55: =O56*'Qsol calculation'!U55 -> 0 | AA55: 0 | AB55: 0 | AC55: 0 | AD55: 0 | AE55: 0 | AF55: 0 | AG55: 0 | AH55: 0 | AJ55: =N55*(1+COS(VCP!$N$22))/2 -> 0 | AL55: 0 | AM55: 0 | AN55: 0 | AO55: 0 | AP55: 0 | AQ55: 0 | AR55: 0 | AS55: 0 | AV55: =IF(AL55>VCP!$E$29,AL55*VCP!$E$28,AL55) -> 0 | AW55: =IF(AM55>VCP!$E$29,AM55*VCP!$E$28,AM55) -> 0 | AX55: =IF(AN55>VCP!$E$29,AN55*VCP!$E$28,AN55) -> 0 | AY55: =IF(AO55>VCP!$E$29,AO55*VCP!$E$28,AO55) -> 0 | AZ55: =IF(AP55>VCP!$E$29,AP55*VCP!$E$28,AP55) -> 0 | BA55: =IF(AQ55>VCP!$E$29,AQ55*VCP!$E$28,AQ55) -> 0 | BB55: =IF(AR55>VCP!$E$29,AR55*VCP!$E$28,AR55) -> 0 | BC55: =IF(AS55>VCP!$E$29,AS55*VCP!$E$28,AS55) -> 0
A56: 54 | B56: 6.9 | D56: 5.2 | E56: 89 | F56: 11.3 | G56: 240 | H56: 0 | I56: 0 | L56: =IF($K$2=0,D56*ATAN(0.151977*(E56+8.313659)^0.5)+ATAN(D56+E56)-ATAN(E56-1.676331)+0.00391838*(E56)^(3/2)*ATAN(0.023101*E56)-4.686035,'Weather data'!C56) -> 4.102591309 | M56: 0 | N56: 0 | O56: 0 | R56: =O57*'Qsol calculation'!N56 -> 0 | S56: =O57*'Qsol calculation'!O56 -> 0 | T56: =O57*'Qsol calculation'!P56 -> 0 | U56: =O57*'Qsol calculation'!Q56 -> 0 | V56: =O57*'Qsol calculation'!R56 -> 0 | W56: =O57*'Qsol calculation'!S56 -> 0 | X56: =O57*'Qsol calculation'!T56 -> 0 | Y56: =O57*'Qsol calculation'!U56 -> 0 | AA56: 0 | AB56: 0 | AC56: 0 | AD56: 0 | AE56: 0 | AF56: 0 | AG56: 0 | AH56: 0 | AJ56: =N56*(1+COS(VCP!$N$22))/2 -> 0 | AL56: 0 | AM56: 0 | AN56: 0 | AO56: 0 | AP56: 0 | AQ56: 0 | AR56: 0 | AS56: 0 | AV56: =IF(AL56>VCP!$E$29,AL56*VCP!$E$28,AL56) -> 0 | AW56: =IF(AM56>VCP!$E$29,AM56*VCP!$E$28,AM56) -> 0 | AX56: =IF(AN56>VCP!$E$29,AN56*VCP!$E$28,AN56) -> 0 | AY56: =IF(AO56>VCP!$E$29,AO56*VCP!$E$28,AO56) -> 0 | AZ56: =IF(AP56>VCP!$E$29,AP56*VCP!$E$28,AP56) -> 0 | BA56: =IF(AQ56>VCP!$E$29,AQ56*VCP!$E$28,AQ56) -> 0 | BB56: =IF(AR56>VCP!$E$29,AR56*VCP!$E$28,AR56) -> 0 | BC56: =IF(AS56>VCP!$E$29,AS56*VCP!$E$28,AS56) -> 0
A57: 55 | B57: 6.3 | D57: 4.4 | E57: 87 | F57: 11.3 | G57: 240 | H57: 0 | I57: 0 | L57: =IF($K$2=0,D57*ATAN(0.151977*(E57+8.313659)^0.5)+ATAN(D57+E57)-ATAN(E57-1.676331)+0.00391838*(E57)^(3/2)*ATAN(0.023101*E57)-4.686035,'Weather data'!C57) -> 3.143440149 | M57: 0 | N57: 0 | O57: 0 | R57: =O58*'Qsol calculation'!N57 -> -0.02310484107 | S57: =O58*'Qsol calculation'!O57 -> -0.01237978861 | T57: =O58*'Qsol calculation'!P57 -> -0.02509142228 | U57: =O58*'Qsol calculation'!Q57 -> 0.007583757322 | V57: =O58*'Qsol calculation'!R57 -> 0.003155605544 | W57: =O58*'Qsol calculation'!S57 -> -0.007583757322 | X57: =O58*'Qsol calculation'!T57 -> 0.02509142228 | Y57: =O58*'Qsol calculation'!U57 -> 0.02310484107 | AA57: 0 | AB57: 0 | AC57: 0 | AD57: 0.007583757322 | AE57: 0.003155605544 | AF57: 0 | AG57: 0.02509142228 | AH57: 0.02310484107 | AJ57: =N57*(1+COS(VCP!$N$22))/2 -> 0 | AL57: 0 | AM57: 0 | AN57: 0 | AO57: 0.007583757322 | AP57: 0.003155605544 | AQ57: 0 | AR57: 0.02509142228 | AS57: 0.02310484107 | AV57: =IF(AL57>VCP!$E$29,AL57*VCP!$E$28,AL57) -> 0 | AW57: =IF(AM57>VCP!$E$29,AM57*VCP!$E$28,AM57) -> 0 | AX57: =IF(AN57>VCP!$E$29,AN57*VCP!$E$28,AN57) -> 0 | AY57: =IF(AO57>VCP!$E$29,AO57*VCP!$E$28,AO57) -> 0.007583757322 | AZ57: =IF(AP57>VCP!$E$29,AP57*VCP!$E$28,AP57) -> 0.003155605544 | BA57: =IF(AQ57>VCP!$E$29,AQ57*VCP!$E$28,AQ57) -> 0 | BB57: =IF(AR57>VCP!$E$29,AR57*VCP!$E$28,AR57) -> 0.02509142228 | BC57: =IF(AS57>VCP!$E$29,AS57*VCP!$E$28,AS57) -> 0.02310484107
A58: 56 | B58: 5.7 | D58: 3.5 | E58: 85 | F58: 11.3 | G58: 240 | H58: 4 | I58: 1 | L58: =IF($K$2=0,D58*ATAN(0.151977*(E58+8.313659)^0.5)+ATAN(D58+E58)-ATAN(E58-1.676331)+0.00391838*(E58)^(3/2)*ATAN(0.023101*E58)-4.686035,'Weather data'!C58) -> 2.096567952 | M58: 0.25 | N58: 0.97346875 | O58: 0.02653125 | R58: =O59*'Qsol calculation'!N58 -> -0.1965278734 | S58: =O59*'Qsol calculation'!O58 -> -0.1661794823 | T58: =O59*'Qsol calculation'!P58 -> -0.2564728307 | U58: =O59*'Qsol calculation'!Q58 -> 0.02145955314 | V58: =O59*'Qsol calculation'!R58 -> 0.01276650722 | W58: =O59*'Qsol calculation'!S58 -> -0.02145955314 | X58: =O59*'Qsol calculation'!T58 -> 0.2564728307 | Y58: =O59*'Qsol calculation'!U58 -> 0.1965278734 | AA58: 0 | AB58: 0 | AC58: 0 | AD58: 0.02145955314 | AE58: 0.01276650722 | AF58: 0 | AG58: 0.2564728307 | AH58: 0.1965278734 | AJ58: =N58*(1+COS(VCP!$N$22))/2 -> 0.7577641351 | AL58: 0.7577641351 | AM58: 0.7577641351 | AN58: 0.7577641351 | AO58: 0.7792236883 | AP58: 0.7705306423 | AQ58: 0.7577641351 | AR58: 1.014236966 | AS58: 0.9542920085 | AV58: =IF(AL58>VCP!$E$29,AL58*VCP!$E$28,AL58) -> 0.7577641351 | AW58: =IF(AM58>VCP!$E$29,AM58*VCP!$E$28,AM58) -> 0.7577641351 | AX58: =IF(AN58>VCP!$E$29,AN58*VCP!$E$28,AN58) -> 0.7577641351 | AY58: =IF(AO58>VCP!$E$29,AO58*VCP!$E$28,AO58) -> 0.7792236883 | AZ58: =IF(AP58>VCP!$E$29,AP58*VCP!$E$28,AP58) -> 0.7705306423 | BA58: =IF(AQ58>VCP!$E$29,AQ58*VCP!$E$28,AQ58) -> 0.7577641351 | BB58: =IF(AR58>VCP!$E$29,AR58*VCP!$E$28,AR58) -> 1.014236966 | BC58: =IF(AS58>VCP!$E$29,AS58*VCP!$E$28,AS58) -> 0.9542920085
A59: 57 | B59: 5.1 | D59: 2.5 | E59: 83 | F59: 11.3 | G59: 250 | H59: 101 | I59: 17 | L59: =IF($K$2=0,D59*ATAN(0.151977*(E59+8.313659)^0.5)+ATAN(D59+E59)-ATAN(E59-1.676331)+0.00391838*(E59)^(3/2)*ATAN(0.023101*E59)-4.686035,'Weather data'!C59) -> 0.9638011976 | M59: 0.1683168317 | N59: 16.74247525 | O59: 0.2575247525 | R59: =O60*'Qsol calculation'!N59 -> -4.136974342 | S59: =O60*'Qsol calculation'!O59 -> -5.448576903 | T59: =O60*'Qsol calculation'!P59 -> -6.778008287 | U59: =O60*'Qsol calculation'!Q59 -> -0.9274430646 | V59: =O60*'Qsol calculation'!R59 -> -0.05785361669 | W59: =O60*'Qsol calculation'!S59 -> 0.9274430646 | X59: =O60*'Qsol calculation'!T59 -> 6.778008287 | Y59: =O60*'Qsol calculation'!U59 -> 4.136974342 | AA59: 0 | AB59: 0 | AC59: 0 | AD59: 0 | AE59: 0 | AF59: 0.9274430646 | AG59: 6.778008287 | AH59: 4.136974342 | AJ59: =N59*(1+COS(VCP!$N$22))/2 -> 13.03261895 | AL59: 13.03261895 | AM59: 13.03261895 | AN59: 13.03261895 | AO59: 13.03261895 | AP59: 13.03261895 | AQ59: 13.96006201 | AR59: 19.81062723 | AS59: 17.16959329 | AV59: =IF(AL59>VCP!$E$29,AL59*VCP!$E$28,AL59) -> 13.03261895 | AW59: =IF(AM59>VCP!$E$29,AM59*VCP!$E$28,AM59) -> 13.03261895 | AX59: =IF(AN59>VCP!$E$29,AN59*VCP!$E$28,AN59) -> 13.03261895 | AY59: =IF(AO59>VCP!$E$29,AO59*VCP!$E$28,AO59) -> 13.03261895 | AZ59: =IF(AP59>VCP!$E$29,AP59*VCP!$E$28,AP59) -> 13.03261895 | BA59: =IF(AQ59>VCP!$E$29,AQ59*VCP!$E$28,AQ59) -> 13.96006201 | BB59: =IF(AR59>VCP!$E$29,AR59*VCP!$E$28,AR59) -> 19.81062723 | BC59: =IF(AS59>VCP!$E$29,AS59*VCP!$E$28,AS59) -> 17.16959329
A60: 58 | B60: 4.3 | D60: 1.7 | E60: 83 | F60: 12 | G60: 250 | H60: 206 | I60: 72 | L60: =IF($K$2=0,D60*ATAN(0.151977*(E60+8.313659)^0.5)+ATAN(D60+E60)-ATAN(E60-1.676331)+0.00391838*(E60)^(3/2)*ATAN(0.023101*E60)-4.686035,'Weather data'!C60) -> 0.1894698342 | M60: 0.3495145631 | N60: 65.14415171 | O60: 6.855848289 | R60: =O61*'Qsol calculation'!N60 -> -14.1045747 | S60: =O61*'Qsol calculation'!O60 -> -31.69802747 | T60: =O61*'Qsol calculation'!P60 -> -32.38733059 | U60: =O61*'Qsol calculation'!Q60 -> -12.44044976 | V60: =O61*'Qsol calculation'!R60 -> -1.791875065 | W60: =O61*'Qsol calculation'!S60 -> 12.44044976 | X60: =O61*'Qsol calculation'!T60 -> 32.38733059 | Y60: =O61*'Qsol calculation'!U60 -> 14.1045747 | AA60: 0 | AB60: 0 | AC60: 0 | AD60: 0 | AE60: 0 | AF60: 12.44044976 | AG60: 32.38733059 | AH60: 14.1045747 | AJ60: =N60*(1+COS(VCP!$N$22))/2 -> 50.70928243 | AL60: 50.70928243 | AM60: 50.70928243 | AN60: 50.70928243 | AO60: 50.70928243 | AP60: 50.70928243 | AQ60: 63.14973219 | AR60: 83.09661302 | AS60: 64.81385713 | AV60: =IF(AL60>VCP!$E$29,AL60*VCP!$E$28,AL60) -> 15.21278473 | AW60: =IF(AM60>VCP!$E$29,AM60*VCP!$E$28,AM60) -> 15.21278473 | AX60: =IF(AN60>VCP!$E$29,AN60*VCP!$E$28,AN60) -> 15.21278473 | AY60: =IF(AO60>VCP!$E$29,AO60*VCP!$E$28,AO60) -> 15.21278473 | AZ60: =IF(AP60>VCP!$E$29,AP60*VCP!$E$28,AP60) -> 15.21278473 | BA60: =IF(AQ60>VCP!$E$29,AQ60*VCP!$E$28,AQ60) -> 18.94491966 | BB60: =IF(AR60>VCP!$E$29,AR60*VCP!$E$28,AR60) -> 24.92898391 | BC60: =IF(AS60>VCP!$E$29,AS60*VCP!$E$28,AS60) -> 19.44415714
A61: 59 | B61: 3.5 | D61: 0.9 | E61: 83 | F61: 12.7 | G61: 250 | H61: 266 | I61: 125 | L61: =IF($K$2=0,D61*ATAN(0.151977*(E61+8.313659)^0.5)+ATAN(D61+E61)-ATAN(E61-1.676331)+0.00391838*(E61)^(3/2)*ATAN(0.023101*E61)-4.686035,'Weather data'!C61) -> -0.5848636354 | M61: 0.469924812 | N61: 89.96466515 | O61: 35.03533485 | R61: =O62*'Qsol calculation'!N61 -> -8.594345313 | S61: =O62*'Qsol calculation'!O61 -> -47.72016675 | T61: =O62*'Qsol calculation'!P61 -> -39.82037336 | U61: =O62*'Qsol calculation'!Q61 -> -27.66613365 | V61: =O62*'Qsol calculation'!R61 -> -3.729258863 | W61: =O62*'Qsol calculation'!S61 -> 27.66613365 | X61: =O62*'Qsol calculation'!T61 -> 39.82037336 | Y61: =O62*'Qsol calculation'!U61 -> 8.594345313 | AA61: 0 | AB61: 0 | AC61: 0 | AD61: 0 | AE61: 0 | AF61: 27.66613365 | AG61: 39.82037336 | AH61: 8.594345313 | AJ61: =N61*(1+COS(VCP!$N$22))/2 -> 70.02997958 | AL61: 70.02997958 | AM61: 70.02997958 | AN61: 70.02997958 | AO61: 70.02997958 | AP61: 70.02997958 | AQ61: 97.69611323 | AR61: 109.8503529 | AS61: 78.62432489 | AV61: =IF(AL61>VCP!$E$29,AL61*VCP!$E$28,AL61) -> 21.00899387 | AW61: =IF(AM61>VCP!$E$29,AM61*VCP!$E$28,AM61) -> 21.00899387 | AX61: =IF(AN61>VCP!$E$29,AN61*VCP!$E$28,AN61) -> 21.00899387 | AY61: =IF(AO61>VCP!$E$29,AO61*VCP!$E$28,AO61) -> 21.00899387 | AZ61: =IF(AP61>VCP!$E$29,AP61*VCP!$E$28,AP61) -> 21.00899387 | BA61: =IF(AQ61>VCP!$E$29,AQ61*VCP!$E$28,AQ61) -> 29.30883397 | BB61: =IF(AR61>VCP!$E$29,AR61*VCP!$E$28,AR61) -> 32.95510588 | BC61: =IF(AS61>VCP!$E$29,AS61*VCP!$E$28,AS61) -> 23.58729747
A62: 60 | B62: 2.7 | D62: 0 | E62: 82 | F62: 13.4 | G62: 250 | H62: 277 | I62: 140 | L62: =IF($K$2=0,D62*ATAN(0.151977*(E62+8.313659)^0.5)+ATAN(D62+E62)-ATAN(E62-1.676331)+0.00391838*(E62)^(3/2)*ATAN(0.023101*E62)-4.686035,'Weather data'!C62) -> -1.528689272 | M62: 0.5054151625 | N62: 90.69360866 | O62: 49.30639134 | R62: =O63*'Qsol calculation'!N62 -> 1.848511259 | S62: =O63*'Qsol calculation'!O62 -> -27.5012975 | T62: =O63*'Qsol calculation'!P62 -> -18.13925911 | U62: =O63*'Qsol calculation'!Q62 -> -20.7534488 | V62: =O63*'Qsol calculation'!R62 -> -2.252409442 | W62: =O63*'Qsol calculation'!S62 -> 20.7534488 | X62: =O63*'Qsol calculation'!T62 -> 18.13925911 | Y62: =O63*'Qsol calculation'!U62 -> -1.848511259 | AA62: 1.848511259 | AB62: 0 | AC62: 0 | AD62: 0 | AE62: 0 | AF62: 20.7534488 | AG62: 18.13925911 | AH62: 0 | AJ62: =N62*(1+COS(VCP!$N$22))/2 -> 70.59740123 | AL62: 72.44591249 | AM62: 70.59740123 | AN62: 70.59740123 | AO62: 70.59740123 | AP62: 70.59740123 | AQ62: 91.35085003 | AR62: 88.73666034 | AS62: 70.59740123 | AV62: =IF(AL62>VCP!$E$29,AL62*VCP!$E$28,AL62) -> 21.73377375 | AW62: =IF(AM62>VCP!$E$29,AM62*VCP!$E$28,AM62) -> 21.17922037 | AX62: =IF(AN62>VCP!$E$29,AN62*VCP!$E$28,AN62) -> 21.17922037 | AY62: =IF(AO62>VCP!$E$29,AO62*VCP!$E$28,AO62) -> 21.17922037 | AZ62: =IF(AP62>VCP!$E$29,AP62*VCP!$E$28,AP62) -> 21.17922037 | BA62: =IF(AQ62>VCP!$E$29,AQ62*VCP!$E$28,AQ62) -> 27.40525501 | BB62: =IF(AR62>VCP!$E$29,AR62*VCP!$E$28,AR62) -> 26.6209981 | BC62: =IF(AS62>VCP!$E$29,AS62*VCP!$E$28,AS62) -> 21.17922037
A63: 61 | B63: 3.2 | D63: -0.2 | E63: 79 | F63: 14.6 | G63: 250 | H63: 238 | I63: 109 | L63: =IF($K$2=0,D63*ATAN(0.151977*(E63+8.313659)^0.5)+ATAN(D63+E63)-ATAN(E63-1.676331)+0.00391838*(E63)^(3/2)*ATAN(0.023101*E63)-4.686035,'Weather data'!C63) -> -1.934594592 | M63: 0.4579831933 | N63: 80.9285477 | O63: 28.0714523 | R63: =O64*'Qsol calculation'!N63 -> 1.12514961 | S63: =O64*'Qsol calculation'!O63 -> -3.505916861 | T63: =O64*'Qsol calculation'!P63 -> -1.683456668 | U63: =O64*'Qsol calculation'!Q63 -> -3.274658506 | V63: =O64*'Qsol calculation'!R63 -> -0.2412237578 | W63: =O64*'Qsol calculation'!S63 -> 3.274658506 | X63: =O64*'Qsol calculation'!T63 -> 1.683456668 | Y63: =O64*'Qsol calculation'!U63 -> -1.12514961 | AA63: 1.12514961 | AB63: 0 | AC63: 0 | AD63: 0 | AE63: 0 | AF63: 3.274658506 | AG63: 1.683456668 | AH63: 0 | AJ63: =N63*(1+COS(VCP!$N$22))/2 -> 62.99611668 | AL63: 64.12126629 | AM63: 62.99611668 | AN63: 62.99611668 | AO63: 62.99611668 | AP63: 62.99611668 | AQ63: 66.27077518 | AR63: 64.67957334 | AS63: 62.99611668 | AV63: =IF(AL63>VCP!$E$29,AL63*VCP!$E$28,AL63) -> 19.23637989 | AW63: =IF(AM63>VCP!$E$29,AM63*VCP!$E$28,AM63) -> 18.898835 | AX63: =IF(AN63>VCP!$E$29,AN63*VCP!$E$28,AN63) -> 18.898835 | AY63: =IF(AO63>VCP!$E$29,AO63*VCP!$E$28,AO63) -> 18.898835 | AZ63: =IF(AP63>VCP!$E$29,AP63*VCP!$E$28,AP63) -> 18.898835 | BA63: =IF(AQ63>VCP!$E$29,AQ63*VCP!$E$28,AQ63) -> 19.88123255 | BB63: =IF(AR63>VCP!$E$29,AR63*VCP!$E$28,AR63) -> 19.403872 | BC63: =IF(AS63>VCP!$E$29,AS63*VCP!$E$28,AS63) -> 18.898835
A64: 62 | B64: 3.6 | D64: -0.3 | E64: 75 | F64: 15.8 | G64: 250 | H64: 152 | I64: 50 | L64: =IF($K$2=0,D64*ATAN(0.151977*(E64+8.313659)^0.5)+ATAN(D64+E64)-ATAN(E64-1.676331)+0.00391838*(E64)^(3/2)*ATAN(0.023101*E64)-4.686035,'Weather data'!C64) -> -2.304124976 | M64: 0.3289473684 | N64: 46.26838015 | O64: 3.731619854 | R64: =O65*'Qsol calculation'!N64 -> 0.06904153534 | S64: =O65*'Qsol calculation'!O64 -> -0.1135972868 | T64: =O65*'Qsol calculation'!P64 -> -0.03150567402 | U64: =O65*'Qsol calculation'!Q64 -> -0.1291451497 | V64: =O65*'Qsol calculation'!R64 -> -0.003997250673 | W64: =O65*'Qsol calculation'!S64 -> 0.1291451497 | X64: =O65*'Qsol calculation'!T64 -> 0.03150567402 | Y64: =O65*'Qsol calculation'!U64 -> -0.06904153534 | AA64: 0.06904153534 | AB64: 0 | AC64: 0 | AD64: 0 | AE64: 0 | AF64: 0.1291451497 | AG64: 0.03150567402 | AH64: 0 | AJ64: =N64*(1+COS(VCP!$N$22))/2 -> 36.01607043 | AL64: 36.08511197 | AM64: 36.01607043 | AN64: 36.01607043 | AO64: 36.01607043 | AP64: 36.01607043 | AQ64: 36.14521558 | AR64: 36.04757611 | AS64: 36.01607043 | AV64: =IF(AL64>VCP!$E$29,AL64*VCP!$E$28,AL64) -> 36.08511197 | AW64: =IF(AM64>VCP!$E$29,AM64*VCP!$E$28,AM64) -> 36.01607043 | AX64: =IF(AN64>VCP!$E$29,AN64*VCP!$E$28,AN64) -> 36.01607043 | AY64: =IF(AO64>VCP!$E$29,AO64*VCP!$E$28,AO64) -> 36.01607043 | AZ64: =IF(AP64>VCP!$E$29,AP64*VCP!$E$28,AP64) -> 36.01607043 | BA64: =IF(AQ64>VCP!$E$29,AQ64*VCP!$E$28,AQ64) -> 36.14521558 | BB64: =IF(AR64>VCP!$E$29,AR64*VCP!$E$28,AR64) -> 36.04757611 | BC64: =IF(AS64>VCP!$E$29,AS64*VCP!$E$28,AS64) -> 36.01607043
A65: 63 | B65: 4.1 | D65: -0.4 | E65: 72 | F65: 17 | G65: 240 | H65: 33 | I65: 7 | L65: =IF($K$2=0,D65*ATAN(0.151977*(E65+8.313659)^0.5)+ATAN(D65+E65)-ATAN(E65-1.676331)+0.00391838*(E65)^(3/2)*ATAN(0.023101*E65)-4.686035,'Weather data'!C65) -> -2.596308786 | M65: 0.2121212121 | N65: 6.866363636 | O65: 0.1336363636 | R65: =O66*'Qsol calculation'!N65 -> 0 | S65: =O66*'Qsol calculation'!O65 -> 0 | T65: =O66*'Qsol calculation'!P65 -> 0 | U65: =O66*'Qsol calculation'!Q65 -> 0 | V65: =O66*'Qsol calculation'!R65 -> 0 | W65: =O66*'Qsol calculation'!S65 -> 0 | X65: =O66*'Qsol calculation'!T65 -> 0 | Y65: =O66*'Qsol calculation'!U65 -> 0 | AA65: 0 | AB65: 0 | AC65: 0 | AD65: 0 | AE65: 0 | AF65: 0 | AG65: 0 | AH65: 0 | AJ65: =N65*(1+COS(VCP!$N$22))/2 -> 5.344890735 | AL65: 5.344890735 | AM65: 5.344890735 | AN65: 5.344890735 | AO65: 5.344890735 | AP65: 5.344890735 | AQ65: 5.344890735 | AR65: 5.344890735 | AS65: 5.344890735 | AV65: =IF(AL65>VCP!$E$29,AL65*VCP!$E$28,AL65) -> 5.344890735 | AW65: =IF(AM65>VCP!$E$29,AM65*VCP!$E$28,AM65) -> 5.344890735 | AX65: =IF(AN65>VCP!$E$29,AN65*VCP!$E$28,AN65) -> 5.344890735 | AY65: =IF(AO65>VCP!$E$29,AO65*VCP!$E$28,AO65) -> 5.344890735 | AZ65: =IF(AP65>VCP!$E$29,AP65*VCP!$E$28,AP65) -> 5.344890735 | BA65: =IF(AQ65>VCP!$E$29,AQ65*VCP!$E$28,AQ65) -> 5.344890735 | BB65: =IF(AR65>VCP!$E$29,AR65*VCP!$E$28,AR65) -> 5.344890735 | BC65: =IF(AS65>VCP!$E$29,AS65*VCP!$E$28,AS65) -> 5.344890735
A66: 64 | B66: 4 | D66: -0.2 | E66: 74 | F66: 16.6 | G66: 240 | H66: 0 | I66: 0 | L66: =IF($K$2=0,D66*ATAN(0.151977*(E66+8.313659)^0.5)+ATAN(D66+E66)-ATAN(E66-1.676331)+0.00391838*(E66)^(3/2)*ATAN(0.023101*E66)-4.686035,'Weather data'!C66) -> -2.276583405 | M66: =IF(IFERROR(I66/H66,0)>1,0,IFERROR(I66/H66,0)) -> 0 | N66: =IF(M66<=0.22,((1-0.09*M66)*I66),(0.9511-0.1604*M66+(4.388*(M66)^2)-(16.638*(M66)^3)+(12.336*(M66)^(4)))*I66) -> 0 | O66: =I66-N66 -> 0 | R66: =O67*'Qsol calculation'!N66 -> 0 | S66: =O67*'Qsol calculation'!O66 -> 0 | T66: =O67*'Qsol calculation'!P66 -> 0 | U66: =O67*'Qsol calculation'!Q66 -> 0 | V66: =O67*'Qsol calculation'!R66 -> 0 | W66: =O67*'Qsol calculation'!S66 -> 0 | X66: =O67*'Qsol calculation'!T66 -> 0 | Y66: =O67*'Qsol calculation'!U66 -> 0 | AA66: 0 | AB66: 0 | AC66: 0 | AD66: 0 | AE66: 0 | AF66: 0 | AG66: 0 | AH66: 0 | AJ66: =N66*(1+COS(VCP!$N$22))/2 -> 0 | AL66: =AA66+AJ66 -> 0 | AM66: =AB66+AJ66 -> 0 | AN66: =AC66+AJ66 -> 0 | AO66: =AD66+AJ66 -> 0 | AP66: =AE66+AJ66 -> 0 | AQ66: =AF66+AJ66 -> 0 | AR66: =AG66+AJ66 -> 0 | AS66: =AH66+AJ66 -> 0 | AV66: =IF(AL66>VCP!$E$29,AL66*VCP!$E$28,AL66) -> 0 | AW66: =IF(AM66>VCP!$E$29,AM66*VCP!$E$28,AM66) -> 0 | AX66: =IF(AN66>VCP!$E$29,AN66*VCP!$E$28,AN66) -> 0 | AY66: =IF(AO66>VCP!$E$29,AO66*VCP!$E$28,AO66) -> 0 | AZ66: =IF(AP66>VCP!$E$29,AP66*VCP!$E$28,AP66) -> 0 | BA66: =IF(AQ66>VCP!$E$29,AQ66*VCP!$E$28,AQ66) -> 0 | BB66: =IF(AR66>VCP!$E$29,AR66*VCP!$E$28,AR66) -> 0 | BC66: =IF(AS66>VCP!$E$29,AS66*VCP!$E$28,AS66) -> 0
A67: 65 | B67: 3.9 | D67: 0.1 | E67: 76 | F67: 16.3 | G67: 240 | H67: 0 | I67: 0 | L67: =IF($K$2=0,D67*ATAN(0.151977*(E67+8.313659)^0.5)+ATAN(D67+E67)-ATAN(E67-1.676331)+0.00391838*(E67)^(3/2)*ATAN(0.023101*E67)-4.686035,'Weather data'!C67) -> -1.85697677 | M67: 0 | N67: 0 | O67: 0 | R67: =O68*'Qsol calculation'!N67 -> 0 | S67: =O68*'Qsol calculation'!O67 -> 0 | T67: =O68*'Qsol calculation'!P67 -> 0 | U67: =O68*'Qsol calculation'!Q67 -> 0 | V67: =O68*'Qsol calculation'!R67 -> 0 | W67: =O68*'Qsol calculation'!S67 -> 0 | X67: =O68*'Qsol calculation'!T67 -> 0 | Y67: =O68*'Qsol calculation'!U67 -> 0 | AA67: =IF(R67<=0,0,R67) -> 0 | AB67: =IF(S67<=0,0,S67) -> 0 | AC67: =IF(T67<=0,0,T67) -> 0 | AD67: =IF(U67<=0,0,U67) -> 0 | AE67: =IF(V67<=0,0,V67) -> 0 | AF67: =IF(W67<=0,0,W67) -> 0 | AG67: =IF(X67<=0,0,X67) -> 0 | AH67: =IF(Y67<=0,0,Y67) -> 0 | AJ67: =N67*(1+COS(VCP!$N$22))/2 -> 0 | AL67: 0 | AM67: 0 | AN67: 0 | AO67: 0 | AP67: 0 | AQ67: 0 | AR67: 0 | AS67: 0 | AV67: =IF(AL67>VCP!$E$29,AL67*VCP!$E$28,AL67) -> 0 | AW67: =IF(AM67>VCP!$E$29,AM67*VCP!$E$28,AM67) -> 0 | AX67: =IF(AN67>VCP!$E$29,AN67*VCP!$E$28,AN67) -> 0 | AY67: =IF(AO67>VCP!$E$29,AO67*VCP!$E$28,AO67) -> 0 | AZ67: =IF(AP67>VCP!$E$29,AP67*VCP!$E$28,AP67) -> 0 | BA67: =IF(AQ67>VCP!$E$29,AQ67*VCP!$E$28,AQ67) -> 0 | BB67: =IF(AR67>VCP!$E$29,AR67*VCP!$E$28,AR67) -> 0 | BC67: =IF(AS67>VCP!$E$29,AS67*VCP!$E$28,AS67) -> 0
A68: 66 | B68: 3.8 | D68: 0.4 | E68: 78 | F68: 15.9 | G68: 240 | H68: 0 | I68: 0 | L68: =IF($K$2=0,D68*ATAN(0.151977*(E68+8.313659)^0.5)+ATAN(D68+E68)-ATAN(E68-1.676331)+0.00391838*(E68)^(3/2)*ATAN(0.023101*E68)-4.686035,'Weather data'!C68) -> -1.43144797 | M68: 0 | N68: 0 | O68: 0 | R68: =O69*'Qsol calculation'!N68 -> 0 | S68: =O69*'Qsol calculation'!O68 -> 0 | T68: =O69*'Qsol calculation'!P68 -> 0 | U68: =O69*'Qsol calculation'!Q68 -> 0 | V68: =O69*'Qsol calculation'!R68 -> 0 | W68: =O69*'Qsol calculation'!S68 -> 0 | X68: =O69*'Qsol calculation'!T68 -> 0 | Y68: =O69*'Qsol calculation'!U68 -> 0 | AA68: 0 | AB68: 0 | AC68: 0 | AD68: 0 | AE68: 0 | AF68: 0 | AG68: 0 | AH68: 0 | AJ68: =N68*(1+COS(VCP!$N$22))/2 -> 0 | AL68: 0 | AM68: 0 | AN68: 0 | AO68: 0 | AP68: 0 | AQ68: 0 | AR68: 0 | AS68: 0 | AV68: =IF(AL68>VCP!$E$29,AL68*VCP!$E$28,AL68) -> 0 | AW68: =IF(AM68>VCP!$E$29,AM68*VCP!$E$28,AM68) -> 0 | AX68: =IF(AN68>VCP!$E$29,AN68*VCP!$E$28,AN68) -> 0 | AY68: =IF(AO68>VCP!$E$29,AO68*VCP!$E$28,AO68) -> 0 | AZ68: =IF(AP68>VCP!$E$29,AP68*VCP!$E$28,AP68) -> 0 | BA68: =IF(AQ68>VCP!$E$29,AQ68*VCP!$E$28,AQ68) -> 0 | BB68: =IF(AR68>VCP!$E$29,AR68*VCP!$E$28,AR68) -> 0 | BC68: =IF(AS68>VCP!$E$29,AS68*VCP!$E$28,AS68) -> 0
A69: 67 | B69: 3.7 | D69: 0.2 | E69: 78 | F69: 15.4 | G69: 240 | H69: 0 | I69: 0 | L69: =IF($K$2=0,D69*ATAN(0.151977*(E69+8.313659)^0.5)+ATAN(D69+E69)-ATAN(E69-1.676331)+0.00391838*(E69)^(3/2)*ATAN(0.023101*E69)-4.686035,'Weather data'!C69) -> -1.622392478 | M69: 0 | N69: 0 | O69: 0 | R69: =O70*'Qsol calculation'!N69 -> 0 | S69: =O70*'Qsol calculation'!O69 -> 0 | T69: =O70*'Qsol calculation'!P69 -> 0 | U69: =O70*'Qsol calculation'!Q69 -> 0 | V69: =O70*'Qsol calculation'!R69 -> 0 | W69: =O70*'Qsol calculation'!S69 -> 0 | X69: =O70*'Qsol calculation'!T69 -> 0 | Y69: =O70*'Qsol calculation'!U69 -> 0 | AA69: 0 | AB69: 0 | AC69: 0 | AD69: 0 | AE69: 0 | AF69: 0 | AG69: 0 | AH69: 0 | AJ69: =N69*(1+COS(VCP!$N$22))/2 -> 0 | AL69: 0 | AM69: 0 | AN69: 0 | AO69: 0 | AP69: 0 | AQ69: 0 | AR69: 0 | AS69: 0 | AV69: =IF(AL69>VCP!$E$29,AL69*VCP!$E$28,AL69) -> 0 | AW69: =IF(AM69>VCP!$E$29,AM69*VCP!$E$28,AM69) -> 0 | AX69: =IF(AN69>VCP!$E$29,AN69*VCP!$E$28,AN69) -> 0 | AY69: =IF(AO69>VCP!$E$29,AO69*VCP!$E$28,AO69) -> 0 | AZ69: =IF(AP69>VCP!$E$29,AP69*VCP!$E$28,AP69) -> 0 | BA69: =IF(AQ69>VCP!$E$29,AQ69*VCP!$E$28,AQ69) -> 0 | BB69: =IF(AR69>VCP!$E$29,AR69*VCP!$E$28,AR69) -> 0 | BC69: =IF(AS69>VCP!$E$29,AS69*VCP!$E$28,AS69) -> 0
A70: 68 | B70: 3.7 | D70: 0.1 | E70: 78 | F70: 14.9 | G70: 240 | H70: 0 | I70: 0 | L70: =IF($K$2=0,D70*ATAN(0.151977*(E70+8.313659)^0.5)+ATAN(D70+E70)-ATAN(E70-1.676331)+0.00391838*(E70)^(3/2)*ATAN(0.023101*E70)-4.686035,'Weather data'!C70) -> -1.717864795 | M70: 0 | N70: 0 | O70: 0 | R70: =O71*'Qsol calculation'!N70 -> 0 | S70: =O71*'Qsol calculation'!O70 -> 0 | T70: =O71*'Qsol calculation'!P70 -> 0 | U70: =O71*'Qsol calculation'!Q70 -> 0 | V70: =O71*'Qsol calculation'!R70 -> 0 | W70: =O71*'Qsol calculation'!S70 -> 0 | X70: =O71*'Qsol calculation'!T70 -> 0 | Y70: =O71*'Qsol calculation'!U70 -> 0 | AA70: 0 | AB70: 0 | AC70: 0 | AD70: 0 | AE70: 0 | AF70: 0 | AG70: 0 | AH70: 0 | AJ70: =N70*(1+COS(VCP!$N$22))/2 -> 0 | AL70: 0 | AM70: 0 | AN70: 0 | AO70: 0 | AP70: 0 | AQ70: 0 | AR70: 0 | AS70: 0 | AV70: =IF(AL70>VCP!$E$29,AL70*VCP!$E$28,AL70) -> 0 | AW70: =IF(AM70>VCP!$E$29,AM70*VCP!$E$28,AM70) -> 0 | AX70: =IF(AN70>VCP!$E$29,AN70*VCP!$E$28,AN70) -> 0 | AY70: =IF(AO70>VCP!$E$29,AO70*VCP!$E$28,AO70) -> 0 | AZ70: =IF(AP70>VCP!$E$29,AP70*VCP!$E$28,AP70) -> 0 | BA70: =IF(AQ70>VCP!$E$29,AQ70*VCP!$E$28,AQ70) -> 0 | BB70: =IF(AR70>VCP!$E$29,AR70*VCP!$E$28,AR70) -> 0 | BC70: =IF(AS70>VCP!$E$29,AS70*VCP!$E$28,AS70) -> 0
A71: 69 | B71: 3.6 | D71: 0 | E71: 77 | F71: 14.4 | G71: 230 | H71: 0 | I71: 0 | L71: =IF($K$2=0,D71*ATAN(0.151977*(E71+8.313659)^0.5)+ATAN(D71+E71)-ATAN(E71-1.676331)+0.00391838*(E71)^(3/2)*ATAN(0.023101*E71)-4.686035,'Weather data'!C71) -> -1.882935222 | M71: 0 | N71: 0 | O71: 0 | R71: =O72*'Qsol calculation'!N71 -> 0 | S71: =O72*'Qsol calculation'!O71 -> 0 | T71: =O72*'Qsol calculation'!P71 -> 0 | U71: =O72*'Qsol calculation'!Q71 -> 0 | V71: =O72*'Qsol calculation'!R71 -> 0 | W71: =O72*'Qsol calculation'!S71 -> 0 | X71: =O72*'Qsol calculation'!T71 -> 0 | Y71: =O72*'Qsol calculation'!U71 -> 0 | AA71: 0 | AB71: 0 | AC71: 0 | AD71: 0 | AE71: 0 | AF71: 0 | AG71: 0 | AH71: 0 | AJ71: =N71*(1+COS(VCP!$N$22))/2 -> 0 | AL71: 0 | AM71: 0 | AN71: 0 | AO71: 0 | AP71: 0 | AQ71: 0 | AR71: 0 | AS71: 0 | AV71: =IF(AL71>VCP!$E$29,AL71*VCP!$E$28,AL71) -> 0 | AW71: =IF(AM71>VCP!$E$29,AM71*VCP!$E$28,AM71) -> 0 | AX71: =IF(AN71>VCP!$E$29,AN71*VCP!$E$28,AN71) -> 0 | AY71: =IF(AO71>VCP!$E$29,AO71*VCP!$E$28,AO71) -> 0 | AZ71: =IF(AP71>VCP!$E$29,AP71*VCP!$E$28,AP71) -> 0 | BA71: =IF(AQ71>VCP!$E$29,AQ71*VCP!$E$28,AQ71) -> 0 | BB71: =IF(AR71>VCP!$E$29,AR71*VCP!$E$28,AR71) -> 0 | BC71: =IF(AS71>VCP!$E$29,AS71*VCP!$E$28,AS71) -> 0
A72: 70 | B72: 3.4 | D72: -0.1 | E72: 78 | F72: 14.1 | G72: 230 | H72: 0 | I72: 0 | L72: =IF($K$2=0,D72*ATAN(0.151977*(E72+8.313659)^0.5)+ATAN(D72+E72)-ATAN(E72-1.676331)+0.00391838*(E72)^(3/2)*ATAN(0.023101*E72)-4.686035,'Weather data'!C72) -> -1.908809555 | M72: 0 | N72: 0 | O72: 0 | R72: =O73*'Qsol calculation'!N72 -> 0 | S72: =O73*'Qsol calculation'!O72 -> 0 | T72: =O73*'Qsol calculation'!P72 -> 0 | U72: =O73*'Qsol calculation'!Q72 -> 0 | V72: =O73*'Qsol calculation'!R72 -> 0 | W72: =O73*'Qsol calculation'!S72 -> 0 | X72: =O73*'Qsol calculation'!T72 -> 0 | Y72: =O73*'Qsol calculation'!U72 -> 0 | AA72: 0 | AB72: 0 | AC72: 0 | AD72: 0 | AE72: 0 | AF72: 0 | AG72: 0 | AH72: 0 | AJ72: =N72*(1+COS(VCP!$N$22))/2 -> 0 | AL72: 0 | AM72: 0 | AN72: 0 | AO72: 0 | AP72: 0 | AQ72: 0 | AR72: 0 | AS72: 0 | AV72: =IF(AL72>VCP!$E$29,AL72*VCP!$E$28,AL72) -> 0 | AW72: =IF(AM72>VCP!$E$29,AM72*VCP!$E$28,AM72) -> 0 | AX72: =IF(AN72>VCP!$E$29,AN72*VCP!$E$28,AN72) -> 0 | AY72: =IF(AO72>VCP!$E$29,AO72*VCP!$E$28,AO72) -> 0 | AZ72: =IF(AP72>VCP!$E$29,AP72*VCP!$E$28,AP72) -> 0 | BA72: =IF(AQ72>VCP!$E$29,AQ72*VCP!$E$28,AQ72) -> 0 | BB72: =IF(AR72>VCP!$E$29,AR72*VCP!$E$28,AR72) -> 0 | BC72: =IF(AS72>VCP!$E$29,AS72*VCP!$E$28,AS72) -> 0
A73: 71 | B73: 3.3 | D73: -0.1 | E73: 79 | F73: 13.7 | G73: 230 | H73: 0 | I73: 0 | L73: =IF($K$2=0,D73*ATAN(0.151977*(E73+8.313659)^0.5)+ATAN(D73+E73)-ATAN(E73-1.676331)+0.00391838*(E73)^(3/2)*ATAN(0.023101*E73)-4.686035,'Weather data'!C73) -> -1.838851174 | M73: 0 | N73: 0 | O73: 0 | R73: =O74*'Qsol calculation'!N73 -> 0 | S73: =O74*'Qsol calculation'!O73 -> 0 | T73: =O74*'Qsol calculation'!P73 -> 0 | U73: =O74*'Qsol calculation'!Q73 -> 0 | V73: =O74*'Qsol calculation'!R73 -> 0 | W73: =O74*'Qsol calculation'!S73 -> 0 | X73: =O74*'Qsol calculation'!T73 -> 0 | Y73: =O74*'Qsol calculation'!U73 -> 0 | AA73: 0 | AB73: 0 | AC73: 0 | AD73: 0 | AE73: 0 | AF73: 0 | AG73: 0 | AH73: 0 | AJ73: =N73*(1+COS(VCP!$N$22))/2 -> 0 | AL73: 0 | AM73: 0 | AN73: 0 | AO73: 0 | AP73: 0 | AQ73: 0 | AR73: 0 | AS73: 0 | AV73: =IF(AL73>VCP!$E$29,AL73*VCP!$E$28,AL73) -> 0 | AW73: =IF(AM73>VCP!$E$29,AM73*VCP!$E$28,AM73) -> 0 | AX73: =IF(AN73>VCP!$E$29,AN73*VCP!$E$28,AN73) -> 0 | AY73: =IF(AO73>VCP!$E$29,AO73*VCP!$E$28,AO73) -> 0 | AZ73: =IF(AP73>VCP!$E$29,AP73*VCP!$E$28,AP73) -> 0 | BA73: =IF(AQ73>VCP!$E$29,AQ73*VCP!$E$28,AQ73) -> 0 | BB73: =IF(AR73>VCP!$E$29,AR73*VCP!$E$28,AR73) -> 0 | BC73: =IF(AS73>VCP!$E$29,AS73*VCP!$E$28,AS73) -> 0
A74: 72 | B74: 3.1 | D74: -0.1 | E74: 79 | F74: 13.4 | G74: 240 | H74: 0 | I74: 0 | L74: =IF($K$2=0,D74*ATAN(0.151977*(E74+8.313659)^0.5)+ATAN(D74+E74)-ATAN(E74-1.676331)+0.00391838*(E74)^(3/2)*ATAN(0.023101*E74)-4.686035,'Weather data'!C74) -> -1.838851174 | M74: 0 | N74: 0 | O74: 0 | R74: =O75*'Qsol calculation'!N74 -> 0 | S74: =O75*'Qsol calculation'!O74 -> 0 | T74: =O75*'Qsol calculation'!P74 -> 0 | U74: =O75*'Qsol calculation'!Q74 -> 0 | V74: =O75*'Qsol calculation'!R74 -> 0 | W74: =O75*'Qsol calculation'!S74 -> 0 | X74: =O75*'Qsol calculation'!T74 -> 0 | Y74: =O75*'Qsol calculation'!U74 -> 0 | AA74: 0 | AB74: 0 | AC74: 0 | AD74: 0 | AE74: 0 | AF74: 0 | AG74: 0 | AH74: 0 | AJ74: =N74*(1+COS(VCP!$N$22))/2 -> 0 | AL74: 0 | AM74: 0 | AN74: 0 | AO74: 0 | AP74: 0 | AQ74: 0 | AR74: 0 | AS74: 0 | AV74: =IF(AL74>VCP!$E$29,AL74*VCP!$E$28,AL74) -> 0 | AW74: =IF(AM74>VCP!$E$29,AM74*VCP!$E$28,AM74) -> 0 | AX74: =IF(AN74>VCP!$E$29,AN74*VCP!$E$28,AN74) -> 0 | AY74: =IF(AO74>VCP!$E$29,AO74*VCP!$E$28,AO74) -> 0 | AZ74: =IF(AP74>VCP!$E$29,AP74*VCP!$E$28,AP74) -> 0 | BA74: =IF(AQ74>VCP!$E$29,AQ74*VCP!$E$28,AQ74) -> 0 | BB74: =IF(AR74>VCP!$E$29,AR74*VCP!$E$28,AR74) -> 0 | BC74: =IF(AS74>VCP!$E$29,AS74*VCP!$E$28,AS74) -> 0
A75: 73 | B75: 3 | D75: -0.5 | E75: 77 | F75: 13.4 | G75: 240 | H75: 0 | I75: 0 | L75: =IF($K$2=0,D75*ATAN(0.151977*(E75+8.313659)^0.5)+ATAN(D75+E75)-ATAN(E75-1.676331)+0.00391838*(E75)^(3/2)*ATAN(0.023101*E75)-4.686035,'Weather data'!C75) -> -2.35892441 | M75: 0 | N75: 0 | O75: 0 | R75: =O76*'Qsol calculation'!N75 -> 0 | S75: =O76*'Qsol calculation'!O75 -> 0 | T75: =O76*'Qsol calculation'!P75 -> 0 | U75: =O76*'Qsol calculation'!Q75 -> 0 | V75: =O76*'Qsol calculation'!R75 -> 0 | W75: =O76*'Qsol calculation'!S75 -> 0 | X75: =O76*'Qsol calculation'!T75 -> 0 | Y75: =O76*'Qsol calculation'!U75 -> 0 | AA75: 0 | AB75: 0 | AC75: 0 | AD75: 0 | AE75: 0 | AF75: 0 | AG75: 0 | AH75: 0 | AJ75: =N75*(1+COS(VCP!$N$22))/2 -> 0 | AL75: 0 | AM75: 0 | AN75: 0 | AO75: 0 | AP75: 0 | AQ75: 0 | AR75: 0 | AS75: 0 | AV75: =IF(AL75>VCP!$E$29,AL75*VCP!$E$28,AL75) -> 0 | AW75: =IF(AM75>VCP!$E$29,AM75*VCP!$E$28,AM75) -> 0 | AX75: =IF(AN75>VCP!$E$29,AN75*VCP!$E$28,AN75) -> 0 | AY75: =IF(AO75>VCP!$E$29,AO75*VCP!$E$28,AO75) -> 0 | AZ75: =IF(AP75>VCP!$E$29,AP75*VCP!$E$28,AP75) -> 0 | BA75: =IF(AQ75>VCP!$E$29,AQ75*VCP!$E$28,AQ75) -> 0 | BB75: =IF(AR75>VCP!$E$29,AR75*VCP!$E$28,AR75) -> 0 | BC75: =IF(AS75>VCP!$E$29,AS75*VCP!$E$28,AS75) -> 0
A76: 74 | B76: 2.9 | D76: -0.9 | E76: 75 | F76: 13.4 | G76: 240 | H76: 0 | I76: 0 | L76: =IF($K$2=0,D76*ATAN(0.151977*(E76+8.313659)^0.5)+ATAN(D76+E76)-ATAN(E76-1.676331)+0.00391838*(E76)^(3/2)*ATAN(0.023101*E76)-4.686035,'Weather data'!C76) -> -2.871949038 | M76: 0 | N76: 0 | O76: 0 | R76: =O77*'Qsol calculation'!N76 -> 0 | S76: =O77*'Qsol calculation'!O76 -> 0 | T76: =O77*'Qsol calculation'!P76 -> 0 | U76: =O77*'Qsol calculation'!Q76 -> 0 | V76: =O77*'Qsol calculation'!R76 -> 0 | W76: =O77*'Qsol calculation'!S76 -> 0 | X76: =O77*'Qsol calculation'!T76 -> 0 | Y76: =O77*'Qsol calculation'!U76 -> 0 | AA76: 0 | AB76: 0 | AC76: 0 | AD76: 0 | AE76: 0 | AF76: 0 | AG76: 0 | AH76: 0 | AJ76: =N76*(1+COS(VCP!$N$22))/2 -> 0 | AL76: 0 | AM76: 0 | AN76: 0 | AO76: 0 | AP76: 0 | AQ76: 0 | AR76: 0 | AS76: 0 | AV76: =IF(AL76>VCP!$E$29,AL76*VCP!$E$28,AL76) -> 0 | AW76: =IF(AM76>VCP!$E$29,AM76*VCP!$E$28,AM76) -> 0 | AX76: =IF(AN76>VCP!$E$29,AN76*VCP!$E$28,AN76) -> 0 | AY76: =IF(AO76>VCP!$E$29,AO76*VCP!$E$28,AO76) -> 0 | AZ76: =IF(AP76>VCP!$E$29,AP76*VCP!$E$28,AP76) -> 0 | BA76: =IF(AQ76>VCP!$E$29,AQ76*VCP!$E$28,AQ76) -> 0 | BB76: =IF(AR76>VCP!$E$29,AR76*VCP!$E$28,AR76) -> 0 | BC76: =IF(AS76>VCP!$E$29,AS76*VCP!$E$28,AS76) -> 0
A77: 75 | B77: 2.8 | D77: -1.1 | E77: 75 | F77: 13.4 | G77: 230 | H77: 0 | I77: 0 | L77: =IF($K$2=0,D77*ATAN(0.151977*(E77+8.313659)^0.5)+ATAN(D77+E77)-ATAN(E77-1.676331)+0.00391838*(E77)^(3/2)*ATAN(0.023101*E77)-4.686035,'Weather data'!C77) -> -3.061224116 | M77: 0 | N77: 0 | O77: 0 | R77: =O78*'Qsol calculation'!N77 -> 0 | S77: =O78*'Qsol calculation'!O77 -> 0 | T77: =O78*'Qsol calculation'!P77 -> 0 | U77: =O78*'Qsol calculation'!Q77 -> 0 | V77: =O78*'Qsol calculation'!R77 -> 0 | W77: =O78*'Qsol calculation'!S77 -> 0 | X77: =O78*'Qsol calculation'!T77 -> 0 | Y77: =O78*'Qsol calculation'!U77 -> 0 | AA77: 0 | AB77: 0 | AC77: 0 | AD77: 0 | AE77: 0 | AF77: 0 | AG77: 0 | AH77: 0 | AJ77: =N77*(1+COS(VCP!$N$22))/2 -> 0 | AL77: 0 | AM77: 0 | AN77: 0 | AO77: 0 | AP77: 0 | AQ77: 0 | AR77: 0 | AS77: 0 | AV77: =IF(AL77>VCP!$E$29,AL77*VCP!$E$28,AL77) -> 0 | AW77: =IF(AM77>VCP!$E$29,AM77*VCP!$E$28,AM77) -> 0 | AX77: =IF(AN77>VCP!$E$29,AN77*VCP!$E$28,AN77) -> 0 | AY77: =IF(AO77>VCP!$E$29,AO77*VCP!$E$28,AO77) -> 0 | AZ77: =IF(AP77>VCP!$E$29,AP77*VCP!$E$28,AP77) -> 0 | BA77: =IF(AQ77>VCP!$E$29,AQ77*VCP!$E$28,AQ77) -> 0 | BB77: =IF(AR77>VCP!$E$29,AR77*VCP!$E$28,AR77) -> 0 | BC77: =IF(AS77>VCP!$E$29,AS77*VCP!$E$28,AS77) -> 0
A78: 76 | B78: 2.4 | D78: -0.8 | E78: 79 | F78: 12 | G78: 230 | H78: 0 | I78: 0 | L78: =IF($K$2=0,D78*ATAN(0.151977*(E78+8.313659)^0.5)+ATAN(D78+E78)-ATAN(E78-1.676331)+0.00391838*(E78)^(3/2)*ATAN(0.023101*E78)-4.686035,'Weather data'!C78) -> -2.509055966 | M78: 0 | N78: 0 | O78: 0 | R78: =O79*'Qsol calculation'!N78 -> 0 | S78: =O79*'Qsol calculation'!O78 -> 0 | T78: =O79*'Qsol calculation'!P78 -> 0 | U78: =O79*'Qsol calculation'!Q78 -> 0 | V78: =O79*'Qsol calculation'!R78 -> 0 | W78: =O79*'Qsol calculation'!S78 -> 0 | X78: =O79*'Qsol calculation'!T78 -> 0 | Y78: =O79*'Qsol calculation'!U78 -> 0 | AA78: 0 | AB78: 0 | AC78: 0 | AD78: 0 | AE78: 0 | AF78: 0 | AG78: 0 | AH78: 0 | AJ78: =N78*(1+COS(VCP!$N$22))/2 -> 0 | AL78: 0 | AM78: 0 | AN78: 0 | AO78: 0 | AP78: 0 | AQ78: 0 | AR78: 0 | AS78: 0 | AV78: =IF(AL78>VCP!$E$29,AL78*VCP!$E$28,AL78) -> 0 | AW78: =IF(AM78>VCP!$E$29,AM78*VCP!$E$28,AM78) -> 0 | AX78: =IF(AN78>VCP!$E$29,AN78*VCP!$E$28,AN78) -> 0 | AY78: =IF(AO78>VCP!$E$29,AO78*VCP!$E$28,AO78) -> 0 | AZ78: =IF(AP78>VCP!$E$29,AP78*VCP!$E$28,AP78) -> 0 | BA78: =IF(AQ78>VCP!$E$29,AQ78*VCP!$E$28,AQ78) -> 0 | BB78: =IF(AR78>VCP!$E$29,AR78*VCP!$E$28,AR78) -> 0 | BC78: =IF(AS78>VCP!$E$29,AS78*VCP!$E$28,AS78) -> 0
A79: 77 | B79: 2 | D79: -0.4 | E79: 84 | F79: 10.7 | G79: 230 | H79: 0 | I79: 0 | L79: =IF($K$2=0,D79*ATAN(0.151977*(E79+8.313659)^0.5)+ATAN(D79+E79)-ATAN(E79-1.676331)+0.00391838*(E79)^(3/2)*ATAN(0.023101*E79)-4.686035,'Weather data'!C79) -> -1.770873801 | M79: 0 | N79: 0 | O79: 0 | R79: =O80*'Qsol calculation'!N79 -> 0 | S79: =O80*'Qsol calculation'!O79 -> 0 | T79: =O80*'Qsol calculation'!P79 -> 0 | U79: =O80*'Qsol calculation'!Q79 -> 0 | V79: =O80*'Qsol calculation'!R79 -> 0 | W79: =O80*'Qsol calculation'!S79 -> 0 | X79: =O80*'Qsol calculation'!T79 -> 0 | Y79: =O80*'Qsol calculation'!U79 -> 0 | AA79: 0 | AB79: 0 | AC79: 0 | AD79: 0 | AE79: 0 | AF79: 0 | AG79: 0 | AH79: 0 | AJ79: =N79*(1+COS(VCP!$N$22))/2 -> 0 | AL79: 0 | AM79: 0 | AN79: 0 | AO79: 0 | AP79: 0 | AQ79: 0 | AR79: 0 | AS79: 0 | AV79: =IF(AL79>VCP!$E$29,AL79*VCP!$E$28,AL79) -> 0 | AW79: =IF(AM79>VCP!$E$29,AM79*VCP!$E$28,AM79) -> 0 | AX79: =IF(AN79>VCP!$E$29,AN79*VCP!$E$28,AN79) -> 0 | AY79: =IF(AO79>VCP!$E$29,AO79*VCP!$E$28,AO79) -> 0 | AZ79: =IF(AP79>VCP!$E$29,AP79*VCP!$E$28,AP79) -> 0 | BA79: =IF(AQ79>VCP!$E$29,AQ79*VCP!$E$28,AQ79) -> 0 | BB79: =IF(AR79>VCP!$E$29,AR79*VCP!$E$28,AR79) -> 0 | BC79: =IF(AS79>VCP!$E$29,AS79*VCP!$E$28,AS79) -> 0
A80: 78 | B80: 1.6 | D80: 0.1 | E80: 90 | F80: 9.3 | G80: 230 | H80: 0 | I80: 0 | L80: =IF($K$2=0,D80*ATAN(0.151977*(E80+8.313659)^0.5)+ATAN(D80+E80)-ATAN(E80-1.676331)+0.00391838*(E80)^(3/2)*ATAN(0.023101*E80)-4.686035,'Weather data'!C80) -> -0.8319821923 | M80: 0 | N80: 0 | O80: 0 | R80: =O81*'Qsol calculation'!N80 -> 0 | S80: =O81*'Qsol calculation'!O80 -> 0 | T80: =O81*'Qsol calculation'!P80 -> 0 | U80: =O81*'Qsol calculation'!Q80 -> 0 | V80: =O81*'Qsol calculation'!R80 -> 0 | W80: =O81*'Qsol calculation'!S80 -> 0 | X80: =O81*'Qsol calculation'!T80 -> 0 | Y80: =O81*'Qsol calculation'!U80 -> 0 | AA80: 0 | AB80: 0 | AC80: 0 | AD80: 0 | AE80: 0 | AF80: 0 | AG80: 0 | AH80: 0 | AJ80: =N80*(1+COS(VCP!$N$22))/2 -> 0 | AL80: 0 | AM80: 0 | AN80: 0 | AO80: 0 | AP80: 0 | AQ80: 0 | AR80: 0 | AS80: 0 | AV80: =IF(AL80>VCP!$E$29,AL80*VCP!$E$28,AL80) -> 0 | AW80: =IF(AM80>VCP!$E$29,AM80*VCP!$E$28,AM80) -> 0 | AX80: =IF(AN80>VCP!$E$29,AN80*VCP!$E$28,AN80) -> 0 | AY80: =IF(AO80>VCP!$E$29,AO80*VCP!$E$28,AO80) -> 0 | AZ80: =IF(AP80>VCP!$E$29,AP80*VCP!$E$28,AP80) -> 0 | BA80: =IF(AQ80>VCP!$E$29,AQ80*VCP!$E$28,AQ80) -> 0 | BB80: =IF(AR80>VCP!$E$29,AR80*VCP!$E$28,AR80) -> 0 | BC80: =IF(AS80>VCP!$E$29,AS80*VCP!$E$28,AS80) -> 0
A81: 79 | B81: 2.1 | D81: -0.4 | E81: 84 | F81: 8.9 | G81: 230 | H81: 0 | I81: 0 | L81: =IF($K$2=0,D81*ATAN(0.151977*(E81+8.313659)^0.5)+ATAN(D81+E81)-ATAN(E81-1.676331)+0.00391838*(E81)^(3/2)*ATAN(0.023101*E81)-4.686035,'Weather data'!C81) -> -1.770873801 | M81: 0 | N81: 0 | O81: 0 | R81: =O82*'Qsol calculation'!N81 -> -0.01569661351 | S81: =O82*'Qsol calculation'!O81 -> -0.008361950365 | T81: =O82*'Qsol calculation'!P81 -> -0.01701197366 | U81: =O82*'Qsol calculation'!Q81 -> 0.00518639005 | V81: =O82*'Qsol calculation'!R81 -> 0.002140932901 | W81: =O82*'Qsol calculation'!S81 -> -0.00518639005 | X81: =O82*'Qsol calculation'!T81 -> 0.01701197366 | Y81: =O82*'Qsol calculation'!U81 -> 0.01569661351 | AA81: 0 | AB81: 0 | AC81: 0 | AD81: 0.00518639005 | AE81: 0.002140932901 | AF81: 0 | AG81: 0.01701197366 | AH81: 0.01569661351 | AJ81: =N81*(1+COS(VCP!$N$22))/2 -> 0 | AL81: 0 | AM81: 0 | AN81: 0 | AO81: 0.00518639005 | AP81: 0.002140932901 | AQ81: 0 | AR81: 0.01701197366 | AS81: 0.01569661351 | AV81: =IF(AL81>VCP!$E$29,AL81*VCP!$E$28,AL81) -> 0 | AW81: =IF(AM81>VCP!$E$29,AM81*VCP!$E$28,AM81) -> 0 | AX81: =IF(AN81>VCP!$E$29,AN81*VCP!$E$28,AN81) -> 0 | AY81: =IF(AO81>VCP!$E$29,AO81*VCP!$E$28,AO81) -> 0.00518639005 | AZ81: =IF(AP81>VCP!$E$29,AP81*VCP!$E$28,AP81) -> 0.002140932901 | BA81: =IF(AQ81>VCP!$E$29,AQ81*VCP!$E$28,AQ81) -> 0 | BB81: =IF(AR81>VCP!$E$29,AR81*VCP!$E$28,AR81) -> 0.01701197366 | BC81: =IF(AS81>VCP!$E$29,AS81*VCP!$E$28,AS81) -> 0.01569661351
A82: 80 | B82: 2.5 | D82: -0.8 | E82: 78 | F82: 8.6 | G82: 230 | H82: 5 | I82: 1 | L82: =IF($K$2=0,D82*ATAN(0.151977*(E82+8.313659)^0.5)+ATAN(D82+E82)-ATAN(E82-1.676331)+0.00391838*(E82)^(3/2)*ATAN(0.023101*E82)-4.686035,'Weather data'!C82) -> -2.577117555 | M82: 0.2 | N82: 0.982 | O82: 0.018 | R82: =O83*'Qsol calculation'!N82 -> -2.047037349 | S82: =O83*'Qsol calculation'!O82 -> -1.722771639 | T82: =O83*'Qsol calculation'!P82 -> -2.665657499 | U82: =O83*'Qsol calculation'!Q82 -> 0.2292904831 | V82: =O83*'Qsol calculation'!R82 -> 0.1331395316 | W82: =O83*'Qsol calculation'!S82 -> -0.2292904831 | X82: =O83*'Qsol calculation'!T82 -> 2.665657499 | Y82: =O83*'Qsol calculation'!U82 -> 2.047037349 | AA82: 0 | AB82: 0 | AC82: 0 | AD82: 0.2292904831 | AE82: 0.1331395316 | AF82: 0 | AG82: 2.665657499 | AH82: 2.047037349 | AJ82: =N82*(1+COS(VCP!$N$22))/2 -> 0.7644050009 | AL82: 0.7644050009 | AM82: 0.7644050009 | AN82: 0.7644050009 | AO82: 0.9936954839 | AP82: 0.8975445325 | AQ82: 0.7644050009 | AR82: 3.4300625 | AS82: 2.81144235 | AV82: =IF(AL82>VCP!$E$29,AL82*VCP!$E$28,AL82) -> 0.7644050009 | AW82: =IF(AM82>VCP!$E$29,AM82*VCP!$E$28,AM82) -> 0.7644050009 | AX82: =IF(AN82>VCP!$E$29,AN82*VCP!$E$28,AN82) -> 0.7644050009 | AY82: =IF(AO82>VCP!$E$29,AO82*VCP!$E$28,AO82) -> 0.9936954839 | AZ82: =IF(AP82>VCP!$E$29,AP82*VCP!$E$28,AP82) -> 0.8975445325 | BA82: =IF(AQ82>VCP!$E$29,AQ82*VCP!$E$28,AQ82) -> 0.7644050009 | BB82: =IF(AR82>VCP!$E$29,AR82*VCP!$E$28,AR82) -> 3.4300625 | BC82: =IF(AS82>VCP!$E$29,AS82*VCP!$E$28,AS82) -> 2.81144235
A83: 81 | B83: 3 | D83: -1.1 | E83: 74 | F83: 8.2 | G83: 320 | H83: 102 | I83: 34 | L83: =IF($K$2=0,D83*ATAN(0.151977*(E83+8.313659)^0.5)+ATAN(D83+E83)-ATAN(E83-1.676331)+0.00391838*(E83)^(3/2)*ATAN(0.023101*E83)-4.686035,'Weather data'!C83) -> -3.125744053 | M83: 0.3333333333 | N83: 31.32294074 | O83: 2.677059259 | R83: =O84*'Qsol calculation'!N83 -> -12.74767577 | S83: =O84*'Qsol calculation'!O83 -> -16.71104812 | T83: =O84*'Qsol calculation'!P83 -> -20.83046342 | U83: =O84*'Qsol calculation'!Q83 -> -2.802527465 | V83: =O84*'Qsol calculation'!R83 -> -0.1725092419 | W83: =O84*'Qsol calculation'!S83 -> 2.802527465 | X83: =O84*'Qsol calculation'!T83 -> 20.83046342 | Y83: =O84*'Qsol calculation'!U83 -> 12.74767577 | AA83: 0 | AB83: 0 | AC83: 0 | AD83: 0 | AE83: 0 | AF83: 2.802527465 | AG83: 20.83046342 | AH83: 12.74767577 | AJ83: =N83*(1+COS(VCP!$N$22))/2 -> 24.38229383 | AL83: 24.38229383 | AM83: 24.38229383 | AN83: 24.38229383 | AO83: 24.38229383 | AP83: 24.38229383 | AQ83: 27.1848213 | AR83: 45.21275725 | AS83: 37.1299696 | AV83: =IF(AL83>VCP!$E$29,AL83*VCP!$E$28,AL83) -> 24.38229383 | AW83: =IF(AM83>VCP!$E$29,AM83*VCP!$E$28,AM83) -> 24.38229383 | AX83: =IF(AN83>VCP!$E$29,AN83*VCP!$E$28,AN83) -> 24.38229383 | AY83: =IF(AO83>VCP!$E$29,AO83*VCP!$E$28,AO83) -> 24.38229383 | AZ83: =IF(AP83>VCP!$E$29,AP83*VCP!$E$28,AP83) -> 24.38229383 | BA83: =IF(AQ83>VCP!$E$29,AQ83*VCP!$E$28,AQ83) -> 27.1848213 | BB83: =IF(AR83>VCP!$E$29,AR83*VCP!$E$28,AR83) -> 13.56382718 | BC83: =IF(AS83>VCP!$E$29,AS83*VCP!$E$28,AS83) -> 37.1299696
A84: 82 | B84: 3.5 | D84: -1.2 | E84: 70 | F84: 7.9 | G84: 320 | H84: 208 | I84: 92 | L84: =IF($K$2=0,D84*ATAN(0.151977*(E84+8.313659)^0.5)+ATAN(D84+E84)-ATAN(E84-1.676331)+0.00391838*(E84)^(3/2)*ATAN(0.023101*E84)-4.686035,'Weather data'!C84) -> -3.469909499 | M84: 0.4423076923 | N84: 70.93550555 | O84: 21.06449445 | R84: =O85*'Qsol calculation'!N84 -> -18.47265553 | S84: =O85*'Qsol calculation'!O84 -> -41.27703586 | T84: =O85*'Qsol calculation'!P84 -> -42.24941195 | U84: =O85*'Qsol calculation'!Q84 -> -16.12513197 | V84: =O85*'Qsol calculation'!R84 -> -2.323940543 | W84: =O85*'Qsol calculation'!S84 -> 16.12513197 | X84: =O85*'Qsol calculation'!T84 -> 42.24941195 | Y84: =O85*'Qsol calculation'!U84 -> 18.47265553 | AA84: 0 | AB84: 0 | AC84: 0 | AD84: 0 | AE84: 0 | AF84: 16.12513197 | AG84: 42.24941195 | AH84: 18.47265553 | AJ84: =N84*(1+COS(VCP!$N$22))/2 -> 55.2173678 | AL84: 55.2173678 | AM84: 55.2173678 | AN84: 55.2173678 | AO84: 55.2173678 | AP84: 55.2173678 | AQ84: 71.34249977 | AR84: 97.46677975 | AS84: 73.69002333 | AV84: =IF(AL84>VCP!$E$29,AL84*VCP!$E$28,AL84) -> 16.56521034 | AW84: =IF(AM84>VCP!$E$29,AM84*VCP!$E$28,AM84) -> 16.56521034 | AX84: =IF(AN84>VCP!$E$29,AN84*VCP!$E$28,AN84) -> 16.56521034 | AY84: =IF(AO84>VCP!$E$29,AO84*VCP!$E$28,AO84) -> 16.56521034 | AZ84: =IF(AP84>VCP!$E$29,AP84*VCP!$E$28,AP84) -> 16.56521034 | BA84: =IF(AQ84>VCP!$E$29,AQ84*VCP!$E$28,AQ84) -> 21.40274993 | BB84: =IF(AR84>VCP!$E$29,AR84*VCP!$E$28,AR84) -> 29.24003392 | BC84: =IF(AS84>VCP!$E$29,AS84*VCP!$E$28,AS84) -> 22.107007
A85: 83 | B85: 4 | D85: -1.1 | E85: 68 | F85: 7.5 | G85: 320 | H85: 268 | I85: 134 | L85: =IF($K$2=0,D85*ATAN(0.151977*(E85+8.313659)^0.5)+ATAN(D85+E85)-ATAN(E85-1.676331)+0.00391838*(E85)^(3/2)*ATAN(0.023101*E85)-4.686035,'Weather data'!C85) -> -3.497884712 | M85: 0.5 | N85: 88.3261 | O85: 45.6739 | R85: =O86*'Qsol calculation'!N85 -> -8.900858968 | S85: =O86*'Qsol calculation'!O85 -> -48.87183389 | T85: =O86*'Qsol calculation'!P85 -> -40.85146289 | U85: =O86*'Qsol calculation'!Q85 -> -28.26374742 | V85: =O86*'Qsol calculation'!R85 -> -3.811413394 | W85: =O86*'Qsol calculation'!S85 -> 28.26374742 | X85: =O86*'Qsol calculation'!T85 -> 40.85146289 | Y85: =O86*'Qsol calculation'!U85 -> 8.900858968 | AA85: 0 | AB85: 0 | AC85: 0 | AD85: 0 | AE85: 0 | AF85: 28.26374742 | AG85: 40.85146289 | AH85: 8.900858968 | AJ85: =N85*(1+COS(VCP!$N$22))/2 -> 68.75449343 | AL85: 68.75449343 | AM85: 68.75449343 | AN85: 68.75449343 | AO85: 68.75449343 | AP85: 68.75449343 | AQ85: 97.01824085 | AR85: 109.6059563 | AS85: 77.6553524 | AV85: =IF(AL85>VCP!$E$29,AL85*VCP!$E$28,AL85) -> 20.62634803 | AW85: =IF(AM85>VCP!$E$29,AM85*VCP!$E$28,AM85) -> 20.62634803 | AX85: =IF(AN85>VCP!$E$29,AN85*VCP!$E$28,AN85) -> 20.62634803 | AY85: =IF(AO85>VCP!$E$29,AO85*VCP!$E$28,AO85) -> 20.62634803 | AZ85: =IF(AP85>VCP!$E$29,AP85*VCP!$E$28,AP85) -> 20.62634803 | BA85: =IF(AQ85>VCP!$E$29,AQ85*VCP!$E$28,AQ85) -> 29.10547225 | BB85: =IF(AR85>VCP!$E$29,AR85*VCP!$E$28,AR85) -> 32.8817869 | BC85: =IF(AS85>VCP!$E$29,AS85*VCP!$E$28,AS85) -> 23.29660572
A86: 84 | B86: 4.5 | D86: -0.9 | E86: 67 | F86: 7.2 | G86: 310 | H86: 280 | I86: 142 | L86: =IF($K$2=0,D86*ATAN(0.151977*(E86+8.313659)^0.5)+ATAN(D86+E86)-ATAN(E86-1.676331)+0.00391838*(E86)^(3/2)*ATAN(0.023101*E86)-4.686035,'Weather data'!C86) -> -3.372876689 | M86: 0.5071428571 | N86: 91.47210388 | O86: 50.52789612 | R86: =O87*'Qsol calculation'!N86 -> 2.172025498 | S86: =O87*'Qsol calculation'!O86 -> -33.17039654 | T86: =O87*'Qsol calculation'!P86 -> -21.91915837 | U86: =O87*'Qsol calculation'!Q86 -> -24.99086629 | V86: =O87*'Qsol calculation'!R86 -> -2.714950427 | W86: =O87*'Qsol calculation'!S86 -> 24.99086629 | X86: =O87*'Qsol calculation'!T86 -> 21.91915837 | Y86: =O87*'Qsol calculation'!U86 -> -2.172025498 | AA86: 2.172025498 | AB86: 0 | AC86: 0 | AD86: 0 | AE86: 0 | AF86: 24.99086629 | AG86: 21.91915837 | AH86: 0 | AJ86: =N86*(1+COS(VCP!$N$22))/2 -> 71.20339475 | AL86: 73.37542025 | AM86: 71.20339475 | AN86: 71.20339475 | AO86: 71.20339475 | AP86: 71.20339475 | AQ86: 96.19426104 | AR86: 93.12255313 | AS86: 71.20339475 | AV86: =IF(AL86>VCP!$E$29,AL86*VCP!$E$28,AL86) -> 22.01262608 | AW86: =IF(AM86>VCP!$E$29,AM86*VCP!$E$28,AM86) -> 21.36101843 | AX86: =IF(AN86>VCP!$E$29,AN86*VCP!$E$28,AN86) -> 21.36101843 | AY86: =IF(AO86>VCP!$E$29,AO86*VCP!$E$28,AO86) -> 21.36101843 | AZ86: =IF(AP86>VCP!$E$29,AP86*VCP!$E$28,AP86) -> 21.36101843 | BA86: =IF(AQ86>VCP!$E$29,AQ86*VCP!$E$28,AQ86) -> 28.85827831 | BB86: =IF(AR86>VCP!$E$29,AR86*VCP!$E$28,AR86) -> 27.93676594 | BC86: =IF(AS86>VCP!$E$29,AS86*VCP!$E$28,AS86) -> 21.36101843
A87: 85 | B87: 4.3 | D87: -0.9 | E87: 68 | F87: 7.2 | G87: 310 | H87: 241 | I87: 115 | L87: =IF($K$2=0,D87*ATAN(0.151977*(E87+8.313659)^0.5)+ATAN(D87+E87)-ATAN(E87-1.676331)+0.00391838*(E87)^(3/2)*ATAN(0.023101*E87)-4.686035,'Weather data'!C87) -> -3.31279246 | M87: 0.4771784232 | N87: 81.13450258 | O87: 33.86549742 | R87: =O88*'Qsol calculation'!N87 -> 2.351377228 | S87: =O88*'Qsol calculation'!O87 -> -7.363415847 | T87: =O88*'Qsol calculation'!P87 -> -3.544046495 | U87: =O88*'Qsol calculation'!Q87 -> -6.869396061 | V87: =O88*'Qsol calculation'!R87 -> -0.5075498744 | W87: =O88*'Qsol calculation'!S87 -> 6.869396061 | X87: =O88*'Qsol calculation'!T87 -> 3.544046495 | Y87: =O88*'Qsol calculation'!U87 -> -2.351377228 | AA87: 2.351377228 | AB87: 0 | AC87: 0 | AD87: 0 | AE87: 0 | AF87: 6.869396061 | AG87: 3.544046495 | AH87: 0 | AJ87: =N87*(1+COS(VCP!$N$22))/2 -> 63.15643535 | AL87: 65.50781258 | AM87: 63.15643535 | AN87: 63.15643535 | AO87: 63.15643535 | AP87: 63.15643535 | AQ87: 70.02583142 | AR87: 66.70048185 | AS87: 63.15643535 | AV87: =IF(AL87>VCP!$E$29,AL87*VCP!$E$28,AL87) -> 19.65234377 | AW87: =IF(AM87>VCP!$E$29,AM87*VCP!$E$28,AM87) -> 18.94693061 | AX87: =IF(AN87>VCP!$E$29,AN87*VCP!$E$28,AN87) -> 18.94693061 | AY87: =IF(AO87>VCP!$E$29,AO87*VCP!$E$28,AO87) -> 18.94693061 | AZ87: =IF(AP87>VCP!$E$29,AP87*VCP!$E$28,AP87) -> 18.94693061 | BA87: =IF(AQ87>VCP!$E$29,AQ87*VCP!$E$28,AQ87) -> 21.00774942 | BB87: =IF(AR87>VCP!$E$29,AR87*VCP!$E$28,AR87) -> 20.01014455 | BC87: =IF(AS87>VCP!$E$29,AS87*VCP!$E$28,AS87) -> 18.94693061
A88: 86 | B88: 4 | D88: -0.8 | E88: 70 | F88: 7.2 | G88: 310 | H88: 155 | I88: 59 | L88: =IF($K$2=0,D88*ATAN(0.151977*(E88+8.313659)^0.5)+ATAN(D88+E88)-ATAN(E88-1.676331)+0.00391838*(E88)^(3/2)*ATAN(0.023101*E88)-4.686035,'Weather data'!C88) -> -3.097248094 | M88: 0.3806451613 | N88: 51.16364726 | O88: 7.83635274 | R88: =O89*'Qsol calculation'!N88 -> 0.5455389803 | S88: =O89*'Qsol calculation'!O88 -> -0.8999566478 | T88: =O89*'Qsol calculation'!P88 -> -0.2506111361 | U88: =O89*'Qsol calculation'!Q88 -> -1.022119761 | V88: =O89*'Qsol calculation'!R88 -> -0.03204374792 | W88: =O89*'Qsol calculation'!S88 -> 1.022119761 | X88: =O89*'Qsol calculation'!T88 -> 0.2506111361 | Y88: =O89*'Qsol calculation'!U88 -> -0.5455389803 | AA88: 0.5455389803 | AB88: 0 | AC88: 0 | AD88: 0 | AE88: 0 | AF88: 1.022119761 | AG88: 0.2506111361 | AH88: 0 | AJ88: =N88*(1+COS(VCP!$N$22))/2 -> 39.82662712 | AL88: 40.3721661 | AM88: 39.82662712 | AN88: 39.82662712 | AO88: 39.82662712 | AP88: 39.82662712 | AQ88: 40.84874688 | AR88: 40.07723825 | AS88: 39.82662712 | AV88: =IF(AL88>VCP!$E$29,AL88*VCP!$E$28,AL88) -> 12.11164983 | AW88: =IF(AM88>VCP!$E$29,AM88*VCP!$E$28,AM88) -> 39.82662712 | AX88: =IF(AN88>VCP!$E$29,AN88*VCP!$E$28,AN88) -> 39.82662712 | AY88: =IF(AO88>VCP!$E$29,AO88*VCP!$E$28,AO88) -> 39.82662712 | AZ88: =IF(AP88>VCP!$E$29,AP88*VCP!$E$28,AP88) -> 39.82662712 | BA88: =IF(AQ88>VCP!$E$29,AQ88*VCP!$E$28,AQ88) -> 12.25462406 | BB88: =IF(AR88>VCP!$E$29,AR88*VCP!$E$28,AR88) -> 12.02317148 | BC88: =IF(AS88>VCP!$E$29,AS88*VCP!$E$28,AS88) -> 39.82662712
A89: 87 | B89: 3.8 | D89: -0.6 | E89: 73 | F89: 7.2 | G89: 290 | H89: 35 | I89: 12 | L89: =IF($K$2=0,D89*ATAN(0.151977*(E89+8.313659)^0.5)+ATAN(D89+E89)-ATAN(E89-1.676331)+0.00391838*(E89)^(3/2)*ATAN(0.023101*E89)-4.686035,'Weather data'!C89) -> -2.719258363 | M89: 0.3428571429 | N89: 10.94180006 | O89: 1.058199935 | R89: =O90*'Qsol calculation'!N89 -> 0 | S89: =O90*'Qsol calculation'!O89 -> 0 | T89: =O90*'Qsol calculation'!P89 -> 0 | U89: =O90*'Qsol calculation'!Q89 -> 0 | V89: =O90*'Qsol calculation'!R89 -> 0 | W89: =O90*'Qsol calculation'!S89 -> 0 | X89: =O90*'Qsol calculation'!T89 -> 0 | Y89: =O90*'Qsol calculation'!U89 -> 0 | AA89: 0 | AB89: 0 | AC89: 0 | AD89: 0 | AE89: 0 | AF89: 0 | AG89: 0 | AH89: 0 | AJ89: =N89*(1+COS(VCP!$N$22))/2 -> 8.517277686 | AL89: 8.517277686 | AM89: 8.517277686 | AN89: 8.517277686 | AO89: 8.517277686 | AP89: 8.517277686 | AQ89: 8.517277686 | AR89: 8.517277686 | AS89: 8.517277686 | AV89: =IF(AL89>VCP!$E$29,AL89*VCP!$E$28,AL89) -> 8.517277686 | AW89: =IF(AM89>VCP!$E$29,AM89*VCP!$E$28,AM89) -> 8.517277686 | AX89: =IF(AN89>VCP!$E$29,AN89*VCP!$E$28,AN89) -> 8.517277686 | AY89: =IF(AO89>VCP!$E$29,AO89*VCP!$E$28,AO89) -> 8.517277686 | AZ89: =IF(AP89>VCP!$E$29,AP89*VCP!$E$28,AP89) -> 8.517277686 | BA89: =IF(AQ89>VCP!$E$29,AQ89*VCP!$E$28,AQ89) -> 8.517277686 | BB89: =IF(AR89>VCP!$E$29,AR89*VCP!$E$28,AR89) -> 8.517277686 | BC89: =IF(AS89>VCP!$E$29,AS89*VCP!$E$28,AS89) -> 8.517277686
A90: 88 | B90: 3.2 | D90: -0.6 | E90: 76 | F90: 6.9 | G90: 290 | H90: 0 | I90: 0 | L90: =IF($K$2=0,D90*ATAN(0.151977*(E90+8.313659)^0.5)+ATAN(D90+E90)-ATAN(E90-1.676331)+0.00391838*(E90)^(3/2)*ATAN(0.023101*E90)-4.686035,'Weather data'!C90) -> -2.521412781 | M90: 0 | N90: 0 | O90: 0 | R90: =O91*'Qsol calculation'!N90 -> 0 | S90: =O91*'Qsol calculation'!O90 -> 0 | T90: =O91*'Qsol calculation'!P90 -> 0 | U90: =O91*'Qsol calculation'!Q90 -> 0 | V90: =O91*'Qsol calculation'!R90 -> 0 | W90: =O91*'Qsol calculation'!S90 -> 0 | X90: =O91*'Qsol calculation'!T90 -> 0 | Y90: =O91*'Qsol calculation'!U90 -> 0 | AA90: 0 | AB90: 0 | AC90: 0 | AD90: 0 | AE90: 0 | AF90: 0 | AG90: 0 | AH90: 0 | AJ90: =N90*(1+COS(VCP!$N$22))/2 -> 0 | AL90: 0 | AM90: 0 | AN90: 0 | AO90: 0 | AP90: 0 | AQ90: 0 | AR90: 0 | AS90: 0 | AV90: =IF(AL90>VCP!$E$29,AL90*VCP!$E$28,AL90) -> 0 | AW90: =IF(AM90>VCP!$E$29,AM90*VCP!$E$28,AM90) -> 0 | AX90: =IF(AN90>VCP!$E$29,AN90*VCP!$E$28,AN90) -> 0 | AY90: =IF(AO90>VCP!$E$29,AO90*VCP!$E$28,AO90) -> 0 | AZ90: =IF(AP90>VCP!$E$29,AP90*VCP!$E$28,AP90) -> 0 | BA90: =IF(AQ90>VCP!$E$29,AQ90*VCP!$E$28,AQ90) -> 0 | BB90: =IF(AR90>VCP!$E$29,AR90*VCP!$E$28,AR90) -> 0 | BC90: =IF(AS90>VCP!$E$29,AS90*VCP!$E$28,AS90) -> 0
A91: 89 | B91: 2.5 | D91: -0.6 | E91: 80 | F91: 6.5 | G91: 290 | H91: 0 | I91: 0 | L91: =IF($K$2=0,D91*ATAN(0.151977*(E91+8.313659)^0.5)+ATAN(D91+E91)-ATAN(E91-1.676331)+0.00391838*(E91)^(3/2)*ATAN(0.023101*E91)-4.686035,'Weather data'!C91) -> -2.248318107 | M91: 0 | N91: 0 | O91: 0 | R91: =O92*'Qsol calculation'!N91 -> 0 | S91: =O92*'Qsol calculation'!O91 -> 0 | T91: =O92*'Qsol calculation'!P91 -> 0 | U91: =O92*'Qsol calculation'!Q91 -> 0 | V91: =O92*'Qsol calculation'!R91 -> 0 | W91: =O92*'Qsol calculation'!S91 -> 0 | X91: =O92*'Qsol calculation'!T91 -> 0 | Y91: =O92*'Qsol calculation'!U91 -> 0 | AA91: 0 | AB91: 0 | AC91: 0 | AD91: 0 | AE91: 0 | AF91: 0 | AG91: 0 | AH91: 0 | AJ91: =N91*(1+COS(VCP!$N$22))/2 -> 0 | AL91: 0 | AM91: 0 | AN91: 0 | AO91: 0 | AP91: 0 | AQ91: 0 | AR91: 0 | AS91: 0 | AV91: =IF(AL91>VCP!$E$29,AL91*VCP!$E$28,AL91) -> 0 | AW91: =IF(AM91>VCP!$E$29,AM91*VCP!$E$28,AM91) -> 0 | AX91: =IF(AN91>VCP!$E$29,AN91*VCP!$E$28,AN91) -> 0 | AY91: =IF(AO91>VCP!$E$29,AO91*VCP!$E$28,AO91) -> 0 | AZ91: =IF(AP91>VCP!$E$29,AP91*VCP!$E$28,AP91) -> 0 | BA91: =IF(AQ91>VCP!$E$29,AQ91*VCP!$E$28,AQ91) -> 0 | BB91: =IF(AR91>VCP!$E$29,AR91*VCP!$E$28,AR91) -> 0 | BC91: =IF(AS91>VCP!$E$29,AS91*VCP!$E$28,AS91) -> 0
A92: 90 | B92: 1.9 | D92: -0.4 | E92: 84 | F92: 6.2 | G92: 280 | H92: 0 | I92: 0 | L92: =IF($K$2=0,D92*ATAN(0.151977*(E92+8.313659)^0.5)+ATAN(D92+E92)-ATAN(E92-1.676331)+0.00391838*(E92)^(3/2)*ATAN(0.023101*E92)-4.686035,'Weather data'!C92) -> -1.770873801 | M92: 0 | N92: 0 | O92: 0 | R92: =O93*'Qsol calculation'!N92 -> 0 | S92: =O93*'Qsol calculation'!O92 -> 0 | T92: =O93*'Qsol calculation'!P92 -> 0 | U92: =O93*'Qsol calculation'!Q92 -> 0 | V92: =O93*'Qsol calculation'!R92 -> 0 | W92: =O93*'Qsol calculation'!S92 -> 0 | X92: =O93*'Qsol calculation'!T92 -> 0 | Y92: =O93*'Qsol calculation'!U92 -> 0 | AA92: 0 | AB92: 0 | AC92: 0 | AD92: 0 | AE92: 0 | AF92: 0 | AG92: 0 | AH92: 0 | AJ92: =N92*(1+COS(VCP!$N$22))/2 -> 0 | AL92: 0 | AM92: 0 | AN92: 0 | AO92: 0 | AP92: 0 | AQ92: 0 | AR92: 0 | AS92: 0 | AV92: =IF(AL92>VCP!$E$29,AL92*VCP!$E$28,AL92) -> 0 | AW92: =IF(AM92>VCP!$E$29,AM92*VCP!$E$28,AM92) -> 0 | AX92: =IF(AN92>VCP!$E$29,AN92*VCP!$E$28,AN92) -> 0 | AY92: =IF(AO92>VCP!$E$29,AO92*VCP!$E$28,AO92) -> 0 | AZ92: =IF(AP92>VCP!$E$29,AP92*VCP!$E$28,AP92) -> 0 | BA92: =IF(AQ92>VCP!$E$29,AQ92*VCP!$E$28,AQ92) -> 0 | BB92: =IF(AR92>VCP!$E$29,AR92*VCP!$E$28,AR92) -> 0 | BC92: =IF(AS92>VCP!$E$29,AS92*VCP!$E$28,AS92) -> 0
A93: 91 | B93: 1.8 | D93: -0.8 | E93: 82 | F93: 5.8 | G93: 280 | H93: 0 | I93: 0 | L93: =IF($K$2=0,D93*ATAN(0.151977*(E93+8.313659)^0.5)+ATAN(D93+E93)-ATAN(E93-1.676331)+0.00391838*(E93)^(3/2)*ATAN(0.023101*E93)-4.686035,'Weather data'!C93) -> -2.300970855 | M93: 0 | N93: 0 | O93: 0 | R93: =O94*'Qsol calculation'!N93 -> 0 | S93: =O94*'Qsol calculation'!O93 -> 0 | T93: =O94*'Qsol calculation'!P93 -> 0 | U93: =O94*'Qsol calculation'!Q93 -> 0 | V93: =O94*'Qsol calculation'!R93 -> 0 | W93: =O94*'Qsol calculation'!S93 -> 0 | X93: =O94*'Qsol calculation'!T93 -> 0 | Y93: =O94*'Qsol calculation'!U93 -> 0 | AA93: 0 | AB93: 0 | AC93: 0 | AD93: 0 | AE93: 0 | AF93: 0 | AG93: 0 | AH93: 0 | AJ93: =N93*(1+COS(VCP!$N$22))/2 -> 0 | AL93: 0 | AM93: 0 | AN93: 0 | AO93: 0 | AP93: 0 | AQ93: 0 | AR93: 0 | AS93: 0 | AV93: =IF(AL93>VCP!$E$29,AL93*VCP!$E$28,AL93) -> 0 | AW93: =IF(AM93>VCP!$E$29,AM93*VCP!$E$28,AM93) -> 0 | AX93: =IF(AN93>VCP!$E$29,AN93*VCP!$E$28,AN93) -> 0 | AY93: =IF(AO93>VCP!$E$29,AO93*VCP!$E$28,AO93) -> 0 | AZ93: =IF(AP93>VCP!$E$29,AP93*VCP!$E$28,AP93) -> 0 | BA93: =IF(AQ93>VCP!$E$29,AQ93*VCP!$E$28,AQ93) -> 0 | BB93: =IF(AR93>VCP!$E$29,AR93*VCP!$E$28,AR93) -> 0 | BC93: =IF(AS93>VCP!$E$29,AS93*VCP!$E$28,AS93) -> 0
A94: 92 | B94: 1.8 | D94: -1.2 | E94: 80 | F94: 5.5 | G94: 280 | H94: 0 | I94: 0 | L94: =IF($K$2=0,D94*ATAN(0.151977*(E94+8.313659)^0.5)+ATAN(D94+E94)-ATAN(E94-1.676331)+0.00391838*(E94)^(3/2)*ATAN(0.023101*E94)-4.686035,'Weather data'!C94) -> -2.824384708 | M94: 0 | N94: 0 | O94: 0 | R94: =O95*'Qsol calculation'!N94 -> 0 | S94: =O95*'Qsol calculation'!O94 -> 0 | T94: =O95*'Qsol calculation'!P94 -> 0 | U94: =O95*'Qsol calculation'!Q94 -> 0 | V94: =O95*'Qsol calculation'!R94 -> 0 | W94: =O95*'Qsol calculation'!S94 -> 0 | X94: =O95*'Qsol calculation'!T94 -> 0 | Y94: =O95*'Qsol calculation'!U94 -> 0 | AA94: 0 | AB94: 0 | AC94: 0 | AD94: 0 | AE94: 0 | AF94: 0 | AG94: 0 | AH94: 0 | AJ94: =N94*(1+COS(VCP!$N$22))/2 -> 0 | AL94: 0 | AM94: 0 | AN94: 0 | AO94: 0 | AP94: 0 | AQ94: 0 | AR94: 0 | AS94: 0 | AV94: =IF(AL94>VCP!$E$29,AL94*VCP!$E$28,AL94) -> 0 | AW94: =IF(AM94>VCP!$E$29,AM94*VCP!$E$28,AM94) -> 0 | AX94: =IF(AN94>VCP!$E$29,AN94*VCP!$E$28,AN94) -> 0 | AY94: =IF(AO94>VCP!$E$29,AO94*VCP!$E$28,AO94) -> 0 | AZ94: =IF(AP94>VCP!$E$29,AP94*VCP!$E$28,AP94) -> 0 | BA94: =IF(AQ94>VCP!$E$29,AQ94*VCP!$E$28,AQ94) -> 0 | BB94: =IF(AR94>VCP!$E$29,AR94*VCP!$E$28,AR94) -> 0 | BC94: =IF(AS94>VCP!$E$29,AS94*VCP!$E$28,AS94) -> 0
A95: 93 | B95: 1.7 | D95: -1.3 | E95: 79 | F95: 5.1 | G95: 300 | H95: 0 | I95: 0 | L95: =IF($K$2=0,D95*ATAN(0.151977*(E95+8.313659)^0.5)+ATAN(D95+E95)-ATAN(E95-1.676331)+0.00391838*(E95)^(3/2)*ATAN(0.023101*E95)-4.686035,'Weather data'!C95) -> -2.987774926 | M95: 0 | N95: 0 | O95: 0 | R95: =O96*'Qsol calculation'!N95 -> 0 | S95: =O96*'Qsol calculation'!O95 -> 0 | T95: =O96*'Qsol calculation'!P95 -> 0 | U95: =O96*'Qsol calculation'!Q95 -> 0 | V95: =O96*'Qsol calculation'!R95 -> 0 | W95: =O96*'Qsol calculation'!S95 -> 0 | X95: =O96*'Qsol calculation'!T95 -> 0 | Y95: =O96*'Qsol calculation'!U95 -> 0 | AA95: 0 | AB95: 0 | AC95: 0 | AD95: 0 | AE95: 0 | AF95: 0 | AG95: 0 | AH95: 0 | AJ95: =N95*(1+COS(VCP!$N$22))/2 -> 0 | AL95: 0 | AM95: 0 | AN95: 0 | AO95: 0 | AP95: 0 | AQ95: 0 | AR95: 0 | AS95: 0 | AV95: =IF(AL95>VCP!$E$29,AL95*VCP!$E$28,AL95) -> 0 | AW95: =IF(AM95>VCP!$E$29,AM95*VCP!$E$28,AM95) -> 0 | AX95: =IF(AN95>VCP!$E$29,AN95*VCP!$E$28,AN95) -> 0 | AY95: =IF(AO95>VCP!$E$29,AO95*VCP!$E$28,AO95) -> 0 | AZ95: =IF(AP95>VCP!$E$29,AP95*VCP!$E$28,AP95) -> 0 | BA95: =IF(AQ95>VCP!$E$29,AQ95*VCP!$E$28,AQ95) -> 0 | BB95: =IF(AR95>VCP!$E$29,AR95*VCP!$E$28,AR95) -> 0 | BC95: =IF(AS95>VCP!$E$29,AS95*VCP!$E$28,AS95) -> 0
A96: 94 | B96: 1.3 | D96: -1.8 | E96: 78 | F96: 5.5 | G96: 300 | H96: 0 | I96: 0 | L96: =IF($K$2=0,D96*ATAN(0.151977*(E96+8.313659)^0.5)+ATAN(D96+E96)-ATAN(E96-1.676331)+0.00391838*(E96)^(3/2)*ATAN(0.023101*E96)-4.686035,'Weather data'!C96) -> -3.531846977 | M96: 0 | N96: 0 | O96: 0 | R96: =O97*'Qsol calculation'!N96 -> 0 | S96: =O97*'Qsol calculation'!O96 -> 0 | T96: =O97*'Qsol calculation'!P96 -> 0 | U96: =O97*'Qsol calculation'!Q96 -> 0 | V96: =O97*'Qsol calculation'!R96 -> 0 | W96: =O97*'Qsol calculation'!S96 -> 0 | X96: =O97*'Qsol calculation'!T96 -> 0 | Y96: =O97*'Qsol calculation'!U96 -> 0 | AA96: 0 | AB96: 0 | AC96: 0 | AD96: 0 | AE96: 0 | AF96: 0 | AG96: 0 | AH96: 0 | AJ96: =N96*(1+COS(VCP!$N$22))/2 -> 0 | AL96: 0 | AM96: 0 | AN96: 0 | AO96: 0 | AP96: 0 | AQ96: 0 | AR96: 0 | AS96: 0 | AV96: =IF(AL96>VCP!$E$29,AL96*VCP!$E$28,AL96) -> 0 | AW96: =IF(AM96>VCP!$E$29,AM96*VCP!$E$28,AM96) -> 0 | AX96: =IF(AN96>VCP!$E$29,AN96*VCP!$E$28,AN96) -> 0 | AY96: =IF(AO96>VCP!$E$29,AO96*VCP!$E$28,AO96) -> 0 | AZ96: =IF(AP96>VCP!$E$29,AP96*VCP!$E$28,AP96) -> 0 | BA96: =IF(AQ96>VCP!$E$29,AQ96*VCP!$E$28,AQ96) -> 0 | BB96: =IF(AR96>VCP!$E$29,AR96*VCP!$E$28,AR96) -> 0 | BC96: =IF(AS96>VCP!$E$29,AS96*VCP!$E$28,AS96) -> 0
A97: 95 | B97: 0.9 | D97: -2.1 | E97: 79 | F97: 5.8 | G97: 300 | H97: 0 | I97: 0 | L97: =IF($K$2=0,D97*ATAN(0.151977*(E97+8.313659)^0.5)+ATAN(D97+E97)-ATAN(E97-1.676331)+0.00391838*(E97)^(3/2)*ATAN(0.023101*E97)-4.686035,'Weather data'!C97) -> -3.753727487 | M97: 0 | N97: 0 | O97: 0 | R97: =O98*'Qsol calculation'!N97 -> 0 | S97: =O98*'Qsol calculation'!O97 -> 0 | T97: =O98*'Qsol calculation'!P97 -> 0 | U97: =O98*'Qsol calculation'!Q97 -> 0 | V97: =O98*'Qsol calculation'!R97 -> 0 | W97: =O98*'Qsol calculation'!S97 -> 0 | X97: =O98*'Qsol calculation'!T97 -> 0 | Y97: =O98*'Qsol calculation'!U97 -> 0 | AA97: 0 | AB97: 0 | AC97: 0 | AD97: 0 | AE97: 0 | AF97: 0 | AG97: 0 | AH97: 0 | AJ97: =N97*(1+COS(VCP!$N$22))/2 -> 0 | AL97: 0 | AM97: 0 | AN97: 0 | AO97: 0 | AP97: 0 | AQ97: 0 | AR97: 0 | AS97: 0 | AV97: =IF(AL97>VCP!$E$29,AL97*VCP!$E$28,AL97) -> 0 | AW97: =IF(AM97>VCP!$E$29,AM97*VCP!$E$28,AM97) -> 0 | AX97: =IF(AN97>VCP!$E$29,AN97*VCP!$E$28,AN97) -> 0 | AY97: =IF(AO97>VCP!$E$29,AO97*VCP!$E$28,AO97) -> 0 | AZ97: =IF(AP97>VCP!$E$29,AP97*VCP!$E$28,AP97) -> 0 | BA97: =IF(AQ97>VCP!$E$29,AQ97*VCP!$E$28,AQ97) -> 0 | BB97: =IF(AR97>VCP!$E$29,AR97*VCP!$E$28,AR97) -> 0 | BC97: =IF(AS97>VCP!$E$29,AS97*VCP!$E$28,AS97) -> 0
A98: 96 | B98: 0.5 | D98: -2.1 | E98: 81 | F98: 6.2 | G98: 280 | H98: 0 | I98: 0 | L98: =IF($K$2=0,D98*ATAN(0.151977*(E98+8.313659)^0.5)+ATAN(D98+E98)-ATAN(E98-1.676331)+0.00391838*(E98)^(3/2)*ATAN(0.023101*E98)-4.686035,'Weather data'!C98) -> -3.622553685 | M98: 0 | N98: 0 | O98: 0 | R98: =O99*'Qsol calculation'!N98 -> 0 | S98: =O99*'Qsol calculation'!O98 -> 0 | T98: =O99*'Qsol calculation'!P98 -> 0 | U98: =O99*'Qsol calculation'!Q98 -> 0 | V98: =O99*'Qsol calculation'!R98 -> 0 | W98: =O99*'Qsol calculation'!S98 -> 0 | X98: =O99*'Qsol calculation'!T98 -> 0 | Y98: =O99*'Qsol calculation'!U98 -> 0 | AA98: 0 | AB98: 0 | AC98: 0 | AD98: 0 | AE98: 0 | AF98: 0 | AG98: 0 | AH98: 0 | AJ98: =N98*(1+COS(VCP!$N$22))/2 -> 0 | AL98: 0 | AM98: 0 | AN98: 0 | AO98: 0 | AP98: 0 | AQ98: 0 | AR98: 0 | AS98: 0 | AV98: =IF(AL98>VCP!$E$29,AL98*VCP!$E$28,AL98) -> 0 | AW98: =IF(AM98>VCP!$E$29,AM98*VCP!$E$28,AM98) -> 0 | AX98: =IF(AN98>VCP!$E$29,AN98*VCP!$E$28,AN98) -> 0 | AY98: =IF(AO98>VCP!$E$29,AO98*VCP!$E$28,AO98) -> 0 | AZ98: =IF(AP98>VCP!$E$29,AP98*VCP!$E$28,AP98) -> 0 | BA98: =IF(AQ98>VCP!$E$29,AQ98*VCP!$E$28,AQ98) -> 0 | BB98: =IF(AR98>VCP!$E$29,AR98*VCP!$E$28,AR98) -> 0 | BC98: =IF(AS98>VCP!$E$29,AS98*VCP!$E$28,AS98) -> 0
A99: 97 | B99: 0.4 | D99: -2.5 | E99: 79 | F99: 5.8 | G99: 280 | H99: 0 | I99: 0 | L99: =IF($K$2=0,D99*ATAN(0.151977*(E99+8.313659)^0.5)+ATAN(D99+E99)-ATAN(E99-1.676331)+0.00391838*(E99)^(3/2)*ATAN(0.023101*E99)-4.686035,'Weather data'!C99) -> -4.136704817 | M99: 0 | N99: 0 | O99: 0 | R99: =O100*'Qsol calculation'!N99 -> 0 | S99: =O100*'Qsol calculation'!O99 -> 0 | T99: =O100*'Qsol calculation'!P99 -> 0 | U99: =O100*'Qsol calculation'!Q99 -> 0 | V99: =O100*'Qsol calculation'!R99 -> 0 | W99: =O100*'Qsol calculation'!S99 -> 0 | X99: =O100*'Qsol calculation'!T99 -> 0 | Y99: =O100*'Qsol calculation'!U99 -> 0 | AA99: 0 | AB99: 0 | AC99: 0 | AD99: 0 | AE99: 0 | AF99: 0 | AG99: 0 | AH99: 0 | AJ99: =N99*(1+COS(VCP!$N$22))/2 -> 0 | AL99: 0 | AM99: 0 | AN99: 0 | AO99: 0 | AP99: 0 | AQ99: 0 | AR99: 0 | AS99: 0 | AV99: =IF(AL99>VCP!$E$29,AL99*VCP!$E$28,AL99) -> 0 | AW99: =IF(AM99>VCP!$E$29,AM99*VCP!$E$28,AM99) -> 0 | AX99: =IF(AN99>VCP!$E$29,AN99*VCP!$E$28,AN99) -> 0 | AY99: =IF(AO99>VCP!$E$29,AO99*VCP!$E$28,AO99) -> 0 | AZ99: =IF(AP99>VCP!$E$29,AP99*VCP!$E$28,AP99) -> 0 | BA99: =IF(AQ99>VCP!$E$29,AQ99*VCP!$E$28,AQ99) -> 0 | BB99: =IF(AR99>VCP!$E$29,AR99*VCP!$E$28,AR99) -> 0 | BC99: =IF(AS99>VCP!$E$29,AS99*VCP!$E$28,AS99) -> 0
A100: 98 | B100: 0.3 | D100: -2.5 | E100: 79 | F100: 5.5 | G100: 280 | H100: 0 | I100: 0 | L100: =IF($K$2=0,D100*ATAN(0.151977*(E100+8.313659)^0.5)+ATAN(D100+E100)-ATAN(E100-1.676331)+0.00391838*(E100)^(3/2)*ATAN(0.023101*E100)-4.686035,'Weather data'!C100) -> -4.136704817 | M100: 0 | N100: 0 | O100: 0 | R100: =O101*'Qsol calculation'!N100 -> 0 | S100: =O101*'Qsol calculation'!O100 -> 0 | T100: =O101*'Qsol calculation'!P100 -> 0 | U100: =O101*'Qsol calculation'!Q100 -> 0 | V100: =O101*'Qsol calculation'!R100 -> 0 | W100: =O101*'Qsol calculation'!S100 -> 0 | X100: =O101*'Qsol calculation'!T100 -> 0 | Y100: =O101*'Qsol calculation'!U100 -> 0 | AA100: 0 | AB100: 0 | AC100: 0 | AD100: 0 | AE100: 0 | AF100: 0 | AG100: 0 | AH100: 0 | AJ100: =N100*(1+COS(VCP!$N$22))/2 -> 0 | AL100: 0 | AM100: 0 | AN100: 0 | AO100: 0 | AP100: 0 | AQ100: 0 | AR100: 0 | AS100: 0 | AV100: =IF(AL100>VCP!$E$29,AL100*VCP!$E$28,AL100) -> 0 | AW100: =IF(AM100>VCP!$E$29,AM100*VCP!$E$28,AM100) -> 0 | AX100: =IF(AN100>VCP!$E$29,AN100*VCP!$E$28,AN100) -> 0 | AY100: =IF(AO100>VCP!$E$29,AO100*VCP!$E$28,AO100) -> 0 | AZ100: =IF(AP100>VCP!$E$29,AP100*VCP!$E$28,AP100) -> 0 | BA100: =IF(AQ100>VCP!$E$29,AQ100*VCP!$E$28,AQ100) -> 0 | BB100: =IF(AR100>VCP!$E$29,AR100*VCP!$E$28,AR100) -> 0 | BC100: =IF(AS100>VCP!$E$29,AS100*VCP!$E$28,AS100) -> 0
A101: 99 | B101: 0.2 | D101: -2 | E101: 84 | F101: 5.1 | G101: 280 | H101: 0 | I101: 0 | L101: =IF($K$2=0,D101*ATAN(0.151977*(E101+8.313659)^0.5)+ATAN(D101+E101)-ATAN(E101-1.676331)+0.00391838*(E101)^(3/2)*ATAN(0.023101*E101)-4.686035,'Weather data'!C101) -> -3.323615087 | M101: 0 | N101: 0 | O101: 0 | R101: =O102*'Qsol calculation'!N101 -> 0 | S101: =O102*'Qsol calculation'!O101 -> 0 | T101: =O102*'Qsol calculation'!P101 -> 0 | U101: =O102*'Qsol calculation'!Q101 -> 0 | V101: =O102*'Qsol calculation'!R101 -> 0 | W101: =O102*'Qsol calculation'!S101 -> 0 | X101: =O102*'Qsol calculation'!T101 -> 0 | Y101: =O102*'Qsol calculation'!U101 -> 0 | AA101: 0 | AB101: 0 | AC101: 0 | AD101: 0 | AE101: 0 | AF101: 0 | AG101: 0 | AH101: 0 | AJ101: =N101*(1+COS(VCP!$N$22))/2 -> 0 | AL101: 0 | AM101: 0 | AN101: 0 | AO101: 0 | AP101: 0 | AQ101: 0 | AR101: 0 | AS101: 0 | AV101: =IF(AL101>VCP!$E$29,AL101*VCP!$E$28,AL101) -> 0 | AW101: =IF(AM101>VCP!$E$29,AM101*VCP!$E$28,AM101) -> 0 | AX101: =IF(AN101>VCP!$E$29,AN101*VCP!$E$28,AN101) -> 0 | AY101: =IF(AO101>VCP!$E$29,AO101*VCP!$E$28,AO101) -> 0 | AZ101: =IF(AP101>VCP!$E$29,AP101*VCP!$E$28,AP101) -> 0 | BA101: =IF(AQ101>VCP!$E$29,AQ101*VCP!$E$28,AQ101) -> 0 | BB101: =IF(AR101>VCP!$E$29,AR101*VCP!$E$28,AR101) -> 0 | BC101: =IF(AS101>VCP!$E$29,AS101*VCP!$E$28,AS101) -> 0
A102: 100 | B102: 0 | D102: -2.6 | E102: 81 | F102: 4.8 | G102: 280 | H102: 0 | I102: 0 | L102: =IF($K$2=0,D102*ATAN(0.151977*(E102+8.313659)^0.5)+ATAN(D102+E102)-ATAN(E102-1.676331)+0.00391838*(E102)^(3/2)*ATAN(0.023101*E102)-4.686035,'Weather data'!C102) -> -4.10393138 | M102: 0 | N102: 0 | O102: 0 | R102: =O103*'Qsol calculation'!N102 -> 0 | S102: =O103*'Qsol calculation'!O102 -> 0 | T102: =O103*'Qsol calculation'!P102 -> 0 | U102: =O103*'Qsol calculation'!Q102 -> 0 | V102: =O103*'Qsol calculation'!R102 -> 0 | W102: =O103*'Qsol calculation'!S102 -> 0 | X102: =O103*'Qsol calculation'!T102 -> 0 | Y102: =O103*'Qsol calculation'!U102 -> 0 | AA102: 0 | AB102: 0 | AC102: 0 | AD102: 0 | AE102: 0 | AF102: 0 | AG102: 0 | AH102: 0 | AJ102: =N102*(1+COS(VCP!$N$22))/2 -> 0 | AL102: 0 | AM102: 0 | AN102: 0 | AO102: 0 | AP102: 0 | AQ102: 0 | AR102: 0 | AS102: 0 | AV102: =IF(AL102>VCP!$E$29,AL102*VCP!$E$28,AL102) -> 0 | AW102: =IF(AM102>VCP!$E$29,AM102*VCP!$E$28,AM102) -> 0 | AX102: =IF(AN102>VCP!$E$29,AN102*VCP!$E$28,AN102) -> 0 | AY102: =IF(AO102>VCP!$E$29,AO102*VCP!$E$28,AO102) -> 0 | AZ102: =IF(AP102>VCP!$E$29,AP102*VCP!$E$28,AP102) -> 0 | BA102: =IF(AQ102>VCP!$E$29,AQ102*VCP!$E$28,AQ102) -> 0 | BB102: =IF(AR102>VCP!$E$29,AR102*VCP!$E$28,AR102) -> 0 | BC102: =IF(AS102>VCP!$E$29,AS102*VCP!$E$28,AS102) -> 0
A103: 101 | B103: -0.2 | D103: -2.3 | E103: 84 | F103: 4.4 | G103: 280 | H103: 0 | I103: 0 | L103: =IF($K$2=0,D103*ATAN(0.151977*(E103+8.313659)^0.5)+ATAN(D103+E103)-ATAN(E103-1.676331)+0.00391838*(E103)^(3/2)*ATAN(0.023101*E103)-4.686035,'Weather data'!C103) -> -3.614755096 | M103: 0 | N103: 0 | O103: 0 | R103: =O104*'Qsol calculation'!N103 -> 0 | S103: =O104*'Qsol calculation'!O103 -> 0 | T103: =O104*'Qsol calculation'!P103 -> 0 | U103: =O104*'Qsol calculation'!Q103 -> 0 | V103: =O104*'Qsol calculation'!R103 -> 0 | W103: =O104*'Qsol calculation'!S103 -> 0 | X103: =O104*'Qsol calculation'!T103 -> 0 | Y103: =O104*'Qsol calculation'!U103 -> 0 | AA103: 0 | AB103: 0 | AC103: 0 | AD103: 0 | AE103: 0 | AF103: 0 | AG103: 0 | AH103: 0 | AJ103: =N103*(1+COS(VCP!$N$22))/2 -> 0 | AL103: 0 | AM103: 0 | AN103: 0 | AO103: 0 | AP103: 0 | AQ103: 0 | AR103: 0 | AS103: 0 | AV103: =IF(AL103>VCP!$E$29,AL103*VCP!$E$28,AL103) -> 0 | AW103: =IF(AM103>VCP!$E$29,AM103*VCP!$E$28,AM103) -> 0 | AX103: =IF(AN103>VCP!$E$29,AN103*VCP!$E$28,AN103) -> 0 | AY103: =IF(AO103>VCP!$E$29,AO103*VCP!$E$28,AO103) -> 0 | AZ103: =IF(AP103>VCP!$E$29,AP103*VCP!$E$28,AP103) -> 0 | BA103: =IF(AQ103>VCP!$E$29,AQ103*VCP!$E$28,AQ103) -> 0 | BB103: =IF(AR103>VCP!$E$29,AR103*VCP!$E$28,AR103) -> 0 | BC103: =IF(AS103>VCP!$E$29,AS103*VCP!$E$28,AS103) -> 0
A104: 102 | B104: -0.4 | D104: -2.3 | E104: 85 | F104: 4.1 | G104: 280 | H104: 0 | I104: 0 | L104: =IF($K$2=0,D104*ATAN(0.151977*(E104+8.313659)^0.5)+ATAN(D104+E104)-ATAN(E104-1.676331)+0.00391838*(E104)^(3/2)*ATAN(0.023101*E104)-4.686035,'Weather data'!C104) -> -3.546617906 | M104: 0 | N104: 0 | O104: 0 | R104: =O105*'Qsol calculation'!N104 -> 0 | S104: =O105*'Qsol calculation'!O104 -> 0 | T104: =O105*'Qsol calculation'!P104 -> 0 | U104: =O105*'Qsol calculation'!Q104 -> 0 | V104: =O105*'Qsol calculation'!R104 -> 0 | W104: =O105*'Qsol calculation'!S104 -> 0 | X104: =O105*'Qsol calculation'!T104 -> 0 | Y104: =O105*'Qsol calculation'!U104 -> 0 | AA104: 0 | AB104: 0 | AC104: 0 | AD104: 0 | AE104: 0 | AF104: 0 | AG104: 0 | AH104: 0 | AJ104: =N104*(1+COS(VCP!$N$22))/2 -> 0 | AL104: 0 | AM104: 0 | AN104: 0 | AO104: 0 | AP104: 0 | AQ104: 0 | AR104: 0 | AS104: 0 | AV104: =IF(AL104>VCP!$E$29,AL104*VCP!$E$28,AL104) -> 0 | AW104: =IF(AM104>VCP!$E$29,AM104*VCP!$E$28,AM104) -> 0 | AX104: =IF(AN104>VCP!$E$29,AN104*VCP!$E$28,AN104) -> 0 | AY104: =IF(AO104>VCP!$E$29,AO104*VCP!$E$28,AO104) -> 0 | AZ104: =IF(AP104>VCP!$E$29,AP104*VCP!$E$28,AP104) -> 0 | BA104: =IF(AQ104>VCP!$E$29,AQ104*VCP!$E$28,AQ104) -> 0 | BB104: =IF(AR104>VCP!$E$29,AR104*VCP!$E$28,AR104) -> 0 | BC104: =IF(AS104>VCP!$E$29,AS104*VCP!$E$28,AS104) -> 0
A105: 103 | B105: 0.1 | D105: -2 | E105: 84 | F105: 4.8 | G105: 280 | H105: 0 | I105: 0 | L105: =IF($K$2=0,D105*ATAN(0.151977*(E105+8.313659)^0.5)+ATAN(D105+E105)-ATAN(E105-1.676331)+0.00391838*(E105)^(3/2)*ATAN(0.023101*E105)-4.686035,'Weather data'!C105) -> -3.323615087 | M105: 0 | N105: 0 | O105: 0 | R105: =O106*'Qsol calculation'!N105 -> -0.2794568195 | S105: =O106*'Qsol calculation'!O105 -> -0.1479960856 | T105: =O106*'Qsol calculation'!P105 -> -0.3022548479 | U105: =O106*'Qsol calculation'!Q105 -> 0.09295677641 | V105: =O106*'Qsol calculation'!R105 -> 0.03804892694 | W105: =O106*'Qsol calculation'!S105 -> -0.09295677641 | X105: =O106*'Qsol calculation'!T105 -> 0.3022548479 | Y105: =O106*'Qsol calculation'!U105 -> 0.2794568195 | AA105: 0 | AB105: 0 | AC105: 0 | AD105: 0.09295677641 | AE105: 0.03804892694 | AF105: 0 | AG105: 0.3022548479 | AH105: 0.2794568195 | AJ105: =N105*(1+COS(VCP!$N$22))/2 -> 0 | AL105: 0 | AM105: 0 | AN105: 0 | AO105: 0.09295677641 | AP105: 0.03804892694 | AQ105: 0 | AR105: 0.3022548479 | AS105: 0.2794568195 | AV105: =IF(AL105>VCP!$E$29,AL105*VCP!$E$28,AL105) -> 0 | AW105: =IF(AM105>VCP!$E$29,AM105*VCP!$E$28,AM105) -> 0 | AX105: =IF(AN105>VCP!$E$29,AN105*VCP!$E$28,AN105) -> 0 | AY105: =IF(AO105>VCP!$E$29,AO105*VCP!$E$28,AO105) -> 0.09295677641 | AZ105: =IF(AP105>VCP!$E$29,AP105*VCP!$E$28,AP105) -> 0.03804892694 | BA105: =IF(AQ105>VCP!$E$29,AQ105*VCP!$E$28,AQ105) -> 0 | BB105: =IF(AR105>VCP!$E$29,AR105*VCP!$E$28,AR105) -> 0.3022548479 | BC105: =IF(AS105>VCP!$E$29,AS105*VCP!$E$28,AS105) -> 0.2794568195
A106: 104 | B106: 0.5 | D106: -1.3 | E106: 86 | F106: 5.5 | G106: 280 | H106: 5 | I106: 2 | L106: =IF($K$2=0,D106*ATAN(0.151977*(E106+8.313659)^0.5)+ATAN(D106+E106)-ATAN(E106-1.676331)+0.00391838*(E106)^(3/2)*ATAN(0.023101*E106)-4.686035,'Weather data'!C106) -> -2.50236996 | M106: 0.4 | N106: 1.6799792 | O106: 0.3200208 | R106: =O107*'Qsol calculation'!N106 -> -2.194553416 | S106: =O107*'Qsol calculation'!O106 -> -1.838069072 | T106: =O107*'Qsol calculation'!P106 -> -2.851494707 | U106: =O107*'Qsol calculation'!Q106 -> 0.252072497 | V106: =O107*'Qsol calculation'!R106 -> 0.1428217543 | W106: =O107*'Qsol calculation'!S106 -> -0.252072497 | X106: =O107*'Qsol calculation'!T106 -> 2.851494707 | Y106: =O107*'Qsol calculation'!U106 -> 2.194553416 | AA106: 0 | AB106: 0 | AC106: 0 | AD106: 0.252072497 | AE106: 0.1428217543 | AF106: 0 | AG106: 2.851494707 | AH106: 2.194553416 | AJ106: =N106*(1+COS(VCP!$N$22))/2 -> 1.307723525 | AL106: 1.307723525 | AM106: 1.307723525 | AN106: 1.307723525 | AO106: 1.559796022 | AP106: 1.45054528 | AQ106: 1.307723525 | AR106: 4.159218233 | AS106: 3.502276941 | AV106: =IF(AL106>VCP!$E$29,AL106*VCP!$E$28,AL106) -> 1.307723525 | AW106: =IF(AM106>VCP!$E$29,AM106*VCP!$E$28,AM106) -> 1.307723525 | AX106: =IF(AN106>VCP!$E$29,AN106*VCP!$E$28,AN106) -> 1.307723525 | AY106: =IF(AO106>VCP!$E$29,AO106*VCP!$E$28,AO106) -> 1.559796022 | AZ106: =IF(AP106>VCP!$E$29,AP106*VCP!$E$28,AP106) -> 1.45054528 | BA106: =IF(AQ106>VCP!$E$29,AQ106*VCP!$E$28,AQ106) -> 1.307723525 | BB106: =IF(AR106>VCP!$E$29,AR106*VCP!$E$28,AR106) -> 4.159218233 | BC106: =IF(AS106>VCP!$E$29,AS106*VCP!$E$28,AS106) -> 3.502276941
A107: 105 | B107: 1 | D107: -0.6 | E107: 89 | F107: 6.2 | G107: 270 | H107: 104 | I107: 35 | L107: =IF($K$2=0,D107*ATAN(0.151977*(E107+8.313659)^0.5)+ATAN(D107+E107)-ATAN(E107-1.676331)+0.00391838*(E107)^(3/2)*ATAN(0.023101*E107)-4.686035,'Weather data'!C107) -> -1.596912516 | M107: 0.3365384615 | N107: 32.1357916 | O107: 2.864208404 | R107: =O108*'Qsol calculation'!N107 -> -12.97885331 | S107: =O108*'Qsol calculation'!O107 -> -16.93402872 | T107: =O108*'Qsol calculation'!P107 -> -21.15160173 | U107: =O108*'Qsol calculation'!Q107 -> -2.796731355 | V107: =O108*'Qsol calculation'!R107 -> -0.1700747434 | W107: =O108*'Qsol calculation'!S107 -> 2.796731355 | X107: =O108*'Qsol calculation'!T107 -> 21.15160173 | Y107: =O108*'Qsol calculation'!U107 -> 12.97885331 | AA107: 0 | AB107: 0 | AC107: 0 | AD107: 0 | AE107: 0 | AF107: 2.796731355 | AG107: 21.15160173 | AH107: 12.97885331 | AJ107: =N107*(1+COS(VCP!$N$22))/2 -> 25.01503035 | AL107: 25.01503035 | AM107: 25.01503035 | AN107: 25.01503035 | AO107: 25.01503035 | AP107: 25.01503035 | AQ107: 27.8117617 | AR107: 46.16663208 | AS107: 37.99388366 | AV107: =IF(AL107>VCP!$E$29,AL107*VCP!$E$28,AL107) -> 25.01503035 | AW107: =IF(AM107>VCP!$E$29,AM107*VCP!$E$28,AM107) -> 25.01503035 | AX107: =IF(AN107>VCP!$E$29,AN107*VCP!$E$28,AN107) -> 25.01503035 | AY107: =IF(AO107>VCP!$E$29,AO107*VCP!$E$28,AO107) -> 25.01503035 | AZ107: =IF(AP107>VCP!$E$29,AP107*VCP!$E$28,AP107) -> 25.01503035 | BA107: =IF(AQ107>VCP!$E$29,AQ107*VCP!$E$28,AQ107) -> 27.8117617 | BB107: =IF(AR107>VCP!$E$29,AR107*VCP!$E$28,AR107) -> 13.84998962 | BC107: =IF(AS107>VCP!$E$29,AS107*VCP!$E$28,AS107) -> 37.99388366
A108: 106 | B108: 1.7 | D108: -0.7 | E108: 84 | F108: 5.8 | G108: 270 | H108: 210 | I108: 93 | L108: =IF($K$2=0,D108*ATAN(0.151977*(E108+8.313659)^0.5)+ATAN(D108+E108)-ATAN(E108-1.676331)+0.00391838*(E108)^(3/2)*ATAN(0.023101*E108)-4.686035,'Weather data'!C108) -> -2.062012109 | M108: 0.4428571429 | N108: 71.61581006 | O108: 21.38418994 | R108: =O109*'Qsol calculation'!N108 -> -16.85751624 | S108: =O109*'Qsol calculation'!O108 -> -37.45200264 | T108: =O109*'Qsol calculation'!P108 -> -38.40262909 | U108: =O109*'Qsol calculation'!Q108 -> -14.56250099 | V108: =O109*'Qsol calculation'!R108 -> -2.100066427 | W108: =O109*'Qsol calculation'!S108 -> 14.56250099 | X108: =O109*'Qsol calculation'!T108 -> 38.40262909 | Y108: =O109*'Qsol calculation'!U108 -> 16.85751624 | AA108: 0 | AB108: 0 | AC108: 0 | AD108: 0 | AE108: 0 | AF108: 14.56250099 | AG108: 38.40262909 | AH108: 16.85751624 | AJ108: =N108*(1+COS(VCP!$N$22))/2 -> 55.74692806 | AL108: 55.74692806 | AM108: 55.74692806 | AN108: 55.74692806 | AO108: 55.74692806 | AP108: 55.74692806 | AQ108: 70.30942905 | AR108: 94.14955715 | AS108: 72.6044443 | AV108: =IF(AL108>VCP!$E$29,AL108*VCP!$E$28,AL108) -> 16.72407842 | AW108: =IF(AM108>VCP!$E$29,AM108*VCP!$E$28,AM108) -> 16.72407842 | AX108: =IF(AN108>VCP!$E$29,AN108*VCP!$E$28,AN108) -> 16.72407842 | AY108: =IF(AO108>VCP!$E$29,AO108*VCP!$E$28,AO108) -> 16.72407842 | AZ108: =IF(AP108>VCP!$E$29,AP108*VCP!$E$28,AP108) -> 16.72407842 | BA108: =IF(AQ108>VCP!$E$29,AQ108*VCP!$E$28,AQ108) -> 21.09282871 | BB108: =IF(AR108>VCP!$E$29,AR108*VCP!$E$28,AR108) -> 28.24486714 | BC108: =IF(AS108>VCP!$E$29,AS108*VCP!$E$28,AS108) -> 21.78133329
A109: 107 | B109: 2.3 | D109: -0.6 | E109: 80 | F109: 5.5 | G109: 270 | H109: 271 | I109: 132 | L109: =IF($K$2=0,D109*ATAN(0.151977*(E109+8.313659)^0.5)+ATAN(D109+E109)-ATAN(E109-1.676331)+0.00391838*(E109)^(3/2)*ATAN(0.023101*E109)-4.686035,'Weather data'!C109) -> -2.248318107 | M109: 0.4870848708 | N109: 90.51101602 | O109: 41.48898398 | R109: =O110*'Qsol calculation'!N109 -> -7.602157173 | S109: =O110*'Qsol calculation'!O109 -> -41.28210414 | T109: =O110*'Qsol calculation'!P109 -> -34.56639266 | U109: =O110*'Qsol calculation'!Q109 -> -23.81531889 | V109: =O110*'Qsol calculation'!R109 -> -3.212585899 | W109: =O110*'Qsol calculation'!S109 -> 23.81531889 | X109: =O110*'Qsol calculation'!T109 -> 34.56639266 | Y109: =O110*'Qsol calculation'!U109 -> 7.602157173 | AA109: 0 | AB109: 0 | AC109: 0 | AD109: 0 | AE109: 0 | AF109: 23.81531889 | AG109: 34.56639266 | AH109: 7.602157173 | AJ109: =N109*(1+COS(VCP!$N$22))/2 -> 70.45526811 | AL109: 70.45526811 | AM109: 70.45526811 | AN109: 70.45526811 | AO109: 70.45526811 | AP109: 70.45526811 | AQ109: 94.27058699 | AR109: 105.0216608 | AS109: 78.05742528 | AV109: =IF(AL109>VCP!$E$29,AL109*VCP!$E$28,AL109) -> 21.13658043 | AW109: =IF(AM109>VCP!$E$29,AM109*VCP!$E$28,AM109) -> 21.13658043 | AX109: =IF(AN109>VCP!$E$29,AN109*VCP!$E$28,AN109) -> 21.13658043 | AY109: =IF(AO109>VCP!$E$29,AO109*VCP!$E$28,AO109) -> 21.13658043 | AZ109: =IF(AP109>VCP!$E$29,AP109*VCP!$E$28,AP109) -> 21.13658043 | BA109: =IF(AQ109>VCP!$E$29,AQ109*VCP!$E$28,AQ109) -> 28.2811761 | BB109: =IF(AR109>VCP!$E$29,AR109*VCP!$E$28,AR109) -> 31.50649823 | BC109: =IF(AS109>VCP!$E$29,AS109*VCP!$E$28,AS109) -> 23.41722758
A110: 108 | B110: 3 | D110: -0.5 | E110: 77 | F110: 5.1 | G110: 260 | H110: 282 | I110: 137 | L110: =IF($K$2=0,D110*ATAN(0.151977*(E110+8.313659)^0.5)+ATAN(D110+E110)-ATAN(E110-1.676331)+0.00391838*(E110)^(3/2)*ATAN(0.023101*E110)-4.686035,'Weather data'!C110) -> -2.35892441 | M110: 0.4858156028 | N110: 94.29117889 | O110: 42.70882111 | R110: =O111*'Qsol calculation'!N110 -> 1.612118255 | S110: =O111*'Qsol calculation'!O110 -> -25.28080093 | T110: =O111*'Qsol calculation'!P110 -> -16.73628602 | U110: =O111*'Qsol calculation'!Q110 -> -19.01616552 | V110: =O111*'Qsol calculation'!R110 -> -2.067587464 | W110: =O111*'Qsol calculation'!S110 -> 19.01616552 | X110: =O111*'Qsol calculation'!T110 -> 16.73628602 | Y110: =O111*'Qsol calculation'!U110 -> -1.612118255 | AA110: 1.612118255 | AB110: 0 | AC110: 0 | AD110: 0 | AE110: 0 | AF110: 19.01616552 | AG110: 16.73628602 | AH110: 0 | AJ110: =N110*(1+COS(VCP!$N$22))/2 -> 73.39780925 | AL110: 75.00992751 | AM110: 73.39780925 | AN110: 73.39780925 | AO110: 73.39780925 | AP110: 73.39780925 | AQ110: 92.41397477 | AR110: 90.13409527 | AS110: 73.39780925 | AV110: =IF(AL110>VCP!$E$29,AL110*VCP!$E$28,AL110) -> 22.50297825 | AW110: =IF(AM110>VCP!$E$29,AM110*VCP!$E$28,AM110) -> 22.01934278 | AX110: =IF(AN110>VCP!$E$29,AN110*VCP!$E$28,AN110) -> 22.01934278 | AY110: =IF(AO110>VCP!$E$29,AO110*VCP!$E$28,AO110) -> 22.01934278 | AZ110: =IF(AP110>VCP!$E$29,AP110*VCP!$E$28,AP110) -> 22.01934278 | BA110: =IF(AQ110>VCP!$E$29,AQ110*VCP!$E$28,AQ110) -> 27.72419243 | BB110: =IF(AR110>VCP!$E$29,AR110*VCP!$E$28,AR110) -> 27.04022858 | BC110: =IF(AS110>VCP!$E$29,AS110*VCP!$E$28,AS110) -> 22.01934278
A111: 109 | B111: 2.6 | D111: -0.8 | E111: 78 | F111: 5.5 | G111: 260 | H111: 244 | I111: 109 | L111: =IF($K$2=0,D111*ATAN(0.151977*(E111+8.313659)^0.5)+ATAN(D111+E111)-ATAN(E111-1.676331)+0.00391838*(E111)^(3/2)*ATAN(0.023101*E111)-4.686035,'Weather data'!C111) -> -2.577117555 | M111: 0.4467213115 | N111: 83.18299991 | O111: 25.81700009 | R111: =O112*'Qsol calculation'!N111 -> 1.641583073 | S111: =O112*'Qsol calculation'!O111 -> -5.165785347 | T111: =O112*'Qsol calculation'!P111 -> -2.491987326 | U111: =O112*'Qsol calculation'!Q111 -> -4.813536372 | V111: =O112*'Qsol calculation'!R111 -> -0.3566604578 | W111: =O112*'Qsol calculation'!S111 -> 4.813536372 | X111: =O112*'Qsol calculation'!T111 -> 2.491987326 | Y111: =O112*'Qsol calculation'!U111 -> -1.641583073 | AA111: 1.641583073 | AB111: 0 | AC111: 0 | AD111: 0 | AE111: 0 | AF111: 4.813536372 | AG111: 2.491987326 | AH111: 0 | AJ111: =N111*(1+COS(VCP!$N$22))/2 -> 64.75101947 | AL111: 66.39260254 | AM111: 64.75101947 | AN111: 64.75101947 | AO111: 64.75101947 | AP111: 64.75101947 | AQ111: 69.56455584 | AR111: 67.2430068 | AS111: 64.75101947 | AV111: =IF(AL111>VCP!$E$29,AL111*VCP!$E$28,AL111) -> 19.91778076 | AW111: =IF(AM111>VCP!$E$29,AM111*VCP!$E$28,AM111) -> 19.42530584 | AX111: =IF(AN111>VCP!$E$29,AN111*VCP!$E$28,AN111) -> 19.42530584 | AY111: =IF(AO111>VCP!$E$29,AO111*VCP!$E$28,AO111) -> 19.42530584 | AZ111: =IF(AP111>VCP!$E$29,AP111*VCP!$E$28,AP111) -> 19.42530584 | BA111: =IF(AQ111>VCP!$E$29,AQ111*VCP!$E$28,AQ111) -> 20.86936675 | BB111: =IF(AR111>VCP!$E$29,AR111*VCP!$E$28,AR111) -> 20.17290204 | BC111: =IF(AS111>VCP!$E$29,AS111*VCP!$E$28,AS111) -> 19.42530584
A112: 110 | B112: 2.1 | D112: -1 | E112: 79 | F112: 5.8 | G112: 260 | H112: 159 | I112: 56 | L112: =IF($K$2=0,D112*ATAN(0.151977*(E112+8.313659)^0.5)+ATAN(D112+E112)-ATAN(E112-1.676331)+0.00391838*(E112)^(3/2)*ATAN(0.023101*E112)-4.686035,'Weather data'!C112) -> -2.700543423 | M112: 0.3522012579 | N112: 50.50299655 | O112: 5.497003445 | R112: =O113*'Qsol calculation'!N112 -> 0.2523951808 | S112: =O113*'Qsol calculation'!O112 -> -0.4174114174 | T112: =O113*'Qsol calculation'!P112 -> -0.1166840998 | U112: =O113*'Qsol calculation'!Q112 -> -0.4736247877 | V112: =O113*'Qsol calculation'!R112 -> -0.015034742 | W112: =O113*'Qsol calculation'!S112 -> 0.4736247877 | X112: =O113*'Qsol calculation'!T112 -> 0.1166840998 | Y112: =O113*'Qsol calculation'!U112 -> -0.2523951808 | AA112: 0.2523951808 | AB112: 0 | AC112: 0 | AD112: 0 | AE112: 0 | AF112: 0.4736247877 | AG112: 0.1166840998 | AH112: 0 | AJ112: =N112*(1+COS(VCP!$N$22))/2 -> 39.31236571 | AL112: 39.56476089 | AM112: 39.31236571 | AN112: 39.31236571 | AO112: 39.31236571 | AP112: 39.31236571 | AQ112: 39.7859905 | AR112: 39.42904981 | AS112: 39.31236571 | AV112: =IF(AL112>VCP!$E$29,AL112*VCP!$E$28,AL112) -> 39.56476089 | AW112: =IF(AM112>VCP!$E$29,AM112*VCP!$E$28,AM112) -> 39.31236571 | AX112: =IF(AN112>VCP!$E$29,AN112*VCP!$E$28,AN112) -> 39.31236571 | AY112: =IF(AO112>VCP!$E$29,AO112*VCP!$E$28,AO112) -> 39.31236571 | AZ112: =IF(AP112>VCP!$E$29,AP112*VCP!$E$28,AP112) -> 39.31236571 | BA112: =IF(AQ112>VCP!$E$29,AQ112*VCP!$E$28,AQ112) -> 39.7859905 | BB112: =IF(AR112>VCP!$E$29,AR112*VCP!$E$28,AR112) -> 39.42904981 | BC112: =IF(AS112>VCP!$E$29,AS112*VCP!$E$28,AS112) -> 39.31236571
A113: 111 | B113: 1.7 | D113: -1 | E113: 81 | F113: 6.2 | G113: 240 | H113: 38 | I113: 11 | L113: =IF($K$2=0,D113*ATAN(0.151977*(E113+8.313659)^0.5)+ATAN(D113+E113)-ATAN(E113-1.676331)+0.00391838*(E113)^(3/2)*ATAN(0.023101*E113)-4.686035,'Weather data'!C113) -> -2.563526311 | M113: 0.2894736842 | N113: 10.50940677 | O113: 0.4905932348 | R113: =O114*'Qsol calculation'!N113 -> 0 | S113: =O114*'Qsol calculation'!O113 -> 0 | T113: =O114*'Qsol calculation'!P113 -> 0 | U113: =O114*'Qsol calculation'!Q113 -> 0 | V113: =O114*'Qsol calculation'!R113 -> 0 | W113: =O114*'Qsol calculation'!S113 -> 0 | X113: =O114*'Qsol calculation'!T113 -> 0 | Y113: =O114*'Qsol calculation'!U113 -> 0 | AA113: 0 | AB113: 0 | AC113: 0 | AD113: 0 | AE113: 0 | AF113: 0 | AG113: 0 | AH113: 0 | AJ113: =N113*(1+COS(VCP!$N$22))/2 -> 8.180695608 | AL113: 8.180695608 | AM113: 8.180695608 | AN113: 8.180695608 | AO113: 8.180695608 | AP113: 8.180695608 | AQ113: 8.180695608 | AR113: 8.180695608 | AS113: 8.180695608 | AV113: =IF(AL113>VCP!$E$29,AL113*VCP!$E$28,AL113) -> 8.180695608 | AW113: =IF(AM113>VCP!$E$29,AM113*VCP!$E$28,AM113) -> 8.180695608 | AX113: =IF(AN113>VCP!$E$29,AN113*VCP!$E$28,AN113) -> 8.180695608 | AY113: =IF(AO113>VCP!$E$29,AO113*VCP!$E$28,AO113) -> 8.180695608 | AZ113: =IF(AP113>VCP!$E$29,AP113*VCP!$E$28,AP113) -> 8.180695608 | BA113: =IF(AQ113>VCP!$E$29,AQ113*VCP!$E$28,AQ113) -> 8.180695608 | BB113: =IF(AR113>VCP!$E$29,AR113*VCP!$E$28,AR113) -> 8.180695608 | BC113: =IF(AS113>VCP!$E$29,AS113*VCP!$E$28,AS113) -> 8.180695608
A114: 112 | B114: 1.8 | D114: -0.7 | E114: 82 | F114: 6.5 | G114: 240 | H114: 0 | I114: 0 | L114: =IF($K$2=0,D114*ATAN(0.151977*(E114+8.313659)^0.5)+ATAN(D114+E114)-ATAN(E114-1.676331)+0.00391838*(E114)^(3/2)*ATAN(0.023101*E114)-4.686035,'Weather data'!C114) -> -2.204435528 | M114: 0 | N114: 0 | O114: 0 | R114: =O115*'Qsol calculation'!N114 -> 0 | S114: =O115*'Qsol calculation'!O114 -> 0 | T114: =O115*'Qsol calculation'!P114 -> 0 | U114: =O115*'Qsol calculation'!Q114 -> 0 | V114: =O115*'Qsol calculation'!R114 -> 0 | W114: =O115*'Qsol calculation'!S114 -> 0 | X114: =O115*'Qsol calculation'!T114 -> 0 | Y114: =O115*'Qsol calculation'!U114 -> 0 | AA114: 0 | AB114: 0 | AC114: 0 | AD114: 0 | AE114: 0 | AF114: 0 | AG114: 0 | AH114: 0 | AJ114: =N114*(1+COS(VCP!$N$22))/2 -> 0 | AL114: 0 | AM114: 0 | AN114: 0 | AO114: 0 | AP114: 0 | AQ114: 0 | AR114: 0 | AS114: 0 | AV114: =IF(AL114>VCP!$E$29,AL114*VCP!$E$28,AL114) -> 0 | AW114: =IF(AM114>VCP!$E$29,AM114*VCP!$E$28,AM114) -> 0 | AX114: =IF(AN114>VCP!$E$29,AN114*VCP!$E$28,AN114) -> 0 | AY114: =IF(AO114>VCP!$E$29,AO114*VCP!$E$28,AO114) -> 0 | AZ114: =IF(AP114>VCP!$E$29,AP114*VCP!$E$28,AP114) -> 0 | BA114: =IF(AQ114>VCP!$E$29,AQ114*VCP!$E$28,AQ114) -> 0 | BB114: =IF(AR114>VCP!$E$29,AR114*VCP!$E$28,AR114) -> 0 | BC114: =IF(AS114>VCP!$E$29,AS114*VCP!$E$28,AS114) -> 0
A115: 113 | B115: 2 | D115: -0.3 | E115: 85 | F115: 6.9 | G115: 240 | H115: 0 | I115: 0 | L115: =IF($K$2=0,D115*ATAN(0.151977*(E115+8.313659)^0.5)+ATAN(D115+E115)-ATAN(E115-1.676331)+0.00391838*(E115)^(3/2)*ATAN(0.023101*E115)-4.686035,'Weather data'!C115) -> -1.600679492 | M115: 0 | N115: 0 | O115: 0 | R115: =O116*'Qsol calculation'!N115 -> 0 | S115: =O116*'Qsol calculation'!O115 -> 0 | T115: =O116*'Qsol calculation'!P115 -> 0 | U115: =O116*'Qsol calculation'!Q115 -> 0 | V115: =O116*'Qsol calculation'!R115 -> 0 | W115: =O116*'Qsol calculation'!S115 -> 0 | X115: =O116*'Qsol calculation'!T115 -> 0 | Y115: =O116*'Qsol calculation'!U115 -> 0 | AA115: 0 | AB115: 0 | AC115: 0 | AD115: 0 | AE115: 0 | AF115: 0 | AG115: 0 | AH115: 0 | AJ115: =N115*(1+COS(VCP!$N$22))/2 -> 0 | AL115: 0 | AM115: 0 | AN115: 0 | AO115: 0 | AP115: 0 | AQ115: 0 | AR115: 0 | AS115: 0 | AV115: =IF(AL115>VCP!$E$29,AL115*VCP!$E$28,AL115) -> 0 | AW115: =IF(AM115>VCP!$E$29,AM115*VCP!$E$28,AM115) -> 0 | AX115: =IF(AN115>VCP!$E$29,AN115*VCP!$E$28,AN115) -> 0 | AY115: =IF(AO115>VCP!$E$29,AO115*VCP!$E$28,AO115) -> 0 | AZ115: =IF(AP115>VCP!$E$29,AP115*VCP!$E$28,AP115) -> 0 | BA115: =IF(AQ115>VCP!$E$29,AQ115*VCP!$E$28,AQ115) -> 0 | BB115: =IF(AR115>VCP!$E$29,AR115*VCP!$E$28,AR115) -> 0 | BC115: =IF(AS115>VCP!$E$29,AS115*VCP!$E$28,AS115) -> 0
A116: 114 | B116: 2.1 | D116: 0.1 | E116: 87 | F116: 7.2 | G116: 230 | H116: 0 | I116: 0 | L116: =IF($K$2=0,D116*ATAN(0.151977*(E116+8.313659)^0.5)+ATAN(D116+E116)-ATAN(E116-1.676331)+0.00391838*(E116)^(3/2)*ATAN(0.023101*E116)-4.686035,'Weather data'!C116) -> -1.061426354 | M116: 0 | N116: 0 | O116: 0 | R116: =O117*'Qsol calculation'!N116 -> 0 | S116: =O117*'Qsol calculation'!O116 -> 0 | T116: =O117*'Qsol calculation'!P116 -> 0 | U116: =O117*'Qsol calculation'!Q116 -> 0 | V116: =O117*'Qsol calculation'!R116 -> 0 | W116: =O117*'Qsol calculation'!S116 -> 0 | X116: =O117*'Qsol calculation'!T116 -> 0 | Y116: =O117*'Qsol calculation'!U116 -> 0 | AA116: 0 | AB116: 0 | AC116: 0 | AD116: 0 | AE116: 0 | AF116: 0 | AG116: 0 | AH116: 0 | AJ116: =N116*(1+COS(VCP!$N$22))/2 -> 0 | AL116: 0 | AM116: 0 | AN116: 0 | AO116: 0 | AP116: 0 | AQ116: 0 | AR116: 0 | AS116: 0 | AV116: =IF(AL116>VCP!$E$29,AL116*VCP!$E$28,AL116) -> 0 | AW116: =IF(AM116>VCP!$E$29,AM116*VCP!$E$28,AM116) -> 0 | AX116: =IF(AN116>VCP!$E$29,AN116*VCP!$E$28,AN116) -> 0 | AY116: =IF(AO116>VCP!$E$29,AO116*VCP!$E$28,AO116) -> 0 | AZ116: =IF(AP116>VCP!$E$29,AP116*VCP!$E$28,AP116) -> 0 | BA116: =IF(AQ116>VCP!$E$29,AQ116*VCP!$E$28,AQ116) -> 0 | BB116: =IF(AR116>VCP!$E$29,AR116*VCP!$E$28,AR116) -> 0 | BC116: =IF(AS116>VCP!$E$29,AS116*VCP!$E$28,AS116) -> 0
A117: 115 | B117: 2.1 | D117: 0 | E117: 86 | F117: 8.2 | G117: 230 | H117: 0 | I117: 0 | L117: =IF($K$2=0,D117*ATAN(0.151977*(E117+8.313659)^0.5)+ATAN(D117+E117)-ATAN(E117-1.676331)+0.00391838*(E117)^(3/2)*ATAN(0.023101*E117)-4.686035,'Weather data'!C117) -> -1.234296483 | M117: 0 | N117: 0 | O117: 0 | R117: =O118*'Qsol calculation'!N117 -> 0 | S117: =O118*'Qsol calculation'!O117 -> 0 | T117: =O118*'Qsol calculation'!P117 -> 0 | U117: =O118*'Qsol calculation'!Q117 -> 0 | V117: =O118*'Qsol calculation'!R117 -> 0 | W117: =O118*'Qsol calculation'!S117 -> 0 | X117: =O118*'Qsol calculation'!T117 -> 0 | Y117: =O118*'Qsol calculation'!U117 -> 0 | AA117: 0 | AB117: 0 | AC117: 0 | AD117: 0 | AE117: 0 | AF117: 0 | AG117: 0 | AH117: 0 | AJ117: =N117*(1+COS(VCP!$N$22))/2 -> 0 | AL117: 0 | AM117: 0 | AN117: 0 | AO117: 0 | AP117: 0 | AQ117: 0 | AR117: 0 | AS117: 0 | AV117: =IF(AL117>VCP!$E$29,AL117*VCP!$E$28,AL117) -> 0 | AW117: =IF(AM117>VCP!$E$29,AM117*VCP!$E$28,AM117) -> 0 | AX117: =IF(AN117>VCP!$E$29,AN117*VCP!$E$28,AN117) -> 0 | AY117: =IF(AO117>VCP!$E$29,AO117*VCP!$E$28,AO117) -> 0 | AZ117: =IF(AP117>VCP!$E$29,AP117*VCP!$E$28,AP117) -> 0 | BA117: =IF(AQ117>VCP!$E$29,AQ117*VCP!$E$28,AQ117) -> 0 | BB117: =IF(AR117>VCP!$E$29,AR117*VCP!$E$28,AR117) -> 0 | BC117: =IF(AS117>VCP!$E$29,AS117*VCP!$E$28,AS117) -> 0
A118: 116 | B118: 2.2 | D118: 0 | E118: 86 | F118: 9.3 | G118: 230 | H118: 0 | I118: 0 | L118: =IF($K$2=0,D118*ATAN(0.151977*(E118+8.313659)^0.5)+ATAN(D118+E118)-ATAN(E118-1.676331)+0.00391838*(E118)^(3/2)*ATAN(0.023101*E118)-4.686035,'Weather data'!C118) -> -1.234296483 | M118: 0 | N118: 0 | O118: 0 | R118: =O119*'Qsol calculation'!N118 -> 0 | S118: =O119*'Qsol calculation'!O118 -> 0 | T118: =O119*'Qsol calculation'!P118 -> 0 | U118: =O119*'Qsol calculation'!Q118 -> 0 | V118: =O119*'Qsol calculation'!R118 -> 0 | W118: =O119*'Qsol calculation'!S118 -> 0 | X118: =O119*'Qsol calculation'!T118 -> 0 | Y118: =O119*'Qsol calculation'!U118 -> 0 | AA118: 0 | AB118: 0 | AC118: 0 | AD118: 0 | AE118: 0 | AF118: 0 | AG118: 0 | AH118: 0 | AJ118: =N118*(1+COS(VCP!$N$22))/2 -> 0 | AL118: 0 | AM118: 0 | AN118: 0 | AO118: 0 | AP118: 0 | AQ118: 0 | AR118: 0 | AS118: 0 | AV118: =IF(AL118>VCP!$E$29,AL118*VCP!$E$28,AL118) -> 0 | AW118: =IF(AM118>VCP!$E$29,AM118*VCP!$E$28,AM118) -> 0 | AX118: =IF(AN118>VCP!$E$29,AN118*VCP!$E$28,AN118) -> 0 | AY118: =IF(AO118>VCP!$E$29,AO118*VCP!$E$28,AO118) -> 0 | AZ118: =IF(AP118>VCP!$E$29,AP118*VCP!$E$28,AP118) -> 0 | BA118: =IF(AQ118>VCP!$E$29,AQ118*VCP!$E$28,AQ118) -> 0 | BB118: =IF(AR118>VCP!$E$29,AR118*VCP!$E$28,AR118) -> 0 | BC118: =IF(AS118>VCP!$E$29,AS118*VCP!$E$28,AS118) -> 0
A119: 117 | B119: 2.2 | D119: 0 | E119: 85 | F119: 10.3 | G119: 210 | H119: 0 | I119: 0 | L119: =IF($K$2=0,D119*ATAN(0.151977*(E119+8.313659)^0.5)+ATAN(D119+E119)-ATAN(E119-1.676331)+0.00391838*(E119)^(3/2)*ATAN(0.023101*E119)-4.686035,'Weather data'!C119) -> -1.308789888 | M119: 0 | N119: 0 | O119: 0 | R119: =O120*'Qsol calculation'!N119 -> 0 | S119: =O120*'Qsol calculation'!O119 -> 0 | T119: =O120*'Qsol calculation'!P119 -> 0 | U119: =O120*'Qsol calculation'!Q119 -> 0 | V119: =O120*'Qsol calculation'!R119 -> 0 | W119: =O120*'Qsol calculation'!S119 -> 0 | X119: =O120*'Qsol calculation'!T119 -> 0 | Y119: =O120*'Qsol calculation'!U119 -> 0 | AA119: 0 | AB119: 0 | AC119: 0 | AD119: 0 | AE119: 0 | AF119: 0 | AG119: 0 | AH119: 0 | AJ119: =N119*(1+COS(VCP!$N$22))/2 -> 0 | AL119: 0 | AM119: 0 | AN119: 0 | AO119: 0 | AP119: 0 | AQ119: 0 | AR119: 0 | AS119: 0 | AV119: =IF(AL119>VCP!$E$29,AL119*VCP!$E$28,AL119) -> 0 | AW119: =IF(AM119>VCP!$E$29,AM119*VCP!$E$28,AM119) -> 0 | AX119: =IF(AN119>VCP!$E$29,AN119*VCP!$E$28,AN119) -> 0 | AY119: =IF(AO119>VCP!$E$29,AO119*VCP!$E$28,AO119) -> 0 | AZ119: =IF(AP119>VCP!$E$29,AP119*VCP!$E$28,AP119) -> 0 | BA119: =IF(AQ119>VCP!$E$29,AQ119*VCP!$E$28,AQ119) -> 0 | BB119: =IF(AR119>VCP!$E$29,AR119*VCP!$E$28,AR119) -> 0 | BC119: =IF(AS119>VCP!$E$29,AS119*VCP!$E$28,AS119) -> 0
A120: 118 | B120: 2.1 | D120: 0.1 | E120: 87 | F120: 10.3 | G120: 210 | H120: 0 | I120: 0 | L120: =IF($K$2=0,D120*ATAN(0.151977*(E120+8.313659)^0.5)+ATAN(D120+E120)-ATAN(E120-1.676331)+0.00391838*(E120)^(3/2)*ATAN(0.023101*E120)-4.686035,'Weather data'!C120) -> -1.061426354 | M120: 0 | N120: 0 | O120: 0 | R120: =O121*'Qsol calculation'!N120 -> 0 | S120: =O121*'Qsol calculation'!O120 -> 0 | T120: =O121*'Qsol calculation'!P120 -> 0 | U120: =O121*'Qsol calculation'!Q120 -> 0 | V120: =O121*'Qsol calculation'!R120 -> 0 | W120: =O121*'Qsol calculation'!S120 -> 0 | X120: =O121*'Qsol calculation'!T120 -> 0 | Y120: =O121*'Qsol calculation'!U120 -> 0 | AA120: 0 | AB120: 0 | AC120: 0 | AD120: 0 | AE120: 0 | AF120: 0 | AG120: 0 | AH120: 0 | AJ120: =N120*(1+COS(VCP!$N$22))/2 -> 0 | AL120: 0 | AM120: 0 | AN120: 0 | AO120: 0 | AP120: 0 | AQ120: 0 | AR120: 0 | AS120: 0 | AV120: =IF(AL120>VCP!$E$29,AL120*VCP!$E$28,AL120) -> 0 | AW120: =IF(AM120>VCP!$E$29,AM120*VCP!$E$28,AM120) -> 0 | AX120: =IF(AN120>VCP!$E$29,AN120*VCP!$E$28,AN120) -> 0 | AY120: =IF(AO120>VCP!$E$29,AO120*VCP!$E$28,AO120) -> 0 | AZ120: =IF(AP120>VCP!$E$29,AP120*VCP!$E$28,AP120) -> 0 | BA120: =IF(AQ120>VCP!$E$29,AQ120*VCP!$E$28,AQ120) -> 0 | BB120: =IF(AR120>VCP!$E$29,AR120*VCP!$E$28,AR120) -> 0 | BC120: =IF(AS120>VCP!$E$29,AS120*VCP!$E$28,AS120) -> 0
A121: 119 | B121: 1.9 | D121: 0.3 | E121: 89 | F121: 10.3 | G121: 210 | H121: 0 | I121: 0 | L121: =IF($K$2=0,D121*ATAN(0.151977*(E121+8.313659)^0.5)+ATAN(D121+E121)-ATAN(E121-1.676331)+0.00391838*(E121)^(3/2)*ATAN(0.023101*E121)-4.686035,'Weather data'!C121) -> -0.7125008208 | M121: 0 | N121: 0 | O121: 0 | R121: =O122*'Qsol calculation'!N121 -> 0 | S121: =O122*'Qsol calculation'!O121 -> 0 | T121: =O122*'Qsol calculation'!P121 -> 0 | U121: =O122*'Qsol calculation'!Q121 -> 0 | V121: =O122*'Qsol calculation'!R121 -> 0 | W121: =O122*'Qsol calculation'!S121 -> 0 | X121: =O122*'Qsol calculation'!T121 -> 0 | Y121: =O122*'Qsol calculation'!U121 -> 0 | AA121: 0 | AB121: 0 | AC121: 0 | AD121: 0 | AE121: 0 | AF121: 0 | AG121: 0 | AH121: 0 | AJ121: =N121*(1+COS(VCP!$N$22))/2 -> 0 | AL121: 0 | AM121: 0 | AN121: 0 | AO121: 0 | AP121: 0 | AQ121: 0 | AR121: 0 | AS121: 0 | AV121: =IF(AL121>VCP!$E$29,AL121*VCP!$E$28,AL121) -> 0 | AW121: =IF(AM121>VCP!$E$29,AM121*VCP!$E$28,AM121) -> 0 | AX121: =IF(AN121>VCP!$E$29,AN121*VCP!$E$28,AN121) -> 0 | AY121: =IF(AO121>VCP!$E$29,AO121*VCP!$E$28,AO121) -> 0 | AZ121: =IF(AP121>VCP!$E$29,AP121*VCP!$E$28,AP121) -> 0 | BA121: =IF(AQ121>VCP!$E$29,AQ121*VCP!$E$28,AQ121) -> 0 | BB121: =IF(AR121>VCP!$E$29,AR121*VCP!$E$28,AR121) -> 0 | BC121: =IF(AS121>VCP!$E$29,AS121*VCP!$E$28,AS121) -> 0
A122: 120 | B122: 1.8 | D122: 0.5 | E122: 91 | F122: 10.3 | G122: 230 | H122: 0 | I122: 0 | L122: =IF($K$2=0,D122*ATAN(0.151977*(E122+8.313659)^0.5)+ATAN(D122+E122)-ATAN(E122-1.676331)+0.00391838*(E122)^(3/2)*ATAN(0.023101*E122)-4.686035,'Weather data'!C122) -> -0.3594170741 | M122: 0 | N122: 0 | O122: 0 | R122: =O123*'Qsol calculation'!N122 -> 0 | S122: =O123*'Qsol calculation'!O122 -> 0 | T122: =O123*'Qsol calculation'!P122 -> 0 | U122: =O123*'Qsol calculation'!Q122 -> 0 | V122: =O123*'Qsol calculation'!R122 -> 0 | W122: =O123*'Qsol calculation'!S122 -> 0 | X122: =O123*'Qsol calculation'!T122 -> 0 | Y122: =O123*'Qsol calculation'!U122 -> 0 | AA122: 0 | AB122: 0 | AC122: 0 | AD122: 0 | AE122: 0 | AF122: 0 | AG122: 0 | AH122: 0 | AJ122: =N122*(1+COS(VCP!$N$22))/2 -> 0 | AL122: 0 | AM122: 0 | AN122: 0 | AO122: 0 | AP122: 0 | AQ122: 0 | AR122: 0 | AS122: 0 | AV122: =IF(AL122>VCP!$E$29,AL122*VCP!$E$28,AL122) -> 0 | AW122: =IF(AM122>VCP!$E$29,AM122*VCP!$E$28,AM122) -> 0 | AX122: =IF(AN122>VCP!$E$29,AN122*VCP!$E$28,AN122) -> 0 | AY122: =IF(AO122>VCP!$E$29,AO122*VCP!$E$28,AO122) -> 0 | AZ122: =IF(AP122>VCP!$E$29,AP122*VCP!$E$28,AP122) -> 0 | BA122: =IF(AQ122>VCP!$E$29,AQ122*VCP!$E$28,AQ122) -> 0 | BB122: =IF(AR122>VCP!$E$29,AR122*VCP!$E$28,AR122) -> 0 | BC122: =IF(AS122>VCP!$E$29,AS122*VCP!$E$28,AS122) -> 0
A123: 121 | B123: 2.2 | D123: 0.8 | E123: 91 | F123: 9.3 | G123: 230 | H123: 0 | I123: 0 | L123: =IF($K$2=0,D123*ATAN(0.151977*(E123+8.313659)^0.5)+ATAN(D123+E123)-ATAN(E123-1.676331)+0.00391838*(E123)^(3/2)*ATAN(0.023101*E123)-4.686035,'Weather data'!C123) -> -0.06320953592 | M123: 0 | N123: 0 | O123: 0 | R123: =O124*'Qsol calculation'!N123 -> 0 | S123: =O124*'Qsol calculation'!O123 -> 0 | T123: =O124*'Qsol calculation'!P123 -> 0 | U123: =O124*'Qsol calculation'!Q123 -> 0 | V123: =O124*'Qsol calculation'!R123 -> 0 | W123: =O124*'Qsol calculation'!S123 -> 0 | X123: =O124*'Qsol calculation'!T123 -> 0 | Y123: =O124*'Qsol calculation'!U123 -> 0 | AA123: 0 | AB123: 0 | AC123: 0 | AD123: 0 | AE123: 0 | AF123: 0 | AG123: 0 | AH123: 0 | AJ123: =N123*(1+COS(VCP!$N$22))/2 -> 0 | AL123: 0 | AM123: 0 | AN123: 0 | AO123: 0 | AP123: 0 | AQ123: 0 | AR123: 0 | AS123: 0 | AV123: =IF(AL123>VCP!$E$29,AL123*VCP!$E$28,AL123) -> 0 | AW123: =IF(AM123>VCP!$E$29,AM123*VCP!$E$28,AM123) -> 0 | AX123: =IF(AN123>VCP!$E$29,AN123*VCP!$E$28,AN123) -> 0 | AY123: =IF(AO123>VCP!$E$29,AO123*VCP!$E$28,AO123) -> 0 | AZ123: =IF(AP123>VCP!$E$29,AP123*VCP!$E$28,AP123) -> 0 | BA123: =IF(AQ123>VCP!$E$29,AQ123*VCP!$E$28,AQ123) -> 0 | BB123: =IF(AR123>VCP!$E$29,AR123*VCP!$E$28,AR123) -> 0 | BC123: =IF(AS123>VCP!$E$29,AS123*VCP!$E$28,AS123) -> 0
A124: 122 | B124: 2.5 | D124: 1.2 | E124: 91 | F124: 8.2 | G124: 230 | H124: 0 | I124: 0 | L124: =IF($K$2=0,D124*ATAN(0.151977*(E124+8.313659)^0.5)+ATAN(D124+E124)-ATAN(E124-1.676331)+0.00391838*(E124)^(3/2)*ATAN(0.023101*E124)-4.686035,'Weather data'!C124) -> 0.3317334869 | M124: 0 | N124: 0 | O124: 0 | R124: =O125*'Qsol calculation'!N124 -> 0 | S124: =O125*'Qsol calculation'!O124 -> 0 | T124: =O125*'Qsol calculation'!P124 -> 0 | U124: =O125*'Qsol calculation'!Q124 -> 0 | V124: =O125*'Qsol calculation'!R124 -> 0 | W124: =O125*'Qsol calculation'!S124 -> 0 | X124: =O125*'Qsol calculation'!T124 -> 0 | Y124: =O125*'Qsol calculation'!U124 -> 0 | AA124: 0 | AB124: 0 | AC124: 0 | AD124: 0 | AE124: 0 | AF124: 0 | AG124: 0 | AH124: 0 | AJ124: =N124*(1+COS(VCP!$N$22))/2 -> 0 | AL124: 0 | AM124: 0 | AN124: 0 | AO124: 0 | AP124: 0 | AQ124: 0 | AR124: 0 | AS124: 0 | AV124: =IF(AL124>VCP!$E$29,AL124*VCP!$E$28,AL124) -> 0 | AW124: =IF(AM124>VCP!$E$29,AM124*VCP!$E$28,AM124) -> 0 | AX124: =IF(AN124>VCP!$E$29,AN124*VCP!$E$28,AN124) -> 0 | AY124: =IF(AO124>VCP!$E$29,AO124*VCP!$E$28,AO124) -> 0 | AZ124: =IF(AP124>VCP!$E$29,AP124*VCP!$E$28,AP124) -> 0 | BA124: =IF(AQ124>VCP!$E$29,AQ124*VCP!$E$28,AQ124) -> 0 | BB124: =IF(AR124>VCP!$E$29,AR124*VCP!$E$28,AR124) -> 0 | BC124: =IF(AS124>VCP!$E$29,AS124*VCP!$E$28,AS124) -> 0
A125: 123 | B125: 2.9 | D125: 1.5 | E125: 90 | F125: 7.2 | G125: 270 | H125: 0 | I125: 0 | L125: =IF($K$2=0,D125*ATAN(0.151977*(E125+8.313659)^0.5)+ATAN(D125+E125)-ATAN(E125-1.676331)+0.00391838*(E125)^(3/2)*ATAN(0.023101*E125)-4.686035,'Weather data'!C125) -> 0.5470622259 | M125: 0 | N125: 0 | O125: 0 | R125: =O126*'Qsol calculation'!N125 -> 0 | S125: =O126*'Qsol calculation'!O125 -> 0 | T125: =O126*'Qsol calculation'!P125 -> 0 | U125: =O126*'Qsol calculation'!Q125 -> 0 | V125: =O126*'Qsol calculation'!R125 -> 0 | W125: =O126*'Qsol calculation'!S125 -> 0 | X125: =O126*'Qsol calculation'!T125 -> 0 | Y125: =O126*'Qsol calculation'!U125 -> 0 | AA125: 0 | AB125: 0 | AC125: 0 | AD125: 0 | AE125: 0 | AF125: 0 | AG125: 0 | AH125: 0 | AJ125: =N125*(1+COS(VCP!$N$22))/2 -> 0 | AL125: 0 | AM125: 0 | AN125: 0 | AO125: 0 | AP125: 0 | AQ125: 0 | AR125: 0 | AS125: 0 | AV125: =IF(AL125>VCP!$E$29,AL125*VCP!$E$28,AL125) -> 0 | AW125: =IF(AM125>VCP!$E$29,AM125*VCP!$E$28,AM125) -> 0 | AX125: =IF(AN125>VCP!$E$29,AN125*VCP!$E$28,AN125) -> 0 | AY125: =IF(AO125>VCP!$E$29,AO125*VCP!$E$28,AO125) -> 0 | AZ125: =IF(AP125>VCP!$E$29,AP125*VCP!$E$28,AP125) -> 0 | BA125: =IF(AQ125>VCP!$E$29,AQ125*VCP!$E$28,AQ125) -> 0 | BB125: =IF(AR125>VCP!$E$29,AR125*VCP!$E$28,AR125) -> 0 | BC125: =IF(AS125>VCP!$E$29,AS125*VCP!$E$28,AS125) -> 0
A126: 124 | B126: 2.9 | D126: 1.5 | E126: 90 | F126: 7.2 | G126: 270 | H126: 0 | I126: 0 | L126: =IF($K$2=0,D126*ATAN(0.151977*(E126+8.313659)^0.5)+ATAN(D126+E126)-ATAN(E126-1.676331)+0.00391838*(E126)^(3/2)*ATAN(0.023101*E126)-4.686035,'Weather data'!C126) -> 0.5470622259 | M126: 0 | N126: 0 | O126: 0 | R126: =O127*'Qsol calculation'!N126 -> 0 | S126: =O127*'Qsol calculation'!O126 -> 0 | T126: =O127*'Qsol calculation'!P126 -> 0 | U126: =O127*'Qsol calculation'!Q126 -> 0 | V126: =O127*'Qsol calculation'!R126 -> 0 | W126: =O127*'Qsol calculation'!S126 -> 0 | X126: =O127*'Qsol calculation'!T126 -> 0 | Y126: =O127*'Qsol calculation'!U126 -> 0 | AA126: 0 | AB126: 0 | AC126: 0 | AD126: 0 | AE126: 0 | AF126: 0 | AG126: 0 | AH126: 0 | AJ126: =N126*(1+COS(VCP!$N$22))/2 -> 0 | AL126: 0 | AM126: 0 | AN126: 0 | AO126: 0 | AP126: 0 | AQ126: 0 | AR126: 0 | AS126: 0 | AV126: =IF(AL126>VCP!$E$29,AL126*VCP!$E$28,AL126) -> 0 | AW126: =IF(AM126>VCP!$E$29,AM126*VCP!$E$28,AM126) -> 0 | AX126: =IF(AN126>VCP!$E$29,AN126*VCP!$E$28,AN126) -> 0 | AY126: =IF(AO126>VCP!$E$29,AO126*VCP!$E$28,AO126) -> 0 | AZ126: =IF(AP126>VCP!$E$29,AP126*VCP!$E$28,AP126) -> 0 | BA126: =IF(AQ126>VCP!$E$29,AQ126*VCP!$E$28,AQ126) -> 0 | BB126: =IF(AR126>VCP!$E$29,AR126*VCP!$E$28,AR126) -> 0 | BC126: =IF(AS126>VCP!$E$29,AS126*VCP!$E$28,AS126) -> 0
A127: 125 | B127: 2.9 | D127: 1.5 | E127: 90 | F127: 7.2 | G127: 270 | H127: 0 | I127: 0 | L127: =IF($K$2=0,D127*ATAN(0.151977*(E127+8.313659)^0.5)+ATAN(D127+E127)-ATAN(E127-1.676331)+0.00391838*(E127)^(3/2)*ATAN(0.023101*E127)-4.686035,'Weather data'!C127) -> 0.5470622259 | M127: 0 | N127: 0 | O127: 0 | R127: =O128*'Qsol calculation'!N127 -> 0 | S127: =O128*'Qsol calculation'!O127 -> 0 | T127: =O128*'Qsol calculation'!P127 -> 0 | U127: =O128*'Qsol calculation'!Q127 -> 0 | V127: =O128*'Qsol calculation'!R127 -> 0 | W127: =O128*'Qsol calculation'!S127 -> 0 | X127: =O128*'Qsol calculation'!T127 -> 0 | Y127: =O128*'Qsol calculation'!U127 -> 0 | AA127: 0 | AB127: 0 | AC127: 0 | AD127: 0 | AE127: 0 | AF127: 0 | AG127: 0 | AH127: 0 | AJ127: =N127*(1+COS(VCP!$N$22))/2 -> 0 | AL127: 0 | AM127: 0 | AN127: 0 | AO127: 0 | AP127: 0 | AQ127: 0 | AR127: 0 | AS127: 0 | AV127: =IF(AL127>VCP!$E$29,AL127*VCP!$E$28,AL127) -> 0 | AW127: =IF(AM127>VCP!$E$29,AM127*VCP!$E$28,AM127) -> 0 | AX127: =IF(AN127>VCP!$E$29,AN127*VCP!$E$28,AN127) -> 0 | AY127: =IF(AO127>VCP!$E$29,AO127*VCP!$E$28,AO127) -> 0 | AZ127: =IF(AP127>VCP!$E$29,AP127*VCP!$E$28,AP127) -> 0 | BA127: =IF(AQ127>VCP!$E$29,AQ127*VCP!$E$28,AQ127) -> 0 | BB127: =IF(AR127>VCP!$E$29,AR127*VCP!$E$28,AR127) -> 0 | BC127: =IF(AS127>VCP!$E$29,AS127*VCP!$E$28,AS127) -> 0
A128: 126 | B128: 2.9 | D128: 1.5 | E128: 90 | F128: 7.2 | G128: 260 | H128: 0 | I128: 0 | L128: =IF($K$2=0,D128*ATAN(0.151977*(E128+8.313659)^0.5)+ATAN(D128+E128)-ATAN(E128-1.676331)+0.00391838*(E128)^(3/2)*ATAN(0.023101*E128)-4.686035,'Weather data'!C128) -> 0.5470622259 | M128: 0 | N128: 0 | O128: 0 | R128: =O129*'Qsol calculation'!N128 -> 0 | S128: =O129*'Qsol calculation'!O128 -> 0 | T128: =O129*'Qsol calculation'!P128 -> 0 | U128: =O129*'Qsol calculation'!Q128 -> 0 | V128: =O129*'Qsol calculation'!R128 -> 0 | W128: =O129*'Qsol calculation'!S128 -> 0 | X128: =O129*'Qsol calculation'!T128 -> 0 | Y128: =O129*'Qsol calculation'!U128 -> 0 | AA128: 0 | AB128: 0 | AC128: 0 | AD128: 0 | AE128: 0 | AF128: 0 | AG128: 0 | AH128: 0 | AJ128: =N128*(1+COS(VCP!$N$22))/2 -> 0 | AL128: 0 | AM128: 0 | AN128: 0 | AO128: 0 | AP128: 0 | AQ128: 0 | AR128: 0 | AS128: 0 | AV128: =IF(AL128>VCP!$E$29,AL128*VCP!$E$28,AL128) -> 0 | AW128: =IF(AM128>VCP!$E$29,AM128*VCP!$E$28,AM128) -> 0 | AX128: =IF(AN128>VCP!$E$29,AN128*VCP!$E$28,AN128) -> 0 | AY128: =IF(AO128>VCP!$E$29,AO128*VCP!$E$28,AO128) -> 0 | AZ128: =IF(AP128>VCP!$E$29,AP128*VCP!$E$28,AP128) -> 0 | BA128: =IF(AQ128>VCP!$E$29,AQ128*VCP!$E$28,AQ128) -> 0 | BB128: =IF(AR128>VCP!$E$29,AR128*VCP!$E$28,AR128) -> 0 | BC128: =IF(AS128>VCP!$E$29,AS128*VCP!$E$28,AS128) -> 0
A129: 127 | B129: 3.2 | D129: 1.5 | E129: 88 | F129: 7.2 | G129: 260 | H129: 0 | I129: 0 | L129: =IF($K$2=0,D129*ATAN(0.151977*(E129+8.313659)^0.5)+ATAN(D129+E129)-ATAN(E129-1.676331)+0.00391838*(E129)^(3/2)*ATAN(0.023101*E129)-4.686035,'Weather data'!C129) -> 0.3868911736 | M129: 0 | N129: 0 | O129: 0 | R129: =O130*'Qsol calculation'!N129 -> -0.01574078219 | S129: =O130*'Qsol calculation'!O129 -> -0.008285893081 | T129: =O130*'Qsol calculation'!P129 -> -0.01698942502 | U129: =O130*'Qsol calculation'!Q129 -> 0.005271402645 | V129: =O130*'Qsol calculation'!R129 -> 0.002138435977 | W129: =O130*'Qsol calculation'!S129 -> -0.005271402645 | X129: =O130*'Qsol calculation'!T129 -> 0.01698942502 | Y129: =O130*'Qsol calculation'!U129 -> 0.01574078219 | AA129: 0 | AB129: 0 | AC129: 0 | AD129: 0.005271402645 | AE129: 0.002138435977 | AF129: 0 | AG129: 0.01698942502 | AH129: 0.01574078219 | AJ129: =N129*(1+COS(VCP!$N$22))/2 -> 0 | AL129: 0 | AM129: 0 | AN129: 0 | AO129: 0.005271402645 | AP129: 0.002138435977 | AQ129: 0 | AR129: 0.01698942502 | AS129: 0.01574078219 | AV129: =IF(AL129>VCP!$E$29,AL129*VCP!$E$28,AL129) -> 0 | AW129: =IF(AM129>VCP!$E$29,AM129*VCP!$E$28,AM129) -> 0 | AX129: =IF(AN129>VCP!$E$29,AN129*VCP!$E$28,AN129) -> 0 | AY129: =IF(AO129>VCP!$E$29,AO129*VCP!$E$28,AO129) -> 0.005271402645 | AZ129: =IF(AP129>VCP!$E$29,AP129*VCP!$E$28,AP129) -> 0.002138435977 | BA129: =IF(AQ129>VCP!$E$29,AQ129*VCP!$E$28,AQ129) -> 0 | BB129: =IF(AR129>VCP!$E$29,AR129*VCP!$E$28,AR129) -> 0.01698942502 | BC129: =IF(AS129>VCP!$E$29,AS129*VCP!$E$28,AS129) -> 0.01574078219
A130: 128 | B130: 3.5 | D130: 1.4 | E130: 86 | F130: 7.2 | G130: 260 | H130: 5 | I130: 1 | L130: =IF($K$2=0,D130*ATAN(0.151977*(E130+8.313659)^0.5)+ATAN(D130+E130)-ATAN(E130-1.676331)+0.00391838*(E130)^(3/2)*ATAN(0.023101*E130)-4.686035,'Weather data'!C130) -> 0.1313151708 | M130: =IF(IFERROR(I130/H130,0)>1,0,IFERROR(I130/H130,0)) -> 0.2 | N130: =IF(M130<=0.22,((1-0.09*M130)*I130),(0.9511-0.1604*M130+(4.388*(M130)^2)-(16.638*(M130)^3)+(12.336*(M130)^(4)))*I130) -> 0.982 | O130: =I130-N130 -> 0.018 | R130: =O131*'Qsol calculation'!N130 -> -0.2132179885 | S130: =O131*'Qsol calculation'!O130 -> -0.1777131057 | T130: =O131*'Qsol calculation'!P130 -> -0.2764300277 | U130: =O131*'Qsol calculation'!Q130 -> 0.0251057434 | V130: =O131*'Qsol calculation'!R130 -> 0.01387625496 | W130: =O131*'Qsol calculation'!S130 -> -0.0251057434 | X130: =O131*'Qsol calculation'!T130 -> 0.2764300277 | Y130: =O131*'Qsol calculation'!U130 -> 0.2132179885 | AA130: 0 | AB130: 0 | AC130: 0 | AD130: 0.0251057434 | AE130: 0.01387625496 | AF130: 0 | AG130: 0.2764300277 | AH130: 0.2132179885 | AJ130: =N130*(1+COS(VCP!$N$22))/2 -> 0.7644050009 | AL130: =AA130+AJ130 -> 0.7644050009 | AM130: =AB130+AJ130 -> 0.7644050009 | AN130: =AC130+AJ130 -> 0.7644050009 | AO130: =AD130+AJ130 -> 0.7895107443 | AP130: =AE130+AJ130 -> 0.7782812558 | AQ130: =AF130+AJ130 -> 0.7644050009 | AR130: =AG130+AJ130 -> 1.040835029 | AS130: =AH130+AJ130 -> 0.9776229894 | AV130: =IF(AL130>VCP!$E$29,AL130*VCP!$E$28,AL130) -> 0.7644050009 | AW130: =IF(AM130>VCP!$E$29,AM130*VCP!$E$28,AM130) -> 0.7644050009 | AX130: =IF(AN130>VCP!$E$29,AN130*VCP!$E$28,AN130) -> 0.7644050009 | AY130: =IF(AO130>VCP!$E$29,AO130*VCP!$E$28,AO130) -> 0.7895107443 | AZ130: =IF(AP130>VCP!$E$29,AP130*VCP!$E$28,AP130) -> 0.7782812558 | BA130: =IF(AQ130>VCP!$E$29,AQ130*VCP!$E$28,AQ130) -> 0.7644050009 | BB130: =IF(AR130>VCP!$E$29,AR130*VCP!$E$28,AR130) -> 1.040835029 | BC130: =IF(AS130>VCP!$E$29,AS130*VCP!$E$28,AS130) -> 0.9776229894
A131: 129 | B131: 3.8 | D131: 1.4 | E131: 84 | F131: 7.2 | G131: 260 | H131: 105 | I131: 18 | L131: =IF($K$2=0,D131*ATAN(0.151977*(E131+8.313659)^0.5)+ATAN(D131+E131)-ATAN(E131-1.676331)+0.00391838*(E131)^(3/2)*ATAN(0.023101*E131)-4.686035,'Weather data'!C131) -> -0.02405030419 | M131: 0.1714285714 | N131: 17.72228571 | O131: 0.2777142857 | R131: =O132*'Qsol calculation'!N131 -> -0.6126539038 | S131: =O132*'Qsol calculation'!O131 -> -0.7955558068 | T131: =O132*'Qsol calculation'!P131 -> -0.9957546358 | U131: =O132*'Qsol calculation'!Q131 -> -0.1293311759 | V131: =O132*'Qsol calculation'!R131 -> -0.007779953919 | W131: =O132*'Qsol calculation'!S131 -> 0.1293311759 | X131: =O132*'Qsol calculation'!T131 -> 0.9957546358 | Y131: =O132*'Qsol calculation'!U131 -> 0.6126539038 | AA131: =IF(R131<=0,0,R131) -> 0 | AB131: =IF(S131<=0,0,S131) -> 0 | AC131: =IF(T131<=0,0,T131) -> 0 | AD131: =IF(U131<=0,0,U131) -> 0 | AE131: =IF(V131<=0,0,V131) -> 0 | AF131: =IF(W131<=0,0,W131) -> 0.1293311759 | AG131: =IF(X131<=0,0,X131) -> 0.9957546358 | AH131: =IF(Y131<=0,0,Y131) -> 0.6126539038 | AJ131: =N131*(1+COS(VCP!$N$22))/2 -> 13.79531958 | AL131: 13.79531958 | AM131: 13.79531958 | AN131: 13.79531958 | AO131: 13.79531958 | AP131: 13.79531958 | AQ131: 13.92465076 | AR131: 14.79107421 | AS131: 14.40797348 | AV131: =IF(AL131>VCP!$E$29,AL131*VCP!$E$28,AL131) -> 13.79531958 | AW131: =IF(AM131>VCP!$E$29,AM131*VCP!$E$28,AM131) -> 13.79531958 | AX131: =IF(AN131>VCP!$E$29,AN131*VCP!$E$28,AN131) -> 13.79531958 | AY131: =IF(AO131>VCP!$E$29,AO131*VCP!$E$28,AO131) -> 13.79531958 | AZ131: =IF(AP131>VCP!$E$29,AP131*VCP!$E$28,AP131) -> 13.79531958 | BA131: =IF(AQ131>VCP!$E$29,AQ131*VCP!$E$28,AQ131) -> 13.92465076 | BB131: =IF(AR131>VCP!$E$29,AR131*VCP!$E$28,AR131) -> 14.79107421 | BC131: =IF(AS131>VCP!$E$29,AS131*VCP!$E$28,AS131) -> 14.40797348
A132: 130 | B132: 4.2 | D132: 1.6 | E132: 84 | F132: 7.2 | G132: 260 | H132: 212 | I132: 48 | L132: =IF($K$2=0,D132*ATAN(0.151977*(E132+8.313659)^0.5)+ATAN(D132+E132)-ATAN(E132-1.676331)+0.00391838*(E132)^(3/2)*ATAN(0.023101*E132)-4.686035,'Weather data'!C132) -> 0.1700405411 | M132: 0.2264150943 | N132: 46.99352254 | O132: 1.006477462 | R132: =O133*'Qsol calculation'!N132 -> -0.7723495047 | S132: =O133*'Qsol calculation'!O132 -> -1.706061254 | T132: =O133*'Qsol calculation'!P132 -> -1.752501054 | U132: =O133*'Qsol calculation'!Q132 -> -0.6602339099 | V132: =O133*'Qsol calculation'!R132 -> -0.0952782064 | W132: =O133*'Qsol calculation'!S132 -> 0.6602339099 | X132: =O133*'Qsol calculation'!T132 -> 1.752501054 | Y132: =O133*'Qsol calculation'!U132 -> 0.7723495047 | AA132: 0 | AB132: 0 | AC132: 0 | AD132: 0 | AE132: 0 | AF132: 0.6602339099 | AG132: 1.752501054 | AH132: 0.7723495047 | AJ132: =N132*(1+COS(VCP!$N$22))/2 -> 36.58053323 | AL132: 36.58053323 | AM132: 36.58053323 | AN132: 36.58053323 | AO132: 36.58053323 | AP132: 36.58053323 | AQ132: 37.24076714 | AR132: 38.33303429 | AS132: 37.35288274 | AV132: =IF(AL132>VCP!$E$29,AL132*VCP!$E$28,AL132) -> 36.58053323 | AW132: =IF(AM132>VCP!$E$29,AM132*VCP!$E$28,AM132) -> 36.58053323 | AX132: =IF(AN132>VCP!$E$29,AN132*VCP!$E$28,AN132) -> 36.58053323 | AY132: =IF(AO132>VCP!$E$29,AO132*VCP!$E$28,AO132) -> 36.58053323 | AZ132: =IF(AP132>VCP!$E$29,AP132*VCP!$E$28,AP132) -> 36.58053323 | BA132: =IF(AQ132>VCP!$E$29,AQ132*VCP!$E$28,AQ132) -> 37.24076714 | BB132: =IF(AR132>VCP!$E$29,AR132*VCP!$E$28,AR132) -> 38.33303429 | BC132: =IF(AS132>VCP!$E$29,AS132*VCP!$E$28,AS132) -> 37.35288274
A133: 131 | B133: 4.5 | D133: 1.9 | E133: 83 | F133: 7.2 | G133: 260 | H133: 273 | I133: 69 | L133: =IF($K$2=0,D133*ATAN(0.151977*(E133+8.313659)^0.5)+ATAN(D133+E133)-ATAN(E133-1.676331)+0.00391838*(E133)^(3/2)*ATAN(0.023101*E133)-4.686035,'Weather data'!C133) -> 0.3830528701 | M133: 0.2527472527 | N133: 67.10781716 | O133: 1.892182843 | R133: =O134*'Qsol calculation'!N133 -> -0.3978568233 | S133: =O134*'Qsol calculation'!O133 -> -2.137039723 | T133: =O134*'Qsol calculation'!P133 -> -1.792442538 | U133: =O134*'Qsol calculation'!Q133 -> -1.229788022 | V133: =O134*'Qsol calculation'!R133 -> -0.165930952 | W133: =O134*'Qsol calculation'!S133 -> 1.229788022 | X133: =O134*'Qsol calculation'!T133 -> 1.792442538 | Y133: =O134*'Qsol calculation'!U133 -> 0.3978568233 | AA133: 0 | AB133: 0 | AC133: 0 | AD133: 0 | AE133: 0 | AF133: 1.229788022 | AG133: 1.792442538 | AH133: 0.3978568233 | AJ133: =N133*(1+COS(VCP!$N$22))/2 -> 52.23783201 | AL133: 52.23783201 | AM133: 52.23783201 | AN133: 52.23783201 | AO133: 52.23783201 | AP133: 52.23783201 | AQ133: 53.46762003 | AR133: 54.03027455 | AS133: 52.63568883 | AV133: =IF(AL133>VCP!$E$29,AL133*VCP!$E$28,AL133) -> 15.6713496 | AW133: =IF(AM133>VCP!$E$29,AM133*VCP!$E$28,AM133) -> 15.6713496 | AX133: =IF(AN133>VCP!$E$29,AN133*VCP!$E$28,AN133) -> 15.6713496 | AY133: =IF(AO133>VCP!$E$29,AO133*VCP!$E$28,AO133) -> 15.6713496 | AZ133: =IF(AP133>VCP!$E$29,AP133*VCP!$E$28,AP133) -> 15.6713496 | BA133: =IF(AQ133>VCP!$E$29,AQ133*VCP!$E$28,AQ133) -> 16.04028601 | BB133: =IF(AR133>VCP!$E$29,AR133*VCP!$E$28,AR133) -> 16.20908236 | BC133: =IF(AS133>VCP!$E$29,AS133*VCP!$E$28,AS133) -> 15.79070665
A134: 132 | B134: 4.9 | D134: 2.1 | E134: 82 | F134: 7.2 | G134: 260 | H134: 285 | I134: 74 | L134: =IF($K$2=0,D134*ATAN(0.151977*(E134+8.313659)^0.5)+ATAN(D134+E134)-ATAN(E134-1.676331)+0.00391838*(E134)^(3/2)*ATAN(0.023101*E134)-4.686035,'Weather data'!C134) -> 0.4985390126 | M134: 0.2596491228 | N134: 71.78760076 | O134: 2.212399244 | R134: =O135*'Qsol calculation'!N134 -> 0.1418256498 | S134: =O135*'Qsol calculation'!O134 -> -2.284576094 | T134: =O135*'Qsol calculation'!P134 -> -1.515153369 | U134: =O135*'Qsol calculation'!Q134 -> -1.715725127 | V134: =O135*'Qsol calculation'!R134 -> -0.186673297 | W134: =O135*'Qsol calculation'!S134 -> 1.715725127 | X134: =O135*'Qsol calculation'!T134 -> 1.515153369 | Y134: =O135*'Qsol calculation'!U134 -> -0.1418256498 | AA134: 0.1418256498 | AB134: 0 | AC134: 0 | AD134: 0 | AE134: 0 | AF134: 1.715725127 | AG134: 1.515153369 | AH134: 0 | AJ134: =N134*(1+COS(VCP!$N$22))/2 -> 55.88065277 | AL134: 56.02247842 | AM134: 55.88065277 | AN134: 55.88065277 | AO134: 55.88065277 | AP134: 55.88065277 | AQ134: 57.59637789 | AR134: 57.39580614 | AS134: 55.88065277 | AV134: =IF(AL134>VCP!$E$29,AL134*VCP!$E$28,AL134) -> 16.80674353 | AW134: =IF(AM134>VCP!$E$29,AM134*VCP!$E$28,AM134) -> 16.76419583 | AX134: =IF(AN134>VCP!$E$29,AN134*VCP!$E$28,AN134) -> 16.76419583 | AY134: =IF(AO134>VCP!$E$29,AO134*VCP!$E$28,AO134) -> 16.76419583 | AZ134: =IF(AP134>VCP!$E$29,AP134*VCP!$E$28,AP134) -> 16.76419583 | BA134: =IF(AQ134>VCP!$E$29,AQ134*VCP!$E$28,AQ134) -> 17.27891337 | BB134: =IF(AR134>VCP!$E$29,AR134*VCP!$E$28,AR134) -> 17.21874184 | BC134: =IF(AS134>VCP!$E$29,AS134*VCP!$E$28,AS134) -> 16.76419583
A135: 133 | B135: 4.9 | D135: 2 | E135: 82 | F135: 7.5 | G135: 260 | H135: 247 | I135: 67 | L135: =IF($K$2=0,D135*ATAN(0.151977*(E135+8.313659)^0.5)+ATAN(D135+E135)-ATAN(E135-1.676331)+0.00391838*(E135)^(3/2)*ATAN(0.023101*E135)-4.686035,'Weather data'!C135) -> 0.4020046776 | M135: 0.2712550607 | N135: 64.6663162 | O135: 2.333683795 | R135: =O136*'Qsol calculation'!N135 -> 0.2771444249 | S135: =O136*'Qsol calculation'!O135 -> -0.8762829643 | T135: =O136*'Qsol calculation'!P135 -> -0.4236549241 | U135: =O136*'Qsol calculation'!Q135 -> -0.8155963285 | V135: =O136*'Qsol calculation'!R135 -> -0.06059211467 | W135: =O136*'Qsol calculation'!S135 -> 0.8155963285 | X135: =O136*'Qsol calculation'!T135 -> 0.4236549241 | Y135: =O136*'Qsol calculation'!U135 -> -0.2771444249 | AA135: 0.2771444249 | AB135: 0 | AC135: 0 | AD135: 0 | AE135: 0 | AF135: 0.8155963285 | AG135: 0.4236549241 | AH135: 0 | AJ135: =N135*(1+COS(VCP!$N$22))/2 -> 50.33732739 | AL135: 50.61447181 | AM135: 50.33732739 | AN135: 50.33732739 | AO135: 50.33732739 | AP135: 50.33732739 | AQ135: 51.15292372 | AR135: 50.76098231 | AS135: 50.33732739 | AV135: =IF(AL135>VCP!$E$29,AL135*VCP!$E$28,AL135) -> 15.18434154 | AW135: =IF(AM135>VCP!$E$29,AM135*VCP!$E$28,AM135) -> 15.10119822 | AX135: =IF(AN135>VCP!$E$29,AN135*VCP!$E$28,AN135) -> 15.10119822 | AY135: =IF(AO135>VCP!$E$29,AO135*VCP!$E$28,AO135) -> 15.10119822 | AZ135: =IF(AP135>VCP!$E$29,AP135*VCP!$E$28,AP135) -> 15.10119822 | BA135: =IF(AQ135>VCP!$E$29,AQ135*VCP!$E$28,AQ135) -> 15.34587711 | BB135: =IF(AR135>VCP!$E$29,AR135*VCP!$E$28,AR135) -> 15.22829469 | BC135: =IF(AS135>VCP!$E$29,AS135*VCP!$E$28,AS135) -> 15.10119822
A136: 134 | B136: 4.8 | D136: 1.9 | E136: 81 | F136: 7.9 | G136: 260 | H136: 162 | I136: 39 | L136: =IF($K$2=0,D136*ATAN(0.151977*(E136+8.313659)^0.5)+ATAN(D136+E136)-ATAN(E136-1.676331)+0.00391838*(E136)^(3/2)*ATAN(0.023101*E136)-4.686035,'Weather data'!C136) -> 0.2284327849 | M136: 0.2407407407 | N136: 38.06759303 | O136: 0.9324069747 | R136: =O137*'Qsol calculation'!N136 -> 0.09588012445 | S136: =O137*'Qsol calculation'!O136 -> -0.1589451038 | T136: =O137*'Qsol calculation'!P136 -> -0.04459367455 | U136: =O137*'Qsol calculation'!Q136 -> -0.1801886469 | V136: =O137*'Qsol calculation'!R136 -> -0.005789781249 | W136: =O137*'Qsol calculation'!S136 -> 0.1801886469 | X136: =O137*'Qsol calculation'!T136 -> 0.04459367455 | Y136: =O137*'Qsol calculation'!U136 -> -0.09588012445 | AA136: 0.09588012445 | AB136: 0 | AC136: 0 | AD136: 0 | AE136: 0 | AF136: 0.1801886469 | AG136: 0.04459367455 | AH136: 0 | AJ136: =N136*(1+COS(VCP!$N$22))/2 -> 29.63244244 | AL136: 29.72832257 | AM136: 29.63244244 | AN136: 29.63244244 | AO136: 29.63244244 | AP136: 29.63244244 | AQ136: 29.81263109 | AR136: 29.67703612 | AS136: 29.63244244 | AV136: =IF(AL136>VCP!$E$29,AL136*VCP!$E$28,AL136) -> 29.72832257 | AW136: =IF(AM136>VCP!$E$29,AM136*VCP!$E$28,AM136) -> 29.63244244 | AX136: =IF(AN136>VCP!$E$29,AN136*VCP!$E$28,AN136) -> 29.63244244 | AY136: =IF(AO136>VCP!$E$29,AO136*VCP!$E$28,AO136) -> 29.63244244 | AZ136: =IF(AP136>VCP!$E$29,AP136*VCP!$E$28,AP136) -> 29.63244244 | BA136: =IF(AQ136>VCP!$E$29,AQ136*VCP!$E$28,AQ136) -> 29.81263109 | BB136: =IF(AR136>VCP!$E$29,AR136*VCP!$E$28,AR136) -> 29.67703612 | BC136: =IF(AS136>VCP!$E$29,AS136*VCP!$E$28,AS136) -> 29.63244244
A137: 135 | B137: 4.8 | D137: 1.8 | E137: 81 | F137: 8.2 | G137: 270 | H137: 40 | I137: 9 | L137: =IF($K$2=0,D137*ATAN(0.151977*(E137+8.313659)^0.5)+ATAN(D137+E137)-ATAN(E137-1.676331)+0.00391838*(E137)^(3/2)*ATAN(0.023101*E137)-4.686035,'Weather data'!C137) -> 0.132158843 | M137: 0.225 | N137: 8.8132599 | O137: 0.1867401 | R137: =O138*'Qsol calculation'!N137 -> 0 | S137: =O138*'Qsol calculation'!O137 -> 0 | T137: =O138*'Qsol calculation'!P137 -> 0 | U137: =O138*'Qsol calculation'!Q137 -> 0 | V137: =O138*'Qsol calculation'!R137 -> 0 | W137: =O138*'Qsol calculation'!S137 -> 0 | X137: =O138*'Qsol calculation'!T137 -> 0 | Y137: =O138*'Qsol calculation'!U137 -> 0 | AA137: 0 | AB137: 0 | AC137: 0 | AD137: 0 | AE137: 0 | AF137: 0 | AG137: 0 | AH137: 0 | AJ137: =N137*(1+COS(VCP!$N$22))/2 -> 6.860386906 | AL137: 6.860386906 | AM137: 6.860386906 | AN137: 6.860386906 | AO137: 6.860386906 | AP137: 6.860386906 | AQ137: 6.860386906 | AR137: 6.860386906 | AS137: 6.860386906 | AV137: =IF(AL137>VCP!$E$29,AL137*VCP!$E$28,AL137) -> 6.860386906 | AW137: =IF(AM137>VCP!$E$29,AM137*VCP!$E$28,AM137) -> 6.860386906 | AX137: =IF(AN137>VCP!$E$29,AN137*VCP!$E$28,AN137) -> 6.860386906 | AY137: =IF(AO137>VCP!$E$29,AO137*VCP!$E$28,AO137) -> 6.860386906 | AZ137: =IF(AP137>VCP!$E$29,AP137*VCP!$E$28,AP137) -> 6.860386906 | BA137: =IF(AQ137>VCP!$E$29,AQ137*VCP!$E$28,AQ137) -> 6.860386906 | BB137: =IF(AR137>VCP!$E$29,AR137*VCP!$E$28,AR137) -> 6.860386906 | BC137: =IF(AS137>VCP!$E$29,AS137*VCP!$E$28,AS137) -> 6.860386906
A138: 136 | B138: 4.6 | D138: 1.8 | E138: 82 | F138: 7.9 | G138: 270 | H138: 0 | I138: 0 | L138: =IF($K$2=0,D138*ATAN(0.151977*(E138+8.313659)^0.5)+ATAN(D138+E138)-ATAN(E138-1.676331)+0.00391838*(E138)^(3/2)*ATAN(0.023101*E138)-4.686035,'Weather data'!C138) -> 0.2089359062 | M138: 0 | N138: 0 | O138: 0 | R138: =O139*'Qsol calculation'!N138 -> 0 | S138: =O139*'Qsol calculation'!O138 -> 0 | T138: =O139*'Qsol calculation'!P138 -> 0 | U138: =O139*'Qsol calculation'!Q138 -> 0 | V138: =O139*'Qsol calculation'!R138 -> 0 | W138: =O139*'Qsol calculation'!S138 -> 0 | X138: =O139*'Qsol calculation'!T138 -> 0 | Y138: =O139*'Qsol calculation'!U138 -> 0 | AA138: 0 | AB138: 0 | AC138: 0 | AD138: 0 | AE138: 0 | AF138: 0 | AG138: 0 | AH138: 0 | AJ138: =N138*(1+COS(VCP!$N$22))/2 -> 0 | AL138: 0 | AM138: 0 | AN138: 0 | AO138: 0 | AP138: 0 | AQ138: 0 | AR138: 0 | AS138: 0 | AV138: =IF(AL138>VCP!$E$29,AL138*VCP!$E$28,AL138) -> 0 | AW138: =IF(AM138>VCP!$E$29,AM138*VCP!$E$28,AM138) -> 0 | AX138: =IF(AN138>VCP!$E$29,AN138*VCP!$E$28,AN138) -> 0 | AY138: =IF(AO138>VCP!$E$29,AO138*VCP!$E$28,AO138) -> 0 | AZ138: =IF(AP138>VCP!$E$29,AP138*VCP!$E$28,AP138) -> 0 | BA138: =IF(AQ138>VCP!$E$29,AQ138*VCP!$E$28,AQ138) -> 0 | BB138: =IF(AR138>VCP!$E$29,AR138*VCP!$E$28,AR138) -> 0 | BC138: =IF(AS138>VCP!$E$29,AS138*VCP!$E$28,AS138) -> 0
A139: 137 | B139: 4.4 | D139: 1.9 | E139: 84 | F139: 7.5 | G139: 270 | H139: 0 | I139: 0 | L139: =IF($K$2=0,D139*ATAN(0.151977*(E139+8.313659)^0.5)+ATAN(D139+E139)-ATAN(E139-1.676331)+0.00391838*(E139)^(3/2)*ATAN(0.023101*E139)-4.686035,'Weather data'!C139) -> 0.4611765702 | M139: 0 | N139: 0 | O139: 0 | R139: =O140*'Qsol calculation'!N139 -> 0 | S139: =O140*'Qsol calculation'!O139 -> 0 | T139: =O140*'Qsol calculation'!P139 -> 0 | U139: =O140*'Qsol calculation'!Q139 -> 0 | V139: =O140*'Qsol calculation'!R139 -> 0 | W139: =O140*'Qsol calculation'!S139 -> 0 | X139: =O140*'Qsol calculation'!T139 -> 0 | Y139: =O140*'Qsol calculation'!U139 -> 0 | AA139: 0 | AB139: 0 | AC139: 0 | AD139: 0 | AE139: 0 | AF139: 0 | AG139: 0 | AH139: 0 | AJ139: =N139*(1+COS(VCP!$N$22))/2 -> 0 | AL139: 0 | AM139: 0 | AN139: 0 | AO139: 0 | AP139: 0 | AQ139: 0 | AR139: 0 | AS139: 0 | AV139: =IF(AL139>VCP!$E$29,AL139*VCP!$E$28,AL139) -> 0 | AW139: =IF(AM139>VCP!$E$29,AM139*VCP!$E$28,AM139) -> 0 | AX139: =IF(AN139>VCP!$E$29,AN139*VCP!$E$28,AN139) -> 0 | AY139: =IF(AO139>VCP!$E$29,AO139*VCP!$E$28,AO139) -> 0 | AZ139: =IF(AP139>VCP!$E$29,AP139*VCP!$E$28,AP139) -> 0 | BA139: =IF(AQ139>VCP!$E$29,AQ139*VCP!$E$28,AQ139) -> 0 | BB139: =IF(AR139>VCP!$E$29,AR139*VCP!$E$28,AR139) -> 0 | BC139: =IF(AS139>VCP!$E$29,AS139*VCP!$E$28,AS139) -> 0
A140: 138 | B140: 4.2 | D140: 1.9 | E140: 85 | F140: 7.2 | G140: 260 | H140: 0 | I140: 0 | L140: =IF($K$2=0,D140*ATAN(0.151977*(E140+8.313659)^0.5)+ATAN(D140+E140)-ATAN(E140-1.676331)+0.00391838*(E140)^(3/2)*ATAN(0.023101*E140)-4.686035,'Weather data'!C140) -> 0.5398375887 | M140: 0 | N140: 0 | O140: 0 | R140: =O141*'Qsol calculation'!N140 -> 0 | S140: =O141*'Qsol calculation'!O140 -> 0 | T140: =O141*'Qsol calculation'!P140 -> 0 | U140: =O141*'Qsol calculation'!Q140 -> 0 | V140: =O141*'Qsol calculation'!R140 -> 0 | W140: =O141*'Qsol calculation'!S140 -> 0 | X140: =O141*'Qsol calculation'!T140 -> 0 | Y140: =O141*'Qsol calculation'!U140 -> 0 | AA140: 0 | AB140: 0 | AC140: 0 | AD140: 0 | AE140: 0 | AF140: 0 | AG140: 0 | AH140: 0 | AJ140: =N140*(1+COS(VCP!$N$22))/2 -> 0 | AL140: 0 | AM140: 0 | AN140: 0 | AO140: 0 | AP140: 0 | AQ140: 0 | AR140: 0 | AS140: 0 | AV140: =IF(AL140>VCP!$E$29,AL140*VCP!$E$28,AL140) -> 0 | AW140: =IF(AM140>VCP!$E$29,AM140*VCP!$E$28,AM140) -> 0 | AX140: =IF(AN140>VCP!$E$29,AN140*VCP!$E$28,AN140) -> 0 | AY140: =IF(AO140>VCP!$E$29,AO140*VCP!$E$28,AO140) -> 0 | AZ140: =IF(AP140>VCP!$E$29,AP140*VCP!$E$28,AP140) -> 0 | BA140: =IF(AQ140>VCP!$E$29,AQ140*VCP!$E$28,AQ140) -> 0 | BB140: =IF(AR140>VCP!$E$29,AR140*VCP!$E$28,AR140) -> 0 | BC140: =IF(AS140>VCP!$E$29,AS140*VCP!$E$28,AS140) -> 0
A141: 139 | B141: 4.1 | D141: 1.9 | E141: 86 | F141: 7.5 | G141: 260 | H141: 0 | I141: 0 | L141: =IF($K$2=0,D141*ATAN(0.151977*(E141+8.313659)^0.5)+ATAN(D141+E141)-ATAN(E141-1.676331)+0.00391838*(E141)^(3/2)*ATAN(0.023101*E141)-4.686035,'Weather data'!C141) -> 0.6190321813 | M141: 0 | N141: 0 | O141: 0 | R141: =O142*'Qsol calculation'!N141 -> 0 | S141: =O142*'Qsol calculation'!O141 -> 0 | T141: =O142*'Qsol calculation'!P141 -> 0 | U141: =O142*'Qsol calculation'!Q141 -> 0 | V141: =O142*'Qsol calculation'!R141 -> 0 | W141: =O142*'Qsol calculation'!S141 -> 0 | X141: =O142*'Qsol calculation'!T141 -> 0 | Y141: =O142*'Qsol calculation'!U141 -> 0 | AA141: 0 | AB141: 0 | AC141: 0 | AD141: 0 | AE141: 0 | AF141: 0 | AG141: 0 | AH141: 0 | AJ141: =N141*(1+COS(VCP!$N$22))/2 -> 0 | AL141: 0 | AM141: 0 | AN141: 0 | AO141: 0 | AP141: 0 | AQ141: 0 | AR141: 0 | AS141: 0 | AV141: =IF(AL141>VCP!$E$29,AL141*VCP!$E$28,AL141) -> 0 | AW141: =IF(AM141>VCP!$E$29,AM141*VCP!$E$28,AM141) -> 0 | AX141: =IF(AN141>VCP!$E$29,AN141*VCP!$E$28,AN141) -> 0 | AY141: =IF(AO141>VCP!$E$29,AO141*VCP!$E$28,AO141) -> 0 | AZ141: =IF(AP141>VCP!$E$29,AP141*VCP!$E$28,AP141) -> 0 | BA141: =IF(AQ141>VCP!$E$29,AQ141*VCP!$E$28,AQ141) -> 0 | BB141: =IF(AR141>VCP!$E$29,AR141*VCP!$E$28,AR141) -> 0 | BC141: =IF(AS141>VCP!$E$29,AS141*VCP!$E$28,AS141) -> 0
A142: 140 | B142: 3.9 | D142: 1.9 | E142: 87 | F142: 7.9 | G142: 260 | H142: 0 | I142: 0 | L142: =IF($K$2=0,D142*ATAN(0.151977*(E142+8.313659)^0.5)+ATAN(D142+E142)-ATAN(E142-1.676331)+0.00391838*(E142)^(3/2)*ATAN(0.023101*E142)-4.686035,'Weather data'!C142) -> 0.6987566781 | M142: 0 | N142: 0 | O142: 0 | R142: =O143*'Qsol calculation'!N142 -> 0 | S142: =O143*'Qsol calculation'!O142 -> 0 | T142: =O143*'Qsol calculation'!P142 -> 0 | U142: =O143*'Qsol calculation'!Q142 -> 0 | V142: =O143*'Qsol calculation'!R142 -> 0 | W142: =O143*'Qsol calculation'!S142 -> 0 | X142: =O143*'Qsol calculation'!T142 -> 0 | Y142: =O143*'Qsol calculation'!U142 -> 0 | AA142: 0 | AB142: 0 | AC142: 0 | AD142: 0 | AE142: 0 | AF142: 0 | AG142: 0 | AH142: 0 | AJ142: =N142*(1+COS(VCP!$N$22))/2 -> 0 | AL142: 0 | AM142: 0 | AN142: 0 | AO142: 0 | AP142: 0 | AQ142: 0 | AR142: 0 | AS142: 0 | AV142: =IF(AL142>VCP!$E$29,AL142*VCP!$E$28,AL142) -> 0 | AW142: =IF(AM142>VCP!$E$29,AM142*VCP!$E$28,AM142) -> 0 | AX142: =IF(AN142>VCP!$E$29,AN142*VCP!$E$28,AN142) -> 0 | AY142: =IF(AO142>VCP!$E$29,AO142*VCP!$E$28,AO142) -> 0 | AZ142: =IF(AP142>VCP!$E$29,AP142*VCP!$E$28,AP142) -> 0 | BA142: =IF(AQ142>VCP!$E$29,AQ142*VCP!$E$28,AQ142) -> 0 | BB142: =IF(AR142>VCP!$E$29,AR142*VCP!$E$28,AR142) -> 0 | BC142: =IF(AS142>VCP!$E$29,AS142*VCP!$E$28,AS142) -> 0
A143: 141 | B143: 3.8 | D143: 1.9 | E143: 87 | F143: 8.2 | G143: 260 | H143: 0 | I143: 0 | L143: =IF($K$2=0,D143*ATAN(0.151977*(E143+8.313659)^0.5)+ATAN(D143+E143)-ATAN(E143-1.676331)+0.00391838*(E143)^(3/2)*ATAN(0.023101*E143)-4.686035,'Weather data'!C143) -> 0.6987566781 | M143: 0 | N143: 0 | O143: 0 | R143: =O144*'Qsol calculation'!N143 -> 0 | S143: =O144*'Qsol calculation'!O143 -> 0 | T143: =O144*'Qsol calculation'!P143 -> 0 | U143: =O144*'Qsol calculation'!Q143 -> 0 | V143: =O144*'Qsol calculation'!R143 -> 0 | W143: =O144*'Qsol calculation'!S143 -> 0 | X143: =O144*'Qsol calculation'!T143 -> 0 | Y143: =O144*'Qsol calculation'!U143 -> 0 | AA143: 0 | AB143: 0 | AC143: 0 | AD143: 0 | AE143: 0 | AF143: 0 | AG143: 0 | AH143: 0 | AJ143: =N143*(1+COS(VCP!$N$22))/2 -> 0 | AL143: 0 | AM143: 0 | AN143: 0 | AO143: 0 | AP143: 0 | AQ143: 0 | AR143: 0 | AS143: 0 | AV143: =IF(AL143>VCP!$E$29,AL143*VCP!$E$28,AL143) -> 0 | AW143: =IF(AM143>VCP!$E$29,AM143*VCP!$E$28,AM143) -> 0 | AX143: =IF(AN143>VCP!$E$29,AN143*VCP!$E$28,AN143) -> 0 | AY143: =IF(AO143>VCP!$E$29,AO143*VCP!$E$28,AO143) -> 0 | AZ143: =IF(AP143>VCP!$E$29,AP143*VCP!$E$28,AP143) -> 0 | BA143: =IF(AQ143>VCP!$E$29,AQ143*VCP!$E$28,AQ143) -> 0 | BB143: =IF(AR143>VCP!$E$29,AR143*VCP!$E$28,AR143) -> 0 | BC143: =IF(AS143>VCP!$E$29,AS143*VCP!$E$28,AS143) -> 0
A144: 142 | B144: 3.8 | D144: 2 | E144: 88 | F144: 8.2 | G144: 260 | H144: 0 | I144: 0 | L144: =IF($K$2=0,D144*ATAN(0.151977*(E144+8.313659)^0.5)+ATAN(D144+E144)-ATAN(E144-1.676331)+0.00391838*(E144)^(3/2)*ATAN(0.023101*E144)-4.686035,'Weather data'!C144) -> 0.8770364893 | M144: 0 | N144: 0 | O144: 0 | R144: =O145*'Qsol calculation'!N144 -> 0 | S144: =O145*'Qsol calculation'!O144 -> 0 | T144: =O145*'Qsol calculation'!P144 -> 0 | U144: =O145*'Qsol calculation'!Q144 -> 0 | V144: =O145*'Qsol calculation'!R144 -> 0 | W144: =O145*'Qsol calculation'!S144 -> 0 | X144: =O145*'Qsol calculation'!T144 -> 0 | Y144: =O145*'Qsol calculation'!U144 -> 0 | AA144: 0 | AB144: 0 | AC144: 0 | AD144: 0 | AE144: 0 | AF144: 0 | AG144: 0 | AH144: 0 | AJ144: =N144*(1+COS(VCP!$N$22))/2 -> 0 | AL144: 0 | AM144: 0 | AN144: 0 | AO144: 0 | AP144: 0 | AQ144: 0 | AR144: 0 | AS144: 0 | AV144: =IF(AL144>VCP!$E$29,AL144*VCP!$E$28,AL144) -> 0 | AW144: =IF(AM144>VCP!$E$29,AM144*VCP!$E$28,AM144) -> 0 | AX144: =IF(AN144>VCP!$E$29,AN144*VCP!$E$28,AN144) -> 0 | AY144: =IF(AO144>VCP!$E$29,AO144*VCP!$E$28,AO144) -> 0 | AZ144: =IF(AP144>VCP!$E$29,AP144*VCP!$E$28,AP144) -> 0 | BA144: =IF(AQ144>VCP!$E$29,AQ144*VCP!$E$28,AQ144) -> 0 | BB144: =IF(AR144>VCP!$E$29,AR144*VCP!$E$28,AR144) -> 0 | BC144: =IF(AS144>VCP!$E$29,AS144*VCP!$E$28,AS144) -> 0
A145: 143 | B145: 3.9 | D145: 2 | E145: 88 | F145: 8.2 | G145: 260 | H145: 0 | I145: 0 | L145: =IF($K$2=0,D145*ATAN(0.151977*(E145+8.313659)^0.5)+ATAN(D145+E145)-ATAN(E145-1.676331)+0.00391838*(E145)^(3/2)*ATAN(0.023101*E145)-4.686035,'Weather data'!C145) -> 0.8770364893 | M145: 0 | N145: 0 | O145: 0 | R145: =O146*'Qsol calculation'!N145 -> 0 | S145: =O146*'Qsol calculation'!O145 -> 0 | T145: =O146*'Qsol calculation'!P145 -> 0 | U145: =O146*'Qsol calculation'!Q145 -> 0 | V145: =O146*'Qsol calculation'!R145 -> 0 | W145: =O146*'Qsol calculation'!S145 -> 0 | X145: =O146*'Qsol calculation'!T145 -> 0 | Y145: =O146*'Qsol calculation'!U145 -> 0 | AA145: 0 | AB145: 0 | AC145: 0 | AD145: 0 | AE145: 0 | AF145: 0 | AG145: 0 | AH145: 0 | AJ145: =N145*(1+COS(VCP!$N$22))/2 -> 0 | AL145: 0 | AM145: 0 | AN145: 0 | AO145: 0 | AP145: 0 | AQ145: 0 | AR145: 0 | AS145: 0 | AV145: =IF(AL145>VCP!$E$29,AL145*VCP!$E$28,AL145) -> 0 | AW145: =IF(AM145>VCP!$E$29,AM145*VCP!$E$28,AM145) -> 0 | AX145: =IF(AN145>VCP!$E$29,AN145*VCP!$E$28,AN145) -> 0 | AY145: =IF(AO145>VCP!$E$29,AO145*VCP!$E$28,AO145) -> 0 | AZ145: =IF(AP145>VCP!$E$29,AP145*VCP!$E$28,AP145) -> 0 | BA145: =IF(AQ145>VCP!$E$29,AQ145*VCP!$E$28,AQ145) -> 0 | BB145: =IF(AR145>VCP!$E$29,AR145*VCP!$E$28,AR145) -> 0 | BC145: =IF(AS145>VCP!$E$29,AS145*VCP!$E$28,AS145) -> 0
A146: 144 | B146: 3.9 | D146: 2.1 | E146: 88 | F146: 8.2 | G146: 250 | H146: 0 | I146: 0 | L146: =IF($K$2=0,D146*ATAN(0.151977*(E146+8.313659)^0.5)+ATAN(D146+E146)-ATAN(E146-1.676331)+0.00391838*(E146)^(3/2)*ATAN(0.023101*E146)-4.686035,'Weather data'!C146) -> 0.9750654698 | M146: 0 | N146: 0 | O146: 0 | R146: =O147*'Qsol calculation'!N146 -> 0 | S146: =O147*'Qsol calculation'!O146 -> 0 | T146: =O147*'Qsol calculation'!P146 -> 0 | U146: =O147*'Qsol calculation'!Q146 -> 0 | V146: =O147*'Qsol calculation'!R146 -> 0 | W146: =O147*'Qsol calculation'!S146 -> 0 | X146: =O147*'Qsol calculation'!T146 -> 0 | Y146: =O147*'Qsol calculation'!U146 -> 0 | AA146: 0 | AB146: 0 | AC146: 0 | AD146: 0 | AE146: 0 | AF146: 0 | AG146: 0 | AH146: 0 | AJ146: =N146*(1+COS(VCP!$N$22))/2 -> 0 | AL146: 0 | AM146: 0 | AN146: 0 | AO146: 0 | AP146: 0 | AQ146: 0 | AR146: 0 | AS146: 0 | AV146: =IF(AL146>VCP!$E$29,AL146*VCP!$E$28,AL146) -> 0 | AW146: =IF(AM146>VCP!$E$29,AM146*VCP!$E$28,AM146) -> 0 | AX146: =IF(AN146>VCP!$E$29,AN146*VCP!$E$28,AN146) -> 0 | AY146: =IF(AO146>VCP!$E$29,AO146*VCP!$E$28,AO146) -> 0 | AZ146: =IF(AP146>VCP!$E$29,AP146*VCP!$E$28,AP146) -> 0 | BA146: =IF(AQ146>VCP!$E$29,AQ146*VCP!$E$28,AQ146) -> 0 | BB146: =IF(AR146>VCP!$E$29,AR146*VCP!$E$28,AR146) -> 0 | BC146: =IF(AS146>VCP!$E$29,AS146*VCP!$E$28,AS146) -> 0
A147: 145 | B147: 3.9 | D147: 2.2 | E147: 88 | F147: 7.9 | G147: 250 | H147: 0 | I147: 0 | L147: =IF($K$2=0,D147*ATAN(0.151977*(E147+8.313659)^0.5)+ATAN(D147+E147)-ATAN(E147-1.676331)+0.00391838*(E147)^(3/2)*ATAN(0.023101*E147)-4.686035,'Weather data'!C147) -> 1.073094423 | M147: 0 | N147: 0 | O147: 0 | R147: =O148*'Qsol calculation'!N147 -> 0 | S147: =O148*'Qsol calculation'!O147 -> 0 | T147: =O148*'Qsol calculation'!P147 -> 0 | U147: =O148*'Qsol calculation'!Q147 -> 0 | V147: =O148*'Qsol calculation'!R147 -> 0 | W147: =O148*'Qsol calculation'!S147 -> 0 | X147: =O148*'Qsol calculation'!T147 -> 0 | Y147: =O148*'Qsol calculation'!U147 -> 0 | AA147: 0 | AB147: 0 | AC147: 0 | AD147: 0 | AE147: 0 | AF147: 0 | AG147: 0 | AH147: 0 | AJ147: =N147*(1+COS(VCP!$N$22))/2 -> 0 | AL147: 0 | AM147: 0 | AN147: 0 | AO147: 0 | AP147: 0 | AQ147: 0 | AR147: 0 | AS147: 0 | AV147: =IF(AL147>VCP!$E$29,AL147*VCP!$E$28,AL147) -> 0 | AW147: =IF(AM147>VCP!$E$29,AM147*VCP!$E$28,AM147) -> 0 | AX147: =IF(AN147>VCP!$E$29,AN147*VCP!$E$28,AN147) -> 0 | AY147: =IF(AO147>VCP!$E$29,AO147*VCP!$E$28,AO147) -> 0 | AZ147: =IF(AP147>VCP!$E$29,AP147*VCP!$E$28,AP147) -> 0 | BA147: =IF(AQ147>VCP!$E$29,AQ147*VCP!$E$28,AQ147) -> 0 | BB147: =IF(AR147>VCP!$E$29,AR147*VCP!$E$28,AR147) -> 0 | BC147: =IF(AS147>VCP!$E$29,AS147*VCP!$E$28,AS147) -> 0
A148: 146 | B148: 4 | D148: 2.3 | E148: 89 | F148: 7.5 | G148: 250 | H148: 0 | I148: 0 | L148: =IF($K$2=0,D148*ATAN(0.151977*(E148+8.313659)^0.5)+ATAN(D148+E148)-ATAN(E148-1.676331)+0.00391838*(E148)^(3/2)*ATAN(0.023101*E148)-4.686035,'Weather data'!C148) -> 1.252850456 | M148: 0 | N148: 0 | O148: 0 | R148: =O149*'Qsol calculation'!N148 -> 0 | S148: =O149*'Qsol calculation'!O148 -> 0 | T148: =O149*'Qsol calculation'!P148 -> 0 | U148: =O149*'Qsol calculation'!Q148 -> 0 | V148: =O149*'Qsol calculation'!R148 -> 0 | W148: =O149*'Qsol calculation'!S148 -> 0 | X148: =O149*'Qsol calculation'!T148 -> 0 | Y148: =O149*'Qsol calculation'!U148 -> 0 | AA148: 0 | AB148: 0 | AC148: 0 | AD148: 0 | AE148: 0 | AF148: 0 | AG148: 0 | AH148: 0 | AJ148: =N148*(1+COS(VCP!$N$22))/2 -> 0 | AL148: 0 | AM148: 0 | AN148: 0 | AO148: 0 | AP148: 0 | AQ148: 0 | AR148: 0 | AS148: 0 | AV148: =IF(AL148>VCP!$E$29,AL148*VCP!$E$28,AL148) -> 0 | AW148: =IF(AM148>VCP!$E$29,AM148*VCP!$E$28,AM148) -> 0 | AX148: =IF(AN148>VCP!$E$29,AN148*VCP!$E$28,AN148) -> 0 | AY148: =IF(AO148>VCP!$E$29,AO148*VCP!$E$28,AO148) -> 0 | AZ148: =IF(AP148>VCP!$E$29,AP148*VCP!$E$28,AP148) -> 0 | BA148: =IF(AQ148>VCP!$E$29,AQ148*VCP!$E$28,AQ148) -> 0 | BB148: =IF(AR148>VCP!$E$29,AR148*VCP!$E$28,AR148) -> 0 | BC148: =IF(AS148>VCP!$E$29,AS148*VCP!$E$28,AS148) -> 0
A149: 147 | B149: 4 | D149: 2.4 | E149: 89 | F149: 7.2 | G149: 230 | H149: 0 | I149: 0 | L149: =IF($K$2=0,D149*ATAN(0.151977*(E149+8.313659)^0.5)+ATAN(D149+E149)-ATAN(E149-1.676331)+0.00391838*(E149)^(3/2)*ATAN(0.023101*E149)-4.686035,'Weather data'!C149) -> 1.351117738 | M149: 0 | N149: 0 | O149: 0 | R149: =O150*'Qsol calculation'!N149 -> 0 | S149: =O150*'Qsol calculation'!O149 -> 0 | T149: =O150*'Qsol calculation'!P149 -> 0 | U149: =O150*'Qsol calculation'!Q149 -> 0 | V149: =O150*'Qsol calculation'!R149 -> 0 | W149: =O150*'Qsol calculation'!S149 -> 0 | X149: =O150*'Qsol calculation'!T149 -> 0 | Y149: =O150*'Qsol calculation'!U149 -> 0 | AA149: 0 | AB149: 0 | AC149: 0 | AD149: 0 | AE149: 0 | AF149: 0 | AG149: 0 | AH149: 0 | AJ149: =N149*(1+COS(VCP!$N$22))/2 -> 0 | AL149: 0 | AM149: 0 | AN149: 0 | AO149: 0 | AP149: 0 | AQ149: 0 | AR149: 0 | AS149: 0 | AV149: =IF(AL149>VCP!$E$29,AL149*VCP!$E$28,AL149) -> 0 | AW149: =IF(AM149>VCP!$E$29,AM149*VCP!$E$28,AM149) -> 0 | AX149: =IF(AN149>VCP!$E$29,AN149*VCP!$E$28,AN149) -> 0 | AY149: =IF(AO149>VCP!$E$29,AO149*VCP!$E$28,AO149) -> 0 | AZ149: =IF(AP149>VCP!$E$29,AP149*VCP!$E$28,AP149) -> 0 | BA149: =IF(AQ149>VCP!$E$29,AQ149*VCP!$E$28,AQ149) -> 0 | BB149: =IF(AR149>VCP!$E$29,AR149*VCP!$E$28,AR149) -> 0 | BC149: =IF(AS149>VCP!$E$29,AS149*VCP!$E$28,AS149) -> 0
A150: 148 | B150: 4 | D150: 2.4 | E150: 89 | F150: 7.2 | G150: 230 | H150: 0 | I150: 0 | L150: =IF($K$2=0,D150*ATAN(0.151977*(E150+8.313659)^0.5)+ATAN(D150+E150)-ATAN(E150-1.676331)+0.00391838*(E150)^(3/2)*ATAN(0.023101*E150)-4.686035,'Weather data'!C150) -> 1.351117738 | M150: 0 | N150: 0 | O150: 0 | R150: =O151*'Qsol calculation'!N150 -> 0 | S150: =O151*'Qsol calculation'!O150 -> 0 | T150: =O151*'Qsol calculation'!P150 -> 0 | U150: =O151*'Qsol calculation'!Q150 -> 0 | V150: =O151*'Qsol calculation'!R150 -> 0 | W150: =O151*'Qsol calculation'!S150 -> 0 | X150: =O151*'Qsol calculation'!T150 -> 0 | Y150: =O151*'Qsol calculation'!U150 -> 0 | AA150: 0 | AB150: 0 | AC150: 0 | AD150: 0 | AE150: 0 | AF150: 0 | AG150: 0 | AH150: 0 | AJ150: =N150*(1+COS(VCP!$N$22))/2 -> 0 | AL150: 0 | AM150: 0 | AN150: 0 | AO150: 0 | AP150: 0 | AQ150: 0 | AR150: 0 | AS150: 0 | AV150: =IF(AL150>VCP!$E$29,AL150*VCP!$E$28,AL150) -> 0 | AW150: =IF(AM150>VCP!$E$29,AM150*VCP!$E$28,AM150) -> 0 | AX150: =IF(AN150>VCP!$E$29,AN150*VCP!$E$28,AN150) -> 0 | AY150: =IF(AO150>VCP!$E$29,AO150*VCP!$E$28,AO150) -> 0 | AZ150: =IF(AP150>VCP!$E$29,AP150*VCP!$E$28,AP150) -> 0 | BA150: =IF(AQ150>VCP!$E$29,AQ150*VCP!$E$28,AQ150) -> 0 | BB150: =IF(AR150>VCP!$E$29,AR150*VCP!$E$28,AR150) -> 0 | BC150: =IF(AS150>VCP!$E$29,AS150*VCP!$E$28,AS150) -> 0
A151: 149 | B151: 4.1 | D151: 2.3 | E151: 88 | F151: 7.2 | G151: 230 | H151: 0 | I151: 0 | L151: =IF($K$2=0,D151*ATAN(0.151977*(E151+8.313659)^0.5)+ATAN(D151+E151)-ATAN(E151-1.676331)+0.00391838*(E151)^(3/2)*ATAN(0.023101*E151)-4.686035,'Weather data'!C151) -> 1.171123349 | M151: 0 | N151: 0 | O151: 0 | R151: =O152*'Qsol calculation'!N151 -> 0 | S151: =O152*'Qsol calculation'!O151 -> 0 | T151: =O152*'Qsol calculation'!P151 -> 0 | U151: =O152*'Qsol calculation'!Q151 -> 0 | V151: =O152*'Qsol calculation'!R151 -> 0 | W151: =O152*'Qsol calculation'!S151 -> 0 | X151: =O152*'Qsol calculation'!T151 -> 0 | Y151: =O152*'Qsol calculation'!U151 -> 0 | AA151: 0 | AB151: 0 | AC151: 0 | AD151: 0 | AE151: 0 | AF151: 0 | AG151: 0 | AH151: 0 | AJ151: =N151*(1+COS(VCP!$N$22))/2 -> 0 | AL151: 0 | AM151: 0 | AN151: 0 | AO151: 0 | AP151: 0 | AQ151: 0 | AR151: 0 | AS151: 0 | AV151: =IF(AL151>VCP!$E$29,AL151*VCP!$E$28,AL151) -> 0 | AW151: =IF(AM151>VCP!$E$29,AM151*VCP!$E$28,AM151) -> 0 | AX151: =IF(AN151>VCP!$E$29,AN151*VCP!$E$28,AN151) -> 0 | AY151: =IF(AO151>VCP!$E$29,AO151*VCP!$E$28,AO151) -> 0 | AZ151: =IF(AP151>VCP!$E$29,AP151*VCP!$E$28,AP151) -> 0 | BA151: =IF(AQ151>VCP!$E$29,AQ151*VCP!$E$28,AQ151) -> 0 | BB151: =IF(AR151>VCP!$E$29,AR151*VCP!$E$28,AR151) -> 0 | BC151: =IF(AS151>VCP!$E$29,AS151*VCP!$E$28,AS151) -> 0
A152: 150 | B152: 4.1 | D152: 2.3 | E152: 88 | F152: 7.2 | G152: 220 | H152: 0 | I152: 0 | L152: =IF($K$2=0,D152*ATAN(0.151977*(E152+8.313659)^0.5)+ATAN(D152+E152)-ATAN(E152-1.676331)+0.00391838*(E152)^(3/2)*ATAN(0.023101*E152)-4.686035,'Weather data'!C152) -> 1.171123349 | M152: 0 | N152: 0 | O152: 0 | R152: =O153*'Qsol calculation'!N152 -> 0 | S152: =O153*'Qsol calculation'!O152 -> 0 | T152: =O153*'Qsol calculation'!P152 -> 0 | U152: =O153*'Qsol calculation'!Q152 -> 0 | V152: =O153*'Qsol calculation'!R152 -> 0 | W152: =O153*'Qsol calculation'!S152 -> 0 | X152: =O153*'Qsol calculation'!T152 -> 0 | Y152: =O153*'Qsol calculation'!U152 -> 0 | AA152: 0 | AB152: 0 | AC152: 0 | AD152: 0 | AE152: 0 | AF152: 0 | AG152: 0 | AH152: 0 | AJ152: =N152*(1+COS(VCP!$N$22))/2 -> 0 | AL152: 0 | AM152: 0 | AN152: 0 | AO152: 0 | AP152: 0 | AQ152: 0 | AR152: 0 | AS152: 0 | AV152: =IF(AL152>VCP!$E$29,AL152*VCP!$E$28,AL152) -> 0 | AW152: =IF(AM152>VCP!$E$29,AM152*VCP!$E$28,AM152) -> 0 | AX152: =IF(AN152>VCP!$E$29,AN152*VCP!$E$28,AN152) -> 0 | AY152: =IF(AO152>VCP!$E$29,AO152*VCP!$E$28,AO152) -> 0 | AZ152: =IF(AP152>VCP!$E$29,AP152*VCP!$E$28,AP152) -> 0 | BA152: =IF(AQ152>VCP!$E$29,AQ152*VCP!$E$28,AQ152) -> 0 | BB152: =IF(AR152>VCP!$E$29,AR152*VCP!$E$28,AR152) -> 0 | BC152: =IF(AS152>VCP!$E$29,AS152*VCP!$E$28,AS152) -> 0
A153: 151 | B153: 4 | D153: 2.2 | E153: 88 | F153: 7.5 | G153: 220 | H153: 0 | I153: 0 | L153: =IF($K$2=0,D153*ATAN(0.151977*(E153+8.313659)^0.5)+ATAN(D153+E153)-ATAN(E153-1.676331)+0.00391838*(E153)^(3/2)*ATAN(0.023101*E153)-4.686035,'Weather data'!C153) -> 1.073094423 | M153: 0 | N153: 0 | O153: 0 | R153: =O154*'Qsol calculation'!N153 -> -0.01313638885 | S153: =O154*'Qsol calculation'!O153 -> -0.00687244391 | T153: =O154*'Qsol calculation'!P153 -> -0.01414838133 | U153: =O154*'Qsol calculation'!Q153 -> 0.004429277943 | V153: =O154*'Qsol calculation'!R153 -> 0.001779910385 | W153: =O154*'Qsol calculation'!S153 -> -0.004429277943 | X153: =O154*'Qsol calculation'!T153 -> 0.01414838133 | Y153: =O154*'Qsol calculation'!U153 -> 0.01313638885 | AA153: 0 | AB153: 0 | AC153: 0 | AD153: 0.004429277943 | AE153: 0.001779910385 | AF153: 0 | AG153: 0.01414838133 | AH153: 0.01313638885 | AJ153: =N153*(1+COS(VCP!$N$22))/2 -> 0 | AL153: 0 | AM153: 0 | AN153: 0 | AO153: 0.004429277943 | AP153: 0.001779910385 | AQ153: 0 | AR153: 0.01414838133 | AS153: 0.01313638885 | AV153: =IF(AL153>VCP!$E$29,AL153*VCP!$E$28,AL153) -> 0 | AW153: =IF(AM153>VCP!$E$29,AM153*VCP!$E$28,AM153) -> 0 | AX153: =IF(AN153>VCP!$E$29,AN153*VCP!$E$28,AN153) -> 0 | AY153: =IF(AO153>VCP!$E$29,AO153*VCP!$E$28,AO153) -> 0.004429277943 | AZ153: =IF(AP153>VCP!$E$29,AP153*VCP!$E$28,AP153) -> 0.001779910385 | BA153: =IF(AQ153>VCP!$E$29,AQ153*VCP!$E$28,AQ153) -> 0 | BB153: =IF(AR153>VCP!$E$29,AR153*VCP!$E$28,AR153) -> 0.01414838133 | BC153: =IF(AS153>VCP!$E$29,AS153*VCP!$E$28,AS153) -> 0.01313638885
A154: 152 | B154: 3.9 | D154: 2.2 | E154: 88 | F154: 7.9 | G154: 220 | H154: 6 | I154: 1 | L154: =IF($K$2=0,D154*ATAN(0.151977*(E154+8.313659)^0.5)+ATAN(D154+E154)-ATAN(E154-1.676331)+0.00391838*(E154)^(3/2)*ATAN(0.023101*E154)-4.686035,'Weather data'!C154) -> 1.073094423 | M154: 0.1666666667 | N154: 0.985 | O154: 0.015 | R154: =O155*'Qsol calculation'!N154 -> -0.07830027377 | S154: =O155*'Qsol calculation'!O154 -> -0.06493909816 | T154: =O155*'Qsol calculation'!P154 -> -0.1012855312 | U154: =O155*'Qsol calculation'!Q154 -> 0.009447777882 | V154: =O155*'Qsol calculation'!R154 -> 0.005092660803 | W154: =O155*'Qsol calculation'!S154 -> -0.009447777882 | X154: =O155*'Qsol calculation'!T154 -> 0.1012855312 | Y154: =O155*'Qsol calculation'!U154 -> 0.07830027377 | AA154: 0 | AB154: 0 | AC154: 0 | AD154: 0.009447777882 | AE154: 0.005092660803 | AF154: 0 | AG154: 0.1012855312 | AH154: 0.07830027377 | AJ154: =N154*(1+COS(VCP!$N$22))/2 -> 0.7667402504 | AL154: 0.7667402504 | AM154: 0.7667402504 | AN154: 0.7667402504 | AO154: 0.7761880282 | AP154: 0.7718329112 | AQ154: 0.7667402504 | AR154: 0.8680257816 | AS154: 0.8450405241 | AV154: =IF(AL154>VCP!$E$29,AL154*VCP!$E$28,AL154) -> 0.7667402504 | AW154: =IF(AM154>VCP!$E$29,AM154*VCP!$E$28,AM154) -> 0.7667402504 | AX154: =IF(AN154>VCP!$E$29,AN154*VCP!$E$28,AN154) -> 0.7667402504 | AY154: =IF(AO154>VCP!$E$29,AO154*VCP!$E$28,AO154) -> 0.7761880282 | AZ154: =IF(AP154>VCP!$E$29,AP154*VCP!$E$28,AP154) -> 0.7718329112 | BA154: =IF(AQ154>VCP!$E$29,AQ154*VCP!$E$28,AQ154) -> 0.7667402504 | BB154: =IF(AR154>VCP!$E$29,AR154*VCP!$E$28,AR154) -> 0.8680257816 | BC154: =IF(AS154>VCP!$E$29,AS154*VCP!$E$28,AS154) -> 0.8450405241
A155: 153 | B155: 3.8 | D155: 2.1 | E155: 89 | F155: 8.2 | G155: 200 | H155: 107 | I155: 11 | L155: =IF($K$2=0,D155*ATAN(0.151977*(E155+8.313659)^0.5)+ATAN(D155+E155)-ATAN(E155-1.676331)+0.00391838*(E155)^(3/2)*ATAN(0.023101*E155)-4.686035,'Weather data'!C155) -> 1.056315813 | M155: 0.1028037383 | N155: 10.8982243 | O155: 0.1017757009 | R155: =O156*'Qsol calculation'!N155 -> -0.2159267538 | S155: =O156*'Qsol calculation'!O155 -> -0.2790454096 | T155: =O156*'Qsol calculation'!P155 -> -0.3499981733 | U155: =O156*'Qsol calculation'!Q155 -> -0.04463162956 | V155: =O156*'Qsol calculation'!R155 -> -0.002659567933 | W155: =O156*'Qsol calculation'!S155 -> 0.04463162956 | X155: =O156*'Qsol calculation'!T155 -> 0.3499981733 | Y155: =O156*'Qsol calculation'!U155 -> 0.2159267538 | AA155: 0 | AB155: 0 | AC155: 0 | AD155: 0 | AE155: 0 | AF155: 0.04463162956 | AG155: 0.3499981733 | AH155: 0.2159267538 | AJ155: =N155*(1+COS(VCP!$N$22))/2 -> 8.483357591 | AL155: 8.483357591 | AM155: 8.483357591 | AN155: 8.483357591 | AO155: 8.483357591 | AP155: 8.483357591 | AQ155: 8.527989221 | AR155: 8.833355765 | AS155: 8.699284345 | AV155: =IF(AL155>VCP!$E$29,AL155*VCP!$E$28,AL155) -> 8.483357591 | AW155: =IF(AM155>VCP!$E$29,AM155*VCP!$E$28,AM155) -> 8.483357591 | AX155: =IF(AN155>VCP!$E$29,AN155*VCP!$E$28,AN155) -> 8.483357591 | AY155: =IF(AO155>VCP!$E$29,AO155*VCP!$E$28,AO155) -> 8.483357591 | AZ155: =IF(AP155>VCP!$E$29,AP155*VCP!$E$28,AP155) -> 8.483357591 | BA155: =IF(AQ155>VCP!$E$29,AQ155*VCP!$E$28,AQ155) -> 8.527989221 | BB155: =IF(AR155>VCP!$E$29,AR155*VCP!$E$28,AR155) -> 8.833355765 | BC155: =IF(AS155>VCP!$E$29,AS155*VCP!$E$28,AS155) -> 8.699284345
A156: 154 | B156: 3.6 | D156: 1.9 | E156: 89 | F156: 8.9 | G156: 200 | H156: 214 | I156: 29 | L156: =IF($K$2=0,D156*ATAN(0.151977*(E156+8.313659)^0.5)+ATAN(D156+E156)-ATAN(E156-1.676331)+0.00391838*(E156)^(3/2)*ATAN(0.023101*E156)-4.686035,'Weather data'!C156) -> 0.8597810639 | M156: 0.1355140187 | N156: 28.64630841 | O156: 0.3536915888 | R156: =O157*'Qsol calculation'!N156 -> -0.2358639736 | S156: =O157*'Qsol calculation'!O156 -> -0.518012524 | T156: =O157*'Qsol calculation'!P156 -> -0.5330711837 | U156: =O157*'Qsol calculation'!Q156 -> -0.1995091533 | V156: =O157*'Qsol calculation'!R156 -> -0.02881233155 | W156: =O157*'Qsol calculation'!S156 -> 0.1995091533 | X156: =O157*'Qsol calculation'!T156 -> 0.5330711837 | Y156: =O157*'Qsol calculation'!U156 -> 0.2358639736 | AA156: 0 | AB156: 0 | AC156: 0 | AD156: 0 | AE156: 0 | AF156: 0.1995091533 | AG156: 0.5330711837 | AH156: 0.2358639736 | AJ156: =N156*(1+COS(VCP!$N$22))/2 -> 22.29875907 | AL156: 22.29875907 | AM156: 22.29875907 | AN156: 22.29875907 | AO156: 22.29875907 | AP156: 22.29875907 | AQ156: 22.49826822 | AR156: 22.83183025 | AS156: 22.53462304 | AV156: =IF(AL156>VCP!$E$29,AL156*VCP!$E$28,AL156) -> 22.29875907 | AW156: =IF(AM156>VCP!$E$29,AM156*VCP!$E$28,AM156) -> 22.29875907 | AX156: =IF(AN156>VCP!$E$29,AN156*VCP!$E$28,AN156) -> 22.29875907 | AY156: =IF(AO156>VCP!$E$29,AO156*VCP!$E$28,AO156) -> 22.29875907 | AZ156: =IF(AP156>VCP!$E$29,AP156*VCP!$E$28,AP156) -> 22.29875907 | BA156: =IF(AQ156>VCP!$E$29,AQ156*VCP!$E$28,AQ156) -> 22.49826822 | BB156: =IF(AR156>VCP!$E$29,AR156*VCP!$E$28,AR156) -> 22.83183025 | BC156: =IF(AS156>VCP!$E$29,AS156*VCP!$E$28,AS156) -> 22.53462304
A157: 155 | B157: 3.5 | D157: 1.8 | E157: 89 | F157: 9.6 | G157: 200 | H157: 276 | I157: 42 | L157: =IF($K$2=0,D157*ATAN(0.151977*(E157+8.313659)^0.5)+ATAN(D157+E157)-ATAN(E157-1.676331)+0.00391838*(E157)^(3/2)*ATAN(0.023101*E157)-4.686035,'Weather data'!C157) -> 0.7615136495 | M157: 0.152173913 | N157: 41.42478261 | O157: 0.5752173913 | R157: =O158*'Qsol calculation'!N157 -> -0.1098971353 | S157: =O158*'Qsol calculation'!O157 -> -0.5839790102 | T157: =O158*'Qsol calculation'!P157 -> -0.4906445278 | U157: =O158*'Qsol calculation'!Q157 -> -0.3352265086 | V157: =O158*'Qsol calculation'!R157 -> -0.04523637883 | W157: =O158*'Qsol calculation'!S157 -> 0.3352265086 | X157: =O158*'Qsol calculation'!T157 -> 0.4906445278 | Y157: =O158*'Qsol calculation'!U157 -> 0.1098971353 | AA157: 0 | AB157: 0 | AC157: 0 | AD157: 0 | AE157: 0 | AF157: 0.3352265086 | AG157: 0.4906445278 | AH157: 0.1098971353 | AJ157: =N157*(1+COS(VCP!$N$22))/2 -> 32.2457342 | AL157: 32.2457342 | AM157: 32.2457342 | AN157: 32.2457342 | AO157: 32.2457342 | AP157: 32.2457342 | AQ157: 32.58096071 | AR157: 32.73637873 | AS157: 32.35563134 | AV157: =IF(AL157>VCP!$E$29,AL157*VCP!$E$28,AL157) -> 32.2457342 | AW157: =IF(AM157>VCP!$E$29,AM157*VCP!$E$28,AM157) -> 32.2457342 | AX157: =IF(AN157>VCP!$E$29,AN157*VCP!$E$28,AN157) -> 32.2457342 | AY157: =IF(AO157>VCP!$E$29,AO157*VCP!$E$28,AO157) -> 32.2457342 | AZ157: =IF(AP157>VCP!$E$29,AP157*VCP!$E$28,AP157) -> 32.2457342 | BA157: =IF(AQ157>VCP!$E$29,AQ157*VCP!$E$28,AQ157) -> 32.58096071 | BB157: =IF(AR157>VCP!$E$29,AR157*VCP!$E$28,AR157) -> 32.73637873 | BC157: =IF(AS157>VCP!$E$29,AS157*VCP!$E$28,AS157) -> 32.35563134
A158: 156 | B158: 3.3 | D158: 1.6 | E158: 89 | F158: 10.3 | G158: 210 | H158: 288 | I158: 44 | L158: =IF($K$2=0,D158*ATAN(0.151977*(E158+8.313659)^0.5)+ATAN(D158+E158)-ATAN(E158-1.676331)+0.00391838*(E158)^(3/2)*ATAN(0.023101*E158)-4.686035,'Weather data'!C158) -> 0.5649787407 | M158: 0.1527777778 | N158: 43.395 | O158: 0.605 | R158: =O159*'Qsol calculation'!N158 -> 0.02758577798 | S158: =O159*'Qsol calculation'!O158 -> -0.456600267 | T158: =O159*'Qsol calculation'!P158 -> -0.3033590544 | U158: =O159*'Qsol calculation'!Q158 -> -0.3423712357 | V158: =O159*'Qsol calculation'!R158 -> -0.03726959851 | W158: =O159*'Qsol calculation'!S158 -> 0.3423712357 | X158: =O159*'Qsol calculation'!T158 -> 0.3033590544 | Y158: =O159*'Qsol calculation'!U158 -> -0.02758577798 | AA158: 0.02758577798 | AB158: 0 | AC158: 0 | AD158: 0 | AE158: 0 | AF158: 0.3423712357 | AG158: 0.3033590544 | AH158: 0 | AJ158: =N158*(1+COS(VCP!$N$22))/2 -> 33.77938392 | AL158: 33.8069697 | AM158: 33.77938392 | AN158: 33.77938392 | AO158: 33.77938392 | AP158: 33.77938392 | AQ158: 34.12175516 | AR158: 34.08274298 | AS158: 33.77938392 | AV158: =IF(AL158>VCP!$E$29,AL158*VCP!$E$28,AL158) -> 33.8069697 | AW158: =IF(AM158>VCP!$E$29,AM158*VCP!$E$28,AM158) -> 33.77938392 | AX158: =IF(AN158>VCP!$E$29,AN158*VCP!$E$28,AN158) -> 33.77938392 | AY158: =IF(AO158>VCP!$E$29,AO158*VCP!$E$28,AO158) -> 33.77938392 | AZ158: =IF(AP158>VCP!$E$29,AP158*VCP!$E$28,AP158) -> 33.77938392 | BA158: =IF(AQ158>VCP!$E$29,AQ158*VCP!$E$28,AQ158) -> 34.12175516 | BB158: =IF(AR158>VCP!$E$29,AR158*VCP!$E$28,AR158) -> 34.08274298 | BC158: =IF(AS158>VCP!$E$29,AS158*VCP!$E$28,AS158) -> 33.77938392
A159: 157 | B159: 3.3 | D159: 1.6 | E159: 89 | F159: 10 | G159: 210 | H159: 250 | I159: 36 | L159: =IF($K$2=0,D159*ATAN(0.151977*(E159+8.313659)^0.5)+ATAN(D159+E159)-ATAN(E159-1.676331)+0.00391838*(E159)^(3/2)*ATAN(0.023101*E159)-4.686035,'Weather data'!C159) -> 0.5649787407 | M159: 0.144 | N159: 35.53344 | O159: 0.46656 | R159: =O160*'Qsol calculation'!N159 -> 0.06455358921 | S159: =O160*'Qsol calculation'!O159 -> -0.2050543904 | T159: =O160*'Qsol calculation'!P159 -> -0.09934906929 | U159: =O160*'Qsol calculation'!Q159 -> -0.1906416307 | V159: =O160*'Qsol calculation'!R159 -> -0.01419787678 | W159: =O160*'Qsol calculation'!S159 -> 0.1906416307 | X159: =O160*'Qsol calculation'!T159 -> 0.09934906929 | Y159: =O160*'Qsol calculation'!U159 -> -0.06455358921 | AA159: 0.06455358921 | AB159: 0 | AC159: 0 | AD159: 0 | AE159: 0 | AF159: 0.1906416307 | AG159: 0.09934906929 | AH159: 0 | AJ159: =N159*(1+COS(VCP!$N$22))/2 -> 27.65981592 | AL159: 27.72436951 | AM159: 27.65981592 | AN159: 27.65981592 | AO159: 27.65981592 | AP159: 27.65981592 | AQ159: 27.85045755 | AR159: 27.75916499 | AS159: 27.65981592 | AV159: =IF(AL159>VCP!$E$29,AL159*VCP!$E$28,AL159) -> 27.72436951 | AW159: =IF(AM159>VCP!$E$29,AM159*VCP!$E$28,AM159) -> 27.65981592 | AX159: =IF(AN159>VCP!$E$29,AN159*VCP!$E$28,AN159) -> 27.65981592 | AY159: =IF(AO159>VCP!$E$29,AO159*VCP!$E$28,AO159) -> 27.65981592 | AZ159: =IF(AP159>VCP!$E$29,AP159*VCP!$E$28,AP159) -> 27.65981592 | BA159: =IF(AQ159>VCP!$E$29,AQ159*VCP!$E$28,AQ159) -> 27.85045755 | BB159: =IF(AR159>VCP!$E$29,AR159*VCP!$E$28,AR159) -> 27.75916499 | BC159: =IF(AS159>VCP!$E$29,AS159*VCP!$E$28,AS159) -> 27.65981592
A160: 158 | B160: 3.2 | D160: 1.7 | E160: 89 | F160: 9.6 | G160: 210 | H160: 165 | I160: 20 | L160: =IF($K$2=0,D160*ATAN(0.151977*(E160+8.313659)^0.5)+ATAN(D160+E160)-ATAN(E160-1.676331)+0.00391838*(E160)^(3/2)*ATAN(0.023101*E160)-4.686035,'Weather data'!C160) -> 0.6632462085 | M160: 0.1212121212 | N160: 19.78181818 | O160: 0.2181818182 | R160: =O161*'Qsol calculation'!N160 -> 0.01716119146 | S160: =O161*'Qsol calculation'!O160 -> -0.02851332135 | T160: =O161*'Qsol calculation'!P160 -> -0.008027168031 | U160: =O161*'Qsol calculation'!Q160 -> -0.03229675774 | V160: =O161*'Qsol calculation'!R160 -> -0.001050053827 | W160: =O161*'Qsol calculation'!S160 -> 0.03229675774 | X160: =O161*'Qsol calculation'!T160 -> 0.008027168031 | Y160: =O161*'Qsol calculation'!U160 -> -0.01716119146 | AA160: 0.01716119146 | AB160: 0 | AC160: 0 | AD160: 0 | AE160: 0 | AF160: 0.03229675774 | AG160: 0.008027168031 | AH160: 0 | AJ160: =N160*(1+COS(VCP!$N$22))/2 -> 15.39849363 | AL160: 15.41565482 | AM160: 15.39849363 | AN160: 15.39849363 | AO160: 15.39849363 | AP160: 15.39849363 | AQ160: 15.43079039 | AR160: 15.4065208 | AS160: 15.39849363 | AV160: =IF(AL160>VCP!$E$29,AL160*VCP!$E$28,AL160) -> 15.41565482 | AW160: =IF(AM160>VCP!$E$29,AM160*VCP!$E$28,AM160) -> 15.39849363 | AX160: =IF(AN160>VCP!$E$29,AN160*VCP!$E$28,AN160) -> 15.39849363 | AY160: =IF(AO160>VCP!$E$29,AO160*VCP!$E$28,AO160) -> 15.39849363 | AZ160: =IF(AP160>VCP!$E$29,AP160*VCP!$E$28,AP160) -> 15.39849363 | BA160: =IF(AQ160>VCP!$E$29,AQ160*VCP!$E$28,AQ160) -> 15.43079039 | BB160: =IF(AR160>VCP!$E$29,AR160*VCP!$E$28,AR160) -> 15.4065208 | BC160: =IF(AS160>VCP!$E$29,AS160*VCP!$E$28,AS160) -> 15.39849363
A161: 159 | B161: 3.2 | D161: 1.7 | E161: 90 | F161: 9.3 | G161: 210 | H161: 43 | I161: 4 | L161: =IF($K$2=0,D161*ATAN(0.151977*(E161+8.313659)^0.5)+ATAN(D161+E161)-ATAN(E161-1.676331)+0.00391838*(E161)^(3/2)*ATAN(0.023101*E161)-4.686035,'Weather data'!C161) -> 0.7440681481 | M161: 0.09302325581 | N161: 3.966511628 | O161: 0.03348837209 | R161: =O162*'Qsol calculation'!N161 -> 0 | S161: =O162*'Qsol calculation'!O161 -> 0 | T161: =O162*'Qsol calculation'!P161 -> 0 | U161: =O162*'Qsol calculation'!Q161 -> 0 | V161: =O162*'Qsol calculation'!R161 -> 0 | W161: =O162*'Qsol calculation'!S161 -> 0 | X161: =O162*'Qsol calculation'!T161 -> 0 | Y161: =O162*'Qsol calculation'!U161 -> 0 | AA161: 0 | AB161: 0 | AC161: 0 | AD161: 0 | AE161: 0 | AF161: 0 | AG161: 0 | AH161: 0 | AJ161: =N161*(1+COS(VCP!$N$22))/2 -> 3.08759809 | AL161: 3.08759809 | AM161: 3.08759809 | AN161: 3.08759809 | AO161: 3.08759809 | AP161: 3.08759809 | AQ161: 3.08759809 | AR161: 3.08759809 | AS161: 3.08759809 | AV161: =IF(AL161>VCP!$E$29,AL161*VCP!$E$28,AL161) -> 3.08759809 | AW161: =IF(AM161>VCP!$E$29,AM161*VCP!$E$28,AM161) -> 3.08759809 | AX161: =IF(AN161>VCP!$E$29,AN161*VCP!$E$28,AN161) -> 3.08759809 | AY161: =IF(AO161>VCP!$E$29,AO161*VCP!$E$28,AO161) -> 3.08759809 | AZ161: =IF(AP161>VCP!$E$29,AP161*VCP!$E$28,AP161) -> 3.08759809 | BA161: =IF(AQ161>VCP!$E$29,AQ161*VCP!$E$28,AQ161) -> 3.08759809 | BB161: =IF(AR161>VCP!$E$29,AR161*VCP!$E$28,AR161) -> 3.08759809 | BC161: =IF(AS161>VCP!$E$29,AS161*VCP!$E$28,AS161) -> 3.08759809
A162: 160 | B162: 3.3 | D162: 1.8 | E162: 90 | F162: 8.6 | G162: 210 | H162: 0 | I162: 0 | L162: =IF($K$2=0,D162*ATAN(0.151977*(E162+8.313659)^0.5)+ATAN(D162+E162)-ATAN(E162-1.676331)+0.00391838*(E162)^(3/2)*ATAN(0.023101*E162)-4.686035,'Weather data'!C162) -> 0.8425710703 | M162: 0 | N162: 0 | O162: 0 | R162: =O163*'Qsol calculation'!N162 -> 0 | S162: =O163*'Qsol calculation'!O162 -> 0 | T162: =O163*'Qsol calculation'!P162 -> 0 | U162: =O163*'Qsol calculation'!Q162 -> 0 | V162: =O163*'Qsol calculation'!R162 -> 0 | W162: =O163*'Qsol calculation'!S162 -> 0 | X162: =O163*'Qsol calculation'!T162 -> 0 | Y162: =O163*'Qsol calculation'!U162 -> 0 | AA162: 0 | AB162: 0 | AC162: 0 | AD162: 0 | AE162: 0 | AF162: 0 | AG162: 0 | AH162: 0 | AJ162: =N162*(1+COS(VCP!$N$22))/2 -> 0 | AL162: 0 | AM162: 0 | AN162: 0 | AO162: 0 | AP162: 0 | AQ162: 0 | AR162: 0 | AS162: 0 | AV162: =IF(AL162>VCP!$E$29,AL162*VCP!$E$28,AL162) -> 0 | AW162: =IF(AM162>VCP!$E$29,AM162*VCP!$E$28,AM162) -> 0 | AX162: =IF(AN162>VCP!$E$29,AN162*VCP!$E$28,AN162) -> 0 | AY162: =IF(AO162>VCP!$E$29,AO162*VCP!$E$28,AO162) -> 0 | AZ162: =IF(AP162>VCP!$E$29,AP162*VCP!$E$28,AP162) -> 0 | BA162: =IF(AQ162>VCP!$E$29,AQ162*VCP!$E$28,AQ162) -> 0 | BB162: =IF(AR162>VCP!$E$29,AR162*VCP!$E$28,AR162) -> 0 | BC162: =IF(AS162>VCP!$E$29,AS162*VCP!$E$28,AS162) -> 0
A163: 161 | B163: 3.3 | D163: 1.8 | E163: 90 | F163: 7.9 | G163: 210 | H163: 0 | I163: 0 | L163: =IF($K$2=0,D163*ATAN(0.151977*(E163+8.313659)^0.5)+ATAN(D163+E163)-ATAN(E163-1.676331)+0.00391838*(E163)^(3/2)*ATAN(0.023101*E163)-4.686035,'Weather data'!C163) -> 0.8425710703 | M163: 0 | N163: 0 | O163: 0 | R163: =O164*'Qsol calculation'!N163 -> 0 | S163: =O164*'Qsol calculation'!O163 -> 0 | T163: =O164*'Qsol calculation'!P163 -> 0 | U163: =O164*'Qsol calculation'!Q163 -> 0 | V163: =O164*'Qsol calculation'!R163 -> 0 | W163: =O164*'Qsol calculation'!S163 -> 0 | X163: =O164*'Qsol calculation'!T163 -> 0 | Y163: =O164*'Qsol calculation'!U163 -> 0 | AA163: 0 | AB163: 0 | AC163: 0 | AD163: 0 | AE163: 0 | AF163: 0 | AG163: 0 | AH163: 0 | AJ163: =N163*(1+COS(VCP!$N$22))/2 -> 0 | AL163: 0 | AM163: 0 | AN163: 0 | AO163: 0 | AP163: 0 | AQ163: 0 | AR163: 0 | AS163: 0 | AV163: =IF(AL163>VCP!$E$29,AL163*VCP!$E$28,AL163) -> 0 | AW163: =IF(AM163>VCP!$E$29,AM163*VCP!$E$28,AM163) -> 0 | AX163: =IF(AN163>VCP!$E$29,AN163*VCP!$E$28,AN163) -> 0 | AY163: =IF(AO163>VCP!$E$29,AO163*VCP!$E$28,AO163) -> 0 | AZ163: =IF(AP163>VCP!$E$29,AP163*VCP!$E$28,AP163) -> 0 | BA163: =IF(AQ163>VCP!$E$29,AQ163*VCP!$E$28,AQ163) -> 0 | BB163: =IF(AR163>VCP!$E$29,AR163*VCP!$E$28,AR163) -> 0 | BC163: =IF(AS163>VCP!$E$29,AS163*VCP!$E$28,AS163) -> 0
A164: 162 | B164: 3.4 | D164: 1.9 | E164: 90 | F164: 7.2 | G164: 230 | H164: 0 | I164: 0 | L164: =IF($K$2=0,D164*ATAN(0.151977*(E164+8.313659)^0.5)+ATAN(D164+E164)-ATAN(E164-1.676331)+0.00391838*(E164)^(3/2)*ATAN(0.023101*E164)-4.686035,'Weather data'!C164) -> 0.9410739667 | M164: 0 | N164: 0 | O164: 0 | R164: =O165*'Qsol calculation'!N164 -> 0 | S164: =O165*'Qsol calculation'!O164 -> 0 | T164: =O165*'Qsol calculation'!P164 -> 0 | U164: =O165*'Qsol calculation'!Q164 -> 0 | V164: =O165*'Qsol calculation'!R164 -> 0 | W164: =O165*'Qsol calculation'!S164 -> 0 | X164: =O165*'Qsol calculation'!T164 -> 0 | Y164: =O165*'Qsol calculation'!U164 -> 0 | AA164: 0 | AB164: 0 | AC164: 0 | AD164: 0 | AE164: 0 | AF164: 0 | AG164: 0 | AH164: 0 | AJ164: =N164*(1+COS(VCP!$N$22))/2 -> 0 | AL164: 0 | AM164: 0 | AN164: 0 | AO164: 0 | AP164: 0 | AQ164: 0 | AR164: 0 | AS164: 0 | AV164: =IF(AL164>VCP!$E$29,AL164*VCP!$E$28,AL164) -> 0 | AW164: =IF(AM164>VCP!$E$29,AM164*VCP!$E$28,AM164) -> 0 | AX164: =IF(AN164>VCP!$E$29,AN164*VCP!$E$28,AN164) -> 0 | AY164: =IF(AO164>VCP!$E$29,AO164*VCP!$E$28,AO164) -> 0 | AZ164: =IF(AP164>VCP!$E$29,AP164*VCP!$E$28,AP164) -> 0 | BA164: =IF(AQ164>VCP!$E$29,AQ164*VCP!$E$28,AQ164) -> 0 | BB164: =IF(AR164>VCP!$E$29,AR164*VCP!$E$28,AR164) -> 0 | BC164: =IF(AS164>VCP!$E$29,AS164*VCP!$E$28,AS164) -> 0
A165: 163 | B165: 2.8 | D165: 1.2 | E165: 89 | F165: 6.9 | G165: 230 | H165: 0 | I165: 0 | L165: =IF($K$2=0,D165*ATAN(0.151977*(E165+8.313659)^0.5)+ATAN(D165+E165)-ATAN(E165-1.676331)+0.00391838*(E165)^(3/2)*ATAN(0.023101*E165)-4.686035,'Weather data'!C165) -> 0.1719085995 | M165: 0 | N165: 0 | O165: 0 | R165: =O166*'Qsol calculation'!N165 -> 0 | S165: =O166*'Qsol calculation'!O165 -> 0 | T165: =O166*'Qsol calculation'!P165 -> 0 | U165: =O166*'Qsol calculation'!Q165 -> 0 | V165: =O166*'Qsol calculation'!R165 -> 0 | W165: =O166*'Qsol calculation'!S165 -> 0 | X165: =O166*'Qsol calculation'!T165 -> 0 | Y165: =O166*'Qsol calculation'!U165 -> 0 | AA165: 0 | AB165: 0 | AC165: 0 | AD165: 0 | AE165: 0 | AF165: 0 | AG165: 0 | AH165: 0 | AJ165: =N165*(1+COS(VCP!$N$22))/2 -> 0 | AL165: 0 | AM165: 0 | AN165: 0 | AO165: 0 | AP165: 0 | AQ165: 0 | AR165: 0 | AS165: 0 | AV165: =IF(AL165>VCP!$E$29,AL165*VCP!$E$28,AL165) -> 0 | AW165: =IF(AM165>VCP!$E$29,AM165*VCP!$E$28,AM165) -> 0 | AX165: =IF(AN165>VCP!$E$29,AN165*VCP!$E$28,AN165) -> 0 | AY165: =IF(AO165>VCP!$E$29,AO165*VCP!$E$28,AO165) -> 0 | AZ165: =IF(AP165>VCP!$E$29,AP165*VCP!$E$28,AP165) -> 0 | BA165: =IF(AQ165>VCP!$E$29,AQ165*VCP!$E$28,AQ165) -> 0 | BB165: =IF(AR165>VCP!$E$29,AR165*VCP!$E$28,AR165) -> 0 | BC165: =IF(AS165>VCP!$E$29,AS165*VCP!$E$28,AS165) -> 0
A166: 164 | B166: 2.1 | D166: 0.5 | E166: 89 | F166: 6.5 | G166: 230 | H166: 0 | I166: 0 | L166: =IF($K$2=0,D166*ATAN(0.151977*(E166+8.313659)^0.5)+ATAN(D166+E166)-ATAN(E166-1.676331)+0.00391838*(E166)^(3/2)*ATAN(0.023101*E166)-4.686035,'Weather data'!C166) -> -0.5159651999 | M166: 0 | N166: 0 | O166: 0 | R166: =O167*'Qsol calculation'!N166 -> 0 | S166: =O167*'Qsol calculation'!O166 -> 0 | T166: =O167*'Qsol calculation'!P166 -> 0 | U166: =O167*'Qsol calculation'!Q166 -> 0 | V166: =O167*'Qsol calculation'!R166 -> 0 | W166: =O167*'Qsol calculation'!S166 -> 0 | X166: =O167*'Qsol calculation'!T166 -> 0 | Y166: =O167*'Qsol calculation'!U166 -> 0 | AA166: 0 | AB166: 0 | AC166: 0 | AD166: 0 | AE166: 0 | AF166: 0 | AG166: 0 | AH166: 0 | AJ166: =N166*(1+COS(VCP!$N$22))/2 -> 0 | AL166: 0 | AM166: 0 | AN166: 0 | AO166: 0 | AP166: 0 | AQ166: 0 | AR166: 0 | AS166: 0 | AV166: =IF(AL166>VCP!$E$29,AL166*VCP!$E$28,AL166) -> 0 | AW166: =IF(AM166>VCP!$E$29,AM166*VCP!$E$28,AM166) -> 0 | AX166: =IF(AN166>VCP!$E$29,AN166*VCP!$E$28,AN166) -> 0 | AY166: =IF(AO166>VCP!$E$29,AO166*VCP!$E$28,AO166) -> 0 | AZ166: =IF(AP166>VCP!$E$29,AP166*VCP!$E$28,AP166) -> 0 | BA166: =IF(AQ166>VCP!$E$29,AQ166*VCP!$E$28,AQ166) -> 0 | BB166: =IF(AR166>VCP!$E$29,AR166*VCP!$E$28,AR166) -> 0 | BC166: =IF(AS166>VCP!$E$29,AS166*VCP!$E$28,AS166) -> 0
A167: 165 | B167: 1.5 | D167: -0.2 | E167: 88 | F167: 6.2 | G167: 240 | H167: 0 | I167: 0 | L167: =IF($K$2=0,D167*ATAN(0.151977*(E167+8.313659)^0.5)+ATAN(D167+E167)-ATAN(E167-1.676331)+0.00391838*(E167)^(3/2)*ATAN(0.023101*E167)-4.686035,'Weather data'!C167) -> -1.279608187 | M167: 0 | N167: 0 | O167: 0 | R167: =O168*'Qsol calculation'!N167 -> 0 | S167: =O168*'Qsol calculation'!O167 -> 0 | T167: =O168*'Qsol calculation'!P167 -> 0 | U167: =O168*'Qsol calculation'!Q167 -> 0 | V167: =O168*'Qsol calculation'!R167 -> 0 | W167: =O168*'Qsol calculation'!S167 -> 0 | X167: =O168*'Qsol calculation'!T167 -> 0 | Y167: =O168*'Qsol calculation'!U167 -> 0 | AA167: 0 | AB167: 0 | AC167: 0 | AD167: 0 | AE167: 0 | AF167: 0 | AG167: 0 | AH167: 0 | AJ167: =N167*(1+COS(VCP!$N$22))/2 -> 0 | AL167: 0 | AM167: 0 | AN167: 0 | AO167: 0 | AP167: 0 | AQ167: 0 | AR167: 0 | AS167: 0 | AV167: =IF(AL167>VCP!$E$29,AL167*VCP!$E$28,AL167) -> 0 | AW167: =IF(AM167>VCP!$E$29,AM167*VCP!$E$28,AM167) -> 0 | AX167: =IF(AN167>VCP!$E$29,AN167*VCP!$E$28,AN167) -> 0 | AY167: =IF(AO167>VCP!$E$29,AO167*VCP!$E$28,AO167) -> 0 | AZ167: =IF(AP167>VCP!$E$29,AP167*VCP!$E$28,AP167) -> 0 | BA167: =IF(AQ167>VCP!$E$29,AQ167*VCP!$E$28,AQ167) -> 0 | BB167: =IF(AR167>VCP!$E$29,AR167*VCP!$E$28,AR167) -> 0 | BC167: =IF(AS167>VCP!$E$29,AS167*VCP!$E$28,AS167) -> 0
A168: 166 | B168: 1.6 | D168: -0.1 | E168: 88 | F168: 7.2 | G168: 240 | H168: 0 | I168: 0 | L168: =IF($K$2=0,D168*ATAN(0.151977*(E168+8.313659)^0.5)+ATAN(D168+E168)-ATAN(E168-1.676331)+0.00391838*(E168)^(3/2)*ATAN(0.023101*E168)-4.686035,'Weather data'!C168) -> -1.181578581 | M168: 0 | N168: 0 | O168: 0 | R168: =O169*'Qsol calculation'!N168 -> 0 | S168: =O169*'Qsol calculation'!O168 -> 0 | T168: =O169*'Qsol calculation'!P168 -> 0 | U168: =O169*'Qsol calculation'!Q168 -> 0 | V168: =O169*'Qsol calculation'!R168 -> 0 | W168: =O169*'Qsol calculation'!S168 -> 0 | X168: =O169*'Qsol calculation'!T168 -> 0 | Y168: =O169*'Qsol calculation'!U168 -> 0 | AA168: 0 | AB168: 0 | AC168: 0 | AD168: 0 | AE168: 0 | AF168: 0 | AG168: 0 | AH168: 0 | AJ168: =N168*(1+COS(VCP!$N$22))/2 -> 0 | AL168: 0 | AM168: 0 | AN168: 0 | AO168: 0 | AP168: 0 | AQ168: 0 | AR168: 0 | AS168: 0 | AV168: =IF(AL168>VCP!$E$29,AL168*VCP!$E$28,AL168) -> 0 | AW168: =IF(AM168>VCP!$E$29,AM168*VCP!$E$28,AM168) -> 0 | AX168: =IF(AN168>VCP!$E$29,AN168*VCP!$E$28,AN168) -> 0 | AY168: =IF(AO168>VCP!$E$29,AO168*VCP!$E$28,AO168) -> 0 | AZ168: =IF(AP168>VCP!$E$29,AP168*VCP!$E$28,AP168) -> 0 | BA168: =IF(AQ168>VCP!$E$29,AQ168*VCP!$E$28,AQ168) -> 0 | BB168: =IF(AR168>VCP!$E$29,AR168*VCP!$E$28,AR168) -> 0 | BC168: =IF(AS168>VCP!$E$29,AS168*VCP!$E$28,AS168) -> 0
A169: 167 | B169: 1.8 | D169: 0 | E169: 88 | F169: 8.3 | G169: 240 | H169: 0 | I169: 0 | L169: =IF($K$2=0,D169*ATAN(0.151977*(E169+8.313659)^0.5)+ATAN(D169+E169)-ATAN(E169-1.676331)+0.00391838*(E169)^(3/2)*ATAN(0.023101*E169)-4.686035,'Weather data'!C169) -> -1.083549005 | M169: 0 | N169: 0 | O169: 0 | R169: =O170*'Qsol calculation'!N169 -> 0 | S169: =O170*'Qsol calculation'!O169 -> 0 | T169: =O170*'Qsol calculation'!P169 -> 0 | U169: =O170*'Qsol calculation'!Q169 -> 0 | V169: =O170*'Qsol calculation'!R169 -> 0 | W169: =O170*'Qsol calculation'!S169 -> 0 | X169: =O170*'Qsol calculation'!T169 -> 0 | Y169: =O170*'Qsol calculation'!U169 -> 0 | AA169: 0 | AB169: 0 | AC169: 0 | AD169: 0 | AE169: 0 | AF169: 0 | AG169: 0 | AH169: 0 | AJ169: =N169*(1+COS(VCP!$N$22))/2 -> 0 | AL169: 0 | AM169: 0 | AN169: 0 | AO169: 0 | AP169: 0 | AQ169: 0 | AR169: 0 | AS169: 0 | AV169: =IF(AL169>VCP!$E$29,AL169*VCP!$E$28,AL169) -> 0 | AW169: =IF(AM169>VCP!$E$29,AM169*VCP!$E$28,AM169) -> 0 | AX169: =IF(AN169>VCP!$E$29,AN169*VCP!$E$28,AN169) -> 0 | AY169: =IF(AO169>VCP!$E$29,AO169*VCP!$E$28,AO169) -> 0 | AZ169: =IF(AP169>VCP!$E$29,AP169*VCP!$E$28,AP169) -> 0 | BA169: =IF(AQ169>VCP!$E$29,AQ169*VCP!$E$28,AQ169) -> 0 | BB169: =IF(AR169>VCP!$E$29,AR169*VCP!$E$28,AR169) -> 0 | BC169: =IF(AS169>VCP!$E$29,AS169*VCP!$E$28,AS169) -> 0
A170: 168 | B170: 1.9 | D170: 0.1 | E170: 88 | F170: 9.3 | G170: 210 | H170: 0 | I170: 0 | L170: =IF($K$2=0,D170*ATAN(0.151977*(E170+8.313659)^0.5)+ATAN(D170+E170)-ATAN(E170-1.676331)+0.00391838*(E170)^(3/2)*ATAN(0.023101*E170)-4.686035,'Weather data'!C170) -> -0.9855194579 | M170: 0 | N170: 0 | O170: 0 | R170: =O171*'Qsol calculation'!N170 -> 0 | S170: =O171*'Qsol calculation'!O170 -> 0 | T170: =O171*'Qsol calculation'!P170 -> 0 | U170: =O171*'Qsol calculation'!Q170 -> 0 | V170: =O171*'Qsol calculation'!R170 -> 0 | W170: =O171*'Qsol calculation'!S170 -> 0 | X170: =O171*'Qsol calculation'!T170 -> 0 | Y170: =O171*'Qsol calculation'!U170 -> 0 | AA170: 0 | AB170: 0 | AC170: 0 | AD170: 0 | AE170: 0 | AF170: 0 | AG170: 0 | AH170: 0 | AJ170: =N170*(1+COS(VCP!$N$22))/2 -> 0 | AL170: 0 | AM170: 0 | AN170: 0 | AO170: 0 | AP170: 0 | AQ170: 0 | AR170: 0 | AS170: 0 | AV170: =IF(AL170>VCP!$E$29,AL170*VCP!$E$28,AL170) -> 0 | AW170: =IF(AM170>VCP!$E$29,AM170*VCP!$E$28,AM170) -> 0 | AX170: =IF(AN170>VCP!$E$29,AN170*VCP!$E$28,AN170) -> 0 | AY170: =IF(AO170>VCP!$E$29,AO170*VCP!$E$28,AO170) -> 0 | AZ170: =IF(AP170>VCP!$E$29,AP170*VCP!$E$28,AP170) -> 0 | BA170: =IF(AQ170>VCP!$E$29,AQ170*VCP!$E$28,AQ170) -> 0 | BB170: =IF(AR170>VCP!$E$29,AR170*VCP!$E$28,AR170) -> 0 | BC170: =IF(AS170>VCP!$E$29,AS170*VCP!$E$28,AS170) -> 0
A171: 169 | B171: 2.1 | D171: 0.4 | E171: 88 | F171: 10 | G171: 210 | H171: 0 | I171: 0 | L171: =IF($K$2=0,D171*ATAN(0.151977*(E171+8.313659)^0.5)+ATAN(D171+E171)-ATAN(E171-1.676331)+0.00391838*(E171)^(3/2)*ATAN(0.023101*E171)-4.686035,'Weather data'!C171) -> -0.6914309921 | M171: 0 | N171: 0 | O171: 0 | R171: =O172*'Qsol calculation'!N171 -> 0 | S171: =O172*'Qsol calculation'!O171 -> 0 | T171: =O172*'Qsol calculation'!P171 -> 0 | U171: =O172*'Qsol calculation'!Q171 -> 0 | V171: =O172*'Qsol calculation'!R171 -> 0 | W171: =O172*'Qsol calculation'!S171 -> 0 | X171: =O172*'Qsol calculation'!T171 -> 0 | Y171: =O172*'Qsol calculation'!U171 -> 0 | AA171: 0 | AB171: 0 | AC171: 0 | AD171: 0 | AE171: 0 | AF171: 0 | AG171: 0 | AH171: 0 | AJ171: =N171*(1+COS(VCP!$N$22))/2 -> 0 | AL171: 0 | AM171: 0 | AN171: 0 | AO171: 0 | AP171: 0 | AQ171: 0 | AR171: 0 | AS171: 0 | AV171: =IF(AL171>VCP!$E$29,AL171*VCP!$E$28,AL171) -> 0 | AW171: =IF(AM171>VCP!$E$29,AM171*VCP!$E$28,AM171) -> 0 | AX171: =IF(AN171>VCP!$E$29,AN171*VCP!$E$28,AN171) -> 0 | AY171: =IF(AO171>VCP!$E$29,AO171*VCP!$E$28,AO171) -> 0 | AZ171: =IF(AP171>VCP!$E$29,AP171*VCP!$E$28,AP171) -> 0 | BA171: =IF(AQ171>VCP!$E$29,AQ171*VCP!$E$28,AQ171) -> 0 | BB171: =IF(AR171>VCP!$E$29,AR171*VCP!$E$28,AR171) -> 0 | BC171: =IF(AS171>VCP!$E$29,AS171*VCP!$E$28,AS171) -> 0
A172: 170 | B172: 2.3 | D172: 0.7 | E172: 89 | F172: 10.6 | G172: 210 | H172: 0 | I172: 0 | L172: =IF($K$2=0,D172*ATAN(0.151977*(E172+8.313659)^0.5)+ATAN(D172+E172)-ATAN(E172-1.676331)+0.00391838*(E172)^(3/2)*ATAN(0.023101*E172)-4.686035,'Weather data'!C172) -> -0.3194296906 | M172: 0 | N172: 0 | O172: 0 | R172: =O173*'Qsol calculation'!N172 -> 0 | S172: =O173*'Qsol calculation'!O172 -> 0 | T172: =O173*'Qsol calculation'!P172 -> 0 | U172: =O173*'Qsol calculation'!Q172 -> 0 | V172: =O173*'Qsol calculation'!R172 -> 0 | W172: =O173*'Qsol calculation'!S172 -> 0 | X172: =O173*'Qsol calculation'!T172 -> 0 | Y172: =O173*'Qsol calculation'!U172 -> 0 | AA172: 0 | AB172: 0 | AC172: 0 | AD172: 0 | AE172: 0 | AF172: 0 | AG172: 0 | AH172: 0 | AJ172: =N172*(1+COS(VCP!$N$22))/2 -> 0 | AL172: 0 | AM172: 0 | AN172: 0 | AO172: 0 | AP172: 0 | AQ172: 0 | AR172: 0 | AS172: 0 | AV172: =IF(AL172>VCP!$E$29,AL172*VCP!$E$28,AL172) -> 0 | AW172: =IF(AM172>VCP!$E$29,AM172*VCP!$E$28,AM172) -> 0 | AX172: =IF(AN172>VCP!$E$29,AN172*VCP!$E$28,AN172) -> 0 | AY172: =IF(AO172>VCP!$E$29,AO172*VCP!$E$28,AO172) -> 0 | AZ172: =IF(AP172>VCP!$E$29,AP172*VCP!$E$28,AP172) -> 0 | BA172: =IF(AQ172>VCP!$E$29,AQ172*VCP!$E$28,AQ172) -> 0 | BB172: =IF(AR172>VCP!$E$29,AR172*VCP!$E$28,AR172) -> 0 | BC172: =IF(AS172>VCP!$E$29,AS172*VCP!$E$28,AS172) -> 0
A173: 171 | B173: 2.5 | D173: 1 | E173: 90 | F173: 11.3 | G173: 210 | H173: 0 | I173: 0 | L173: =IF($K$2=0,D173*ATAN(0.151977*(E173+8.313659)^0.5)+ATAN(D173+E173)-ATAN(E173-1.676331)+0.00391838*(E173)^(3/2)*ATAN(0.023101*E173)-4.686035,'Weather data'!C173) -> 0.05454696192 | M173: 0 | N173: 0 | O173: 0 | R173: =O174*'Qsol calculation'!N173 -> 0 | S173: =O174*'Qsol calculation'!O173 -> 0 | T173: =O174*'Qsol calculation'!P173 -> 0 | U173: =O174*'Qsol calculation'!Q173 -> 0 | V173: =O174*'Qsol calculation'!R173 -> 0 | W173: =O174*'Qsol calculation'!S173 -> 0 | X173: =O174*'Qsol calculation'!T173 -> 0 | Y173: =O174*'Qsol calculation'!U173 -> 0 | AA173: 0 | AB173: 0 | AC173: 0 | AD173: 0 | AE173: 0 | AF173: 0 | AG173: 0 | AH173: 0 | AJ173: =N173*(1+COS(VCP!$N$22))/2 -> 0 | AL173: 0 | AM173: 0 | AN173: 0 | AO173: 0 | AP173: 0 | AQ173: 0 | AR173: 0 | AS173: 0 | AV173: =IF(AL173>VCP!$E$29,AL173*VCP!$E$28,AL173) -> 0 | AW173: =IF(AM173>VCP!$E$29,AM173*VCP!$E$28,AM173) -> 0 | AX173: =IF(AN173>VCP!$E$29,AN173*VCP!$E$28,AN173) -> 0 | AY173: =IF(AO173>VCP!$E$29,AO173*VCP!$E$28,AO173) -> 0 | AZ173: =IF(AP173>VCP!$E$29,AP173*VCP!$E$28,AP173) -> 0 | BA173: =IF(AQ173>VCP!$E$29,AQ173*VCP!$E$28,AQ173) -> 0 | BB173: =IF(AR173>VCP!$E$29,AR173*VCP!$E$28,AR173) -> 0 | BC173: =IF(AS173>VCP!$E$29,AS173*VCP!$E$28,AS173) -> 0
A174: 172 | B174: 2.6 | D174: 0.9 | E174: 89 | F174: 10.6 | G174: 210 | H174: 0 | I174: 0 | L174: =IF($K$2=0,D174*ATAN(0.151977*(E174+8.313659)^0.5)+ATAN(D174+E174)-ATAN(E174-1.676331)+0.00391838*(E174)^(3/2)*ATAN(0.023101*E174)-4.686035,'Weather data'!C174) -> -0.1228942921 | M174: 0 | N174: 0 | O174: 0 | R174: =O175*'Qsol calculation'!N174 -> 0 | S174: =O175*'Qsol calculation'!O174 -> 0 | T174: =O175*'Qsol calculation'!P174 -> 0 | U174: =O175*'Qsol calculation'!Q174 -> 0 | V174: =O175*'Qsol calculation'!R174 -> 0 | W174: =O175*'Qsol calculation'!S174 -> 0 | X174: =O175*'Qsol calculation'!T174 -> 0 | Y174: =O175*'Qsol calculation'!U174 -> 0 | AA174: 0 | AB174: 0 | AC174: 0 | AD174: 0 | AE174: 0 | AF174: 0 | AG174: 0 | AH174: 0 | AJ174: =N174*(1+COS(VCP!$N$22))/2 -> 0 | AL174: 0 | AM174: 0 | AN174: 0 | AO174: 0 | AP174: 0 | AQ174: 0 | AR174: 0 | AS174: 0 | AV174: =IF(AL174>VCP!$E$29,AL174*VCP!$E$28,AL174) -> 0 | AW174: =IF(AM174>VCP!$E$29,AM174*VCP!$E$28,AM174) -> 0 | AX174: =IF(AN174>VCP!$E$29,AN174*VCP!$E$28,AN174) -> 0 | AY174: =IF(AO174>VCP!$E$29,AO174*VCP!$E$28,AO174) -> 0 | AZ174: =IF(AP174>VCP!$E$29,AP174*VCP!$E$28,AP174) -> 0 | BA174: =IF(AQ174>VCP!$E$29,AQ174*VCP!$E$28,AQ174) -> 0 | BB174: =IF(AR174>VCP!$E$29,AR174*VCP!$E$28,AR174) -> 0 | BC174: =IF(AS174>VCP!$E$29,AS174*VCP!$E$28,AS174) -> 0
A175: 173 | B175: 2.6 | D175: 0.9 | E175: 88 | F175: 10 | G175: 210 | H175: 0 | I175: 0 | L175: =IF($K$2=0,D175*ATAN(0.151977*(E175+8.313659)^0.5)+ATAN(D175+E175)-ATAN(E175-1.676331)+0.00391838*(E175)^(3/2)*ATAN(0.023101*E175)-4.686035,'Weather data'!C175) -> -0.2012841268 | M175: 0 | N175: 0 | O175: 0 | R175: =O176*'Qsol calculation'!N175 -> 0 | S175: =O176*'Qsol calculation'!O175 -> 0 | T175: =O176*'Qsol calculation'!P175 -> 0 | U175: =O176*'Qsol calculation'!Q175 -> 0 | V175: =O176*'Qsol calculation'!R175 -> 0 | W175: =O176*'Qsol calculation'!S175 -> 0 | X175: =O176*'Qsol calculation'!T175 -> 0 | Y175: =O176*'Qsol calculation'!U175 -> 0 | AA175: 0 | AB175: 0 | AC175: 0 | AD175: 0 | AE175: 0 | AF175: 0 | AG175: 0 | AH175: 0 | AJ175: =N175*(1+COS(VCP!$N$22))/2 -> 0 | AL175: 0 | AM175: 0 | AN175: 0 | AO175: 0 | AP175: 0 | AQ175: 0 | AR175: 0 | AS175: 0 | AV175: =IF(AL175>VCP!$E$29,AL175*VCP!$E$28,AL175) -> 0 | AW175: =IF(AM175>VCP!$E$29,AM175*VCP!$E$28,AM175) -> 0 | AX175: =IF(AN175>VCP!$E$29,AN175*VCP!$E$28,AN175) -> 0 | AY175: =IF(AO175>VCP!$E$29,AO175*VCP!$E$28,AO175) -> 0 | AZ175: =IF(AP175>VCP!$E$29,AP175*VCP!$E$28,AP175) -> 0 | BA175: =IF(AQ175>VCP!$E$29,AQ175*VCP!$E$28,AQ175) -> 0 | BB175: =IF(AR175>VCP!$E$29,AR175*VCP!$E$28,AR175) -> 0 | BC175: =IF(AS175>VCP!$E$29,AS175*VCP!$E$28,AS175) -> 0
A176: 174 | B176: 2.7 | D176: 0.9 | E176: 88 | F176: 9.3 | G176: 260 | H176: 0 | I176: 0 | L176: =IF($K$2=0,D176*ATAN(0.151977*(E176+8.313659)^0.5)+ATAN(D176+E176)-ATAN(E176-1.676331)+0.00391838*(E176)^(3/2)*ATAN(0.023101*E176)-4.686035,'Weather data'!C176) -> -0.2012841268 | M176: 0 | N176: 0 | O176: 0 | R176: =O177*'Qsol calculation'!N176 -> 0 | S176: =O177*'Qsol calculation'!O176 -> 0 | T176: =O177*'Qsol calculation'!P176 -> 0 | U176: =O177*'Qsol calculation'!Q176 -> 0 | V176: =O177*'Qsol calculation'!R176 -> 0 | W176: =O177*'Qsol calculation'!S176 -> 0 | X176: =O177*'Qsol calculation'!T176 -> 0 | Y176: =O177*'Qsol calculation'!U176 -> 0 | AA176: 0 | AB176: 0 | AC176: 0 | AD176: 0 | AE176: 0 | AF176: 0 | AG176: 0 | AH176: 0 | AJ176: =N176*(1+COS(VCP!$N$22))/2 -> 0 | AL176: 0 | AM176: 0 | AN176: 0 | AO176: 0 | AP176: 0 | AQ176: 0 | AR176: 0 | AS176: 0 | AV176: =IF(AL176>VCP!$E$29,AL176*VCP!$E$28,AL176) -> 0 | AW176: =IF(AM176>VCP!$E$29,AM176*VCP!$E$28,AM176) -> 0 | AX176: =IF(AN176>VCP!$E$29,AN176*VCP!$E$28,AN176) -> 0 | AY176: =IF(AO176>VCP!$E$29,AO176*VCP!$E$28,AO176) -> 0 | AZ176: =IF(AP176>VCP!$E$29,AP176*VCP!$E$28,AP176) -> 0 | BA176: =IF(AQ176>VCP!$E$29,AQ176*VCP!$E$28,AQ176) -> 0 | BB176: =IF(AR176>VCP!$E$29,AR176*VCP!$E$28,AR176) -> 0 | BC176: =IF(AS176>VCP!$E$29,AS176*VCP!$E$28,AS176) -> 0
A177: 175 | B177: 2.3 | D177: 0.5 | E177: 88 | F177: 8.9 | G177: 260 | H177: 0 | I177: 0 | L177: =IF($K$2=0,D177*ATAN(0.151977*(E177+8.313659)^0.5)+ATAN(D177+E177)-ATAN(E177-1.676331)+0.00391838*(E177)^(3/2)*ATAN(0.023101*E177)-4.686035,'Weather data'!C177) -> -0.5934015616 | M177: 0 | N177: 0 | O177: 0 | R177: =O178*'Qsol calculation'!N177 -> -0.01315588067 | S177: =O178*'Qsol calculation'!O177 -> -0.006839480623 | T177: =O178*'Qsol calculation'!P177 -> -0.01413885556 | U177: =O178*'Qsol calculation'!Q177 -> 0.004466369308 | V177: =O178*'Qsol calculation'!R177 -> 0.001777061593 | W177: =O178*'Qsol calculation'!S177 -> -0.004466369308 | X177: =O178*'Qsol calculation'!T177 -> 0.01413885556 | Y177: =O178*'Qsol calculation'!U177 -> 0.01315588067 | AA177: 0 | AB177: 0 | AC177: 0 | AD177: 0.004466369308 | AE177: 0.001777061593 | AF177: 0 | AG177: 0.01413885556 | AH177: 0.01315588067 | AJ177: =N177*(1+COS(VCP!$N$22))/2 -> 0 | AL177: 0 | AM177: 0 | AN177: 0 | AO177: 0.004466369308 | AP177: 0.001777061593 | AQ177: 0 | AR177: 0.01413885556 | AS177: 0.01315588067 | AV177: =IF(AL177>VCP!$E$29,AL177*VCP!$E$28,AL177) -> 0 | AW177: =IF(AM177>VCP!$E$29,AM177*VCP!$E$28,AM177) -> 0 | AX177: =IF(AN177>VCP!$E$29,AN177*VCP!$E$28,AN177) -> 0 | AY177: =IF(AO177>VCP!$E$29,AO177*VCP!$E$28,AO177) -> 0.004466369308 | AZ177: =IF(AP177>VCP!$E$29,AP177*VCP!$E$28,AP177) -> 0.001777061593 | BA177: =IF(AQ177>VCP!$E$29,AQ177*VCP!$E$28,AQ177) -> 0 | BB177: =IF(AR177>VCP!$E$29,AR177*VCP!$E$28,AR177) -> 0.01413885556 | BC177: =IF(AS177>VCP!$E$29,AS177*VCP!$E$28,AS177) -> 0.01315588067
A178: 176 | B178: 1.9 | D178: 0.1 | E178: 88 | F178: 8.6 | G178: 260 | H178: 6 | I178: 1 | L178: =IF($K$2=0,D178*ATAN(0.151977*(E178+8.313659)^0.5)+ATAN(D178+E178)-ATAN(E178-1.676331)+0.00391838*(E178)^(3/2)*ATAN(0.023101*E178)-4.686035,'Weather data'!C178) -> -0.9855194579 | M178: 0.1666666667 | N178: 0.985 | O178: 0.015 | R178: =O179*'Qsol calculation'!N178 -> -0.2297971164 | S178: =O179*'Qsol calculation'!O178 -> -0.189628459 | T178: =O179*'Qsol calculation'!P178 -> -0.2965786686 | U178: =O179*'Qsol calculation'!Q178 -> 0.02840353001 | V178: =O179*'Qsol calculation'!R178 -> 0.01492764689 | W178: =O179*'Qsol calculation'!S178 -> -0.02840353001 | X178: =O179*'Qsol calculation'!T178 -> 0.2965786686 | Y178: =O179*'Qsol calculation'!U178 -> 0.2297971164 | AA178: 0 | AB178: 0 | AC178: 0 | AD178: 0.02840353001 | AE178: 0.01492764689 | AF178: 0 | AG178: 0.2965786686 | AH178: 0.2297971164 | AJ178: =N178*(1+COS(VCP!$N$22))/2 -> 0.7667402504 | AL178: 0.7667402504 | AM178: 0.7667402504 | AN178: 0.7667402504 | AO178: 0.7951437804 | AP178: 0.7816678972 | AQ178: 0.7667402504 | AR178: 1.063318919 | AS178: 0.9965373667 | AV178: =IF(AL178>VCP!$E$29,AL178*VCP!$E$28,AL178) -> 0.7667402504 | AW178: =IF(AM178>VCP!$E$29,AM178*VCP!$E$28,AM178) -> 0.7667402504 | AX178: =IF(AN178>VCP!$E$29,AN178*VCP!$E$28,AN178) -> 0.7667402504 | AY178: =IF(AO178>VCP!$E$29,AO178*VCP!$E$28,AO178) -> 0.7951437804 | AZ178: =IF(AP178>VCP!$E$29,AP178*VCP!$E$28,AP178) -> 0.7816678972 | BA178: =IF(AQ178>VCP!$E$29,AQ178*VCP!$E$28,AQ178) -> 0.7667402504 | BB178: =IF(AR178>VCP!$E$29,AR178*VCP!$E$28,AR178) -> 1.063318919 | BC178: =IF(AS178>VCP!$E$29,AS178*VCP!$E$28,AS178) -> 0.9965373667
A179: 177 | B179: 1.5 | D179: -0.3 | E179: 88 | F179: 8.2 | G179: 300 | H179: 109 | I179: 19 | L179: =IF($K$2=0,D179*ATAN(0.151977*(E179+8.313659)^0.5)+ATAN(D179+E179)-ATAN(E179-1.676331)+0.00391838*(E179)^(3/2)*ATAN(0.023101*E179)-4.686035,'Weather data'!C179) -> -1.377637822 | M179: 0.1743119266 | N179: 18.70192661 | O179: 0.2980733945 | R179: =O180*'Qsol calculation'!N179 -> -0.6691297504 | S179: =O180*'Qsol calculation'!O179 -> -0.8605469287 | T179: =O180*'Qsol calculation'!P179 -> -1.081644753 | U179: =O180*'Qsol calculation'!Q179 -> -0.1353523848 | V179: =O180*'Qsol calculation'!R179 -> -0.008001855308 | W179: =O180*'Qsol calculation'!S179 -> 0.1353523848 | X179: =O180*'Qsol calculation'!T179 -> 1.081644753 | Y179: =O180*'Qsol calculation'!U179 -> 0.6691297504 | AA179: 0 | AB179: 0 | AC179: 0 | AD179: 0 | AE179: 0 | AF179: 0.1353523848 | AG179: 1.081644753 | AH179: 0.6691297504 | AJ179: =N179*(1+COS(VCP!$N$22))/2 -> 14.55788821 | AL179: 14.55788821 | AM179: 14.55788821 | AN179: 14.55788821 | AO179: 14.55788821 | AP179: 14.55788821 | AQ179: 14.6932406 | AR179: 15.63953296 | AS179: 15.22701796 | AV179: =IF(AL179>VCP!$E$29,AL179*VCP!$E$28,AL179) -> 14.55788821 | AW179: =IF(AM179>VCP!$E$29,AM179*VCP!$E$28,AM179) -> 14.55788821 | AX179: =IF(AN179>VCP!$E$29,AN179*VCP!$E$28,AN179) -> 14.55788821 | AY179: =IF(AO179>VCP!$E$29,AO179*VCP!$E$28,AO179) -> 14.55788821 | AZ179: =IF(AP179>VCP!$E$29,AP179*VCP!$E$28,AP179) -> 14.55788821 | BA179: =IF(AQ179>VCP!$E$29,AQ179*VCP!$E$28,AQ179) -> 14.6932406 | BB179: =IF(AR179>VCP!$E$29,AR179*VCP!$E$28,AR179) -> 15.63953296 | BC179: =IF(AS179>VCP!$E$29,AS179*VCP!$E$28,AS179) -> 15.22701796
A180: 178 | B180: 1.9 | D180: -0.4 | E180: 84 | F180: 8.2 | G180: 300 | H180: 216 | I180: 50 | L180: =IF($K$2=0,D180*ATAN(0.151977*(E180+8.313659)^0.5)+ATAN(D180+E180)-ATAN(E180-1.676331)+0.00391838*(E180)^(3/2)*ATAN(0.023101*E180)-4.686035,'Weather data'!C180) -> -1.770873801 | M180: 0.2314814815 | N180: 48.90716087 | O180: 1.092839127 | R180: =O181*'Qsol calculation'!N180 -> -0.8792559199 | S180: =O181*'Qsol calculation'!O180 -> -1.919959387 | T180: =O181*'Qsol calculation'!P180 -> -1.979344125 | U180: =O181*'Qsol calculation'!Q180 -> -0.7358884787 | V180: =O181*'Qsol calculation'!R180 -> -0.1063569887 | W180: =O181*'Qsol calculation'!S180 -> 0.7358884787 | X180: =O181*'Qsol calculation'!T180 -> 1.979344125 | Y180: =O181*'Qsol calculation'!U180 -> 0.8792559199 | AA180: 0 | AB180: 0 | AC180: 0 | AD180: 0 | AE180: 0 | AF180: 0.7358884787 | AG180: 1.979344125 | AH180: 0.8792559199 | AJ180: =N180*(1+COS(VCP!$N$22))/2 -> 38.07014089 | AL180: 38.07014089 | AM180: 38.07014089 | AN180: 38.07014089 | AO180: 38.07014089 | AP180: 38.07014089 | AQ180: 38.80602936 | AR180: 40.04948501 | AS180: 38.94939681 | AV180: =IF(AL180>VCP!$E$29,AL180*VCP!$E$28,AL180) -> 38.07014089 | AW180: =IF(AM180>VCP!$E$29,AM180*VCP!$E$28,AM180) -> 38.07014089 | AX180: =IF(AN180>VCP!$E$29,AN180*VCP!$E$28,AN180) -> 38.07014089 | AY180: =IF(AO180>VCP!$E$29,AO180*VCP!$E$28,AO180) -> 38.07014089 | AZ180: =IF(AP180>VCP!$E$29,AP180*VCP!$E$28,AP180) -> 38.07014089 | BA180: =IF(AQ180>VCP!$E$29,AQ180*VCP!$E$28,AQ180) -> 38.80602936 | BB180: =IF(AR180>VCP!$E$29,AR180*VCP!$E$28,AR180) -> 12.0148455 | BC180: =IF(AS180>VCP!$E$29,AS180*VCP!$E$28,AS180) -> 38.94939681
A181: 179 | B181: 2.3 | D181: -0.4 | E181: 82 | F181: 8.2 | G181: 300 | H181: 278 | I181: 72 | L181: =IF($K$2=0,D181*ATAN(0.151977*(E181+8.313659)^0.5)+ATAN(D181+E181)-ATAN(E181-1.676331)+0.00391838*(E181)^(3/2)*ATAN(0.023101*E181)-4.686035,'Weather data'!C181) -> -1.914829769 | M181: 0.2589928058 | N181: 69.86538485 | O181: 2.13461515 | R181: =O182*'Qsol calculation'!N181 -> -0.4250657167 | S181: =O182*'Qsol calculation'!O181 -> -2.234899249 | T181: =O182*'Qsol calculation'!P181 -> -1.880879265 | U181: =O182*'Qsol calculation'!Q181 -> -1.279745564 | V181: =O182*'Qsol calculation'!R181 -> -0.1726933202 | W181: =O182*'Qsol calculation'!S181 -> 1.279745564 | X181: =O182*'Qsol calculation'!T181 -> 1.880879265 | Y181: =O182*'Qsol calculation'!U181 -> 0.4250657167 | AA181: 0 | AB181: 0 | AC181: 0 | AD181: 0 | AE181: 0 | AF181: 1.279745564 | AG181: 1.880879265 | AH181: 0.4250657167 | AJ181: =N181*(1+COS(VCP!$N$22))/2 -> 54.38436819 | AL181: 54.38436819 | AM181: 54.38436819 | AN181: 54.38436819 | AO181: 54.38436819 | AP181: 54.38436819 | AQ181: 55.66411376 | AR181: 56.26524746 | AS181: 54.80943391 | AV181: =IF(AL181>VCP!$E$29,AL181*VCP!$E$28,AL181) -> 16.31531046 | AW181: =IF(AM181>VCP!$E$29,AM181*VCP!$E$28,AM181) -> 16.31531046 | AX181: =IF(AN181>VCP!$E$29,AN181*VCP!$E$28,AN181) -> 16.31531046 | AY181: =IF(AO181>VCP!$E$29,AO181*VCP!$E$28,AO181) -> 16.31531046 | AZ181: =IF(AP181>VCP!$E$29,AP181*VCP!$E$28,AP181) -> 16.31531046 | BA181: =IF(AQ181>VCP!$E$29,AQ181*VCP!$E$28,AQ181) -> 16.69923413 | BB181: =IF(AR181>VCP!$E$29,AR181*VCP!$E$28,AR181) -> 16.87957424 | BC181: =IF(AS181>VCP!$E$29,AS181*VCP!$E$28,AS181) -> 16.44283017
A182: 180 | B182: 2.7 | D182: -0.4 | E182: 80 | F182: 8.2 | G182: 310 | H182: 291 | I182: 76 | L182: =IF($K$2=0,D182*ATAN(0.151977*(E182+8.313659)^0.5)+ATAN(D182+E182)-ATAN(E182-1.676331)+0.00391838*(E182)^(3/2)*ATAN(0.023101*E182)-4.686035,'Weather data'!C182) -> -2.056296228 | M182: 0.2611683849 | N182: 73.68294937 | O182: 2.317050634 | R182: =O183*'Qsol calculation'!N182 -> 0.09391680726 | S182: =O183*'Qsol calculation'!O182 -> -1.597831946 | T182: =O183*'Qsol calculation'!P182 -> -1.063428593 | U182: =O183*'Qsol calculation'!Q182 -> -1.196247016 | V182: =O183*'Qsol calculation'!R182 -> -0.130264697 | W182: =O183*'Qsol calculation'!S182 -> 1.196247016 | X182: =O183*'Qsol calculation'!T182 -> 1.063428593 | Y182: =O183*'Qsol calculation'!U182 -> -0.09391680726 | AA182: 0.09391680726 | AB182: 0 | AC182: 0 | AD182: 0 | AE182: 0 | AF182: 1.196247016 | AG182: 1.063428593 | AH182: 0 | AJ182: =N182*(1+COS(VCP!$N$22))/2 -> 57.3560234 | AL182: 57.4499402 | AM182: 57.3560234 | AN182: 57.3560234 | AO182: 57.3560234 | AP182: 57.3560234 | AQ182: 58.55227041 | AR182: 58.41945199 | AS182: 57.3560234 | AV182: =IF(AL182>VCP!$E$29,AL182*VCP!$E$28,AL182) -> 17.23498206 | AW182: =IF(AM182>VCP!$E$29,AM182*VCP!$E$28,AM182) -> 17.20680702 | AX182: =IF(AN182>VCP!$E$29,AN182*VCP!$E$28,AN182) -> 17.20680702 | AY182: =IF(AO182>VCP!$E$29,AO182*VCP!$E$28,AO182) -> 17.20680702 | AZ182: =IF(AP182>VCP!$E$29,AP182*VCP!$E$28,AP182) -> 17.20680702 | BA182: =IF(AQ182>VCP!$E$29,AQ182*VCP!$E$28,AQ182) -> 17.56568112 | BB182: =IF(AR182>VCP!$E$29,AR182*VCP!$E$28,AR182) -> 17.5258356 | BC182: =IF(AS182>VCP!$E$29,AS182*VCP!$E$28,AS182) -> 17.20680702
A183: 181 | B183: 2.6 | D183: -0.6 | E183: 79 | F183: 8.6 | G183: 310 | H183: 254 | I183: 63 | L183: =IF($K$2=0,D183*ATAN(0.151977*(E183+8.313659)^0.5)+ATAN(D183+E183)-ATAN(E183-1.676331)+0.00391838*(E183)^(3/2)*ATAN(0.023101*E183)-4.686035,'Weather data'!C183) -> -2.317568676 | M183: 0.2480314961 | N183: 61.36675562 | O183: 1.633244383 | R183: =O184*'Qsol calculation'!N183 -> 0.1813244118 | S183: =O184*'Qsol calculation'!O183 -> -0.5785735804 | T183: =O184*'Qsol calculation'!P183 -> -0.2808975809 | U183: =O184*'Qsol calculation'!Q183 -> -0.5373290233 | V183: =O184*'Qsol calculation'!R183 -> -0.04010701958 | W183: =O184*'Qsol calculation'!S183 -> 0.5373290233 | X183: =O184*'Qsol calculation'!T183 -> 0.2808975809 | Y183: =O184*'Qsol calculation'!U183 -> -0.1813244118 | AA183: 0.1813244118 | AB183: 0 | AC183: 0 | AD183: 0 | AE183: 0 | AF183: 0.5373290233 | AG183: 0.2808975809 | AH183: 0 | AJ183: =N183*(1+COS(VCP!$N$22))/2 -> 47.76889499 | AL183: 47.9502194 | AM183: 47.76889499 | AN183: 47.76889499 | AO183: 47.76889499 | AP183: 47.76889499 | AQ183: 48.30622401 | AR183: 48.04979257 | AS183: 47.76889499 | AV183: =IF(AL183>VCP!$E$29,AL183*VCP!$E$28,AL183) -> 14.38506582 | AW183: =IF(AM183>VCP!$E$29,AM183*VCP!$E$28,AM183) -> 14.3306685 | AX183: =IF(AN183>VCP!$E$29,AN183*VCP!$E$28,AN183) -> 14.3306685 | AY183: =IF(AO183>VCP!$E$29,AO183*VCP!$E$28,AO183) -> 14.3306685 | AZ183: =IF(AP183>VCP!$E$29,AP183*VCP!$E$28,AP183) -> 14.3306685 | BA183: =IF(AQ183>VCP!$E$29,AQ183*VCP!$E$28,AQ183) -> 14.4918672 | BB183: =IF(AR183>VCP!$E$29,AR183*VCP!$E$28,AR183) -> 14.41493777 | BC183: =IF(AS183>VCP!$E$29,AS183*VCP!$E$28,AS183) -> 14.3306685
A184: 182 | B184: 2.6 | D184: -0.6 | E184: 79 | F184: 8.9 | G184: 310 | H184: 169 | I184: 34 | L184: =IF($K$2=0,D184*ATAN(0.151977*(E184+8.313659)^0.5)+ATAN(D184+E184)-ATAN(E184-1.676331)+0.00391838*(E184)^(3/2)*ATAN(0.023101*E184)-4.686035,'Weather data'!C184) -> -2.317568676 | M184: 0.201183432 | N184: 33.3843787 | O184: 0.6156213018 | R184: =O185*'Qsol calculation'!N184 -> 0.0640489729 | S184: =O185*'Qsol calculation'!O184 -> -0.1066447662 | T184: =O185*'Qsol calculation'!P184 -> -0.03011977432 | U184: =O185*'Qsol calculation'!Q184 -> -0.1206987004 | V184: =O185*'Qsol calculation'!R184 -> -0.003969261277 | W184: =O185*'Qsol calculation'!S184 -> 0.1206987004 | X184: =O185*'Qsol calculation'!T184 -> 0.03011977432 | Y184: =O185*'Qsol calculation'!U184 -> -0.0640489729 | AA184: 0.0640489729 | AB184: 0 | AC184: 0 | AD184: 0 | AE184: 0 | AF184: 0.1206987004 | AG184: 0.03011977432 | AH184: 0 | AJ184: =N184*(1+COS(VCP!$N$22))/2 -> 25.98695115 | AL184: 26.05100012 | AM184: 25.98695115 | AN184: 25.98695115 | AO184: 25.98695115 | AP184: 25.98695115 | AQ184: 26.10764985 | AR184: 26.01707092 | AS184: 25.98695115 | AV184: =IF(AL184>VCP!$E$29,AL184*VCP!$E$28,AL184) -> 26.05100012 | AW184: =IF(AM184>VCP!$E$29,AM184*VCP!$E$28,AM184) -> 25.98695115 | AX184: =IF(AN184>VCP!$E$29,AN184*VCP!$E$28,AN184) -> 25.98695115 | AY184: =IF(AO184>VCP!$E$29,AO184*VCP!$E$28,AO184) -> 25.98695115 | AZ184: =IF(AP184>VCP!$E$29,AP184*VCP!$E$28,AP184) -> 25.98695115 | BA184: =IF(AQ184>VCP!$E$29,AQ184*VCP!$E$28,AQ184) -> 26.10764985 | BB184: =IF(AR184>VCP!$E$29,AR184*VCP!$E$28,AR184) -> 26.01707092 | BC184: =IF(AS184>VCP!$E$29,AS184*VCP!$E$28,AS184) -> 25.98695115
A185: 183 | B185: 2.5 | D185: -0.6 | E185: 80 | F185: 9.3 | G185: 310 | H185: 46 | I185: 8 | L185: =IF($K$2=0,D185*ATAN(0.151977*(E185+8.313659)^0.5)+ATAN(D185+E185)-ATAN(E185-1.676331)+0.00391838*(E185)^(3/2)*ATAN(0.023101*E185)-4.686035,'Weather data'!C185) -> -2.248318107 | M185: 0.1739130435 | N185: 7.874782609 | O185: 0.1252173913 | R185: =O186*'Qsol calculation'!N185 -> 0 | S185: =O186*'Qsol calculation'!O185 -> 0 | T185: =O186*'Qsol calculation'!P185 -> 0 | U185: =O186*'Qsol calculation'!Q185 -> 0 | V185: =O186*'Qsol calculation'!R185 -> 0 | W185: =O186*'Qsol calculation'!S185 -> 0 | X185: =O186*'Qsol calculation'!T185 -> 0 | Y185: =O186*'Qsol calculation'!U185 -> 0 | AA185: 0 | AB185: 0 | AC185: 0 | AD185: 0 | AE185: 0 | AF185: 0 | AG185: 0 | AH185: 0 | AJ185: =N185*(1+COS(VCP!$N$22))/2 -> 6.129860699 | AL185: 6.129860699 | AM185: 6.129860699 | AN185: 6.129860699 | AO185: 6.129860699 | AP185: 6.129860699 | AQ185: 6.129860699 | AR185: 6.129860699 | AS185: 6.129860699 | AV185: =IF(AL185>VCP!$E$29,AL185*VCP!$E$28,AL185) -> 6.129860699 | AW185: =IF(AM185>VCP!$E$29,AM185*VCP!$E$28,AM185) -> 6.129860699 | AX185: =IF(AN185>VCP!$E$29,AN185*VCP!$E$28,AN185) -> 6.129860699 | AY185: =IF(AO185>VCP!$E$29,AO185*VCP!$E$28,AO185) -> 6.129860699 | AZ185: =IF(AP185>VCP!$E$29,AP185*VCP!$E$28,AP185) -> 6.129860699 | BA185: =IF(AQ185>VCP!$E$29,AQ185*VCP!$E$28,AQ185) -> 6.129860699 | BB185: =IF(AR185>VCP!$E$29,AR185*VCP!$E$28,AR185) -> 6.129860699 | BC185: =IF(AS185>VCP!$E$29,AS185*VCP!$E$28,AS185) -> 6.129860699
A186: 184 | B186: 2.1 | D186: -0.6 | E186: 82 | F186: 8.9 | G186: 310 | H186: 0 | I186: 0 | L186: =IF($K$2=0,D186*ATAN(0.151977*(E186+8.313659)^0.5)+ATAN(D186+E186)-ATAN(E186-1.676331)+0.00391838*(E186)^(3/2)*ATAN(0.023101*E186)-4.686035,'Weather data'!C186) -> -2.107900238 | M186: 0 | N186: 0 | O186: 0 | R186: =O187*'Qsol calculation'!N186 -> 0 | S186: =O187*'Qsol calculation'!O186 -> 0 | T186: =O187*'Qsol calculation'!P186 -> 0 | U186: =O187*'Qsol calculation'!Q186 -> 0 | V186: =O187*'Qsol calculation'!R186 -> 0 | W186: =O187*'Qsol calculation'!S186 -> 0 | X186: =O187*'Qsol calculation'!T186 -> 0 | Y186: =O187*'Qsol calculation'!U186 -> 0 | AA186: 0 | AB186: 0 | AC186: 0 | AD186: 0 | AE186: 0 | AF186: 0 | AG186: 0 | AH186: 0 | AJ186: =N186*(1+COS(VCP!$N$22))/2 -> 0 | AL186: 0 | AM186: 0 | AN186: 0 | AO186: 0 | AP186: 0 | AQ186: 0 | AR186: 0 | AS186: 0 | AV186: =IF(AL186>VCP!$E$29,AL186*VCP!$E$28,AL186) -> 0 | AW186: =IF(AM186>VCP!$E$29,AM186*VCP!$E$28,AM186) -> 0 | AX186: =IF(AN186>VCP!$E$29,AN186*VCP!$E$28,AN186) -> 0 | AY186: =IF(AO186>VCP!$E$29,AO186*VCP!$E$28,AO186) -> 0 | AZ186: =IF(AP186>VCP!$E$29,AP186*VCP!$E$28,AP186) -> 0 | BA186: =IF(AQ186>VCP!$E$29,AQ186*VCP!$E$28,AQ186) -> 0 | BB186: =IF(AR186>VCP!$E$29,AR186*VCP!$E$28,AR186) -> 0 | BC186: =IF(AS186>VCP!$E$29,AS186*VCP!$E$28,AS186) -> 0
A187: 185 | B187: 1.8 | D187: -0.5 | E187: 85 | F187: 8.6 | G187: 310 | H187: 0 | I187: 0 | L187: =IF($K$2=0,D187*ATAN(0.151977*(E187+8.313659)^0.5)+ATAN(D187+E187)-ATAN(E187-1.676331)+0.00391838*(E187)^(3/2)*ATAN(0.023101*E187)-4.686035,'Weather data'!C187) -> -1.795272725 | M187: 0 | N187: 0 | O187: 0 | R187: =O188*'Qsol calculation'!N187 -> 0 | S187: =O188*'Qsol calculation'!O187 -> 0 | T187: =O188*'Qsol calculation'!P187 -> 0 | U187: =O188*'Qsol calculation'!Q187 -> 0 | V187: =O188*'Qsol calculation'!R187 -> 0 | W187: =O188*'Qsol calculation'!S187 -> 0 | X187: =O188*'Qsol calculation'!T187 -> 0 | Y187: =O188*'Qsol calculation'!U187 -> 0 | AA187: 0 | AB187: 0 | AC187: 0 | AD187: 0 | AE187: 0 | AF187: 0 | AG187: 0 | AH187: 0 | AJ187: =N187*(1+COS(VCP!$N$22))/2 -> 0 | AL187: 0 | AM187: 0 | AN187: 0 | AO187: 0 | AP187: 0 | AQ187: 0 | AR187: 0 | AS187: 0 | AV187: =IF(AL187>VCP!$E$29,AL187*VCP!$E$28,AL187) -> 0 | AW187: =IF(AM187>VCP!$E$29,AM187*VCP!$E$28,AM187) -> 0 | AX187: =IF(AN187>VCP!$E$29,AN187*VCP!$E$28,AN187) -> 0 | AY187: =IF(AO187>VCP!$E$29,AO187*VCP!$E$28,AO187) -> 0 | AZ187: =IF(AP187>VCP!$E$29,AP187*VCP!$E$28,AP187) -> 0 | BA187: =IF(AQ187>VCP!$E$29,AQ187*VCP!$E$28,AQ187) -> 0 | BB187: =IF(AR187>VCP!$E$29,AR187*VCP!$E$28,AR187) -> 0 | BC187: =IF(AS187>VCP!$E$29,AS187*VCP!$E$28,AS187) -> 0
A188: 186 | B188: 1.4 | D188: -0.3 | E188: 88 | F188: 8.2 | G188: 340 | H188: 0 | I188: 0 | L188: =IF($K$2=0,D188*ATAN(0.151977*(E188+8.313659)^0.5)+ATAN(D188+E188)-ATAN(E188-1.676331)+0.00391838*(E188)^(3/2)*ATAN(0.023101*E188)-4.686035,'Weather data'!C188) -> -1.377637822 | M188: 0 | N188: 0 | O188: 0 | R188: =O189*'Qsol calculation'!N188 -> 0 | S188: =O189*'Qsol calculation'!O188 -> 0 | T188: =O189*'Qsol calculation'!P188 -> 0 | U188: =O189*'Qsol calculation'!Q188 -> 0 | V188: =O189*'Qsol calculation'!R188 -> 0 | W188: =O189*'Qsol calculation'!S188 -> 0 | X188: =O189*'Qsol calculation'!T188 -> 0 | Y188: =O189*'Qsol calculation'!U188 -> 0 | AA188: 0 | AB188: 0 | AC188: 0 | AD188: 0 | AE188: 0 | AF188: 0 | AG188: 0 | AH188: 0 | AJ188: =N188*(1+COS(VCP!$N$22))/2 -> 0 | AL188: 0 | AM188: 0 | AN188: 0 | AO188: 0 | AP188: 0 | AQ188: 0 | AR188: 0 | AS188: 0 | AV188: =IF(AL188>VCP!$E$29,AL188*VCP!$E$28,AL188) -> 0 | AW188: =IF(AM188>VCP!$E$29,AM188*VCP!$E$28,AM188) -> 0 | AX188: =IF(AN188>VCP!$E$29,AN188*VCP!$E$28,AN188) -> 0 | AY188: =IF(AO188>VCP!$E$29,AO188*VCP!$E$28,AO188) -> 0 | AZ188: =IF(AP188>VCP!$E$29,AP188*VCP!$E$28,AP188) -> 0 | BA188: =IF(AQ188>VCP!$E$29,AQ188*VCP!$E$28,AQ188) -> 0 | BB188: =IF(AR188>VCP!$E$29,AR188*VCP!$E$28,AR188) -> 0 | BC188: =IF(AS188>VCP!$E$29,AS188*VCP!$E$28,AS188) -> 0
A189: 187 | B189: 1.6 | D189: -0.4 | E189: 87 | F189: 10.3 | G189: 340 | H189: 0 | I189: 0 | L189: =IF($K$2=0,D189*ATAN(0.151977*(E189+8.313659)^0.5)+ATAN(D189+E189)-ATAN(E189-1.676331)+0.00391838*(E189)^(3/2)*ATAN(0.023101*E189)-4.686035,'Weather data'!C189) -> -1.5503678 | M189: 0 | N189: 0 | O189: 0 | R189: =O190*'Qsol calculation'!N189 -> 0 | S189: =O190*'Qsol calculation'!O189 -> 0 | T189: =O190*'Qsol calculation'!P189 -> 0 | U189: =O190*'Qsol calculation'!Q189 -> 0 | V189: =O190*'Qsol calculation'!R189 -> 0 | W189: =O190*'Qsol calculation'!S189 -> 0 | X189: =O190*'Qsol calculation'!T189 -> 0 | Y189: =O190*'Qsol calculation'!U189 -> 0 | AA189: 0 | AB189: 0 | AC189: 0 | AD189: 0 | AE189: 0 | AF189: 0 | AG189: 0 | AH189: 0 | AJ189: =N189*(1+COS(VCP!$N$22))/2 -> 0 | AL189: 0 | AM189: 0 | AN189: 0 | AO189: 0 | AP189: 0 | AQ189: 0 | AR189: 0 | AS189: 0 | AV189: =IF(AL189>VCP!$E$29,AL189*VCP!$E$28,AL189) -> 0 | AW189: =IF(AM189>VCP!$E$29,AM189*VCP!$E$28,AM189) -> 0 | AX189: =IF(AN189>VCP!$E$29,AN189*VCP!$E$28,AN189) -> 0 | AY189: =IF(AO189>VCP!$E$29,AO189*VCP!$E$28,AO189) -> 0 | AZ189: =IF(AP189>VCP!$E$29,AP189*VCP!$E$28,AP189) -> 0 | BA189: =IF(AQ189>VCP!$E$29,AQ189*VCP!$E$28,AQ189) -> 0 | BB189: =IF(AR189>VCP!$E$29,AR189*VCP!$E$28,AR189) -> 0 | BC189: =IF(AS189>VCP!$E$29,AS189*VCP!$E$28,AS189) -> 0
A190: 188 | B190: 1.7 | D190: -0.4 | E190: 86 | F190: 12.3 | G190: 340 | H190: 0 | I190: 0 | L190: =IF($K$2=0,D190*ATAN(0.151977*(E190+8.313659)^0.5)+ATAN(D190+E190)-ATAN(E190-1.676331)+0.00391838*(E190)^(3/2)*ATAN(0.023101*E190)-4.686035,'Weather data'!C190) -> -1.624472361 | M190: 0 | N190: 0 | O190: 0 | R190: =O191*'Qsol calculation'!N190 -> 0 | S190: =O191*'Qsol calculation'!O190 -> 0 | T190: =O191*'Qsol calculation'!P190 -> 0 | U190: =O191*'Qsol calculation'!Q190 -> 0 | V190: =O191*'Qsol calculation'!R190 -> 0 | W190: =O191*'Qsol calculation'!S190 -> 0 | X190: =O191*'Qsol calculation'!T190 -> 0 | Y190: =O191*'Qsol calculation'!U190 -> 0 | AA190: 0 | AB190: 0 | AC190: 0 | AD190: 0 | AE190: 0 | AF190: 0 | AG190: 0 | AH190: 0 | AJ190: =N190*(1+COS(VCP!$N$22))/2 -> 0 | AL190: 0 | AM190: 0 | AN190: 0 | AO190: 0 | AP190: 0 | AQ190: 0 | AR190: 0 | AS190: 0 | AV190: =IF(AL190>VCP!$E$29,AL190*VCP!$E$28,AL190) -> 0 | AW190: =IF(AM190>VCP!$E$29,AM190*VCP!$E$28,AM190) -> 0 | AX190: =IF(AN190>VCP!$E$29,AN190*VCP!$E$28,AN190) -> 0 | AY190: =IF(AO190>VCP!$E$29,AO190*VCP!$E$28,AO190) -> 0 | AZ190: =IF(AP190>VCP!$E$29,AP190*VCP!$E$28,AP190) -> 0 | BA190: =IF(AQ190>VCP!$E$29,AQ190*VCP!$E$28,AQ190) -> 0 | BB190: =IF(AR190>VCP!$E$29,AR190*VCP!$E$28,AR190) -> 0 | BC190: =IF(AS190>VCP!$E$29,AS190*VCP!$E$28,AS190) -> 0
A191: 189 | B191: 1.9 | D191: -0.3 | E191: 85 | F191: 14.4 | G191: 360 | H191: 0 | I191: 0 | L191: =IF($K$2=0,D191*ATAN(0.151977*(E191+8.313659)^0.5)+ATAN(D191+E191)-ATAN(E191-1.676331)+0.00391838*(E191)^(3/2)*ATAN(0.023101*E191)-4.686035,'Weather data'!C191) -> -1.600679492 | M191: 0 | N191: 0 | O191: 0 | R191: =O192*'Qsol calculation'!N191 -> 0 | S191: =O192*'Qsol calculation'!O191 -> 0 | T191: =O192*'Qsol calculation'!P191 -> 0 | U191: =O192*'Qsol calculation'!Q191 -> 0 | V191: =O192*'Qsol calculation'!R191 -> 0 | W191: =O192*'Qsol calculation'!S191 -> 0 | X191: =O192*'Qsol calculation'!T191 -> 0 | Y191: =O192*'Qsol calculation'!U191 -> 0 | AA191: 0 | AB191: 0 | AC191: 0 | AD191: 0 | AE191: 0 | AF191: 0 | AG191: 0 | AH191: 0 | AJ191: =N191*(1+COS(VCP!$N$22))/2 -> 0 | AL191: 0 | AM191: 0 | AN191: 0 | AO191: 0 | AP191: 0 | AQ191: 0 | AR191: 0 | AS191: 0 | AV191: =IF(AL191>VCP!$E$29,AL191*VCP!$E$28,AL191) -> 0 | AW191: =IF(AM191>VCP!$E$29,AM191*VCP!$E$28,AM191) -> 0 | AX191: =IF(AN191>VCP!$E$29,AN191*VCP!$E$28,AN191) -> 0 | AY191: =IF(AO191>VCP!$E$29,AO191*VCP!$E$28,AO191) -> 0 | AZ191: =IF(AP191>VCP!$E$29,AP191*VCP!$E$28,AP191) -> 0 | BA191: =IF(AQ191>VCP!$E$29,AQ191*VCP!$E$28,AQ191) -> 0 | BB191: =IF(AR191>VCP!$E$29,AR191*VCP!$E$28,AR191) -> 0 | BC191: =IF(AS191>VCP!$E$29,AS191*VCP!$E$28,AS191) -> 0
A192: 190 | B192: 1.8 | D192: -0.3 | E192: 86 | F192: 14.1 | G192: 360 | H192: 0 | I192: 0 | L192: =IF($K$2=0,D192*ATAN(0.151977*(E192+8.313659)^0.5)+ATAN(D192+E192)-ATAN(E192-1.676331)+0.00391838*(E192)^(3/2)*ATAN(0.023101*E192)-4.686035,'Weather data'!C192) -> -1.526928344 | M192: 0 | N192: 0 | O192: 0 | R192: =O193*'Qsol calculation'!N192 -> 0 | S192: =O193*'Qsol calculation'!O192 -> 0 | T192: =O193*'Qsol calculation'!P192 -> 0 | U192: =O193*'Qsol calculation'!Q192 -> 0 | V192: =O193*'Qsol calculation'!R192 -> 0 | W192: =O193*'Qsol calculation'!S192 -> 0 | X192: =O193*'Qsol calculation'!T192 -> 0 | Y192: =O193*'Qsol calculation'!U192 -> 0 | AA192: 0 | AB192: 0 | AC192: 0 | AD192: 0 | AE192: 0 | AF192: 0 | AG192: 0 | AH192: 0 | AJ192: =N192*(1+COS(VCP!$N$22))/2 -> 0 | AL192: 0 | AM192: 0 | AN192: 0 | AO192: 0 | AP192: 0 | AQ192: 0 | AR192: 0 | AS192: 0 | AV192: =IF(AL192>VCP!$E$29,AL192*VCP!$E$28,AL192) -> 0 | AW192: =IF(AM192>VCP!$E$29,AM192*VCP!$E$28,AM192) -> 0 | AX192: =IF(AN192>VCP!$E$29,AN192*VCP!$E$28,AN192) -> 0 | AY192: =IF(AO192>VCP!$E$29,AO192*VCP!$E$28,AO192) -> 0 | AZ192: =IF(AP192>VCP!$E$29,AP192*VCP!$E$28,AP192) -> 0 | BA192: =IF(AQ192>VCP!$E$29,AQ192*VCP!$E$28,AQ192) -> 0 | BB192: =IF(AR192>VCP!$E$29,AR192*VCP!$E$28,AR192) -> 0 | BC192: =IF(AS192>VCP!$E$29,AS192*VCP!$E$28,AS192) -> 0
A193: 191 | B193: 1.7 | D193: -0.2 | E193: 87 | F193: 13.7 | G193: 360 | H193: 0 | I193: 0 | L193: =IF($K$2=0,D193*ATAN(0.151977*(E193+8.313659)^0.5)+ATAN(D193+E193)-ATAN(E193-1.676331)+0.00391838*(E193)^(3/2)*ATAN(0.023101*E193)-4.686035,'Weather data'!C193) -> -1.35479113 | M193: 0 | N193: 0 | O193: 0 | R193: =O194*'Qsol calculation'!N193 -> 0 | S193: =O194*'Qsol calculation'!O193 -> 0 | T193: =O194*'Qsol calculation'!P193 -> 0 | U193: =O194*'Qsol calculation'!Q193 -> 0 | V193: =O194*'Qsol calculation'!R193 -> 0 | W193: =O194*'Qsol calculation'!S193 -> 0 | X193: =O194*'Qsol calculation'!T193 -> 0 | Y193: =O194*'Qsol calculation'!U193 -> 0 | AA193: 0 | AB193: 0 | AC193: 0 | AD193: 0 | AE193: 0 | AF193: 0 | AG193: 0 | AH193: 0 | AJ193: =N193*(1+COS(VCP!$N$22))/2 -> 0 | AL193: 0 | AM193: 0 | AN193: 0 | AO193: 0 | AP193: 0 | AQ193: 0 | AR193: 0 | AS193: 0 | AV193: =IF(AL193>VCP!$E$29,AL193*VCP!$E$28,AL193) -> 0 | AW193: =IF(AM193>VCP!$E$29,AM193*VCP!$E$28,AM193) -> 0 | AX193: =IF(AN193>VCP!$E$29,AN193*VCP!$E$28,AN193) -> 0 | AY193: =IF(AO193>VCP!$E$29,AO193*VCP!$E$28,AO193) -> 0 | AZ193: =IF(AP193>VCP!$E$29,AP193*VCP!$E$28,AP193) -> 0 | BA193: =IF(AQ193>VCP!$E$29,AQ193*VCP!$E$28,AQ193) -> 0 | BB193: =IF(AR193>VCP!$E$29,AR193*VCP!$E$28,AR193) -> 0 | BC193: =IF(AS193>VCP!$E$29,AS193*VCP!$E$28,AS193) -> 0
A194: 192 | B194: 1.6 | D194: -0.1 | E194: 88 | F194: 13.4 | G194: 10 | H194: 0 | I194: 0 | L194: =IF($K$2=0,D194*ATAN(0.151977*(E194+8.313659)^0.5)+ATAN(D194+E194)-ATAN(E194-1.676331)+0.00391838*(E194)^(3/2)*ATAN(0.023101*E194)-4.686035,'Weather data'!C194) -> -1.181578581 | M194: =IF(IFERROR(I194/H194,0)>1,0,IFERROR(I194/H194,0)) -> 0 | N194: =IF(M194<=0.22,((1-0.09*M194)*I194),(0.9511-0.1604*M194+(4.388*(M194)^2)-(16.638*(M194)^3)+(12.336*(M194)^(4)))*I194) -> 0 | O194: =I194-N194 -> 0 | R194: =O195*'Qsol calculation'!N194 -> 0 | S194: =O195*'Qsol calculation'!O194 -> 0 | T194: =O195*'Qsol calculation'!P194 -> 0 | U194: =O195*'Qsol calculation'!Q194 -> 0 | V194: =O195*'Qsol calculation'!R194 -> 0 | W194: =O195*'Qsol calculation'!S194 -> 0 | X194: =O195*'Qsol calculation'!T194 -> 0 | Y194: =O195*'Qsol calculation'!U194 -> 0 | AA194: 0 | AB194: 0 | AC194: 0 | AD194: 0 | AE194: 0 | AF194: 0 | AG194: 0 | AH194: 0 | AJ194: =N194*(1+COS(VCP!$N$22))/2 -> 0 | AL194: =AA194+AJ194 -> 0 | AM194: =AB194+AJ194 -> 0 | AN194: =AC194+AJ194 -> 0 | AO194: =AD194+AJ194 -> 0 | AP194: =AE194+AJ194 -> 0 | AQ194: =AF194+AJ194 -> 0 | AR194: =AG194+AJ194 -> 0 | AS194: =AH194+AJ194 -> 0 | AV194: =IF(AL194>VCP!$E$29,AL194*VCP!$E$28,AL194) -> 0 | AW194: =IF(AM194>VCP!$E$29,AM194*VCP!$E$28,AM194) -> 0 | AX194: =IF(AN194>VCP!$E$29,AN194*VCP!$E$28,AN194) -> 0 | AY194: =IF(AO194>VCP!$E$29,AO194*VCP!$E$28,AO194) -> 0 | AZ194: =IF(AP194>VCP!$E$29,AP194*VCP!$E$28,AP194) -> 0 | BA194: =IF(AQ194>VCP!$E$29,AQ194*VCP!$E$28,AQ194) -> 0 | BB194: =IF(AR194>VCP!$E$29,AR194*VCP!$E$28,AR194) -> 0 | BC194: =IF(AS194>VCP!$E$29,AS194*VCP!$E$28,AS194) -> 0
A195: 193 | B195: 1.5 | D195: -0.3 | E195: 87 | F195: 13 | G195: 10 | H195: 0 | I195: 0 | L195: =IF($K$2=0,D195*ATAN(0.151977*(E195+8.313659)^0.5)+ATAN(D195+E195)-ATAN(E195-1.676331)+0.00391838*(E195)^(3/2)*ATAN(0.023101*E195)-4.686035,'Weather data'!C195) -> -1.45257945 | M195: 0 | N195: 0 | O195: 0 | R195: =O196*'Qsol calculation'!N195 -> 0 | S195: =O196*'Qsol calculation'!O195 -> 0 | T195: =O196*'Qsol calculation'!P195 -> 0 | U195: =O196*'Qsol calculation'!Q195 -> 0 | V195: =O196*'Qsol calculation'!R195 -> 0 | W195: =O196*'Qsol calculation'!S195 -> 0 | X195: =O196*'Qsol calculation'!T195 -> 0 | Y195: =O196*'Qsol calculation'!U195 -> 0 | AA195: =IF(R195<=0,0,R195) -> 0 | AB195: =IF(S195<=0,0,S195) -> 0 | AC195: =IF(T195<=0,0,T195) -> 0 | AD195: =IF(U195<=0,0,U195) -> 0 | AE195: =IF(V195<=0,0,V195) -> 0 | AF195: =IF(W195<=0,0,W195) -> 0 | AG195: =IF(X195<=0,0,X195) -> 0 | AH195: =IF(Y195<=0,0,Y195) -> 0 | AJ195: =N195*(1+COS(VCP!$N$22))/2 -> 0 | AL195: 0 | AM195: 0 | AN195: 0 | AO195: 0 | AP195: 0 | AQ195: 0 | AR195: 0 | AS195: 0 | AV195: =IF(AL195>VCP!$E$29,AL195*VCP!$E$28,AL195) -> 0 | AW195: =IF(AM195>VCP!$E$29,AM195*VCP!$E$28,AM195) -> 0 | AX195: =IF(AN195>VCP!$E$29,AN195*VCP!$E$28,AN195) -> 0 | AY195: =IF(AO195>VCP!$E$29,AO195*VCP!$E$28,AO195) -> 0 | AZ195: =IF(AP195>VCP!$E$29,AP195*VCP!$E$28,AP195) -> 0 | BA195: =IF(AQ195>VCP!$E$29,AQ195*VCP!$E$28,AQ195) -> 0 | BB195: =IF(AR195>VCP!$E$29,AR195*VCP!$E$28,AR195) -> 0 | BC195: =IF(AS195>VCP!$E$29,AS195*VCP!$E$28,AS195) -> 0
A196: 194 | B196: 1.5 | D196: -0.5 | E196: 86 | F196: 12.7 | G196: 10 | H196: 0 | I196: 0 | L196: =IF($K$2=0,D196*ATAN(0.151977*(E196+8.313659)^0.5)+ATAN(D196+E196)-ATAN(E196-1.676331)+0.00391838*(E196)^(3/2)*ATAN(0.023101*E196)-4.686035,'Weather data'!C196) -> -1.722016409 | M196: 0 | N196: 0 | O196: 0 | R196: =O197*'Qsol calculation'!N196 -> 0 | S196: =O197*'Qsol calculation'!O196 -> 0 | T196: =O197*'Qsol calculation'!P196 -> 0 | U196: =O197*'Qsol calculation'!Q196 -> 0 | V196: =O197*'Qsol calculation'!R196 -> 0 | W196: =O197*'Qsol calculation'!S196 -> 0 | X196: =O197*'Qsol calculation'!T196 -> 0 | Y196: =O197*'Qsol calculation'!U196 -> 0 | AA196: 0 | AB196: 0 | AC196: 0 | AD196: 0 | AE196: 0 | AF196: 0 | AG196: 0 | AH196: 0 | AJ196: =N196*(1+COS(VCP!$N$22))/2 -> 0 | AL196: 0 | AM196: 0 | AN196: 0 | AO196: 0 | AP196: 0 | AQ196: 0 | AR196: 0 | AS196: 0 | AV196: =IF(AL196>VCP!$E$29,AL196*VCP!$E$28,AL196) -> 0 | AW196: =IF(AM196>VCP!$E$29,AM196*VCP!$E$28,AM196) -> 0 | AX196: =IF(AN196>VCP!$E$29,AN196*VCP!$E$28,AN196) -> 0 | AY196: =IF(AO196>VCP!$E$29,AO196*VCP!$E$28,AO196) -> 0 | AZ196: =IF(AP196>VCP!$E$29,AP196*VCP!$E$28,AP196) -> 0 | BA196: =IF(AQ196>VCP!$E$29,AQ196*VCP!$E$28,AQ196) -> 0 | BB196: =IF(AR196>VCP!$E$29,AR196*VCP!$E$28,AR196) -> 0 | BC196: =IF(AS196>VCP!$E$29,AS196*VCP!$E$28,AS196) -> 0
A197: 195 | B197: 1.4 | D197: -0.6 | E197: 86 | F197: 12.3 | G197: 30 | H197: 0 | I197: 0 | L197: =IF($K$2=0,D197*ATAN(0.151977*(E197+8.313659)^0.5)+ATAN(D197+E197)-ATAN(E197-1.676331)+0.00391838*(E197)^(3/2)*ATAN(0.023101*E197)-4.686035,'Weather data'!C197) -> -1.81956049 | M197: 0 | N197: 0 | O197: 0 | R197: =O198*'Qsol calculation'!N197 -> 0 | S197: =O198*'Qsol calculation'!O197 -> 0 | T197: =O198*'Qsol calculation'!P197 -> 0 | U197: =O198*'Qsol calculation'!Q197 -> 0 | V197: =O198*'Qsol calculation'!R197 -> 0 | W197: =O198*'Qsol calculation'!S197 -> 0 | X197: =O198*'Qsol calculation'!T197 -> 0 | Y197: =O198*'Qsol calculation'!U197 -> 0 | AA197: 0 | AB197: 0 | AC197: 0 | AD197: 0 | AE197: 0 | AF197: 0 | AG197: 0 | AH197: 0 | AJ197: =N197*(1+COS(VCP!$N$22))/2 -> 0 | AL197: 0 | AM197: 0 | AN197: 0 | AO197: 0 | AP197: 0 | AQ197: 0 | AR197: 0 | AS197: 0 | AV197: =IF(AL197>VCP!$E$29,AL197*VCP!$E$28,AL197) -> 0 | AW197: =IF(AM197>VCP!$E$29,AM197*VCP!$E$28,AM197) -> 0 | AX197: =IF(AN197>VCP!$E$29,AN197*VCP!$E$28,AN197) -> 0 | AY197: =IF(AO197>VCP!$E$29,AO197*VCP!$E$28,AO197) -> 0 | AZ197: =IF(AP197>VCP!$E$29,AP197*VCP!$E$28,AP197) -> 0 | BA197: =IF(AQ197>VCP!$E$29,AQ197*VCP!$E$28,AQ197) -> 0 | BB197: =IF(AR197>VCP!$E$29,AR197*VCP!$E$28,AR197) -> 0 | BC197: =IF(AS197>VCP!$E$29,AS197*VCP!$E$28,AS197) -> 0
A198: 196 | B198: 1.2 | D198: -1.1 | E198: 83 | F198: 11.3 | G198: 30 | H198: 0 | I198: 0 | L198: =IF($K$2=0,D198*ATAN(0.151977*(E198+8.313659)^0.5)+ATAN(D198+E198)-ATAN(E198-1.676331)+0.00391838*(E198)^(3/2)*ATAN(0.023101*E198)-4.686035,'Weather data'!C198) -> -2.520706928 | M198: 0 | N198: 0 | O198: 0 | R198: =O199*'Qsol calculation'!N198 -> 0 | S198: =O199*'Qsol calculation'!O198 -> 0 | T198: =O199*'Qsol calculation'!P198 -> 0 | U198: =O199*'Qsol calculation'!Q198 -> 0 | V198: =O199*'Qsol calculation'!R198 -> 0 | W198: =O199*'Qsol calculation'!S198 -> 0 | X198: =O199*'Qsol calculation'!T198 -> 0 | Y198: =O199*'Qsol calculation'!U198 -> 0 | AA198: 0 | AB198: 0 | AC198: 0 | AD198: 0 | AE198: 0 | AF198: 0 | AG198: 0 | AH198: 0 | AJ198: =N198*(1+COS(VCP!$N$22))/2 -> 0 | AL198: 0 | AM198: 0 | AN198: 0 | AO198: 0 | AP198: 0 | AQ198: 0 | AR198: 0 | AS198: 0 | AV198: =IF(AL198>VCP!$E$29,AL198*VCP!$E$28,AL198) -> 0 | AW198: =IF(AM198>VCP!$E$29,AM198*VCP!$E$28,AM198) -> 0 | AX198: =IF(AN198>VCP!$E$29,AN198*VCP!$E$28,AN198) -> 0 | AY198: =IF(AO198>VCP!$E$29,AO198*VCP!$E$28,AO198) -> 0 | AZ198: =IF(AP198>VCP!$E$29,AP198*VCP!$E$28,AP198) -> 0 | BA198: =IF(AQ198>VCP!$E$29,AQ198*VCP!$E$28,AQ198) -> 0 | BB198: =IF(AR198>VCP!$E$29,AR198*VCP!$E$28,AR198) -> 0 | BC198: =IF(AS198>VCP!$E$29,AS198*VCP!$E$28,AS198) -> 0
A199: 197 | B199: 1.1 | D199: -1.5 | E199: 82 | F199: 10.3 | G199: 30 | H199: 0 | I199: 0 | L199: =IF($K$2=0,D199*ATAN(0.151977*(E199+8.313659)^0.5)+ATAN(D199+E199)-ATAN(E199-1.676331)+0.00391838*(E199)^(3/2)*ATAN(0.023101*E199)-4.686035,'Weather data'!C199) -> -2.976719199 | M199: 0 | N199: 0 | O199: 0 | R199: =O200*'Qsol calculation'!N199 -> 0 | S199: =O200*'Qsol calculation'!O199 -> 0 | T199: =O200*'Qsol calculation'!P199 -> 0 | U199: =O200*'Qsol calculation'!Q199 -> 0 | V199: =O200*'Qsol calculation'!R199 -> 0 | W199: =O200*'Qsol calculation'!S199 -> 0 | X199: =O200*'Qsol calculation'!T199 -> 0 | Y199: =O200*'Qsol calculation'!U199 -> 0 | AA199: 0 | AB199: 0 | AC199: 0 | AD199: 0 | AE199: 0 | AF199: 0 | AG199: 0 | AH199: 0 | AJ199: =N199*(1+COS(VCP!$N$22))/2 -> 0 | AL199: 0 | AM199: 0 | AN199: 0 | AO199: 0 | AP199: 0 | AQ199: 0 | AR199: 0 | AS199: 0 | AV199: =IF(AL199>VCP!$E$29,AL199*VCP!$E$28,AL199) -> 0 | AW199: =IF(AM199>VCP!$E$29,AM199*VCP!$E$28,AM199) -> 0 | AX199: =IF(AN199>VCP!$E$29,AN199*VCP!$E$28,AN199) -> 0 | AY199: =IF(AO199>VCP!$E$29,AO199*VCP!$E$28,AO199) -> 0 | AZ199: =IF(AP199>VCP!$E$29,AP199*VCP!$E$28,AP199) -> 0 | BA199: =IF(AQ199>VCP!$E$29,AQ199*VCP!$E$28,AQ199) -> 0 | BB199: =IF(AR199>VCP!$E$29,AR199*VCP!$E$28,AR199) -> 0 | BC199: =IF(AS199>VCP!$E$29,AS199*VCP!$E$28,AS199) -> 0
A200: 198 | B200: 0.9 | D200: -1.7 | E200: 81 | F200: 9.3 | G200: 20 | H200: 0 | I200: 0 | L200: =IF($K$2=0,D200*ATAN(0.151977*(E200+8.313659)^0.5)+ATAN(D200+E200)-ATAN(E200-1.676331)+0.00391838*(E200)^(3/2)*ATAN(0.023101*E200)-4.686035,'Weather data'!C200) -> -3.237452263 | M200: 0 | N200: 0 | O200: 0 | R200: =O201*'Qsol calculation'!N200 -> 0 | S200: =O201*'Qsol calculation'!O200 -> 0 | T200: =O201*'Qsol calculation'!P200 -> 0 | U200: =O201*'Qsol calculation'!Q200 -> 0 | V200: =O201*'Qsol calculation'!R200 -> 0 | W200: =O201*'Qsol calculation'!S200 -> 0 | X200: =O201*'Qsol calculation'!T200 -> 0 | Y200: =O201*'Qsol calculation'!U200 -> 0 | AA200: 0 | AB200: 0 | AC200: 0 | AD200: 0 | AE200: 0 | AF200: 0 | AG200: 0 | AH200: 0 | AJ200: =N200*(1+COS(VCP!$N$22))/2 -> 0 | AL200: 0 | AM200: 0 | AN200: 0 | AO200: 0 | AP200: 0 | AQ200: 0 | AR200: 0 | AS200: 0 | AV200: =IF(AL200>VCP!$E$29,AL200*VCP!$E$28,AL200) -> 0 | AW200: =IF(AM200>VCP!$E$29,AM200*VCP!$E$28,AM200) -> 0 | AX200: =IF(AN200>VCP!$E$29,AN200*VCP!$E$28,AN200) -> 0 | AY200: =IF(AO200>VCP!$E$29,AO200*VCP!$E$28,AO200) -> 0 | AZ200: =IF(AP200>VCP!$E$29,AP200*VCP!$E$28,AP200) -> 0 | BA200: =IF(AQ200>VCP!$E$29,AQ200*VCP!$E$28,AQ200) -> 0 | BB200: =IF(AR200>VCP!$E$29,AR200*VCP!$E$28,AR200) -> 0 | BC200: =IF(AS200>VCP!$E$29,AS200*VCP!$E$28,AS200) -> 0
... 925 more rows

Sheet VCP
D2: Ventilative cooling potential analysis | O2: =N2*VCP!$E$21*VCP!$E$288 -> 0
D3: Developed within the IEA - EBC Annex 62 - "Ventilative cooling"
D4: Created by: Eurac Research (co-funded by Stiftung Südtiroler Sparkasse), supported by Politecnico di Torino for evaporative cooling potential evaluation (co-founded by RTDgrant 59_ATEN_RSG16CHG)
D5: V1.0
C7: Location | N7: Air properties | S7: Temperature range for heating clothing ≈ 1 clo
C8: City | E8: Copenhagen | N8: ρ | O8: 1.2 | P8: kg/m³ | R8: Building type | S8: min | T8: max | V8: Comfort category | Y8: ventilation rates
C9: Country | E9: Denmark | N9: Cp | O9: 1000 | P9: J/kgK | R9: Apartment building | S9: =IF($E$22="category I",21,IF($E$22="category II",20,IF($E$22="category III",18,""))) -> 20 | T9: =IF($E$22="category I",25,IF($E$22="category II",25,IF($E$22="category III",25,""))) -> 25 | V9: category I | W9: 2 | Y9: 1/h
C10: Latitude | E10: 56.16294 | F10: ° | R10: Daycare center | S10: =IF($E$22="category I",21,IF($E$22="category II",20,IF($E$22="category III",18,""))) -> 20 | T10: =IF($E$22="category I",25,IF($E$22="category II",25,IF($E$22="category III",25,""))) -> 25 | V10: category II | W10: 3 | Y10: kg/s-m²
C11: Longitude | E11: 10.20392 | F11: ° | R11: Department store | S11: =IF($E$22="category I",17.5,IF($E$22="category II",16,IF($E$22="category III",15,""))) -> 16 | T11: =IF($E$22="category I",20.5,IF($E$22="category II",22,IF($E$22="category III",23,""))) -> 22 | V11: category III | W11: 4 | Y11: m³/h
C12: Time zone (respect GMT) | E12: 1 | F12: hr | R12: Detached house | S12: =IF($E$22="category I",21,IF($E$22="category II",20,IF($E$22="category III",18,""))) -> 20 | T12: =IF($E$22="category I",25,IF($E$22="category II",25,IF($E$22="category III",25,""))) -> 25 | W12: =IF(E22=V9,W9,IF(E22=V10,W10,IF(E22=V11,3))) -> 3
R13: Hospital | S13: =IF($E$22="category I",21,IF($E$22="category II",20,IF($E$22="category III",18,""))) -> 20 | T13: =IF($E$22="category I",25,IF($E$22="category II",25,IF($E$22="category III",25,""))) -> 25
R14: Hotel | S14: =IF($E$22="category I",21,IF($E$22="category II",20,IF($E$22="category III",18,""))) -> 20 | T14: =IF($E$22="category I",25,IF($E$22="category II",25,IF($E$22="category III",25,""))) -> 25
R15: Office building | S15: =IF($E$22="category I",21,IF($E$22="category II",20,IF($E$22="category III",19,""))) -> 20 | T15: 24
C16: Building data | R16: Restaurant | S16: =IF($E$22="category I",21,IF($E$22="category II",20,IF($E$22="category III",19,""))) -> 20 | T16: =IF($E$22="category I",23,IF($E$22="category II",24,IF($E$22="category III",25,""))) -> 24
C17: Building type | E17: Office building | R17: School | S17: =IF($E$22="category I",21,IF($E$22="category II",20,IF($E$22="category III",19,""))) -> 20 | T17: =IF($E$22="category I",23,IF($E$22="category II",24,IF($E$22="category III",25,""))) -> 24
C18: Ceiling to floor height | D18: H | E18: 2.8 | F18: m | H18: Room volume | I18: V | J18: =E18*E20 -> 78.204 | K18: m³ | R18: Sport, terminal, theatre | S18: =IF($E$22="category I",19,IF($E$22="category II",17.5,IF($E$22="category III",16.5,""))) -> 17.5 | T18: =IF($E$22="category I",21,IF($E$22="category II",22.5,IF($E$22="category III",23.5,""))) -> 22.5
C19: Envelope area | D19: A | E19: =7*2.8 -> 19.6 | F19: m²
C20: Floor area | D20: S | E20: =3.99*7 -> 27.93 | F20: m²
C21: Fenestration area | D21: W | E21: 10.35 | F21: m² | G21: S | H21: Fenestration area orientation | I21: 90 | J21: ° Inclination | N21: =RADIANS(I21) -> 1.570796327 | O21: RAD | P21: surface inclination
C22: Comfort requirement | E22: category II | N22: =RADIANS(E10) -> 0.9802282206 | O22: RAD | P22: latitude
AI24: Required airflow rates in VC mode [2]
C25: Technical specifications | AI25: average | AK25: st. dev.
C26: U-value of the opaque envelope | D26: Uo | E26: 0.267 | F26: W/m²K | H26: Avg. envelope U-value | I26: Uavg | J26: =(E26*(E19-E21)+E27*E21)/E19 -> 0.7174362245 | K26: W/m²K | AI26: =VCPcalculation!AO14 -> 3.431350669 | AJ26: ± | AK26: =VCPcalculation!AP14 -> 1.127720649 | AL26: ach
C27: U-value of the fenestration | D27: Uw | E27: 1.12 | F27: W/m²K
C28: g value of the glazing system | D28: g | E28: 0.3 | F28: -
C29: Shading control setpoint | D29: Shd | E29: 40 | F29: W/m²
C30: Min. required ventilation rates | D30: ṁmin | E30: =40.55/E20 -> 1.451843895 | F30: l/s-m² | I30: ṁmin | J30: =IF(K30="kg/s-m²",E30*0.001*O8,IF(K30="m³/h",E30*3.6*E20,IF(K30="1/h",E30*3.6/E18,""))) -> 1.866656437 | K30: 1/h | N30: ṁmin | O30: =E30*0.001*O8 -> 0.001742212675 | P30: kg/s-m²
C32: Lighting power density | D32: Qlight | E32: =158/E20 -> 5.656999642 | F32: W/m²
C33: Electric equipment power density | D33: Qel_equip | E33: =300/E20 -> 10.74113856 | F33: W/m² | N33: Ti-hsp | O33: =LOOKUP(E17,R9:R18,S9:S18) -> 20 | P33: °C | Q33: =CONVERT(O33,"C","K") -> 293.15 | R33: K
C34: Occupancy density | D34: Qpeople | E34: =E20/3 -> 9.31 | F34: m²/pers | H34: Avg. total internal gains | I34: Qint | J34: =LOOKUP(E17,Profiles!C29:L29,Profiles!C54:L54) -> 17.7326433 | K34: W/m² | N34: To-hbp | O34: =CONVERT(Q34,"K","C") -> 12.1036526 | P34: °C | Q34: =Q33-(J34*E20)/(O9*O30*E20+J26*E19) -> 285.2536526 | R34: K
N35: Ti-csp | O35: =LOOKUP(E17,R9:R18,T9:T18) -> 24 | P35: °C | Q35: =CONVERT(O35,"C","K") -> 297.15 | R35: K

Sheet VCPcalculation (hidden)
A1: Day | B1: Date | C1: Time | D1: Time | E1: Time | F1: Tdb [C] | G1: RH [%] | H1: Tdp [°C] | I1: Twb [°C] | J1: GHR [W/m²] | K1: Daily mean Tdb[°C] | L1: Torm [°C] | M1: Lower comfort zone limit | N1: Upper comfort zone limit | O1: Qsol [W/m²] | P1: Qin [W/m²] | Q1: To-hbp [°C] | R1: Tdec [°C] | T1: required cooling ventilation rate [kg/s-m²] | U1: required ACH [1/h] | V1: Night cooling activation | W1: qnight [W/m²-ACH] | X1: Nighttime CD | AE1: VC mode [0]: ventilative cooling not required | AF1: VC mode [1]: potential comfort hrs by direct ventilative cooling with minimum airflow rates | AG1: VC mode [2]: potential comfort hrs by direct ventilative cooling with increased airflow rates | AH1: VC mode [3]: potential comfort hrs with evaporative cooling | AI1: VC mode [4]: residual discomfort hrs | AJ1: Nighttime ventilation activation | AK1: CD [K] | AL1: Cooling potential [W/m²-ACH] | AM1: Monthly average of diurnal temperature swing | AN1: Monthly average of horizontal global radiation | AO1: Average direct ventilative cooling ACH | AP1: St.dev. direct ventilative cooling ACH
A2: =DAY(B2) -> 1 | B2: 2011-01-01 | C2: 01:00:00 | D2: 1 | E2: 0.04166666667 | F2: ='Weather data'!B2 -> 7 | G2: ='Weather data'!E2 -> 85 | H2: ='Weather data'!D2 -> 4.6 | I2: ='Weather data'!L2 -> 3.166815768 | J2: ='Weather data'!I2 -> 0 | K2: =AVERAGE(F2:F25) -> 6.645833333 | L2: =(K8761+0.8*K8737+0.6*K8713+0.5*K8689+0.4*K8665+0.3*K8641+0.2*K8617)/3.8 -> 4.974780702 | M2: =IF(L2>15,0.33*L2+18.8-VCP!$W$12,LOOKUP(VCP!$E$17,VCP!$R$9:$R$18,VCP!$S$9:$S$18)) -> 20 | N2: =IF(L2>10,0.33*L2+18.8+VCP!$W$12,LOOKUP(VCP!$E$17,VCP!$R$9:$R$18,VCP!$T$9:$T$18)) -> 24 | O2: ='avg calculation'!D2*VCP!$E$21*VCP!$E$28/VCP!$E$20 -> 0 | P2: =LOOKUP(VCP!$E$17,Profiles!$C$29:$L$29,Profiles!C31:L31) -> 0 | Q2: =VCP!$O$33-((O2+P2)*VCP!$E$20)/(VCP!$O$9*VCP!$O$30*VCP!$E$20+VCP!$J$26*VCP!$E$19) -> 20 | R2: =F2-0.75*(F2-I2) -> 4.125111826 | S2: =IF(AND(E2>=$AB$4,E2<$AB$3),IF(F2<Q2,0,IF(AND(F2>=Q2,F2<(Q2+N2-M2)),1,IF(AND(F2>=(Q2+N2-M2),F2<(N2-3)),2,IF(AND(F2>=(N2-3),AND(F2>R2,R2<(N2-3),I2<$AA$8)),3,4)))),"") ->  | T2: =IF(S2=1,VCP!$O$30,IF(S2=2,((P2+O2)/(VCP!$O$9*(VCPcalculation!N2-VCPcalculation!F2))),"")) ->  | U2: =IF(OR(S2=3,S2=0,S2=""),"",(T2*3600/VCP!$O$8)/VCP!$E$18) ->  | V2: =IF(((C2>=$AA$4)*AND(C2<$AA$3)),0,IF(AND('avg calculation'!F2>($AA$5*2),F2<N2),1,0)) -> 0 | W2: =IF(V2=1, VCP!$E$18*VCP!$O$8/3600*VCP!$O$9*(N2-F2),"-") -> - | X2: =IF(V2=1,(N2-F2),0) -> 0 | AA2: time control | AD2: jan | AE2: =COUNTIF($S$2:$S$745,"=0") -> 279 | AF2: =COUNTIF($S$2:$S$745,"=1") -> 0 | AG2: =COUNTIF($S$2:$S$745,"=2") -> 0 | AH2: =COUNTIF($S$2:$S$745,"=3") -> 0 | AI2: =COUNTIF($S$2:$S$745,"=4") -> 0 | AJ2: =COUNTIF($V$2:$V$745,"=1") -> 0 | AK2: =SUM(X2:X745) -> 0 | AL2: ='avg calculation'!AE2 -> 0 | AM2: ='avg calculation'!AC2 -> 1.185263158 | AN2: ='avg calculation'!AD2 -> 6.080974706 | AO2: ='avg calculation'!AF2 ->  | AP2: ='avg calculation'!AG2 -> 
A3: =DAY(B3) -> 1 | B3: 2011-01-01T01:00:00 | C3: 02:00:00 | D3: 2 | E3: 0.08333333333 | F3: ='Weather data'!B3 -> 7.1 | G3: ='Weather data'!E3 -> 84 | H3: ='Weather data'!D3 -> 4.5 | I3: ='Weather data'!L3 -> 2.984343906 | J3: ='Weather data'!I3 -> 0 | K3: =K2 -> 6.645833333 | L3: =L2 -> 4.974780702 | M3: =IF(L3>15,0.33*L3+18.8-VCP!$W$12,LOOKUP(VCP!$E$17,VCP!$R$9:$R$18,VCP!$S$9:$S$18)) -> 20 | N3: =IF(L3>10,0.33*L3+18.8+VCP!$W$12,LOOKUP(VCP!$E$17,VCP!$R$9:$R$18,VCP!$T$9:$T$18)) -> 24 | O3: ='avg calculation'!D3*VCP!$E$21*VCP!$E$28/VCP!$E$20 -> 0 | P3: =LOOKUP(VCP!$E$17,Profiles!$C$29:$L$29,Profiles!C32:L32) -> 0 | Q3: =VCP!$O$33-((O3+P3)*VCP!$E$20)/(VCP!$O$9*VCP!$O$30*VCP!$E$20+VCP!$J$26*VCP!$E$19) -> 20 | R3: =F3-0.75*(F3-I3) -> 4.013257929 | S3: =IF(AND(E3>=$AB$4,E3<$AB$3),IF(F3<Q3,0,IF(AND(F3>=Q3,F3<(Q3+N3-M3)),1,IF(AND(F3>=(Q3+N3-M3),F3<(N3-3)),2,IF(AND(F3>=(N3-3),AND(F3>R3,R3<(N3-3),I3<$AA$8)),3,4)))),"") ->  | T3: =IF(S3=1,VCP!$O$30,IF(S3=2,((P3+O3)/(VCP!$O$9*(VCPcalculation!N3-VCPcalculation!F3))),"")) ->  | U3: =IF(OR(S3=3,S3=0,S3=""),"",(T3*3600/VCP!$O$8)/VCP!$E$18) ->  | V3: =IF(((C3>=$AA$4)*AND(C3<$AA$3)),0,IF(AND('avg calculation'!F3>($AA$5*2),F3<N3),1,0)) -> 0 | W3: =IF(V3=1, VCP!$E$18*VCP!$O$8/3600*VCP!$O$9*(N3-F3),"-") -> - | X3: 0 | Z3: on | AA3: =LOOKUP(VCP!E17,Profiles!P29:Y29,Profiles!P30:Y30) -> 17:00:00 | AB3: =IF(AA3=0,1,AA3) -> 0.7083333333 | AD3: feb | AE3: =COUNTIF($S$746:$S$1417,"=0") -> 252 | AF3: =COUNTIF($S$746:$S$1417,"=1") -> 0 | AG3: =COUNTIF($S$746:$S$1417,"=2") -> 0 | AH3: =COUNTIF($S$746:$S$1417,"=3") -> 0 | AI3: =COUNTIF($S$746:$S$1417,"=4") -> 0 | AJ3: =COUNTIF($V$746:$V$1417,"=1") -> 0 | AK3: =SUM(X746:X1417) -> 0 | AL3: ='avg calculation'!AE3 -> 0 | AM3: ='avg calculation'!AC3 -> 2.282898551 | AN3: ='avg calculation'!AD3 -> 9.146997744 | AO3: ='avg calculation'!AF3 ->  | AP3: ='avg calculation'!AG3 -> 
A4: 1 | B4: 2011-01-01T01:59:59.990 | C4: 03:00:00 | D4: 3 | E4: 0.125 | F4: ='Weather data'!B4 -> 7.2 | G4: ='Weather data'!E4 -> 83 | H4: ='Weather data'!D4 -> 4.5 | I4: ='Weather data'!L4 -> 2.899620771 | J4: ='Weather data'!I4 -> 0 | K4: =K3 -> 6.645833333 | L4: 4.974780702 | M4: =IF(L4>15,0.33*L4+18.8-VCP!$W$12,LOOKUP(VCP!$E$17,VCP!$R$9:$R$18,VCP!$S$9:$S$18)) -> 20 | N4: =IF(L4>10,0.33*L4+18.8+VCP!$W$12,LOOKUP(VCP!$E$17,VCP!$R$9:$R$18,VCP!$T$9:$T$18)) -> 24 | O4: ='avg calculation'!D4*VCP!$E$21*VCP!$E$28/VCP!$E$20 -> 0 | P4: =LOOKUP(VCP!$E$17,Profiles!$C$29:$L$29,Profiles!C33:L33) -> 0 | Q4: =VCP!$O$33-((O4+P4)*VCP!$E$20)/(VCP!$O$9*VCP!$O$30*VCP!$E$20+VCP!$J$26*VCP!$E$19) -> 20 | R4: 3.974715578 | T4: =IF(S4=1,VCP!$O$30,IF(S4=2,((P4+O4)/(VCP!$O$9*(VCPcalculation!N4-VCPcalculation!F4))),"")) ->  | U4: =IF(OR(S4=3,S4=0,S4=""),"",(T4*3600/VCP!$O$8)/VCP!$E$18) ->  | V4: =IF(((C4>=$AA$4)*AND(C4<$AA$3)),0,IF(AND('avg calculation'!F4>($AA$5*2),F4<N4),1,0)) -> 0 | W4: =IF(V4=1, VCP!$E$18*VCP!$O$8/3600*VCP!$O$9*(N4-F4),"-") -> - | X4: 0 | Z4: off | AA4: =LOOKUP(VCP!E17,Profiles!P29:Y29,Profiles!P31:Y31) -> 08:00:00 | AB4: =IF(AA4=1,0,AA4) -> 0.3333333333 | AD4: mar | AE4: =COUNTIF($S$1418:$S$2161,"=0") -> 273 | AF4: =COUNTIF($S$1418:$S$2161,"=1") -> 6 | AG4: =COUNTIF($S$1418:$S$2161,"=2") -> 0 | AH4: =COUNTIF($S$1418:$S$2161,"=3") -> 0 | AI4: =COUNTIF($S$1418:$S$2161,"=4") -> 0 | AJ4: =COUNTIF($V$1418:$V$2161,"=1") -> 0 | AK4: =SUM(X1418:X2161) -> 0 | AL4: ='avg calculation'!AE4 -> 0 | AM4: ='avg calculation'!AC4 -> 2.539227053 | AN4: ='avg calculation'!AD4 -> 14.85675508 | AO4: ='avg calculation'!AF4 ->  | AP4: ='avg calculation'!AG4 -> 
A5: 1 | B5: 2011-01-01T02:59:59.985 | C5: 04:00:00 | D5: 4 | E5: 0.1666666667 | F5: ='Weather data'!B5 -> 7.4 | G5: ='Weather data'!E5 -> 82 | H5: ='Weather data'!D5 -> 4.5 | I5: ='Weather data'!L5 -> 2.815353238 | J5: ='Weather data'!I5 -> 0 | K5: 6.645833333 | L5: 4.974780702 | M5: =IF(L5>15,0.33*L5+18.8-VCP!$W$12,LOOKUP(VCP!$E$17,VCP!$R$9:$R$18,VCP!$S$9:$S$18)) -> 20 | N5: =IF(L5>10,0.33*L5+18.8+VCP!$W$12,LOOKUP(VCP!$E$17,VCP!$R$9:$R$18,VCP!$T$9:$T$18)) -> 24 | O5: ='avg calculation'!D5*VCP!$E$21*VCP!$E$28/VCP!$E$20 -> 0 | P5: =LOOKUP(VCP!$E$17,Profiles!$C$29:$L$29,Profiles!C34:L34) -> 0 | Q5: =VCP!$O$33-((O5+P5)*VCP!$E$20)/(VCP!$O$9*VCP!$O$30*VCP!$E$20+VCP!$J$26*VCP!$E$19) -> 20 | R5: 3.961514928 | T5: =IF(S5=1,VCP!$O$30,IF(S5=2,((P5+O5)/(VCP!$O$9*(VCPcalculation!N5-VCPcalculation!F5))),"")) ->  | U5: =IF(OR(S5=3,S5=0,S5=""),"",(T5*3600/VCP!$O$8)/VCP!$E$18) ->  | V5: =IF(((C5>=$AA$4)*AND(C5<$AA$3)),0,IF(AND('avg calculation'!F5>($AA$5*2),F5<N5),1,0)) -> 0 | W5: =IF(V5=1, VCP!$E$18*VCP!$O$8/3600*VCP!$O$9*(N5-F5),"-") -> - | X5: 0 | Z5: nr of occupied hrs | AA5: =LOOKUP(VCP!$E$17,Profiles!$C$29:$L$29,Profiles!P32:Y32) -> 9 | AD5: apr | AE5: =COUNTIF($S$2162:$S$2881,"=0") -> 164 | AF5: =COUNTIF($S$2162:$S$2881,"=1") -> 81 | AG5: =COUNTIF($S$2162:$S$2881,"=2") -> 25 | AH5: =COUNTIF($S$2162:$S$2881,"=3") -> 0 | AI5: =COUNTIF($S$2162:$S$2881,"=4") -> 0 | AJ5: =COUNTIF($V$2162:$V$2881,"=1") -> 0 | AK5: =SUM(X2162:X2881) -> 0 | AL5: ='avg calculation'!AE5 -> 0 | AM5: ='avg calculation'!AC5 -> 2.909218107 | AN5: ='avg calculation'!AD5 -> 21.6973423 | AO5: ='avg calculation'!AF5 -> 2.90714087 | AP5: ='avg calculation'!AG5 -> 0.3690824944
A6: 1 | B6: 2011-01-01T03:59:59.980 | C6: 05:00:00 | D6: 5 | E6: 0.2083333333 | F6: ='Weather data'!B6 -> 7.6 | G6: ='Weather data'!E6 -> 81 | H6: ='Weather data'!D6 -> 4.5 | I6: ='Weather data'!L6 -> 2.731543315 | J6: ='Weather data'!I6 -> 0 | K6: 6.645833333 | L6: 4.974780702 | M6: =IF(L6>15,0.33*L6+18.8-VCP!$W$12,LOOKUP(VCP!$E$17,VCP!$R$9:$R$18,VCP!$S$9:$S$18)) -> 20 | N6: =IF(L6>10,0.33*L6+18.8+VCP!$W$12,LOOKUP(VCP!$E$17,VCP!$R$9:$R$18,VCP!$T$9:$T$18)) -> 24 | O6: ='avg calculation'!D6*VCP!$E$21*VCP!$E$28/VCP!$E$20 -> 0 | P6: =LOOKUP(VCP!$E$17,Profiles!$C$29:$L$29,Profiles!C35:L35) -> 0 | Q6: =VCP!$O$33-((O6+P6)*VCP!$E$20)/(VCP!$O$9*VCP!$O$30*VCP!$E$20+VCP!$J$26*VCP!$E$19) -> 20 | R6: 3.948657486 | T6: =IF(S6=1,VCP!$O$30,IF(S6=2,((P6+O6)/(VCP!$O$9*(VCPcalculation!N6-VCPcalculation!F6))),"")) ->  | U6: =IF(OR(S6=3,S6=0,S6=""),"",(T6*3600/VCP!$O$8)/VCP!$E$18) ->  | V6: =IF(((C6>=$AA$4)*AND(C6<$AA$3)),0,IF(AND('avg calculation'!F6>($AA$5*2),F6<N6),1,0)) -> 0 | W6: =IF(V6=1, VCP!$E$18*VCP!$O$8/3600*VCP!$O$9*(N6-F6),"-") -> - | X6: 0 | AD6: may | AE6: =COUNTIF($S$2882:$S$3625,"=0") -> 9 | AF6: =COUNTIF($S$2882:$S$3625,"=1") -> 139 | AG6: =COUNTIF($S$2882:$S$3625,"=2") -> 131 | AH6: =COUNTIF($S$2882:$S$3625,"=3") -> 0 | AI6: =COUNTIF($S$2882:$S$3625,"=4") -> 0 | AJ6: =COUNTIF($V$2882:$V$3625,"=1") -> 0 | AK6: =SUM(X2882:X3625) -> 0 | AL6: ='avg calculation'!AE6 -> 0 | AM6: ='avg calculation'!AC6 -> 3.017419355 | AN6: ='avg calculation'!AD6 -> 27.38326646 | AO6: ='avg calculation'!AF6 -> 3.220253881 | AP6: ='avg calculation'!AG6 -> 0.7560054485
A7: 1 | B7: 2011-01-01T04:59:59.975 | C7: 06:00:00 | D7: 6 | E7: 0.25 | F7: ='Weather data'!B7 -> 7.8 | G7: ='Weather data'!E7 -> 80 | H7: ='Weather data'!D7 -> 4.6 | I7: ='Weather data'!L7 -> 2.744202139 | J7: ='Weather data'!I7 -> 0 | K7: 6.645833333 | L7: 4.974780702 | M7: =IF(L7>15,0.33*L7+18.8-VCP!$W$12,LOOKUP(VCP!$E$17,VCP!$R$9:$R$18,VCP!$S$9:$S$18)) -> 20 | N7: =IF(L7>10,0.33*L7+18.8+VCP!$W$12,LOOKUP(VCP!$E$17,VCP!$R$9:$R$18,VCP!$T$9:$T$18)) -> 24 | O7: ='avg calculation'!D7*VCP!$E$21*VCP!$E$28/VCP!$E$20 -> 0 | P7: =LOOKUP(VCP!$E$17,Profiles!$C$29:$L$29,Profiles!C36:L36) -> 0 | Q7: =VCP!$O$33-((O7+P7)*VCP!$E$20)/(VCP!$O$9*VCP!$O$30*VCP!$E$20+VCP!$J$26*VCP!$E$19) -> 20 | R7: 4.008151604 | T7: =IF(S7=1,VCP!$O$30,IF(S7=2,((P7+O7)/(VCP!$O$9*(VCPcalculation!N7-VCPcalculation!F7))),"")) ->  | U7: =IF(OR(S7=3,S7=0,S7=""),"",(T7*3600/VCP!$O$8)/VCP!$E$18) ->  | V7: =IF(((C7>=$AA$4)*AND(C7<$AA$3)),0,IF(AND('avg calculation'!F7>($AA$5*2),F7<N7),1,0)) -> 0 | W7: =IF(V7=1, VCP!$E$18*VCP!$O$8/3600*VCP!$O$9*(N7-F7),"-") -> - | X7: 0 | AD7: jun | AE7: =COUNTIF($S$3626:$S$4345,"=0") -> 0 | AF7: =COUNTIF($S$3626:$S$4345,"=1") -> 51 | AG7: =COUNTIF($S$3626:$S$4345,"=2") -> 215 | AH7: =COUNTIF($S$3626:$S$4345,"=3") -> 4 | AI7: =COUNTIF($S$3626:$S$4345,"=4") -> 0 | AJ7: =COUNTIF($V$3626:$V$4345,"=1") -> 15 | AK7: =SUM(X3626:X4345) -> 134.800605 | AL7: ='avg calculation'!AE7 -> 8.387593198 | AM7: ='avg calculation'!AC7 -> 3.333333333 | AN7: ='avg calculation'!AD7 -> 32.81088943 | AO7: ='avg calculation'!AF7 -> 3.525140382 | AP7: ='avg calculation'!AG7 -> 1.107011548
A8: 1 | B8: 2011-01-01T05:59:59.970 | C8: 07:00:00 | D8: 7 | E8: 0.2916666667 | F8: ='Weather data'!B8 -> 7.9 | G8: ='Weather data'!E8 -> 80 | H8: ='Weather data'!D8 -> 4.6 | I8: ='Weather data'!L8 -> 2.744202139 | J8: ='Weather data'!I8 -> 0 | K8: 6.645833333 | L8: 4.974780702 | M8: =IF(L8>15,0.33*L8+18.8-VCP!$W$12,LOOKUP(VCP!$E$17,VCP!$R$9:$R$18,VCP!$S$9:$S$18)) -> 20 | N8: =IF(L8>10,0.33*L8+18.8+VCP!$W$12,LOOKUP(VCP!$E$17,VCP!$R$9:$R$18,VCP!$T$9:$T$18)) -> 24 | O8: ='avg calculation'!D8*VCP!$E$21*VCP!$E$28/VCP!$E$20 -> 0 | P8: =LOOKUP(VCP!$E$17,Profiles!$C$29:$L$29,Profiles!C37:L37) -> 6.501969209 | Q8: =VCP!$O$33-((O8+P8)*VCP!$E$20)/(VCP!$O$9*VCP!$O$30*VCP!$E$20+VCP!$J$26*VCP!$E$19) -> 17.10467262 | R8: 4.033151604 | T8: =IF(S8=1,VCP!$O$30,IF(S8=2,((P8+O8)/(VCP!$O$9*(VCPcalculation!N8-VCPcalculation!F8))),"")) ->  | U8: =IF(OR(S8=3,S8=0,S8=""),"",(T8*3600/VCP!$O$8)/VCP!$E$18) ->  | V8: =IF(((C8>=$AA$4)*AND(C8<$AA$3)),0,IF(AND('avg calculation'!F8>($AA$5*2),F8<N8),1,0)) -> 0 | W8: =IF(V8=1, VCP!$E$18*VCP!$O$8/3600*VCP!$O$9*(N8-F8),"-") -> - | X8: 0 | Z8: Twb_max | AA8: =IF(VCP!E17=Profiles!$B$6,20,IF(VCP!E17=Profiles!$B$9,20,18)) -> 18 | AB8: °C | AD8: jul | AE8: =COUNTIF($S$4346:$S$5089,"=0") -> 0 | AF8: =COUNTIF($S$4346:$S$5089,"=1") -> 13 | AG8: =COUNTIF($S$4346:$S$5089,"=2") -> 261 | AH8: =COUNTIF($S$4346:$S$5089,"=3") -> 5 | AI8: =COUNTIF($S$4346:$S$5089,"=4") -> 0 | AJ8: =COUNTIF($V$4346:$V$5089,"=1") -> 30 | AK8: =SUM(X4346:X5089) -> 249.0656912 | AL8: ='avg calculation'!AE8 -> 7.748710392 | AM8: ='avg calculation'!AC8 -> 3.103799283 | AN8: ='avg calculation'!AD8 -> 31.2307933 | AO8: ='avg calculation'!AF8 -> 3.686240167 | AP8: ='avg calculation'!AG8 -> 1.216822145
A9: 1 | B9: 2011-01-01T06:59:59.965 | C9: 08:00:00 | D9: 8 | E9: 0.3333333333 | F9: ='Weather data'!B9 -> 8.1 | G9: ='Weather data'!E9 -> 79 | H9: ='Weather data'!D9 -> 4.8 | I9: ='Weather data'!L9 -> 2.852529318 | J9: ='Weather data'!I9 -> 0 | K9: 6.645833333 | L9: 4.974780702 | M9: =IF(L9>15,0.33*L9+18.8-VCP!$W$12,LOOKUP(VCP!$E$17,VCP!$R$9:$R$18,VCP!$S$9:$S$18)) -> 20 | N9: =IF(L9>10,0.33*L9+18.8+VCP!$W$12,LOOKUP(VCP!$E$17,VCP!$R$9:$R$18,VCP!$T$9:$T$18)) -> 24 | O9: ='avg calculation'!D9*VCP!$E$21*VCP!$E$28/VCP!$E$20 -> 0 | P9: =LOOKUP(VCP!$E$17,Profiles!$C$29:$L$29,Profiles!C38:L38) -> 19.50590763 | Q9: =VCP!$O$33-((O9+P9)*VCP!$E$20)/(VCP!$O$9*VCP!$O$30*VCP!$E$20+VCP!$J$26*VCP!$E$19) -> 11.31401786 | R9: 4.164396989 | S9: 0 | T9: =IF(S9=1,VCP!$O$30,IF(S9=2,((P9+O9)/(VCP!$O$9*(VCPcalculation!N9-VCPcalculation!F9))),"")) ->  | U9: =IF(OR(S9=3,S9=0,S9=""),"",(T9*3600/VCP!$O$8)/VCP!$E$18) ->  | V9: =IF(((C9>=$AA$4)*AND(C9<$AA$3)),0,IF(AND('avg calculation'!F9>($AA$5*2),F9<N9),1,0)) -> 0 | W9: =IF(V9=1, VCP!$E$18*VCP!$O$8/3600*VCP!$O$9*(N9-F9),"-") -> - | X9: 0 | AD9: aug | AE9: =COUNTIF($S$5090:$S$5833,"=0") -> 0 | AF9: =COUNTIF($S$5090:$S$5833,"=1") -> 23 | AG9: =COUNTIF($S$5090:$S$5833,"=2") -> 230 | AH9: =COUNTIF($S$5090:$S$5833,"=3") -> 26 | AI9: =COUNTIF($S$5090:$S$5833,"=4") -> 0 | AJ9: =COUNTIF($V$5090:$V$5833,"=1") -> 75 | AK9: =SUM(X5090:X5833) -> 660.669748 | AL9: ='avg calculation'!AE9 -> 8.221667976 | AM9: ='avg calculation'!AC9 -> 3.654740741 | AN9: ='avg calculation'!AD9 -> 25.10379488 | AO9: ='avg calculation'!AF9 -> 3.58331816 | AP9: ='avg calculation'!AG9 -> 1.375237658
A10: 1 | B10: 2011-01-01T07:59:59.960 | C10: 09:00:00 | D10: 9 | E10: 0.375 | F10: ='Weather data'!B10 -> 8.4 | G10: ='Weather data'!E10 -> 79 | H10: ='Weather data'!D10 -> 5 | I10: ='Weather data'!L10 -> 3.0440124 | J10: ='Weather data'!I10 -> 0 | K10: 6.645833333 | L10: 4.974780702 | M10: =IF(L10>15,0.33*L10+18.8-VCP!$W$12,LOOKUP(VCP!$E$17,VCP!$R$9:$R$18,VCP!$S$9:$S$18)) -> 20 | N10: =IF(L10>10,0.33*L10+18.8+VCP!$W$12,LOOKUP(VCP!$E$17,VCP!$R$9:$R$18,VCP!$T$9:$T$18)) -> 24 | O10: ='avg calculation'!D10*VCP!$E$21*VCP!$E$28/VCP!$E$20 -> 0.0004969330576 | P10: =LOOKUP(VCP!$E$17,Profiles!$C$29:$L$29,Profiles!C39:L39) -> 19.50590763 | Q10: =VCP!$O$33-((O10+P10)*VCP!$E$20)/(VCP!$O$9*VCP!$O$30*VCP!$E$20+VCP!$J$26*VCP!$E$19) -> 11.31379658 | R10: 4.3830093 | S10: 0 | T10: =IF(S10=1,VCP!$O$30,IF(S10=2,((P10+O10)/(VCP!$O$9*(VCPcalculation!N10-VCPcalculation!F10))),"")) ->  | U10: =IF(OR(S10=3,S10=0,S10=""),"",(T10*3600/VCP!$O$8)/VCP!$E$18) ->  | V10: =IF(((C10>=$AA$4)*AND(C10<$AA$3)),0,IF(AND('avg calculation'!F10>($AA$5*2),F10<N10),1,0)) -> 0 | W10: =IF(V10=1, VCP!$E$18*VCP!$O$8/3600*VCP!$O$9*(N10-F10),"-") -> - | X10: 0 | AD10: sep | AE10: =COUNTIF($S$5834:$S$6553,"=0") -> 20 | AF10: =COUNTIF($S$5834:$S$6553,"=1") -> 146 | AG10: =COUNTIF($S$5834:$S$6553,"=2") -> 104 | AH10: =COUNTIF($S$5834:$S$6553,"=3") -> 0 | AI10: =COUNTIF($S$5834:$S$6553,"=4") -> 0 | AJ10: =COUNTIF($V$5834:$V$6553,"=1") -> 0 | AK10: =SUM(X5834:X6553) -> 0 | AL10: ='avg calculation'!AE10 -> 0 | AM10: ='avg calculation'!AC10 -> 2.667049808 | AN10: ='avg calculation'!AD10 -> 18.6812249 | AO10: ='avg calculation'!AF10 -> 2.848515869 | AP10: ='avg calculation'!AG10 -> 0.3255653841
